Workbook

Sheet Accueil
B3: Région | C3: BOURGOGNE FRANCHE COMTE
B5: Année | C5: 2022
B9: Epreuves
B10: 03/04/2022 Luxeuil | C10: 24/04/2022 Noidans les Vesoul | D10: 1/05/2022 Vescemont | E10: 08/05/2022 Morteau | F10: 22/05/2022 Pontarlier | G10: 05/06/2022 Vadans | H10: 12/06/2022 Montbéliard | I10: 02 et 03/07/2022 Bletterans

Sheet Maillots
E2: ="Challenge régional "&Accueil!$C$3&" - "&Accueil!$C$5 -> Challenge régional BOURGOGNE FRANCHE COMTE - 2022
E6: Poussins | G6: Pupilles | I6: Benjamins | K6: Minimes
B7: leader classement général | E7: ='Classement Poussins'!D2 -> GRIME Lucas - V.C.DE MONTBELIARD | G7: ='Classement Pupilles'!D2 -> CONVERSET Lucas - V.C.DE MONTBELIARD | I7: ='Classement Benjamins'!D2 -> GENTER Amaury - CYCLE GOLBEEN | K7: ='Classement Minimes'!D2 -> MORTIER Maxime - ROUE D`OR NOIDANS
B8: Leader Route | E8: ='Classement Poussins'!D3 -> MURATORI EZYO - CC BELFORT MIOTTE | G8: ='Classement Pupilles'!D3 -> BORNERT Lucien - VC MORTEAU MONTBENOIT | I8: ='Classement Benjamins'!D3 -> PRETET Hugo - AMICALE CYCLISTE BISONTINE | K8: ='Classement Minimes'!D3 -> DAVID Quentin - E.C. LUXEUIL VOSGES SAONO
B9: Leader Sprint | E9: ='Classement Poussins'!D4 -> BOURGES Martin - E.C. LUXEUIL VOSGES SAONO | G9: ='Classement Pupilles'!D4 -> PETITGIRARD Léa - E.C. LUXEUIL VOSGES SAONO | I9: ='Classement Benjamins'!D4 -> BILLOTTE Berthille - VC MORTEAU MONTBENOIT | K9: ='Classement Minimes'!D4 -> BILLOTTE Simon - VC MORTEAU MONTBENOIT
B10: Leader Cyclo-Cross | E10: ='Classement Poussins'!D5 -> JOURNET Paul - CC BELFORT MIOTTE | G10: ='Classement Pupilles'!D5 -> VICHARD Maxime - GUIDON BLETTERANOIS | I10: ='Classement Benjamins'!D5 -> VICHARD Jules - GUIDON BLETTERANOIS | K10: ='Classement Minimes'!D5 -> LOUISON Timéo - AMICALE CYCLISTE BISONTINE
B11: Leader Agilité | E11: ='Classement Poussins'!D6 -> DEVILLERS Lylou - VC MORTEAU MONTBENOIT | G11: ='Classement Pupilles'!D6 -> THALGOTT Timeo - E.C. LUXEUIL VOSGES SAONO | I11: ='Classement Benjamins'!D6 -> LEHERLE Pauline - V.C.DE MONTBELIARD | K11: ='Classement Minimes'!D6 -> BILLET Simon - JURA CYCLISME PAYS DU REVERMONT
B12: Leader 1ère année | E12: ='Classement Poussins'!D7 -> DEVILLERS Louis - VC MORTEAU MONTBENOIT | G12: ='Classement Pupilles'!D7 -> LEHERLE Thibaut - V.C.DE MONTBELIARD | I12: ='Classement Benjamins'!D7 -> DROZ VINCENT Thibault - VC MORTEAU MONTBENOIT | K12: ='Classement Minimes'!D7 -> CHAPAT Louis - JURA CYCLISME PAYS DU REVERMONT
B13: Leader Féminine | E13: ='Classement Poussins'!D8 -> ANDRE Louane - E.C. LUXEUIL VOSGES SAONO | G13: ='Classement Pupilles'!D8 -> MARTINI Mila - VC MORTEAU MONTBENOIT | I13: ='Classement Benjamins'!D8 -> VERNIER Satine - VELO CLUB PONTARLIER | K13: ='Classement Minimes'!D8 -> ROUSSEL Agathe - E.C. LUXEUIL VOSGES SAONO

Sheet Classement Poussins
C1: 1 | D1: 2 | E1: 3 | F1: 5 | G1: 6 | H1: 7 | I1: 1 | J1: 2 | K1: 3 | L1: 4 | M1: 5 | N1: 6 | O1: 7 | P1: 8
B2: leader classement général | D2: =+'Saisie Poussins'!E2 -> GRIME Lucas - V.C.DE MONTBELIARD
B3: Leader Route | D3: =+'Saisie Poussins'!E3 -> MURATORI EZYO - CC BELFORT MIOTTE
B4: Leader Sprint | D4: =+'Saisie Poussins'!E4 -> BOURGES Martin - E.C. LUXEUIL VOSGES SAONO
B5: Leader Cyclo-Cross | D5: =+'Saisie Poussins'!E5 -> JOURNET Paul - CC BELFORT MIOTTE
B6: Leader Agilité | D6: =+'Saisie Poussins'!E6 -> DEVILLERS Lylou - VC MORTEAU MONTBENOIT
B7: Leader 1ère année | D7: =+'Saisie Poussins'!E7 -> DEVILLERS Louis - VC MORTEAU MONTBENOIT
B8: Leader Féminine | D8: =+'Saisie Poussins'!E8 -> ANDRE Louane - E.C. LUXEUIL VOSGES SAONO
B10: Leader maillot Jaune | D10: ='Saisie Poussins'!E2 -> GRIME Lucas - V.C.DE MONTBELIARD | I10: ="Challenge régional "&Accueil!$C$3&" - "&Accueil!$C$5 -> Challenge régional BOURGOGNE FRANCHE COMTE - 2022
B11: Classement Général
A12: Place | B12: Licence | C12: Nom | D12: Prénom | F12: Club | G12: Catégorie | H12: Année | J12: =RIGHT(CELL("nomfichier",$A$1), LEN(CELL("nomfichier",$A$1))-FIND("]", CELL("nomfichier",$A$1))) -> Classement Poussins
I13: =Accueil!B$10 -> 03/04/2022 Luxeuil | J13: =Accueil!C$10 -> 24/04/2022 Noidans les Vesoul | K13: =Accueil!D$10 -> 1/05/2022 Vescemont | L13: =Accueil!E$10 -> 08/05/2022 Morteau | M13: =Accueil!F$10 -> 22/05/2022 Pontarlier | N13: =Accueil!G$10 -> 05/06/2022 Vadans | O13: =Accueil!H$10 -> 12/06/2022 Montbéliard | P13: =Accueil!I$10 -> 02 et 03/07/2022 Bletterans | Q13: Total des 5 meilleurs
A14: 1 | B14: =IFERROR(VLOOKUP(A14,'Saisie Poussins'!$BE$13:$BF$56,2,FALSE),"") -> 42250120321 | C14: =IFERROR(VLOOKUP($B14,'Saisie Poussins'!$B$13:$AI$56,1+C$1,FALSE),0) -> GRIME | D14: =IFERROR(VLOOKUP($B14,'Saisie Poussins'!$B$13:$AI$56,1+D$1,FALSE),0) -> Lucas | E14: =IFERROR(VLOOKUP($B14,'Saisie Poussins'!$B$13:$AI$56,1+E$1,FALSE),0) -> H | F14: =IFERROR(VLOOKUP($B14,'Saisie Poussins'!$B$13:$AI$56,1+F$1,FALSE),0) -> V.C.DE MONTBELIARD | G14: =IFERROR(VLOOKUP($B14,'Saisie Poussins'!$B$13:$AI$56,1+G$1,FALSE),0) -> Poussin | H14: =IFERROR(VLOOKUP($B14,'Saisie Poussins'!$B$13:$AI$56,1+H$1,FALSE),0) -> 2 | I14: =IFERROR(VLOOKUP($B14,'Saisie Poussins'!$B$13:$AI$56,26+I$1,FALSE),0) -> 50.0000001 | J14: =IFERROR(VLOOKUP($B14,'Saisie Poussins'!$B$13:$AI$56,26+J$1,FALSE),0) -> 0 | K14: =IFERROR(VLOOKUP($B14,'Saisie Poussins'!$B$13:$AI$56,26+K$1,FALSE),0) -> 44.0000003 | L14: =IFERROR(VLOOKUP($B14,'Saisie Poussins'!$B$13:$AI$56,26+L$1,FALSE),0) -> 0 | M14: =IFERROR(VLOOKUP($B14,'Saisie Poussins'!$B$13:$AI$56,26+M$1,FALSE),0) -> 50.0000005 | N14: =IFERROR(VLOOKUP($B14,'Saisie Poussins'!$B$13:$AI$56,26+N$1,FALSE),0) -> 0 | O14: =IFERROR(VLOOKUP($B14,'Saisie Poussins'!$B$13:$AI$56,26+O$1,FALSE),0) -> 50.000001 | P14: =IFERROR(VLOOKUP($B14,'Saisie Poussins'!$B$13:$AI$56,26+P$1,FALSE),0) -> 50.0000008 | Q14: =IF(B14>0,SUM(I14:P14),"") -> 244.0000027
A15: =IFERROR(IF(A14+1<='Saisie Poussins'!$BF$12,A14+1,""),"") -> 2 | B15: =IFERROR(VLOOKUP(A15,'Saisie Poussins'!$BE$13:$BF$56,2,FALSE),"") -> 42900480168 | C15: =IFERROR(VLOOKUP($B15,'Saisie Poussins'!$B$13:$AI$56,1+C$1,FALSE),0) -> MURATORI | D15: =IFERROR(VLOOKUP($B15,'Saisie Poussins'!$B$13:$AI$56,1+D$1,FALSE),0) -> EZYO | E15: =IFERROR(VLOOKUP($B15,'Saisie Poussins'!$B$13:$AI$56,1+E$1,FALSE),0) -> H | F15: =IFERROR(VLOOKUP($B15,'Saisie Poussins'!$B$13:$AI$56,1+F$1,FALSE),0) -> CC BELFORT MIOTTE | G15: =IFERROR(VLOOKUP($B15,'Saisie Poussins'!$B$13:$AI$56,1+G$1,FALSE),0) -> Poussin | H15: =IFERROR(VLOOKUP($B15,'Saisie Poussins'!$B$13:$AI$56,1+H$1,FALSE),0) -> 2 | I15: =IFERROR(VLOOKUP($B15,'Saisie Poussins'!$B$13:$AI$56,26+I$1,FALSE),0) -> 0 | J15: =IFERROR(VLOOKUP($B15,'Saisie Poussins'!$B$13:$AI$56,26+J$1,FALSE),0) -> 50.0000002 | K15: =IFERROR(VLOOKUP($B15,'Saisie Poussins'!$B$13:$AI$56,26+K$1,FALSE),0) -> 50.0000003 | L15: =IFERROR(VLOOKUP($B15,'Saisie Poussins'!$B$13:$AI$56,26+L$1,FALSE),0) -> 50.0000004 | M15: =IFERROR(VLOOKUP($B15,'Saisie Poussins'!$B$13:$AI$56,26+M$1,FALSE),0) -> 0 | N15: =IFERROR(VLOOKUP($B15,'Saisie Poussins'!$B$13:$AI$56,26+N$1,FALSE),0) -> 0 | O15: =IFERROR(VLOOKUP($B15,'Saisie Poussins'!$B$13:$AI$56,26+O$1,FALSE),0) -> 44.000001 | P15: =IFERROR(VLOOKUP($B15,'Saisie Poussins'!$B$13:$AI$56,26+P$1,FALSE),0) -> 40.0000008 | Q15: =IF(B15>0,SUM(I15:P15),"") -> 234.0000027
A16: =IFERROR(IF(A15+1<='Saisie Poussins'!$BF$12,A15+1,""),"") -> 3 | B16: =IFERROR(VLOOKUP(A16,'Saisie Poussins'!$BE$13:$BF$56,2,FALSE),"") -> 42700680182 | C16: =IFERROR(VLOOKUP($B16,'Saisie Poussins'!$B$13:$AI$56,1+C$1,FALSE),0) -> BOURGES | D16: =IFERROR(VLOOKUP($B16,'Saisie Poussins'!$B$13:$AI$56,1+D$1,FALSE),0) -> Martin | E16: =IFERROR(VLOOKUP($B16,'Saisie Poussins'!$B$13:$AI$56,1+E$1,FALSE),0) -> H | F16: =IFERROR(VLOOKUP($B16,'Saisie Poussins'!$B$13:$AI$56,1+F$1,FALSE),0) -> E.C. LUXEUIL VOSGES SAONO | G16: =IFERROR(VLOOKUP($B16,'Saisie Poussins'!$B$13:$AI$56,1+G$1,FALSE),0) -> Poussin | H16: =IFERROR(VLOOKUP($B16,'Saisie Poussins'!$B$13:$AI$56,1+H$1,FALSE),0) -> 2 | I16: =IFERROR(VLOOKUP($B16,'Saisie Poussins'!$B$13:$AI$56,26+I$1,FALSE),0) -> 44.0000001 | J16: =IFERROR(VLOOKUP($B16,'Saisie Poussins'!$B$13:$AI$56,26+J$1,FALSE),0) -> 0 | K16: =IFERROR(VLOOKUP($B16,'Saisie Poussins'!$B$13:$AI$56,26+K$1,FALSE),0) -> 0 | L16: =IFERROR(VLOOKUP($B16,'Saisie Poussins'!$B$13:$AI$56,26+L$1,FALSE),0) -> 40.0000004 | M16: =IFERROR(VLOOKUP($B16,'Saisie Poussins'!$B$13:$AI$56,26+M$1,FALSE),0) -> 44.0000005 | N16: =IFERROR(VLOOKUP($B16,'Saisie Poussins'!$B$13:$AI$56,26+N$1,FALSE),0) -> 44.0000006 | O16: =IFERROR(VLOOKUP($B16,'Saisie Poussins'!$B$13:$AI$56,26+O$1,FALSE),0) -> 37.000001 | P16: =IFERROR(VLOOKUP($B16,'Saisie Poussins'!$B$13:$AI$56,26+P$1,FALSE),0) -> 0 | Q16: 209.0000026
A17: =IFERROR(IF(A16+1<='Saisie Poussins'!$BF$12,A16+1,""),"") -> 4 | B17: =IFERROR(VLOOKUP(A17,'Saisie Poussins'!$BE$13:$BF$56,2,FALSE),"") -> 42900480124 | C17: =IFERROR(VLOOKUP($B17,'Saisie Poussins'!$B$13:$AI$56,1+C$1,FALSE),0) -> JOURNET | D17: =IFERROR(VLOOKUP($B17,'Saisie Poussins'!$B$13:$AI$56,1+D$1,FALSE),0) -> Paul | E17: =IFERROR(VLOOKUP($B17,'Saisie Poussins'!$B$13:$AI$56,1+E$1,FALSE),0) -> H | F17: =IFERROR(VLOOKUP($B17,'Saisie Poussins'!$B$13:$AI$56,1+F$1,FALSE),0) -> CC BELFORT MIOTTE | G17: =IFERROR(VLOOKUP($B17,'Saisie Poussins'!$B$13:$AI$56,1+G$1,FALSE),0) -> Poussin | H17: =IFERROR(VLOOKUP($B17,'Saisie Poussins'!$B$13:$AI$56,1+H$1,FALSE),0) -> 2 | I17: =IFERROR(VLOOKUP($B17,'Saisie Poussins'!$B$13:$AI$56,26+I$1,FALSE),0) -> 37.0000001 | J17: =IFERROR(VLOOKUP($B17,'Saisie Poussins'!$B$13:$AI$56,26+J$1,FALSE),0) -> 44.0000002 | K17: =IFERROR(VLOOKUP($B17,'Saisie Poussins'!$B$13:$AI$56,26+K$1,FALSE),0) -> 40.0000003 | L17: =IFERROR(VLOOKUP($B17,'Saisie Poussins'!$B$13:$AI$56,26+L$1,FALSE),0) -> 37.0000004 | M17: =IFERROR(VLOOKUP($B17,'Saisie Poussins'!$B$13:$AI$56,26+M$1,FALSE),0) -> 0 | N17: =IFERROR(VLOOKUP($B17,'Saisie Poussins'!$B$13:$AI$56,26+N$1,FALSE),0) -> 0 | O17: =IFERROR(VLOOKUP($B17,'Saisie Poussins'!$B$13:$AI$56,26+O$1,FALSE),0) -> 40.000001 | P17: =IFERROR(VLOOKUP($B17,'Saisie Poussins'!$B$13:$AI$56,26+P$1,FALSE),0) -> 0 | Q17: 198.000002
A18: =IFERROR(IF(A17+1<='Saisie Poussins'!$BF$12,A17+1,""),"") -> 5 | B18: =IFERROR(VLOOKUP(A18,'Saisie Poussins'!$BE$13:$BF$56,2,FALSE),"") -> 42250181212 | C18: =IFERROR(VLOOKUP($B18,'Saisie Poussins'!$B$13:$AI$56,1+C$1,FALSE),0) -> DEVILLERS | D18: =IFERROR(VLOOKUP($B18,'Saisie Poussins'!$B$13:$AI$56,1+D$1,FALSE),0) -> Louis | E18: =IFERROR(VLOOKUP($B18,'Saisie Poussins'!$B$13:$AI$56,1+E$1,FALSE),0) -> H | F18: =IFERROR(VLOOKUP($B18,'Saisie Poussins'!$B$13:$AI$56,1+F$1,FALSE),0) -> VC MORTEAU MONTBENOIT | G18: =IFERROR(VLOOKUP($B18,'Saisie Poussins'!$B$13:$AI$56,1+G$1,FALSE),0) -> Poussin | H18: =IFERROR(VLOOKUP($B18,'Saisie Poussins'!$B$13:$AI$56,1+H$1,FALSE),0) -> 1 | I18: =IFERROR(VLOOKUP($B18,'Saisie Poussins'!$B$13:$AI$56,26+I$1,FALSE),0) -> 34.0000001 | J18: =IFERROR(VLOOKUP($B18,'Saisie Poussins'!$B$13:$AI$56,26+J$1,FALSE),0) -> 34.0000002 | K18: =IFERROR(VLOOKUP($B18,'Saisie Poussins'!$B$13:$AI$56,26+K$1,FALSE),0) -> 37.0000003 | L18: =IFERROR(VLOOKUP($B18,'Saisie Poussins'!$B$13:$AI$56,26+L$1,FALSE),0) -> 0 | M18: =IFERROR(VLOOKUP($B18,'Saisie Poussins'!$B$13:$AI$56,26+M$1,FALSE),0) -> 30.0000005 | N18: =IFERROR(VLOOKUP($B18,'Saisie Poussins'!$B$13:$AI$56,26+N$1,FALSE),0) -> 0 | O18: =IFERROR(VLOOKUP($B18,'Saisie Poussins'!$B$13:$AI$56,26+O$1,FALSE),0) -> 34.000001 | P18: =IFERROR(VLOOKUP($B18,'Saisie Poussins'!$B$13:$AI$56,26+P$1,FALSE),0) -> 0 | Q18: 169.0000021
A19: =IFERROR(IF(A18+1<='Saisie Poussins'!$BF$12,A18+1,""),"") -> 6 | B19: =IFERROR(VLOOKUP(A19,'Saisie Poussins'!$BE$13:$BF$56,2,FALSE),"") -> 42250181174 | C19: =IFERROR(VLOOKUP($B19,'Saisie Poussins'!$B$13:$AI$56,1+C$1,FALSE),0) -> DEVILLERS | D19: =IFERROR(VLOOKUP($B19,'Saisie Poussins'!$B$13:$AI$56,1+D$1,FALSE),0) -> Lylou | E19: =IFERROR(VLOOKUP($B19,'Saisie Poussins'!$B$13:$AI$56,1+E$1,FALSE),0) -> D | F19: =IFERROR(VLOOKUP($B19,'Saisie Poussins'!$B$13:$AI$56,1+F$1,FALSE),0) -> VC MORTEAU MONTBENOIT | G19: =IFERROR(VLOOKUP($B19,'Saisie Poussins'!$B$13:$AI$56,1+G$1,FALSE),0) -> Poussin | H19: =IFERROR(VLOOKUP($B19,'Saisie Poussins'!$B$13:$AI$56,1+H$1,FALSE),0) -> 2 | I19: =IFERROR(VLOOKUP($B19,'Saisie Poussins'!$B$13:$AI$56,26+I$1,FALSE),0) -> 0 | J19: =IFERROR(VLOOKUP($B19,'Saisie Poussins'!$B$13:$AI$56,26+J$1,FALSE),0) -> 0 | K19: =IFERROR(VLOOKUP($B19,'Saisie Poussins'!$B$13:$AI$56,26+K$1,FALSE),0) -> 34.0000003 | L19: =IFERROR(VLOOKUP($B19,'Saisie Poussins'!$B$13:$AI$56,26+L$1,FALSE),0) -> 34.0000004 | M19: =IFERROR(VLOOKUP($B19,'Saisie Poussins'!$B$13:$AI$56,26+M$1,FALSE),0) -> 32.0000005 | N19: =IFERROR(VLOOKUP($B19,'Saisie Poussins'!$B$13:$AI$56,26+N$1,FALSE),0) -> 0 | O19: =IFERROR(VLOOKUP($B19,'Saisie Poussins'!$B$13:$AI$56,26+O$1,FALSE),0) -> 30.000001 | P19: =IFERROR(VLOOKUP($B19,'Saisie Poussins'!$B$13:$AI$56,26+P$1,FALSE),0) -> 32.0000008 | Q19: 162.000003
A20: =IFERROR(IF(A19+1<='Saisie Poussins'!$BF$12,A19+1,""),"") -> 7 | B20: =IFERROR(VLOOKUP(A20,'Saisie Poussins'!$BE$13:$BF$56,2,FALSE),"") -> 42250181227 | C20: =IFERROR(VLOOKUP($B20,'Saisie Poussins'!$B$13:$AI$56,1+C$1,FALSE),0) -> DROZ VINCENT | D20: =IFERROR(VLOOKUP($B20,'Saisie Poussins'!$B$13:$AI$56,1+D$1,FALSE),0) -> Robin | E20: =IFERROR(VLOOKUP($B20,'Saisie Poussins'!$B$13:$AI$56,1+E$1,FALSE),0) -> H | F20: =IFERROR(VLOOKUP($B20,'Saisie Poussins'!$B$13:$AI$56,1+F$1,FALSE),0) -> VC MORTEAU MONTBENOIT | G20: =IFERROR(VLOOKUP($B20,'Saisie Poussins'!$B$13:$AI$56,1+G$1,FALSE),0) -> Poussin | H20: =IFERROR(VLOOKUP($B20,'Saisie Poussins'!$B$13:$AI$56,1+H$1,FALSE),0) -> 2 | I20: =IFERROR(VLOOKUP($B20,'Saisie Poussins'!$B$13:$AI$56,26+I$1,FALSE),0) -> 0 | J20: =IFERROR(VLOOKUP($B20,'Saisie Poussins'!$B$13:$AI$56,26+J$1,FALSE),0) -> 0 | K20: =IFERROR(VLOOKUP($B20,'Saisie Poussins'!$B$13:$AI$56,26+K$1,FALSE),0) -> 0 | L20: =IFERROR(VLOOKUP($B20,'Saisie Poussins'!$B$13:$AI$56,26+L$1,FALSE),0) -> 28.0000004 | M20: =IFERROR(VLOOKUP($B20,'Saisie Poussins'!$B$13:$AI$56,26+M$1,FALSE),0) -> 37.0000005 | N20: =IFERROR(VLOOKUP($B20,'Saisie Poussins'!$B$13:$AI$56,26+N$1,FALSE),0) -> 0 | O20: =IFERROR(VLOOKUP($B20,'Saisie Poussins'!$B$13:$AI$56,26+O$1,FALSE),0) -> 24.000001 | P20: =IFERROR(VLOOKUP($B20,'Saisie Poussins'!$B$13:$AI$56,26+P$1,FALSE),0) -> 37.0000008 | Q20: 126.0000027
A21: =IFERROR(IF(A20+1<='Saisie Poussins'!$BF$12,A20+1,""),"") -> 8 | B21: =IFERROR(VLOOKUP(A21,'Saisie Poussins'!$BE$13:$BF$56,2,FALSE),"") -> 42390960384 | C21: =IFERROR(VLOOKUP($B21,'Saisie Poussins'!$B$13:$AI$56,1+C$1,FALSE),0) -> BUGNET | D21: =IFERROR(VLOOKUP($B21,'Saisie Poussins'!$B$13:$AI$56,1+D$1,FALSE),0) -> Lucas | E21: =IFERROR(VLOOKUP($B21,'Saisie Poussins'!$B$13:$AI$56,1+E$1,FALSE),0) -> H | F21: =IFERROR(VLOOKUP($B21,'Saisie Poussins'!$B$13:$AI$56,1+F$1,FALSE),0) -> JURA CYCLISME PAYS DU REVERMONT | G21: =IFERROR(VLOOKUP($B21,'Saisie Poussins'!$B$13:$AI$56,1+G$1,FALSE),0) -> Poussin | H21: =IFERROR(VLOOKUP($B21,'Saisie Poussins'!$B$13:$AI$56,1+H$1,FALSE),0) -> 2 | I21: =IFERROR(VLOOKUP($B21,'Saisie Poussins'!$B$13:$AI$56,26+I$1,FALSE),0) -> 0 | J21: =IFERROR(VLOOKUP($B21,'Saisie Poussins'!$B$13:$AI$56,26+J$1,FALSE),0) -> 0 | K21: =IFERROR(VLOOKUP($B21,'Saisie Poussins'!$B$13:$AI$56,26+K$1,FALSE),0) -> 0 | L21: =IFERROR(VLOOKUP($B21,'Saisie Poussins'!$B$13:$AI$56,26+L$1,FALSE),0) -> 0 | M21: =IFERROR(VLOOKUP($B21,'Saisie Poussins'!$B$13:$AI$56,26+M$1,FALSE),0) -> 34.0000005 | N21: =IFERROR(VLOOKUP($B21,'Saisie Poussins'!$B$13:$AI$56,26+N$1,FALSE),0) -> 30.0000006 | O21: =IFERROR(VLOOKUP($B21,'Saisie Poussins'!$B$13:$AI$56,26+O$1,FALSE),0) -> 32.000001 | P21: =IFERROR(VLOOKUP($B21,'Saisie Poussins'!$B$13:$AI$56,26+P$1,FALSE),0) -> 28.0000008 | Q21: 124.0000029
A22: =IFERROR(IF(A21+1<='Saisie Poussins'!$BF$12,A21+1,""),"") -> 9 | B22: =IFERROR(VLOOKUP(A22,'Saisie Poussins'!$BE$13:$BF$56,2,FALSE),"") -> 42700680166 | C22: =IFERROR(VLOOKUP($B22,'Saisie Poussins'!$B$13:$AI$56,1+C$1,FALSE),0) -> ANDRE | D22: =IFERROR(VLOOKUP($B22,'Saisie Poussins'!$B$13:$AI$56,1+D$1,FALSE),0) -> Louane | E22: =IFERROR(VLOOKUP($B22,'Saisie Poussins'!$B$13:$AI$56,1+E$1,FALSE),0) -> D | F22: =IFERROR(VLOOKUP($B22,'Saisie Poussins'!$B$13:$AI$56,1+F$1,FALSE),0) -> E.C. LUXEUIL VOSGES SAONO | G22: =IFERROR(VLOOKUP($B22,'Saisie Poussins'!$B$13:$AI$56,1+G$1,FALSE),0) -> Poussin | H22: =IFERROR(VLOOKUP($B22,'Saisie Poussins'!$B$13:$AI$56,1+H$1,FALSE),0) -> 2 | I22: =IFERROR(VLOOKUP($B22,'Saisie Poussins'!$B$13:$AI$56,26+I$1,FALSE),0) -> 22.0000001 | J22: =IFERROR(VLOOKUP($B22,'Saisie Poussins'!$B$13:$AI$56,26+J$1,FALSE),0) -> 21.0000002 | K22: =IFERROR(VLOOKUP($B22,'Saisie Poussins'!$B$13:$AI$56,26+K$1,FALSE),0) -> 30.0000003 | L22: =IFERROR(VLOOKUP($B22,'Saisie Poussins'!$B$13:$AI$56,26+L$1,FALSE),0) -> 0 | M22: =IFERROR(VLOOKUP($B22,'Saisie Poussins'!$B$13:$AI$56,26+M$1,FALSE),0) -> 0 | N22: =IFERROR(VLOOKUP($B22,'Saisie Poussins'!$B$13:$AI$56,26+N$1,FALSE),0) -> 0 | O22: =IFERROR(VLOOKUP($B22,'Saisie Poussins'!$B$13:$AI$56,26+O$1,FALSE),0) -> 26.000001 | P22: =IFERROR(VLOOKUP($B22,'Saisie Poussins'!$B$13:$AI$56,26+P$1,FALSE),0) -> 24.0000008 | Q22: 123.0000024
A23: =IFERROR(IF(A22+1<='Saisie Poussins'!$BF$12,A22+1,""),"") -> 10 | B23: =IFERROR(VLOOKUP(A23,'Saisie Poussins'!$BE$13:$BF$56,2,FALSE),"") -> 42700060248 | C23: =IFERROR(VLOOKUP($B23,'Saisie Poussins'!$B$13:$AI$56,1+C$1,FALSE),0) -> BOISSON | D23: =IFERROR(VLOOKUP($B23,'Saisie Poussins'!$B$13:$AI$56,1+D$1,FALSE),0) -> Marius | E23: =IFERROR(VLOOKUP($B23,'Saisie Poussins'!$B$13:$AI$56,1+E$1,FALSE),0) -> H | F23: =IFERROR(VLOOKUP($B23,'Saisie Poussins'!$B$13:$AI$56,1+F$1,FALSE),0) -> ROUE D`OR NOIDANS | G23: =IFERROR(VLOOKUP($B23,'Saisie Poussins'!$B$13:$AI$56,1+G$1,FALSE),0) -> Poussin | H23: =IFERROR(VLOOKUP($B23,'Saisie Poussins'!$B$13:$AI$56,1+H$1,FALSE),0) -> 1 | I23: =IFERROR(VLOOKUP($B23,'Saisie Poussins'!$B$13:$AI$56,26+I$1,FALSE),0) -> 28.0000001 | J23: =IFERROR(VLOOKUP($B23,'Saisie Poussins'!$B$13:$AI$56,26+J$1,FALSE),0) -> 40.0000002 | K23: =IFERROR(VLOOKUP($B23,'Saisie Poussins'!$B$13:$AI$56,26+K$1,FALSE),0) -> 0 | L23: =IFERROR(VLOOKUP($B23,'Saisie Poussins'!$B$13:$AI$56,26+L$1,FALSE),0) -> 26.0000004 | M23: =IFERROR(VLOOKUP($B23,'Saisie Poussins'!$B$13:$AI$56,26+M$1,FALSE),0) -> 0 | N23: =IFERROR(VLOOKUP($B23,'Saisie Poussins'!$B$13:$AI$56,26+N$1,FALSE),0) -> 0 | O23: =IFERROR(VLOOKUP($B23,'Saisie Poussins'!$B$13:$AI$56,26+O$1,FALSE),0) -> 18.000001 | P23: =IFERROR(VLOOKUP($B23,'Saisie Poussins'!$B$13:$AI$56,26+P$1,FALSE),0) -> 0 | Q23: 112.0000017
A24: =IFERROR(IF(A23+1<='Saisie Poussins'!$BF$12,A23+1,""),"") -> 11 | B24: =IFERROR(VLOOKUP(A24,'Saisie Poussins'!$BE$13:$BF$56,2,FALSE),"") -> 42700060276 | C24: =IFERROR(VLOOKUP($B24,'Saisie Poussins'!$B$13:$AI$56,1+C$1,FALSE),0) -> TAILHARDAT | D24: =IFERROR(VLOOKUP($B24,'Saisie Poussins'!$B$13:$AI$56,1+D$1,FALSE),0) -> Célestin | E24: =IFERROR(VLOOKUP($B24,'Saisie Poussins'!$B$13:$AI$56,1+E$1,FALSE),0) -> H | F24: =IFERROR(VLOOKUP($B24,'Saisie Poussins'!$B$13:$AI$56,1+F$1,FALSE),0) -> ROUE D`OR NOIDANS | G24: =IFERROR(VLOOKUP($B24,'Saisie Poussins'!$B$13:$AI$56,1+G$1,FALSE),0) -> Poussin | H24: =IFERROR(VLOOKUP($B24,'Saisie Poussins'!$B$13:$AI$56,1+H$1,FALSE),0) -> 1 | I24: =IFERROR(VLOOKUP($B24,'Saisie Poussins'!$B$13:$AI$56,26+I$1,FALSE),0) -> 32.0000001 | J24: =IFERROR(VLOOKUP($B24,'Saisie Poussins'!$B$13:$AI$56,26+J$1,FALSE),0) -> 0 | K24: =IFERROR(VLOOKUP($B24,'Saisie Poussins'!$B$13:$AI$56,26+K$1,FALSE),0) -> 0 | L24: =IFERROR(VLOOKUP($B24,'Saisie Poussins'!$B$13:$AI$56,26+L$1,FALSE),0) -> 32.0000004 | M24: =IFERROR(VLOOKUP($B24,'Saisie Poussins'!$B$13:$AI$56,26+M$1,FALSE),0) -> 24.0000005 | N24: =IFERROR(VLOOKUP($B24,'Saisie Poussins'!$B$13:$AI$56,26+N$1,FALSE),0) -> 0 | O24: =IFERROR(VLOOKUP($B24,'Saisie Poussins'!$B$13:$AI$56,26+O$1,FALSE),0) -> 20.000001 | P24: =IFERROR(VLOOKUP($B24,'Saisie Poussins'!$B$13:$AI$56,26+P$1,FALSE),0) -> 0 | Q24: 108.000002
A25: =IFERROR(IF(A24+1<='Saisie Poussins'!$BF$12,A24+1,""),"") -> 12 | B25: =IFERROR(VLOOKUP(A25,'Saisie Poussins'!$BE$13:$BF$56,2,FALSE),"") -> 42900360346 | C25: =IFERROR(VLOOKUP($B25,'Saisie Poussins'!$B$13:$AI$56,1+C$1,FALSE),0) -> STADLER | D25: =IFERROR(VLOOKUP($B25,'Saisie Poussins'!$B$13:$AI$56,1+D$1,FALSE),0) -> Gwennaelle | E25: =IFERROR(VLOOKUP($B25,'Saisie Poussins'!$B$13:$AI$56,1+E$1,FALSE),0) -> D | F25: =IFERROR(VLOOKUP($B25,'Saisie Poussins'!$B$13:$AI$56,1+F$1,FALSE),0) -> A.C.T. BELFORT | G25: =IFERROR(VLOOKUP($B25,'Saisie Poussins'!$B$13:$AI$56,1+G$1,FALSE),0) -> Poussin | H25: =IFERROR(VLOOKUP($B25,'Saisie Poussins'!$B$13:$AI$56,1+H$1,FALSE),0) -> 1 | I25: =IFERROR(VLOOKUP($B25,'Saisie Poussins'!$B$13:$AI$56,26+I$1,FALSE),0) -> 20.0000001 | J25: =IFERROR(VLOOKUP($B25,'Saisie Poussins'!$B$13:$AI$56,26+J$1,FALSE),0) -> 26.0000002 | K25: =IFERROR(VLOOKUP($B25,'Saisie Poussins'!$B$13:$AI$56,26+K$1,FALSE),0) -> 24.0000003 | L25: =IFERROR(VLOOKUP($B25,'Saisie Poussins'!$B$13:$AI$56,26+L$1,FALSE),0) -> 0 | M25: =IFERROR(VLOOKUP($B25,'Saisie Poussins'!$B$13:$AI$56,26+M$1,FALSE),0) -> 0 | N25: =IFERROR(VLOOKUP($B25,'Saisie Poussins'!$B$13:$AI$56,26+N$1,FALSE),0) -> 0 | O25: =IFERROR(VLOOKUP($B25,'Saisie Poussins'!$B$13:$AI$56,26+O$1,FALSE),0) -> 11.000001 | P25: =IFERROR(VLOOKUP($B25,'Saisie Poussins'!$B$13:$AI$56,26+P$1,FALSE),0) -> 19.0000008 | Q25: 100.0000024
A26: =IFERROR(IF(A25+1<='Saisie Poussins'!$BF$12,A25+1,""),"") -> 13 | B26: =IFERROR(VLOOKUP(A26,'Saisie Poussins'!$BE$13:$BF$56,2,FALSE),"") -> 42700680157 | C26: =IFERROR(VLOOKUP($B26,'Saisie Poussins'!$B$13:$AI$56,1+C$1,FALSE),0) -> BARBASON | D26: =IFERROR(VLOOKUP($B26,'Saisie Poussins'!$B$13:$AI$56,1+D$1,FALSE),0) -> Jean | E26: =IFERROR(VLOOKUP($B26,'Saisie Poussins'!$B$13:$AI$56,1+E$1,FALSE),0) -> H | F26: =IFERROR(VLOOKUP($B26,'Saisie Poussins'!$B$13:$AI$56,1+F$1,FALSE),0) -> E.C. LUXEUIL VOSGES SAONO | G26: =IFERROR(VLOOKUP($B26,'Saisie Poussins'!$B$13:$AI$56,1+G$1,FALSE),0) -> Poussin | H26: =IFERROR(VLOOKUP($B26,'Saisie Poussins'!$B$13:$AI$56,1+H$1,FALSE),0) -> 2 | I26: =IFERROR(VLOOKUP($B26,'Saisie Poussins'!$B$13:$AI$56,26+I$1,FALSE),0) -> 26.0000001 | J26: =IFERROR(VLOOKUP($B26,'Saisie Poussins'!$B$13:$AI$56,26+J$1,FALSE),0) -> 34.0000002 | K26: =IFERROR(VLOOKUP($B26,'Saisie Poussins'!$B$13:$AI$56,26+K$1,FALSE),0) -> 0 | L26: =IFERROR(VLOOKUP($B26,'Saisie Poussins'!$B$13:$AI$56,26+L$1,FALSE),0) -> 0 | M26: =IFERROR(VLOOKUP($B26,'Saisie Poussins'!$B$13:$AI$56,26+M$1,FALSE),0) -> 0 | N26: =IFERROR(VLOOKUP($B26,'Saisie Poussins'!$B$13:$AI$56,26+N$1,FALSE),0) -> 0 | O26: =IFERROR(VLOOKUP($B26,'Saisie Poussins'!$B$13:$AI$56,26+O$1,FALSE),0) -> 28.000001 | P26: =IFERROR(VLOOKUP($B26,'Saisie Poussins'!$B$13:$AI$56,26+P$1,FALSE),0) -> 0 | Q26: 88.0000013
A27: =IFERROR(IF(A26+1<='Saisie Poussins'!$BF$12,A26+1,""),"") -> 14 | B27: =IFERROR(VLOOKUP(A27,'Saisie Poussins'!$BE$13:$BF$56,2,FALSE),"") -> 42700680169 | C27: =IFERROR(VLOOKUP($B27,'Saisie Poussins'!$B$13:$AI$56,1+C$1,FALSE),0) -> BRY | D27: =IFERROR(VLOOKUP($B27,'Saisie Poussins'!$B$13:$AI$56,1+D$1,FALSE),0) -> Eliott | E27: =IFERROR(VLOOKUP($B27,'Saisie Poussins'!$B$13:$AI$56,1+E$1,FALSE),0) -> H | F27: =IFERROR(VLOOKUP($B27,'Saisie Poussins'!$B$13:$AI$56,1+F$1,FALSE),0) -> E.C. LUXEUIL VOSGES SAONO | G27: =IFERROR(VLOOKUP($B27,'Saisie Poussins'!$B$13:$AI$56,1+G$1,FALSE),0) -> Poussin | H27: =IFERROR(VLOOKUP($B27,'Saisie Poussins'!$B$13:$AI$56,1+H$1,FALSE),0) -> 1 | I27: =IFERROR(VLOOKUP($B27,'Saisie Poussins'!$B$13:$AI$56,26+I$1,FALSE),0) -> 30.0000001 | J27: =IFERROR(VLOOKUP($B27,'Saisie Poussins'!$B$13:$AI$56,26+J$1,FALSE),0) -> 0 | K27: =IFERROR(VLOOKUP($B27,'Saisie Poussins'!$B$13:$AI$56,26+K$1,FALSE),0) -> 32.0000003 | L27: =IFERROR(VLOOKUP($B27,'Saisie Poussins'!$B$13:$AI$56,26+L$1,FALSE),0) -> 0 | M27: =IFERROR(VLOOKUP($B27,'Saisie Poussins'!$B$13:$AI$56,26+M$1,FALSE),0) -> 0 | N27: =IFERROR(VLOOKUP($B27,'Saisie Poussins'!$B$13:$AI$56,26+N$1,FALSE),0) -> 0 | O27: =IFERROR(VLOOKUP($B27,'Saisie Poussins'!$B$13:$AI$56,26+O$1,FALSE),0) -> 22.000001 | P27: =IFERROR(VLOOKUP($B27,'Saisie Poussins'!$B$13:$AI$56,26+P$1,FALSE),0) -> 0 | Q27: 84.0000014
A28: =IFERROR(IF(A27+1<='Saisie Poussins'!$BF$12,A27+1,""),"") -> 15 | B28: =IFERROR(VLOOKUP(A28,'Saisie Poussins'!$BE$13:$BF$56,2,FALSE),"") -> 42250010005 | C28: =IFERROR(VLOOKUP($B28,'Saisie Poussins'!$B$13:$AI$56,1+C$1,FALSE),0) -> CLEMENT | D28: =IFERROR(VLOOKUP($B28,'Saisie Poussins'!$B$13:$AI$56,1+D$1,FALSE),0) -> Marius | E28: =IFERROR(VLOOKUP($B28,'Saisie Poussins'!$B$13:$AI$56,1+E$1,FALSE),0) -> H | F28: =IFERROR(VLOOKUP($B28,'Saisie Poussins'!$B$13:$AI$56,1+F$1,FALSE),0) -> TEAM COBRA CYCLING | G28: =IFERROR(VLOOKUP($B28,'Saisie Poussins'!$B$13:$AI$56,1+G$1,FALSE),0) -> Poussin | H28: =IFERROR(VLOOKUP($B28,'Saisie Poussins'!$B$13:$AI$56,1+H$1,FALSE),0) -> 1 | I28: =IFERROR(VLOOKUP($B28,'Saisie Poussins'!$B$13:$AI$56,26+I$1,FALSE),0) -> 0 | J28: =IFERROR(VLOOKUP($B28,'Saisie Poussins'!$B$13:$AI$56,26+J$1,FALSE),0) -> 0 | K28: =IFERROR(VLOOKUP($B28,'Saisie Poussins'!$B$13:$AI$56,26+K$1,FALSE),0) -> 0 | L28: =IFERROR(VLOOKUP($B28,'Saisie Poussins'!$B$13:$AI$56,26+L$1,FALSE),0) -> 0 | M28: =IFERROR(VLOOKUP($B28,'Saisie Poussins'!$B$13:$AI$56,26+M$1,FALSE),0) -> 0 | N28: =IFERROR(VLOOKUP($B28,'Saisie Poussins'!$B$13:$AI$56,26+N$1,FALSE),0) -> 34.0000006 | O28: =IFERROR(VLOOKUP($B28,'Saisie Poussins'!$B$13:$AI$56,26+O$1,FALSE),0) -> 0 | P28: =IFERROR(VLOOKUP($B28,'Saisie Poussins'!$B$13:$AI$56,26+P$1,FALSE),0) -> 44.0000008 | Q28: 78.0000014
A29: =IFERROR(IF(A28+1<='Saisie Poussins'!$BF$12,A28+1,""),"") -> 16 | B29: =IFERROR(VLOOKUP(A29,'Saisie Poussins'!$BE$13:$BF$56,2,FALSE),"") -> 42900480174 | C29: =IFERROR(VLOOKUP($B29,'Saisie Poussins'!$B$13:$AI$56,1+C$1,FALSE),0) -> FIEUX | D29: =IFERROR(VLOOKUP($B29,'Saisie Poussins'!$B$13:$AI$56,1+D$1,FALSE),0) -> Paul | E29: =IFERROR(VLOOKUP($B29,'Saisie Poussins'!$B$13:$AI$56,1+E$1,FALSE),0) -> H | F29: =IFERROR(VLOOKUP($B29,'Saisie Poussins'!$B$13:$AI$56,1+F$1,FALSE),0) -> CC BELFORT MIOTTE | G29: =IFERROR(VLOOKUP($B29,'Saisie Poussins'!$B$13:$AI$56,1+G$1,FALSE),0) -> Poussin | H29: =IFERROR(VLOOKUP($B29,'Saisie Poussins'!$B$13:$AI$56,1+H$1,FALSE),0) -> 2 | I29: =IFERROR(VLOOKUP($B29,'Saisie Poussins'!$B$13:$AI$56,26+I$1,FALSE),0) -> 0 | J29: =IFERROR(VLOOKUP($B29,'Saisie Poussins'!$B$13:$AI$56,26+J$1,FALSE),0) -> 28.0000002 | K29: =IFERROR(VLOOKUP($B29,'Saisie Poussins'!$B$13:$AI$56,26+K$1,FALSE),0) -> 26.0000003 | L29: =IFERROR(VLOOKUP($B29,'Saisie Poussins'!$B$13:$AI$56,26+L$1,FALSE),0) -> 24.0000004 | M29: =IFERROR(VLOOKUP($B29,'Saisie Poussins'!$B$13:$AI$56,26+M$1,FALSE),0) -> 0 | N29: =IFERROR(VLOOKUP($B29,'Saisie Poussins'!$B$13:$AI$56,26+N$1,FALSE),0) -> 0 | O29: =IFERROR(VLOOKUP($B29,'Saisie Poussins'!$B$13:$AI$56,26+O$1,FALSE),0) -> 0 | P29: =IFERROR(VLOOKUP($B29,'Saisie Poussins'!$B$13:$AI$56,26+P$1,FALSE),0) -> 0 | Q29: 78.0000009
A30: =IFERROR(IF(A29+1<='Saisie Poussins'!$BF$12,A29+1,""),"") -> 17 | B30: =IFERROR(VLOOKUP(A30,'Saisie Poussins'!$BE$13:$BF$56,2,FALSE),"") -> 42250510156 | C30: =IFERROR(VLOOKUP($B30,'Saisie Poussins'!$B$13:$AI$56,1+C$1,FALSE),0) -> COUR | D30: =IFERROR(VLOOKUP($B30,'Saisie Poussins'!$B$13:$AI$56,1+D$1,FALSE),0) -> ANAEL | E30: =IFERROR(VLOOKUP($B30,'Saisie Poussins'!$B$13:$AI$56,1+E$1,FALSE),0) -> H | F30: =IFERROR(VLOOKUP($B30,'Saisie Poussins'!$B$13:$AI$56,1+F$1,FALSE),0) -> BAUME LES DAMES | G30: =IFERROR(VLOOKUP($B30,'Saisie Poussins'!$B$13:$AI$56,1+G$1,FALSE),0) -> Poussin | H30: =IFERROR(VLOOKUP($B30,'Saisie Poussins'!$B$13:$AI$56,1+H$1,FALSE),0) -> 2 | I30: =IFERROR(VLOOKUP($B30,'Saisie Poussins'!$B$13:$AI$56,26+I$1,FALSE),0) -> 0 | J30: =IFERROR(VLOOKUP($B30,'Saisie Poussins'!$B$13:$AI$56,26+J$1,FALSE),0) -> 0 | K30: =IFERROR(VLOOKUP($B30,'Saisie Poussins'!$B$13:$AI$56,26+K$1,FALSE),0) -> 0 | L30: =IFERROR(VLOOKUP($B30,'Saisie Poussins'!$B$13:$AI$56,26+L$1,FALSE),0) -> 44.0000004 | M30: =IFERROR(VLOOKUP($B30,'Saisie Poussins'!$B$13:$AI$56,26+M$1,FALSE),0) -> 26.0000005 | N30: =IFERROR(VLOOKUP($B30,'Saisie Poussins'!$B$13:$AI$56,26+N$1,FALSE),0) -> 0 | O30: =IFERROR(VLOOKUP($B30,'Saisie Poussins'!$B$13:$AI$56,26+O$1,FALSE),0) -> 0 | P30: =IFERROR(VLOOKUP($B30,'Saisie Poussins'!$B$13:$AI$56,26+P$1,FALSE),0) -> 0 | Q30: 70.0000009
A31: =IFERROR(IF(A30+1<='Saisie Poussins'!$BF$12,A30+1,""),"") -> 18 | B31: =IFERROR(VLOOKUP(A31,'Saisie Poussins'!$BE$13:$BF$56,2,FALSE),"") -> 42700680168 | C31: =IFERROR(VLOOKUP($B31,'Saisie Poussins'!$B$13:$AI$56,1+C$1,FALSE),0) -> CLERC | D31: =IFERROR(VLOOKUP($B31,'Saisie Poussins'!$B$13:$AI$56,1+D$1,FALSE),0) -> Zoé | E31: =IFERROR(VLOOKUP($B31,'Saisie Poussins'!$B$13:$AI$56,1+E$1,FALSE),0) -> H | F31: =IFERROR(VLOOKUP($B31,'Saisie Poussins'!$B$13:$AI$56,1+F$1,FALSE),0) -> E.C. LUXEUIL VOSGES SAONO | G31: =IFERROR(VLOOKUP($B31,'Saisie Poussins'!$B$13:$AI$56,1+G$1,FALSE),0) -> Poussin | H31: =IFERROR(VLOOKUP($B31,'Saisie Poussins'!$B$13:$AI$56,1+H$1,FALSE),0) -> 2 | I31: =IFERROR(VLOOKUP($B31,'Saisie Poussins'!$B$13:$AI$56,26+I$1,FALSE),0) -> 21.0000001 | J31: =IFERROR(VLOOKUP($B31,'Saisie Poussins'!$B$13:$AI$56,26+J$1,FALSE),0) -> 0 | K31: =IFERROR(VLOOKUP($B31,'Saisie Poussins'!$B$13:$AI$56,26+K$1,FALSE),0) -> 0 | L31: =IFERROR(VLOOKUP($B31,'Saisie Poussins'!$B$13:$AI$56,26+L$1,FALSE),0) -> 0 | M31: =IFERROR(VLOOKUP($B31,'Saisie Poussins'!$B$13:$AI$56,26+M$1,FALSE),0) -> 0 | N31: =IFERROR(VLOOKUP($B31,'Saisie Poussins'!$B$13:$AI$56,26+N$1,FALSE),0) -> 0 | O31: =IFERROR(VLOOKUP($B31,'Saisie Poussins'!$B$13:$AI$56,26+O$1,FALSE),0) -> 12.000001 | P31: =IFERROR(VLOOKUP($B31,'Saisie Poussins'!$B$13:$AI$56,26+P$1,FALSE),0) -> 21.0000008 | Q31: 54.0000019
A32: =IFERROR(IF(A31+1<='Saisie Poussins'!$BF$12,A31+1,""),"") -> 19 | B32: =IFERROR(VLOOKUP(A32,'Saisie Poussins'!$BE$13:$BF$56,2,FALSE),"") -> 41690260501 | C32: =IFERROR(VLOOKUP($B32,'Saisie Poussins'!$B$13:$AI$56,1+C$1,FALSE),0) -> JACQUES | D32: =IFERROR(VLOOKUP($B32,'Saisie Poussins'!$B$13:$AI$56,1+D$1,FALSE),0) -> Albert | E32: =IFERROR(VLOOKUP($B32,'Saisie Poussins'!$B$13:$AI$56,1+E$1,FALSE),0) -> H | F32: =IFERROR(VLOOKUP($B32,'Saisie Poussins'!$B$13:$AI$56,1+F$1,FALSE),0) -> LYON SPRINT EVOLUTION | G32: =IFERROR(VLOOKUP($B32,'Saisie Poussins'!$B$13:$AI$56,1+G$1,FALSE),0) -> Poussin | H32: =IFERROR(VLOOKUP($B32,'Saisie Poussins'!$B$13:$AI$56,1+H$1,FALSE),0) -> 2 | I32: =IFERROR(VLOOKUP($B32,'Saisie Poussins'!$B$13:$AI$56,26+I$1,FALSE),0) -> 0 | J32: =IFERROR(VLOOKUP($B32,'Saisie Poussins'!$B$13:$AI$56,26+J$1,FALSE),0) -> 0 | K32: =IFERROR(VLOOKUP($B32,'Saisie Poussins'!$B$13:$AI$56,26+K$1,FALSE),0) -> 0 | L32: =IFERROR(VLOOKUP($B32,'Saisie Poussins'!$B$13:$AI$56,26+L$1,FALSE),0) -> 0 | M32: =IFERROR(VLOOKUP($B32,'Saisie Poussins'!$B$13:$AI$56,26+M$1,FALSE),0) -> 0 | N32: =IFERROR(VLOOKUP($B32,'Saisie Poussins'!$B$13:$AI$56,26+N$1,FALSE),0) -> 50.0000006 | O32: =IFERROR(VLOOKUP($B32,'Saisie Poussins'!$B$13:$AI$56,26+O$1,FALSE),0) -> 0 | P32: =IFERROR(VLOOKUP($B32,'Saisie Poussins'!$B$13:$AI$56,26+P$1,FALSE),0) -> 0 | Q32: 50.0000006
A33: =IFERROR(IF(A32+1<='Saisie Poussins'!$BF$12,A32+1,""),"") -> 20 | B33: =IFERROR(VLOOKUP(A33,'Saisie Poussins'!$BE$13:$BF$56,2,FALSE),"") -> 42250120353 | C33: =IFERROR(VLOOKUP($B33,'Saisie Poussins'!$B$13:$AI$56,1+C$1,FALSE),0) -> PLANTEVIN BIRON | D33: =IFERROR(VLOOKUP($B33,'Saisie Poussins'!$B$13:$AI$56,1+D$1,FALSE),0) -> Antonia | E33: =IFERROR(VLOOKUP($B33,'Saisie Poussins'!$B$13:$AI$56,1+E$1,FALSE),0) -> D | F33: =IFERROR(VLOOKUP($B33,'Saisie Poussins'!$B$13:$AI$56,1+F$1,FALSE),0) -> V.C.DE MONTBELIARD | G33: =IFERROR(VLOOKUP($B33,'Saisie Poussins'!$B$13:$AI$56,1+G$1,FALSE),0) -> Poussin | H33: =IFERROR(VLOOKUP($B33,'Saisie Poussins'!$B$13:$AI$56,1+H$1,FALSE),0) -> 1 | I33: =IFERROR(VLOOKUP($B33,'Saisie Poussins'!$B$13:$AI$56,26+I$1,FALSE),0) -> 0 | J33: =IFERROR(VLOOKUP($B33,'Saisie Poussins'!$B$13:$AI$56,26+J$1,FALSE),0) -> 0 | K33: =IFERROR(VLOOKUP($B33,'Saisie Poussins'!$B$13:$AI$56,26+K$1,FALSE),0) -> 0 | L33: =IFERROR(VLOOKUP($B33,'Saisie Poussins'!$B$13:$AI$56,26+L$1,FALSE),0) -> 0 | M33: =IFERROR(VLOOKUP($B33,'Saisie Poussins'!$B$13:$AI$56,26+M$1,FALSE),0) -> 0 | N33: =IFERROR(VLOOKUP($B33,'Saisie Poussins'!$B$13:$AI$56,26+N$1,FALSE),0) -> 0 | O33: =IFERROR(VLOOKUP($B33,'Saisie Poussins'!$B$13:$AI$56,26+O$1,FALSE),0) -> 19.000001 | P33: =IFERROR(VLOOKUP($B33,'Saisie Poussins'!$B$13:$AI$56,26+P$1,FALSE),0) -> 20.0000008 | Q33: 39.0000018
A34: =IFERROR(IF(A33+1<='Saisie Poussins'!$BF$12,A33+1,""),"") -> 21 | B34: =IFERROR(VLOOKUP(A34,'Saisie Poussins'!$BE$13:$BF$56,2,FALSE),"") -> 42250120377 | C34: =IFERROR(VLOOKUP($B34,'Saisie Poussins'!$B$13:$AI$56,1+C$1,FALSE),0) -> GAUROIS | D34: =IFERROR(VLOOKUP($B34,'Saisie Poussins'!$B$13:$AI$56,1+D$1,FALSE),0) -> Matthias | E34: =IFERROR(VLOOKUP($B34,'Saisie Poussins'!$B$13:$AI$56,1+E$1,FALSE),0) -> H | F34: =IFERROR(VLOOKUP($B34,'Saisie Poussins'!$B$13:$AI$56,1+F$1,FALSE),0) -> V.C.DE MONTBELIARD | G34: =IFERROR(VLOOKUP($B34,'Saisie Poussins'!$B$13:$AI$56,1+G$1,FALSE),0) -> Poussin | H34: =IFERROR(VLOOKUP($B34,'Saisie Poussins'!$B$13:$AI$56,1+H$1,FALSE),0) -> 2 | I34: =IFERROR(VLOOKUP($B34,'Saisie Poussins'!$B$13:$AI$56,26+I$1,FALSE),0) -> 0 | J34: =IFERROR(VLOOKUP($B34,'Saisie Poussins'!$B$13:$AI$56,26+J$1,FALSE),0) -> 24.0000002 | K34: =IFERROR(VLOOKUP($B34,'Saisie Poussins'!$B$13:$AI$56,26+K$1,FALSE),0) -> 0 | L34: =IFERROR(VLOOKUP($B34,'Saisie Poussins'!$B$13:$AI$56,26+L$1,FALSE),0) -> 0 | M34: =IFERROR(VLOOKUP($B34,'Saisie Poussins'!$B$13:$AI$56,26+M$1,FALSE),0) -> 0 | N34: =IFERROR(VLOOKUP($B34,'Saisie Poussins'!$B$13:$AI$56,26+N$1,FALSE),0) -> 0 | O34: =IFERROR(VLOOKUP($B34,'Saisie Poussins'!$B$13:$AI$56,26+O$1,FALSE),0) -> 13.000001 | P34: =IFERROR(VLOOKUP($B34,'Saisie Poussins'!$B$13:$AI$56,26+P$1,FALSE),0) -> 0 | Q34: 37.0000012
A35: =IFERROR(IF(A34+1<='Saisie Poussins'!$BF$12,A34+1,""),"") -> 22 | B35: =IFERROR(VLOOKUP(A35,'Saisie Poussins'!$BE$13:$BF$56,2,FALSE),"") -> 42900480176 | C35: =IFERROR(VLOOKUP($B35,'Saisie Poussins'!$B$13:$AI$56,1+C$1,FALSE),0) -> ALLIO | D35: =IFERROR(VLOOKUP($B35,'Saisie Poussins'!$B$13:$AI$56,1+D$1,FALSE),0) -> Alice | E35: =IFERROR(VLOOKUP($B35,'Saisie Poussins'!$B$13:$AI$56,1+E$1,FALSE),0) -> D | F35: =IFERROR(VLOOKUP($B35,'Saisie Poussins'!$B$13:$AI$56,1+F$1,FALSE),0) -> CC BELFORT MIOTTE | G35: =IFERROR(VLOOKUP($B35,'Saisie Poussins'!$B$13:$AI$56,1+G$1,FALSE),0) -> Poussin | H35: =IFERROR(VLOOKUP($B35,'Saisie Poussins'!$B$13:$AI$56,1+H$1,FALSE),0) -> 1 | I35: =IFERROR(VLOOKUP($B35,'Saisie Poussins'!$B$13:$AI$56,26+I$1,FALSE),0) -> 0 | J35: =IFERROR(VLOOKUP($B35,'Saisie Poussins'!$B$13:$AI$56,26+J$1,FALSE),0) -> 0 | K35: =IFERROR(VLOOKUP($B35,'Saisie Poussins'!$B$13:$AI$56,26+K$1,FALSE),0) -> 28.0000003 | L35: =IFERROR(VLOOKUP($B35,'Saisie Poussins'!$B$13:$AI$56,26+L$1,FALSE),0) -> 0 | M35: =IFERROR(VLOOKUP($B35,'Saisie Poussins'!$B$13:$AI$56,26+M$1,FALSE),0) -> 0 | N35: =IFERROR(VLOOKUP($B35,'Saisie Poussins'!$B$13:$AI$56,26+N$1,FALSE),0) -> 0 | O35: =IFERROR(VLOOKUP($B35,'Saisie Poussins'!$B$13:$AI$56,26+O$1,FALSE),0) -> 0 | P35: =IFERROR(VLOOKUP($B35,'Saisie Poussins'!$B$13:$AI$56,26+P$1,FALSE),0) -> 0 | Q35: 28.0000003
A36: =IFERROR(IF(A35+1<='Saisie Poussins'!$BF$12,A35+1,""),"") -> 23 | B36: =IFERROR(VLOOKUP(A36,'Saisie Poussins'!$BE$13:$BF$56,2,FALSE),"") -> 42390960404 | C36: =IFERROR(VLOOKUP($B36,'Saisie Poussins'!$B$13:$AI$56,1+C$1,FALSE),0) -> BLECHSCHMIDT | D36: =IFERROR(VLOOKUP($B36,'Saisie Poussins'!$B$13:$AI$56,1+D$1,FALSE),0) -> Antoine | E36: =IFERROR(VLOOKUP($B36,'Saisie Poussins'!$B$13:$AI$56,1+E$1,FALSE),0) -> H | F36: =IFERROR(VLOOKUP($B36,'Saisie Poussins'!$B$13:$AI$56,1+F$1,FALSE),0) -> JURA CYCLISME PAYS DU REVERMONT | G36: =IFERROR(VLOOKUP($B36,'Saisie Poussins'!$B$13:$AI$56,1+G$1,FALSE),0) -> Poussin | H36: =IFERROR(VLOOKUP($B36,'Saisie Poussins'!$B$13:$AI$56,1+H$1,FALSE),0) -> 1 | I36: =IFERROR(VLOOKUP($B36,'Saisie Poussins'!$B$13:$AI$56,26+I$1,FALSE),0) -> 0 | J36: =IFERROR(VLOOKUP($B36,'Saisie Poussins'!$B$13:$AI$56,26+J$1,FALSE),0) -> 0 | K36: =IFERROR(VLOOKUP($B36,'Saisie Poussins'!$B$13:$AI$56,26+K$1,FALSE),0) -> 0 | L36: =IFERROR(VLOOKUP($B36,'Saisie Poussins'!$B$13:$AI$56,26+L$1,FALSE),0) -> 0 | M36: =IFERROR(VLOOKUP($B36,'Saisie Poussins'!$B$13:$AI$56,26+M$1,FALSE),0) -> 0 | N36: =IFERROR(VLOOKUP($B36,'Saisie Poussins'!$B$13:$AI$56,26+N$1,FALSE),0) -> 24.0000006 | O36: =IFERROR(VLOOKUP($B36,'Saisie Poussins'!$B$13:$AI$56,26+O$1,FALSE),0) -> 0 | P36: =IFERROR(VLOOKUP($B36,'Saisie Poussins'!$B$13:$AI$56,26+P$1,FALSE),0) -> 0 | Q36: 24.0000006
A37: =IFERROR(IF(A36+1<='Saisie Poussins'!$BF$12,A36+1,""),"") -> 24 | B37: =IFERROR(VLOOKUP(A37,'Saisie Poussins'!$BE$13:$BF$56,2,FALSE),"") -> 46880320466 | C37: =IFERROR(VLOOKUP($B37,'Saisie Poussins'!$B$13:$AI$56,1+C$1,FALSE),0) -> HERMANN | D37: =IFERROR(VLOOKUP($B37,'Saisie Poussins'!$B$13:$AI$56,1+D$1,FALSE),0) -> Robin | E37: =IFERROR(VLOOKUP($B37,'Saisie Poussins'!$B$13:$AI$56,1+E$1,FALSE),0) -> H | F37: =IFERROR(VLOOKUP($B37,'Saisie Poussins'!$B$13:$AI$56,1+F$1,FALSE),0) -> CYCLE GOLBEEN | G37: =IFERROR(VLOOKUP($B37,'Saisie Poussins'!$B$13:$AI$56,1+G$1,FALSE),0) -> Poussin | H37: =IFERROR(VLOOKUP($B37,'Saisie Poussins'!$B$13:$AI$56,1+H$1,FALSE),0) -> 1 | I37: =IFERROR(VLOOKUP($B37,'Saisie Poussins'!$B$13:$AI$56,26+I$1,FALSE),0) -> 0 | J37: =IFERROR(VLOOKUP($B37,'Saisie Poussins'!$B$13:$AI$56,26+J$1,FALSE),0) -> 24.0000002 | K37: =IFERROR(VLOOKUP($B37,'Saisie Poussins'!$B$13:$AI$56,26+K$1,FALSE),0) -> 0 | L37: =IFERROR(VLOOKUP($B37,'Saisie Poussins'!$B$13:$AI$56,26+L$1,FALSE),0) -> 0 | M37: =IFERROR(VLOOKUP($B37,'Saisie Poussins'!$B$13:$AI$56,26+M$1,FALSE),0) -> 0 | N37: =IFERROR(VLOOKUP($B37,'Saisie Poussins'!$B$13:$AI$56,26+N$1,FALSE),0) -> 0 | O37: =IFERROR(VLOOKUP($B37,'Saisie Poussins'!$B$13:$AI$56,26+O$1,FALSE),0) -> 0 | P37: =IFERROR(VLOOKUP($B37,'Saisie Poussins'!$B$13:$AI$56,26+P$1,FALSE),0) -> 0 | Q37: 24.0000002
A38: =IFERROR(IF(A37+1<='Saisie Poussins'!$BF$12,A37+1,""),"") -> 25 | B38: =IFERROR(VLOOKUP(A38,'Saisie Poussins'!$BE$13:$BF$56,2,FALSE),"") -> 42390330277 | C38: =IFERROR(VLOOKUP($B38,'Saisie Poussins'!$B$13:$AI$56,1+C$1,FALSE),0) -> BELLENOUE | D38: =IFERROR(VLOOKUP($B38,'Saisie Poussins'!$B$13:$AI$56,1+D$1,FALSE),0) -> Antone | E38: =IFERROR(VLOOKUP($B38,'Saisie Poussins'!$B$13:$AI$56,1+E$1,FALSE),0) -> M | F38: =IFERROR(VLOOKUP($B38,'Saisie Poussins'!$B$13:$AI$56,1+F$1,FALSE),0) -> GUIDON BLETTERANOIS | G38: =IFERROR(VLOOKUP($B38,'Saisie Poussins'!$B$13:$AI$56,1+G$1,FALSE),0) -> Poussin | H38: =IFERROR(VLOOKUP($B38,'Saisie Poussins'!$B$13:$AI$56,1+H$1,FALSE),0) -> 2 | I38: =IFERROR(VLOOKUP($B38,'Saisie Poussins'!$B$13:$AI$56,26+I$1,FALSE),0) -> 0 | J38: =IFERROR(VLOOKUP($B38,'Saisie Poussins'!$B$13:$AI$56,26+J$1,FALSE),0) -> 0 | K38: =IFERROR(VLOOKUP($B38,'Saisie Poussins'!$B$13:$AI$56,26+K$1,FALSE),0) -> 0 | L38: =IFERROR(VLOOKUP($B38,'Saisie Poussins'!$B$13:$AI$56,26+L$1,FALSE),0) -> 0 | M38: =IFERROR(VLOOKUP($B38,'Saisie Poussins'!$B$13:$AI$56,26+M$1,FALSE),0) -> 0 | N38: =IFERROR(VLOOKUP($B38,'Saisie Poussins'!$B$13:$AI$56,26+N$1,FALSE),0) -> 0 | O38: =IFERROR(VLOOKUP($B38,'Saisie Poussins'!$B$13:$AI$56,26+O$1,FALSE),0) -> 0 | P38: =IFERROR(VLOOKUP($B38,'Saisie Poussins'!$B$13:$AI$56,26+P$1,FALSE),0) -> 22.0000008 | Q38: 22.0000008
A39: =IFERROR(IF(A38+1<='Saisie Poussins'!$BF$12,A38+1,""),"") -> 26 | B39: =IFERROR(VLOOKUP(A39,'Saisie Poussins'!$BE$13:$BF$56,2,FALSE),"") -> 42390960405 | C39: =IFERROR(VLOOKUP($B39,'Saisie Poussins'!$B$13:$AI$56,1+C$1,FALSE),0) -> MONROLIN | D39: =IFERROR(VLOOKUP($B39,'Saisie Poussins'!$B$13:$AI$56,1+D$1,FALSE),0) -> Camille | E39: =IFERROR(VLOOKUP($B39,'Saisie Poussins'!$B$13:$AI$56,1+E$1,FALSE),0) -> H | F39: =IFERROR(VLOOKUP($B39,'Saisie Poussins'!$B$13:$AI$56,1+F$1,FALSE),0) -> JURA CYCLISME PAYS DU REVERMONT | G39: =IFERROR(VLOOKUP($B39,'Saisie Poussins'!$B$13:$AI$56,1+G$1,FALSE),0) -> Poussin | H39: =IFERROR(VLOOKUP($B39,'Saisie Poussins'!$B$13:$AI$56,1+H$1,FALSE),0) -> 1 | I39: =IFERROR(VLOOKUP($B39,'Saisie Poussins'!$B$13:$AI$56,26+I$1,FALSE),0) -> 0 | J39: =IFERROR(VLOOKUP($B39,'Saisie Poussins'!$B$13:$AI$56,26+J$1,FALSE),0) -> 0 | K39: =IFERROR(VLOOKUP($B39,'Saisie Poussins'!$B$13:$AI$56,26+K$1,FALSE),0) -> 0 | L39: =IFERROR(VLOOKUP($B39,'Saisie Poussins'!$B$13:$AI$56,26+L$1,FALSE),0) -> 0 | M39: =IFERROR(VLOOKUP($B39,'Saisie Poussins'!$B$13:$AI$56,26+M$1,FALSE),0) -> 0 | N39: =IFERROR(VLOOKUP($B39,'Saisie Poussins'!$B$13:$AI$56,26+N$1,FALSE),0) -> 22.0000006 | O39: =IFERROR(VLOOKUP($B39,'Saisie Poussins'!$B$13:$AI$56,26+O$1,FALSE),0) -> 0 | P39: =IFERROR(VLOOKUP($B39,'Saisie Poussins'!$B$13:$AI$56,26+P$1,FALSE),0) -> 0 | Q39: 22.0000006
A40: =IFERROR(IF(A39+1<='Saisie Poussins'!$BF$12,A39+1,""),"") -> 27 | B40: =IFERROR(VLOOKUP(A40,'Saisie Poussins'!$BE$13:$BF$56,2,FALSE),"") -> 42250080457 | C40: =IFERROR(VLOOKUP($B40,'Saisie Poussins'!$B$13:$AI$56,1+C$1,FALSE),0) -> CAYLAR | D40: =IFERROR(VLOOKUP($B40,'Saisie Poussins'!$B$13:$AI$56,1+D$1,FALSE),0) -> Martin | E40: =IFERROR(VLOOKUP($B40,'Saisie Poussins'!$B$13:$AI$56,1+E$1,FALSE),0) -> H | F40: =IFERROR(VLOOKUP($B40,'Saisie Poussins'!$B$13:$AI$56,1+F$1,FALSE),0) -> VELO CLUB PONTARLIER | G40: =IFERROR(VLOOKUP($B40,'Saisie Poussins'!$B$13:$AI$56,1+G$1,FALSE),0) -> Poussin | H40: =IFERROR(VLOOKUP($B40,'Saisie Poussins'!$B$13:$AI$56,1+H$1,FALSE),0) -> 2 | I40: =IFERROR(VLOOKUP($B40,'Saisie Poussins'!$B$13:$AI$56,26+I$1,FALSE),0) -> 0 | J40: =IFERROR(VLOOKUP($B40,'Saisie Poussins'!$B$13:$AI$56,26+J$1,FALSE),0) -> 0 | K40: =IFERROR(VLOOKUP($B40,'Saisie Poussins'!$B$13:$AI$56,26+K$1,FALSE),0) -> 0 | L40: =IFERROR(VLOOKUP($B40,'Saisie Poussins'!$B$13:$AI$56,26+L$1,FALSE),0) -> 0 | M40: =IFERROR(VLOOKUP($B40,'Saisie Poussins'!$B$13:$AI$56,26+M$1,FALSE),0) -> 22.0000005 | N40: =IFERROR(VLOOKUP($B40,'Saisie Poussins'!$B$13:$AI$56,26+N$1,FALSE),0) -> 0 | O40: =IFERROR(VLOOKUP($B40,'Saisie Poussins'!$B$13:$AI$56,26+O$1,FALSE),0) -> 0 | P40: =IFERROR(VLOOKUP($B40,'Saisie Poussins'!$B$13:$AI$56,26+P$1,FALSE),0) -> 0 | Q40: 22.0000005
A41: =IFERROR(IF(A40+1<='Saisie Poussins'!$BF$12,A40+1,""),"") -> 28 | B41: =IFERROR(VLOOKUP(A41,'Saisie Poussins'!$BE$13:$BF$56,2,FALSE),"") -> 42900480186 | C41: =IFERROR(VLOOKUP($B41,'Saisie Poussins'!$B$13:$AI$56,1+C$1,FALSE),0) -> TCHUDOVITCH | D41: =IFERROR(VLOOKUP($B41,'Saisie Poussins'!$B$13:$AI$56,1+D$1,FALSE),0) -> Alexandre | E41: =IFERROR(VLOOKUP($B41,'Saisie Poussins'!$B$13:$AI$56,1+E$1,FALSE),0) -> H | F41: =IFERROR(VLOOKUP($B41,'Saisie Poussins'!$B$13:$AI$56,1+F$1,FALSE),0) -> CC BELFORT MIOTTE | G41: =IFERROR(VLOOKUP($B41,'Saisie Poussins'!$B$13:$AI$56,1+G$1,FALSE),0) -> Poussin | H41: =IFERROR(VLOOKUP($B41,'Saisie Poussins'!$B$13:$AI$56,1+H$1,FALSE),0) -> 1 | I41: =IFERROR(VLOOKUP($B41,'Saisie Poussins'!$B$13:$AI$56,26+I$1,FALSE),0) -> 0 | J41: =IFERROR(VLOOKUP($B41,'Saisie Poussins'!$B$13:$AI$56,26+J$1,FALSE),0) -> 0 | K41: =IFERROR(VLOOKUP($B41,'Saisie Poussins'!$B$13:$AI$56,26+K$1,FALSE),0) -> 22.0000003 | L41: =IFERROR(VLOOKUP($B41,'Saisie Poussins'!$B$13:$AI$56,26+L$1,FALSE),0) -> 0 | M41: =IFERROR(VLOOKUP($B41,'Saisie Poussins'!$B$13:$AI$56,26+M$1,FALSE),0) -> 0 | N41: =IFERROR(VLOOKUP($B41,'Saisie Poussins'!$B$13:$AI$56,26+N$1,FALSE),0) -> 0 | O41: =IFERROR(VLOOKUP($B41,'Saisie Poussins'!$B$13:$AI$56,26+O$1,FALSE),0) -> 0 | P41: =IFERROR(VLOOKUP($B41,'Saisie Poussins'!$B$13:$AI$56,26+P$1,FALSE),0) -> 0 | Q41: 22.0000003
A42: =IFERROR(IF(A41+1<='Saisie Poussins'!$BF$12,A41+1,""),"") -> 29 | B42: =IFERROR(VLOOKUP(A42,'Saisie Poussins'!$BE$13:$BF$56,2,FALSE),"") -> 42700680168 | C42: =IFERROR(VLOOKUP($B42,'Saisie Poussins'!$B$13:$AI$56,1+C$1,FALSE),0) -> CLERC | D42: =IFERROR(VLOOKUP($B42,'Saisie Poussins'!$B$13:$AI$56,1+D$1,FALSE),0) -> Zoé | E42: =IFERROR(VLOOKUP($B42,'Saisie Poussins'!$B$13:$AI$56,1+E$1,FALSE),0) -> H | F42: =IFERROR(VLOOKUP($B42,'Saisie Poussins'!$B$13:$AI$56,1+F$1,FALSE),0) -> E.C. LUXEUIL VOSGES SAONO | G42: =IFERROR(VLOOKUP($B42,'Saisie Poussins'!$B$13:$AI$56,1+G$1,FALSE),0) -> Poussin | H42: =IFERROR(VLOOKUP($B42,'Saisie Poussins'!$B$13:$AI$56,1+H$1,FALSE),0) -> 2 | I42: =IFERROR(VLOOKUP($B42,'Saisie Poussins'!$B$13:$AI$56,26+I$1,FALSE),0) -> 21.0000001 | J42: =IFERROR(VLOOKUP($B42,'Saisie Poussins'!$B$13:$AI$56,26+J$1,FALSE),0) -> 0 | K42: =IFERROR(VLOOKUP($B42,'Saisie Poussins'!$B$13:$AI$56,26+K$1,FALSE),0) -> 0 | L42: =IFERROR(VLOOKUP($B42,'Saisie Poussins'!$B$13:$AI$56,26+L$1,FALSE),0) -> 0 | M42: =IFERROR(VLOOKUP($B42,'Saisie Poussins'!$B$13:$AI$56,26+M$1,FALSE),0) -> 0 | N42: =IFERROR(VLOOKUP($B42,'Saisie Poussins'!$B$13:$AI$56,26+N$1,FALSE),0) -> 0 | O42: =IFERROR(VLOOKUP($B42,'Saisie Poussins'!$B$13:$AI$56,26+O$1,FALSE),0) -> 12.000001 | P42: =IFERROR(VLOOKUP($B42,'Saisie Poussins'!$B$13:$AI$56,26+P$1,FALSE),0) -> 21.0000008 | Q42: 54.0000019
A43: =IFERROR(IF(A42+1<='Saisie Poussins'!$BF$12,A42+1,""),"") -> 30 | B43: =IFERROR(VLOOKUP(A43,'Saisie Poussins'!$BE$13:$BF$56,2,FALSE),"") -> 42250120372 | C43: =IFERROR(VLOOKUP($B43,'Saisie Poussins'!$B$13:$AI$56,1+C$1,FALSE),0) -> MACHET | D43: =IFERROR(VLOOKUP($B43,'Saisie Poussins'!$B$13:$AI$56,1+D$1,FALSE),0) -> Yanis | E43: =IFERROR(VLOOKUP($B43,'Saisie Poussins'!$B$13:$AI$56,1+E$1,FALSE),0) -> H | F43: =IFERROR(VLOOKUP($B43,'Saisie Poussins'!$B$13:$AI$56,1+F$1,FALSE),0) -> V.C.DE MONTBELIARD | G43: =IFERROR(VLOOKUP($B43,'Saisie Poussins'!$B$13:$AI$56,1+G$1,FALSE),0) -> Poussin | H43: =IFERROR(VLOOKUP($B43,'Saisie Poussins'!$B$13:$AI$56,1+H$1,FALSE),0) -> 1 | I43: =IFERROR(VLOOKUP($B43,'Saisie Poussins'!$B$13:$AI$56,26+I$1,FALSE),0) -> 0 | J43: =IFERROR(VLOOKUP($B43,'Saisie Poussins'!$B$13:$AI$56,26+J$1,FALSE),0) -> 0 | K43: =IFERROR(VLOOKUP($B43,'Saisie Poussins'!$B$13:$AI$56,26+K$1,FALSE),0) -> 0 | L43: =IFERROR(VLOOKUP($B43,'Saisie Poussins'!$B$13:$AI$56,26+L$1,FALSE),0) -> 0 | M43: =IFERROR(VLOOKUP($B43,'Saisie Poussins'!$B$13:$AI$56,26+M$1,FALSE),0) -> 0 | N43: =IFERROR(VLOOKUP($B43,'Saisie Poussins'!$B$13:$AI$56,26+N$1,FALSE),0) -> 0 | O43: =IFERROR(VLOOKUP($B43,'Saisie Poussins'!$B$13:$AI$56,26+O$1,FALSE),0) -> 21.000001 | P43: =IFERROR(VLOOKUP($B43,'Saisie Poussins'!$B$13:$AI$56,26+P$1,FALSE),0) -> 0 | Q43: 21.000001
A44: =IFERROR(IF(A43+1<='Saisie Poussins'!$BF$12,A43+1,""),"") -> 31 | B44: =IFERROR(VLOOKUP(A44,'Saisie Poussins'!$BE$13:$BF$56,2,FALSE),"") -> 42250080432 | C44: =IFERROR(VLOOKUP($B44,'Saisie Poussins'!$B$13:$AI$56,1+C$1,FALSE),0) -> METOZ | D44: =IFERROR(VLOOKUP($B44,'Saisie Poussins'!$B$13:$AI$56,1+D$1,FALSE),0) -> Constant | E44: =IFERROR(VLOOKUP($B44,'Saisie Poussins'!$B$13:$AI$56,1+E$1,FALSE),0) -> H | F44: =IFERROR(VLOOKUP($B44,'Saisie Poussins'!$B$13:$AI$56,1+F$1,FALSE),0) -> VELO CLUB PONTARLIER | G44: =IFERROR(VLOOKUP($B44,'Saisie Poussins'!$B$13:$AI$56,1+G$1,FALSE),0) -> Poussin | H44: =IFERROR(VLOOKUP($B44,'Saisie Poussins'!$B$13:$AI$56,1+H$1,FALSE),0) -> 1 | I44: =IFERROR(VLOOKUP($B44,'Saisie Poussins'!$B$13:$AI$56,26+I$1,FALSE),0) -> 0 | J44: =IFERROR(VLOOKUP($B44,'Saisie Poussins'!$B$13:$AI$56,26+J$1,FALSE),0) -> 0 | K44: =IFERROR(VLOOKUP($B44,'Saisie Poussins'!$B$13:$AI$56,26+K$1,FALSE),0) -> 0 | L44: =IFERROR(VLOOKUP($B44,'Saisie Poussins'!$B$13:$AI$56,26+L$1,FALSE),0) -> 0 | M44: =IFERROR(VLOOKUP($B44,'Saisie Poussins'!$B$13:$AI$56,26+M$1,FALSE),0) -> 21.0000005 | N44: =IFERROR(VLOOKUP($B44,'Saisie Poussins'!$B$13:$AI$56,26+N$1,FALSE),0) -> 0 | O44: =IFERROR(VLOOKUP($B44,'Saisie Poussins'!$B$13:$AI$56,26+O$1,FALSE),0) -> 0 | P44: =IFERROR(VLOOKUP($B44,'Saisie Poussins'!$B$13:$AI$56,26+P$1,FALSE),0) -> 0 | Q44: 21.0000005
A45: =IFERROR(IF(A44+1<='Saisie Poussins'!$BF$12,A44+1,""),"") -> 32 | B45: =IFERROR(VLOOKUP(A45,'Saisie Poussins'!$BE$13:$BF$56,2,FALSE),"") -> 42390960385 | C45: =IFERROR(VLOOKUP($B45,'Saisie Poussins'!$B$13:$AI$56,1+C$1,FALSE),0) -> PEREIRA | D45: =IFERROR(VLOOKUP($B45,'Saisie Poussins'!$B$13:$AI$56,1+D$1,FALSE),0) -> Tiago | E45: =IFERROR(VLOOKUP($B45,'Saisie Poussins'!$B$13:$AI$56,1+E$1,FALSE),0) -> M | F45: =IFERROR(VLOOKUP($B45,'Saisie Poussins'!$B$13:$AI$56,1+F$1,FALSE),0) -> JURA CYCLISME PAYS DU REVERMONT | G45: =IFERROR(VLOOKUP($B45,'Saisie Poussins'!$B$13:$AI$56,1+G$1,FALSE),0) -> Poussin | H45: =IFERROR(VLOOKUP($B45,'Saisie Poussins'!$B$13:$AI$56,1+H$1,FALSE),0) -> 1 | I45: =IFERROR(VLOOKUP($B45,'Saisie Poussins'!$B$13:$AI$56,26+I$1,FALSE),0) -> 0 | J45: =IFERROR(VLOOKUP($B45,'Saisie Poussins'!$B$13:$AI$56,26+J$1,FALSE),0) -> 0 | K45: =IFERROR(VLOOKUP($B45,'Saisie Poussins'!$B$13:$AI$56,26+K$1,FALSE),0) -> 0 | L45: =IFERROR(VLOOKUP($B45,'Saisie Poussins'!$B$13:$AI$56,26+L$1,FALSE),0) -> 0 | M45: =IFERROR(VLOOKUP($B45,'Saisie Poussins'!$B$13:$AI$56,26+M$1,FALSE),0) -> 0 | N45: =IFERROR(VLOOKUP($B45,'Saisie Poussins'!$B$13:$AI$56,26+N$1,FALSE),0) -> 0 | O45: =IFERROR(VLOOKUP($B45,'Saisie Poussins'!$B$13:$AI$56,26+O$1,FALSE),0) -> 0 | P45: =IFERROR(VLOOKUP($B45,'Saisie Poussins'!$B$13:$AI$56,26+P$1,FALSE),0) -> 18.0000008 | Q45: 18.0000008
A46: =IFERROR(IF(A45+1<='Saisie Poussins'!$BF$12,A45+1,""),"") -> 33 | B46: =IFERROR(VLOOKUP(A46,'Saisie Poussins'!$BE$13:$BF$56,2,FALSE),"") -> 42250120360 | C46: =IFERROR(VLOOKUP($B46,'Saisie Poussins'!$B$13:$AI$56,1+C$1,FALSE),0) -> ABGRALL | D46: =IFERROR(VLOOKUP($B46,'Saisie Poussins'!$B$13:$AI$56,1+D$1,FALSE),0) -> Maël | E46: =IFERROR(VLOOKUP($B46,'Saisie Poussins'!$B$13:$AI$56,1+E$1,FALSE),0) -> H | F46: =IFERROR(VLOOKUP($B46,'Saisie Poussins'!$B$13:$AI$56,1+F$1,FALSE),0) -> V.C.DE MONTBELIARD | G46: =IFERROR(VLOOKUP($B46,'Saisie Poussins'!$B$13:$AI$56,1+G$1,FALSE),0) -> Poussin | H46: =IFERROR(VLOOKUP($B46,'Saisie Poussins'!$B$13:$AI$56,1+H$1,FALSE),0) -> 1 | I46: =IFERROR(VLOOKUP($B46,'Saisie Poussins'!$B$13:$AI$56,26+I$1,FALSE),0) -> 0 | J46: =IFERROR(VLOOKUP($B46,'Saisie Poussins'!$B$13:$AI$56,26+J$1,FALSE),0) -> 0 | K46: =IFERROR(VLOOKUP($B46,'Saisie Poussins'!$B$13:$AI$56,26+K$1,FALSE),0) -> 0 | L46: =IFERROR(VLOOKUP($B46,'Saisie Poussins'!$B$13:$AI$56,26+L$1,FALSE),0) -> 0 | M46: =IFERROR(VLOOKUP($B46,'Saisie Poussins'!$B$13:$AI$56,26+M$1,FALSE),0) -> 0 | N46: =IFERROR(VLOOKUP($B46,'Saisie Poussins'!$B$13:$AI$56,26+N$1,FALSE),0) -> 0 | O46: =IFERROR(VLOOKUP($B46,'Saisie Poussins'!$B$13:$AI$56,26+O$1,FALSE),0) -> 17.000001 | P46: =IFERROR(VLOOKUP($B46,'Saisie Poussins'!$B$13:$AI$56,26+P$1,FALSE),0) -> 0 | Q46: 17.000001
A47: =IFERROR(IF(A46+1<='Saisie Poussins'!$BF$12,A46+1,""),"") -> 34 | B47: =IFERROR(VLOOKUP(A47,'Saisie Poussins'!$BE$13:$BF$56,2,FALSE),"") -> 4225012036 | C47: =IFERROR(VLOOKUP($B47,'Saisie Poussins'!$B$13:$AI$56,1+C$1,FALSE),0) -> AUERBACH | D47: =IFERROR(VLOOKUP($B47,'Saisie Poussins'!$B$13:$AI$56,1+D$1,FALSE),0) -> Minz | E47: =IFERROR(VLOOKUP($B47,'Saisie Poussins'!$B$13:$AI$56,1+E$1,FALSE),0) -> D | F47: =IFERROR(VLOOKUP($B47,'Saisie Poussins'!$B$13:$AI$56,1+F$1,FALSE),0) -> Carte journalière | G47: =IFERROR(VLOOKUP($B47,'Saisie Poussins'!$B$13:$AI$56,1+G$1,FALSE),0) -> Poussin | H47: =IFERROR(VLOOKUP($B47,'Saisie Poussins'!$B$13:$AI$56,1+H$1,FALSE),0) -> 0 | I47: =IFERROR(VLOOKUP($B47,'Saisie Poussins'!$B$13:$AI$56,26+I$1,FALSE),0) -> 0 | J47: =IFERROR(VLOOKUP($B47,'Saisie Poussins'!$B$13:$AI$56,26+J$1,FALSE),0) -> 0 | K47: =IFERROR(VLOOKUP($B47,'Saisie Poussins'!$B$13:$AI$56,26+K$1,FALSE),0) -> 0 | L47: =IFERROR(VLOOKUP($B47,'Saisie Poussins'!$B$13:$AI$56,26+L$1,FALSE),0) -> 0 | M47: =IFERROR(VLOOKUP($B47,'Saisie Poussins'!$B$13:$AI$56,26+M$1,FALSE),0) -> 0 | N47: =IFERROR(VLOOKUP($B47,'Saisie Poussins'!$B$13:$AI$56,26+N$1,FALSE),0) -> 0 | O47: =IFERROR(VLOOKUP($B47,'Saisie Poussins'!$B$13:$AI$56,26+O$1,FALSE),0) -> 16.000001 | P47: =IFERROR(VLOOKUP($B47,'Saisie Poussins'!$B$13:$AI$56,26+P$1,FALSE),0) -> 0 | Q47: 16.000001
A48: =IFERROR(IF(A47+1<='Saisie Poussins'!$BF$12,A47+1,""),"") -> 35 | B48: =IFERROR(VLOOKUP(A48,'Saisie Poussins'!$BE$13:$BF$56,2,FALSE),"") -> 46680680277 | C48: =IFERROR(VLOOKUP($B48,'Saisie Poussins'!$B$13:$AI$56,1+C$1,FALSE),0) -> MEISTER | D48: =IFERROR(VLOOKUP($B48,'Saisie Poussins'!$B$13:$AI$56,1+D$1,FALSE),0) -> Benjamin | E48: =IFERROR(VLOOKUP($B48,'Saisie Poussins'!$B$13:$AI$56,1+E$1,FALSE),0) -> H | F48: =IFERROR(VLOOKUP($B48,'Saisie Poussins'!$B$13:$AI$56,1+F$1,FALSE),0) -> VC SUNDGOVIA ALTKIRCH | G48: =IFERROR(VLOOKUP($B48,'Saisie Poussins'!$B$13:$AI$56,1+G$1,FALSE),0) -> Poussin | H48: =IFERROR(VLOOKUP($B48,'Saisie Poussins'!$B$13:$AI$56,1+H$1,FALSE),0) -> 2 | I48: =IFERROR(VLOOKUP($B48,'Saisie Poussins'!$B$13:$AI$56,26+I$1,FALSE),0) -> 0 | J48: =IFERROR(VLOOKUP($B48,'Saisie Poussins'!$B$13:$AI$56,26+J$1,FALSE),0) -> 0 | K48: =IFERROR(VLOOKUP($B48,'Saisie Poussins'!$B$13:$AI$56,26+K$1,FALSE),0) -> 0 | L48: =IFERROR(VLOOKUP($B48,'Saisie Poussins'!$B$13:$AI$56,26+L$1,FALSE),0) -> 0 | M48: =IFERROR(VLOOKUP($B48,'Saisie Poussins'!$B$13:$AI$56,26+M$1,FALSE),0) -> 0 | N48: =IFERROR(VLOOKUP($B48,'Saisie Poussins'!$B$13:$AI$56,26+N$1,FALSE),0) -> 0 | O48: =IFERROR(VLOOKUP($B48,'Saisie Poussins'!$B$13:$AI$56,26+O$1,FALSE),0) -> 14.000001 | P48: =IFERROR(VLOOKUP($B48,'Saisie Poussins'!$B$13:$AI$56,26+P$1,FALSE),0) -> 0 | Q48: 14.000001
A49: =IFERROR(IF(A48+1<='Saisie Poussins'!$BF$12,A48+1,""),"") -> 36 | B49: =IFERROR(VLOOKUP(A49,'Saisie Poussins'!$BE$13:$BF$56,2,FALSE),"") -> 46680680297 | C49: =IFERROR(VLOOKUP($B49,'Saisie Poussins'!$B$13:$AI$56,1+C$1,FALSE),0) -> LISZCZAK | D49: =IFERROR(VLOOKUP($B49,'Saisie Poussins'!$B$13:$AI$56,1+D$1,FALSE),0) -> Nolan | E49: =IFERROR(VLOOKUP($B49,'Saisie Poussins'!$B$13:$AI$56,1+E$1,FALSE),0) -> H | F49: =IFERROR(VLOOKUP($B49,'Saisie Poussins'!$B$13:$AI$56,1+F$1,FALSE),0) -> VC SUNDGOVIA ALTKIRCH | G49: =IFERROR(VLOOKUP($B49,'Saisie Poussins'!$B$13:$AI$56,1+G$1,FALSE),0) -> Poussin | H49: =IFERROR(VLOOKUP($B49,'Saisie Poussins'!$B$13:$AI$56,1+H$1,FALSE),0) -> 2 | I49: =IFERROR(VLOOKUP($B49,'Saisie Poussins'!$B$13:$AI$56,26+I$1,FALSE),0) -> 0 | J49: =IFERROR(VLOOKUP($B49,'Saisie Poussins'!$B$13:$AI$56,26+J$1,FALSE),0) -> 0 | K49: =IFERROR(VLOOKUP($B49,'Saisie Poussins'!$B$13:$AI$56,26+K$1,FALSE),0) -> 0 | L49: =IFERROR(VLOOKUP($B49,'Saisie Poussins'!$B$13:$AI$56,26+L$1,FALSE),0) -> 0 | M49: =IFERROR(VLOOKUP($B49,'Saisie Poussins'!$B$13:$AI$56,26+M$1,FALSE),0) -> 0 | N49: =IFERROR(VLOOKUP($B49,'Saisie Poussins'!$B$13:$AI$56,26+N$1,FALSE),0) -> 0 | O49: =IFERROR(VLOOKUP($B49,'Saisie Poussins'!$B$13:$AI$56,26+O$1,FALSE),0) -> 14.000001 | P49: =IFERROR(VLOOKUP($B49,'Saisie Poussins'!$B$13:$AI$56,26+P$1,FALSE),0) -> 0 | Q49: 14.000001
A50: =IFERROR(IF(A49+1<='Saisie Poussins'!$BF$12,A49+1,""),"") -> 37 | B50: =IFERROR(VLOOKUP(A50,'Saisie Poussins'!$BE$13:$BF$56,2,FALSE),"") -> 46680680281 | C50: =IFERROR(VLOOKUP($B50,'Saisie Poussins'!$B$13:$AI$56,1+C$1,FALSE),0) -> KLEIN | D50: =IFERROR(VLOOKUP($B50,'Saisie Poussins'!$B$13:$AI$56,1+D$1,FALSE),0) -> Rose | E50: =IFERROR(VLOOKUP($B50,'Saisie Poussins'!$B$13:$AI$56,1+E$1,FALSE),0) -> D | F50: =IFERROR(VLOOKUP($B50,'Saisie Poussins'!$B$13:$AI$56,1+F$1,FALSE),0) -> VC SUNDGOVIA ALTKIRCH | G50: =IFERROR(VLOOKUP($B50,'Saisie Poussins'!$B$13:$AI$56,1+G$1,FALSE),0) -> Poussin | H50: =IFERROR(VLOOKUP($B50,'Saisie Poussins'!$B$13:$AI$56,1+H$1,FALSE),0) -> 2 | I50: =IFERROR(VLOOKUP($B50,'Saisie Poussins'!$B$13:$AI$56,26+I$1,FALSE),0) -> 0 | J50: =IFERROR(VLOOKUP($B50,'Saisie Poussins'!$B$13:$AI$56,26+J$1,FALSE),0) -> 0 | K50: =IFERROR(VLOOKUP($B50,'Saisie Poussins'!$B$13:$AI$56,26+K$1,FALSE),0) -> 0 | L50: =IFERROR(VLOOKUP($B50,'Saisie Poussins'!$B$13:$AI$56,26+L$1,FALSE),0) -> 0 | M50: =IFERROR(VLOOKUP($B50,'Saisie Poussins'!$B$13:$AI$56,26+M$1,FALSE),0) -> 0 | N50: =IFERROR(VLOOKUP($B50,'Saisie Poussins'!$B$13:$AI$56,26+N$1,FALSE),0) -> 0 | O50: =IFERROR(VLOOKUP($B50,'Saisie Poussins'!$B$13:$AI$56,26+O$1,FALSE),0) -> 10.000001 | P50: =IFERROR(VLOOKUP($B50,'Saisie Poussins'!$B$13:$AI$56,26+P$1,FALSE),0) -> 0 | Q50: 10.000001
A51: =IFERROR(IF(A50+1<='Saisie Poussins'!$BF$12,A50+1,""),"") -> 38 | B51: =IFERROR(VLOOKUP(A51,'Saisie Poussins'!$BE$13:$BF$56,2,FALSE),"") -> 42900480191 | C51: =IFERROR(VLOOKUP($B51,'Saisie Poussins'!$B$13:$AI$56,1+C$1,FALSE),0) -> HULLETTE FATOME | D51: =IFERROR(VLOOKUP($B51,'Saisie Poussins'!$B$13:$AI$56,1+D$1,FALSE),0) -> Stella | E51: =IFERROR(VLOOKUP($B51,'Saisie Poussins'!$B$13:$AI$56,1+E$1,FALSE),0) -> D | F51: =IFERROR(VLOOKUP($B51,'Saisie Poussins'!$B$13:$AI$56,1+F$1,FALSE),0) -> CC BELFORT MIOTTE | G51: =IFERROR(VLOOKUP($B51,'Saisie Poussins'!$B$13:$AI$56,1+G$1,FALSE),0) -> Poussin | H51: =IFERROR(VLOOKUP($B51,'Saisie Poussins'!$B$13:$AI$56,1+H$1,FALSE),0) -> 2 | I51: =IFERROR(VLOOKUP($B51,'Saisie Poussins'!$B$13:$AI$56,26+I$1,FALSE),0) -> 0 | J51: =IFERROR(VLOOKUP($B51,'Saisie Poussins'!$B$13:$AI$56,26+J$1,FALSE),0) -> 0 | K51: =IFERROR(VLOOKUP($B51,'Saisie Poussins'!$B$13:$AI$56,26+K$1,FALSE),0) -> 0 | L51: =IFERROR(VLOOKUP($B51,'Saisie Poussins'!$B$13:$AI$56,26+L$1,FALSE),0) -> 0 | M51: =IFERROR(VLOOKUP($B51,'Saisie Poussins'!$B$13:$AI$56,26+M$1,FALSE),0) -> 0 | N51: =IFERROR(VLOOKUP($B51,'Saisie Poussins'!$B$13:$AI$56,26+N$1,FALSE),0) -> 0 | O51: =IFERROR(VLOOKUP($B51,'Saisie Poussins'!$B$13:$AI$56,26+O$1,FALSE),0) -> 9.000001 | P51: =IFERROR(VLOOKUP($B51,'Saisie Poussins'!$B$13:$AI$56,26+P$1,FALSE),0) -> 0 | Q51: 9.000001
A52: =IFERROR(IF(A51+1<='Saisie Poussins'!$BF$12,A51+1,""),"") ->  | B52: =IFERROR(VLOOKUP(A52,'Saisie Poussins'!$BE$13:$BF$56,2,FALSE),"") ->  | C52: =IFERROR(VLOOKUP($B52,'Saisie Poussins'!$B$13:$AI$56,1+C$1,FALSE),0) -> 0 | D52: =IFERROR(VLOOKUP($B52,'Saisie Poussins'!$B$13:$AI$56,1+D$1,FALSE),0) -> 0 | E52: =IFERROR(VLOOKUP($B52,'Saisie Poussins'!$B$13:$AI$56,1+E$1,FALSE),0) -> 0 | F52: =IFERROR(VLOOKUP($B52,'Saisie Poussins'!$B$13:$AI$56,1+F$1,FALSE),0) -> 0 | G52: =IFERROR(VLOOKUP($B52,'Saisie Poussins'!$B$13:$AI$56,1+G$1,FALSE),0) -> 0 | H52: =IFERROR(VLOOKUP($B52,'Saisie Poussins'!$B$13:$AI$56,1+H$1,FALSE),0) -> 0 | I52: =IFERROR(VLOOKUP($B52,'Saisie Poussins'!$B$13:$AI$56,26+I$1,FALSE),0) -> 0 | J52: =IFERROR(VLOOKUP($B52,'Saisie Poussins'!$B$13:$AI$56,26+J$1,FALSE),0) -> 0 | K52: =IFERROR(VLOOKUP($B52,'Saisie Poussins'!$B$13:$AI$56,26+K$1,FALSE),0) -> 0 | L52: =IFERROR(VLOOKUP($B52,'Saisie Poussins'!$B$13:$AI$56,26+L$1,FALSE),0) -> 0 | M52: =IFERROR(VLOOKUP($B52,'Saisie Poussins'!$B$13:$AI$56,26+M$1,FALSE),0) -> 0 | N52: =IFERROR(VLOOKUP($B52,'Saisie Poussins'!$B$13:$AI$56,26+N$1,FALSE),0) -> 0 | O52: =IFERROR(VLOOKUP($B52,'Saisie Poussins'!$B$13:$AI$56,26+O$1,FALSE),0) -> 0 | P52: =IFERROR(VLOOKUP($B52,'Saisie Poussins'!$B$13:$AI$56,26+P$1,FALSE),0) -> 0 | Q52: 0
A53: =IFERROR(IF(A52+1<='Saisie Poussins'!$BF$12,A52+1,""),"") ->  | B53: =IFERROR(VLOOKUP(A53,'Saisie Poussins'!$BE$13:$BF$56,2,FALSE),"") ->  | C53: =IFERROR(VLOOKUP($B53,'Saisie Poussins'!$B$13:$AI$56,1+C$1,FALSE),0) -> 0 | D53: =IFERROR(VLOOKUP($B53,'Saisie Poussins'!$B$13:$AI$56,1+D$1,FALSE),0) -> 0 | E53: =IFERROR(VLOOKUP($B53,'Saisie Poussins'!$B$13:$AI$56,1+E$1,FALSE),0) -> 0 | F53: =IFERROR(VLOOKUP($B53,'Saisie Poussins'!$B$13:$AI$56,1+F$1,FALSE),0) -> 0 | G53: =IFERROR(VLOOKUP($B53,'Saisie Poussins'!$B$13:$AI$56,1+G$1,FALSE),0) -> 0 | H53: =IFERROR(VLOOKUP($B53,'Saisie Poussins'!$B$13:$AI$56,1+H$1,FALSE),0) -> 0 | I53: =IFERROR(VLOOKUP($B53,'Saisie Poussins'!$B$13:$AI$56,26+I$1,FALSE),0) -> 0 | J53: =IFERROR(VLOOKUP($B53,'Saisie Poussins'!$B$13:$AI$56,26+J$1,FALSE),0) -> 0 | K53: =IFERROR(VLOOKUP($B53,'Saisie Poussins'!$B$13:$AI$56,26+K$1,FALSE),0) -> 0 | L53: =IFERROR(VLOOKUP($B53,'Saisie Poussins'!$B$13:$AI$56,26+L$1,FALSE),0) -> 0 | M53: =IFERROR(VLOOKUP($B53,'Saisie Poussins'!$B$13:$AI$56,26+M$1,FALSE),0) -> 0 | N53: =IFERROR(VLOOKUP($B53,'Saisie Poussins'!$B$13:$AI$56,26+N$1,FALSE),0) -> 0 | O53: =IFERROR(VLOOKUP($B53,'Saisie Poussins'!$B$13:$AI$56,26+O$1,FALSE),0) -> 0 | P53: =IFERROR(VLOOKUP($B53,'Saisie Poussins'!$B$13:$AI$56,26+P$1,FALSE),0) -> 0 | Q53: 0
A54: =IFERROR(IF(A53+1<='Saisie Poussins'!$BF$12,A53+1,""),"") ->  | B54: =IFERROR(VLOOKUP(A54,'Saisie Poussins'!$BE$13:$BF$56,2,FALSE),"") ->  | C54: =IFERROR(VLOOKUP($B54,'Saisie Poussins'!$B$13:$AI$56,1+C$1,FALSE),0) -> 0 | D54: =IFERROR(VLOOKUP($B54,'Saisie Poussins'!$B$13:$AI$56,1+D$1,FALSE),0) -> 0 | E54: =IFERROR(VLOOKUP($B54,'Saisie Poussins'!$B$13:$AI$56,1+E$1,FALSE),0) -> 0 | F54: =IFERROR(VLOOKUP($B54,'Saisie Poussins'!$B$13:$AI$56,1+F$1,FALSE),0) -> 0 | G54: =IFERROR(VLOOKUP($B54,'Saisie Poussins'!$B$13:$AI$56,1+G$1,FALSE),0) -> 0 | H54: =IFERROR(VLOOKUP($B54,'Saisie Poussins'!$B$13:$AI$56,1+H$1,FALSE),0) -> 0 | I54: =IFERROR(VLOOKUP($B54,'Saisie Poussins'!$B$13:$AI$56,26+I$1,FALSE),0) -> 0 | J54: =IFERROR(VLOOKUP($B54,'Saisie Poussins'!$B$13:$AI$56,26+J$1,FALSE),0) -> 0 | K54: =IFERROR(VLOOKUP($B54,'Saisie Poussins'!$B$13:$AI$56,26+K$1,FALSE),0) -> 0 | L54: =IFERROR(VLOOKUP($B54,'Saisie Poussins'!$B$13:$AI$56,26+L$1,FALSE),0) -> 0 | M54: =IFERROR(VLOOKUP($B54,'Saisie Poussins'!$B$13:$AI$56,26+M$1,FALSE),0) -> 0 | N54: =IFERROR(VLOOKUP($B54,'Saisie Poussins'!$B$13:$AI$56,26+N$1,FALSE),0) -> 0 | O54: =IFERROR(VLOOKUP($B54,'Saisie Poussins'!$B$13:$AI$56,26+O$1,FALSE),0) -> 0 | P54: =IFERROR(VLOOKUP($B54,'Saisie Poussins'!$B$13:$AI$56,26+P$1,FALSE),0) -> 0 | Q54: 0
A55: =IFERROR(IF(A54+1<='Saisie Poussins'!$BF$12,A54+1,""),"") ->  | B55: =IFERROR(VLOOKUP(A55,'Saisie Poussins'!$BE$13:$BF$56,2,FALSE),"") ->  | C55: =IFERROR(VLOOKUP($B55,'Saisie Poussins'!$B$13:$AI$56,1+C$1,FALSE),0) -> 0 | D55: =IFERROR(VLOOKUP($B55,'Saisie Poussins'!$B$13:$AI$56,1+D$1,FALSE),0) -> 0 | E55: =IFERROR(VLOOKUP($B55,'Saisie Poussins'!$B$13:$AI$56,1+E$1,FALSE),0) -> 0 | F55: =IFERROR(VLOOKUP($B55,'Saisie Poussins'!$B$13:$AI$56,1+F$1,FALSE),0) -> 0 | G55: =IFERROR(VLOOKUP($B55,'Saisie Poussins'!$B$13:$AI$56,1+G$1,FALSE),0) -> 0 | H55: =IFERROR(VLOOKUP($B55,'Saisie Poussins'!$B$13:$AI$56,1+H$1,FALSE),0) -> 0 | I55: =IFERROR(VLOOKUP($B55,'Saisie Poussins'!$B$13:$AI$56,26+I$1,FALSE),0) -> 0 | J55: =IFERROR(VLOOKUP($B55,'Saisie Poussins'!$B$13:$AI$56,26+J$1,FALSE),0) -> 0 | K55: =IFERROR(VLOOKUP($B55,'Saisie Poussins'!$B$13:$AI$56,26+K$1,FALSE),0) -> 0 | L55: =IFERROR(VLOOKUP($B55,'Saisie Poussins'!$B$13:$AI$56,26+L$1,FALSE),0) -> 0 | M55: =IFERROR(VLOOKUP($B55,'Saisie Poussins'!$B$13:$AI$56,26+M$1,FALSE),0) -> 0 | N55: =IFERROR(VLOOKUP($B55,'Saisie Poussins'!$B$13:$AI$56,26+N$1,FALSE),0) -> 0 | O55: =IFERROR(VLOOKUP($B55,'Saisie Poussins'!$B$13:$AI$56,26+O$1,FALSE),0) -> 0 | P55: =IFERROR(VLOOKUP($B55,'Saisie Poussins'!$B$13:$AI$56,26+P$1,FALSE),0) -> 0 | Q55: 0
A56: =IFERROR(IF(A55+1<='Saisie Poussins'!$BF$12,A55+1,""),"") ->  | B56: =IFERROR(VLOOKUP(A56,'Saisie Poussins'!$BE$13:$BF$56,2,FALSE),"") ->  | C56: =IFERROR(VLOOKUP($B56,'Saisie Poussins'!$B$13:$AI$56,1+C$1,FALSE),0) -> 0 | D56: =IFERROR(VLOOKUP($B56,'Saisie Poussins'!$B$13:$AI$56,1+D$1,FALSE),0) -> 0 | E56: =IFERROR(VLOOKUP($B56,'Saisie Poussins'!$B$13:$AI$56,1+E$1,FALSE),0) -> 0 | F56: =IFERROR(VLOOKUP($B56,'Saisie Poussins'!$B$13:$AI$56,1+F$1,FALSE),0) -> 0 | G56: =IFERROR(VLOOKUP($B56,'Saisie Poussins'!$B$13:$AI$56,1+G$1,FALSE),0) -> 0 | H56: =IFERROR(VLOOKUP($B56,'Saisie Poussins'!$B$13:$AI$56,1+H$1,FALSE),0) -> 0 | I56: =IFERROR(VLOOKUP($B56,'Saisie Poussins'!$B$13:$AI$56,26+I$1,FALSE),0) -> 0 | J56: =IFERROR(VLOOKUP($B56,'Saisie Poussins'!$B$13:$AI$56,26+J$1,FALSE),0) -> 0 | K56: =IFERROR(VLOOKUP($B56,'Saisie Poussins'!$B$13:$AI$56,26+K$1,FALSE),0) -> 0 | L56: =IFERROR(VLOOKUP($B56,'Saisie Poussins'!$B$13:$AI$56,26+L$1,FALSE),0) -> 0 | M56: =IFERROR(VLOOKUP($B56,'Saisie Poussins'!$B$13:$AI$56,26+M$1,FALSE),0) -> 0 | N56: =IFERROR(VLOOKUP($B56,'Saisie Poussins'!$B$13:$AI$56,26+N$1,FALSE),0) -> 0 | O56: =IFERROR(VLOOKUP($B56,'Saisie Poussins'!$B$13:$AI$56,26+O$1,FALSE),0) -> 0 | P56: =IFERROR(VLOOKUP($B56,'Saisie Poussins'!$B$13:$AI$56,26+P$1,FALSE),0) -> 0 | Q56: 0
A57: =IFERROR(IF(A56+1<='Saisie Poussins'!$BF$12,A56+1,""),"") ->  | B57: =IFERROR(VLOOKUP(A57,'Saisie Poussins'!$BE$13:$BF$56,2,FALSE),"") ->  | C57: =IFERROR(VLOOKUP($B57,'Saisie Poussins'!$B$13:$AI$56,1+C$1,FALSE),0) -> 0 | D57: =IFERROR(VLOOKUP($B57,'Saisie Poussins'!$B$13:$AI$56,1+D$1,FALSE),0) -> 0 | E57: =IFERROR(VLOOKUP($B57,'Saisie Poussins'!$B$13:$AI$56,1+E$1,FALSE),0) -> 0 | F57: =IFERROR(VLOOKUP($B57,'Saisie Poussins'!$B$13:$AI$56,1+F$1,FALSE),0) -> 0 | G57: =IFERROR(VLOOKUP($B57,'Saisie Poussins'!$B$13:$AI$56,1+G$1,FALSE),0) -> 0 | H57: =IFERROR(VLOOKUP($B57,'Saisie Poussins'!$B$13:$AI$56,1+H$1,FALSE),0) -> 0 | I57: =IFERROR(VLOOKUP($B57,'Saisie Poussins'!$B$13:$AI$56,26+I$1,FALSE),0) -> 0 | J57: =IFERROR(VLOOKUP($B57,'Saisie Poussins'!$B$13:$AI$56,26+J$1,FALSE),0) -> 0 | K57: =IFERROR(VLOOKUP($B57,'Saisie Poussins'!$B$13:$AI$56,26+K$1,FALSE),0) -> 0 | L57: =IFERROR(VLOOKUP($B57,'Saisie Poussins'!$B$13:$AI$56,26+L$1,FALSE),0) -> 0 | M57: =IFERROR(VLOOKUP($B57,'Saisie Poussins'!$B$13:$AI$56,26+M$1,FALSE),0) -> 0 | N57: =IFERROR(VLOOKUP($B57,'Saisie Poussins'!$B$13:$AI$56,26+N$1,FALSE),0) -> 0 | O57: =IFERROR(VLOOKUP($B57,'Saisie Poussins'!$B$13:$AI$56,26+O$1,FALSE),0) -> 0 | P57: =IFERROR(VLOOKUP($B57,'Saisie Poussins'!$B$13:$AI$56,26+P$1,FALSE),0) -> 0 | Q57: 0
B58: Leader route | D58: ='Saisie Poussins'!E3 -> MURATORI EZYO - CC BELFORT MIOTTE | I58: ="Challenge régional "&Accueil!$C$3&" - "&Accueil!$C$5 -> Challenge régional BOURGOGNE FRANCHE COMTE - 2022
B59: Classement route
A60: Place | B60: Licence | C60: Nom | D60: Prénom | F60: Club | G60: Catégorie | H60: Année | J60: =RIGHT(CELL("nomfichier",$A$1), LEN(CELL("nomfichier",$A$1))-FIND("]", CELL("nomfichier",$A$1))) -> Classement Poussins
I61: =Accueil!B$10 -> 03/04/2022 Luxeuil | J61: =Accueil!C$10 -> 24/04/2022 Noidans les Vesoul | K61: =Accueil!D$10 -> 1/05/2022 Vescemont | L61: =Accueil!E$10 -> 08/05/2022 Morteau | M61: =Accueil!F$10 -> 22/05/2022 Pontarlier | N61: =Accueil!G$10 -> 05/06/2022 Vadans | O61: =Accueil!H$10 -> 12/06/2022 Montbéliard | P61: =Accueil!I$10 -> 02 et 03/07/2022 Bletterans | Q61: Total des 5 meilleurs
A62: 1 | B62: =IFERROR(VLOOKUP(A62,'Saisie Poussins'!$BE$61:$BF$104,2,FALSE),"") -> 42900480168 | C62: =IFERROR(VLOOKUP($B62,'Saisie Poussins'!$B$13:$AI$56,1+C$1,FALSE),0) -> MURATORI | D62: =IFERROR(VLOOKUP($B62,'Saisie Poussins'!$B$13:$AI$56,1+D$1,FALSE),0) -> EZYO | E62: =IFERROR(VLOOKUP($B62,'Saisie Poussins'!$B$13:$AI$56,1+E$1,FALSE),0) -> H | F62: =IFERROR(VLOOKUP($B62,'Saisie Poussins'!$B$13:$AI$56,1+F$1,FALSE),0) -> CC BELFORT MIOTTE | G62: =IFERROR(VLOOKUP($B62,'Saisie Poussins'!$B$13:$AI$56,1+G$1,FALSE),0) -> Poussin | H62: =IFERROR(VLOOKUP($B62,'Saisie Poussins'!$B$13:$AI$56,1+H$1,FALSE),0) -> 2 | I62: =IFERROR(VLOOKUP($B62,'Saisie Poussins'!$B$61:$AI$104,26+I$1,FALSE),0) -> 0 | J62: =IFERROR(VLOOKUP($B62,'Saisie Poussins'!$B$61:$AI$104,26+J$1,FALSE),0) -> 25.0000001 | K62: =IFERROR(VLOOKUP($B62,'Saisie Poussins'!$B$61:$AI$104,26+K$1,FALSE),0) -> 25.00000015 | L62: =IFERROR(VLOOKUP($B62,'Saisie Poussins'!$B$61:$AI$104,26+L$1,FALSE),0) -> 25.0000002 | M62: =IFERROR(VLOOKUP($B62,'Saisie Poussins'!$B$61:$AI$104,26+M$1,FALSE),0) -> 0 | N62: =IFERROR(VLOOKUP($B62,'Saisie Poussins'!$B$61:$AI$104,26+N$1,FALSE),0) -> 0 | O62: =IFERROR(VLOOKUP($B62,'Saisie Poussins'!$B$61:$AI$104,26+O$1,FALSE),0) -> 25.0000005 | P62: =IFERROR(VLOOKUP($B62,'Saisie Poussins'!$B$61:$AI$104,26+P$1,FALSE),0) -> 22.0000004 | Q62: =IF(B62>0,SUM(I62:P62),"") -> 122.0000014
A63: =IFERROR(IF(A62+1<='Saisie Poussins'!$BF$12,A62+1,""),"") -> 2 | B63: =IFERROR(VLOOKUP(A63,'Saisie Poussins'!$BE$61:$BF$104,2,FALSE),"") -> 42250120321 | C63: =IFERROR(VLOOKUP($B63,'Saisie Poussins'!$B$13:$AI$56,1+C$1,FALSE),0) -> GRIME | D63: =IFERROR(VLOOKUP($B63,'Saisie Poussins'!$B$13:$AI$56,1+D$1,FALSE),0) -> Lucas | E63: =IFERROR(VLOOKUP($B63,'Saisie Poussins'!$B$13:$AI$56,1+E$1,FALSE),0) -> H | F63: =IFERROR(VLOOKUP($B63,'Saisie Poussins'!$B$13:$AI$56,1+F$1,FALSE),0) -> V.C.DE MONTBELIARD | G63: =IFERROR(VLOOKUP($B63,'Saisie Poussins'!$B$13:$AI$56,1+G$1,FALSE),0) -> Poussin | H63: =IFERROR(VLOOKUP($B63,'Saisie Poussins'!$B$13:$AI$56,1+H$1,FALSE),0) -> 2 | I63: =IFERROR(VLOOKUP($B63,'Saisie Poussins'!$B$61:$AI$104,26+I$1,FALSE),0) -> 25.00000005 | J63: =IFERROR(VLOOKUP($B63,'Saisie Poussins'!$B$61:$AI$104,26+J$1,FALSE),0) -> 0 | K63: =IFERROR(VLOOKUP($B63,'Saisie Poussins'!$B$61:$AI$104,26+K$1,FALSE),0) -> 0 | L63: =IFERROR(VLOOKUP($B63,'Saisie Poussins'!$B$61:$AI$104,26+L$1,FALSE),0) -> 0 | M63: =IFERROR(VLOOKUP($B63,'Saisie Poussins'!$B$61:$AI$104,26+M$1,FALSE),0) -> 25.00000025 | N63: =IFERROR(VLOOKUP($B63,'Saisie Poussins'!$B$61:$AI$104,26+N$1,FALSE),0) -> 22.0000003 | O63: =IFERROR(VLOOKUP($B63,'Saisie Poussins'!$B$61:$AI$104,26+O$1,FALSE),0) -> 22.0000005 | P63: =IFERROR(VLOOKUP($B63,'Saisie Poussins'!$B$61:$AI$104,26+P$1,FALSE),0) -> 25.0000004 | Q63: =IF(B63>0,SUM(I63:P63),"") -> 119.0000015
A64: =IFERROR(IF(A63+1<='Saisie Poussins'!$BF$12,A63+1,""),"") -> 3 | B64: =IFERROR(VLOOKUP(A64,'Saisie Poussins'!$BE$61:$BF$104,2,FALSE),"") -> 42700680182 | C64: =IFERROR(VLOOKUP($B64,'Saisie Poussins'!$B$13:$AI$56,1+C$1,FALSE),0) -> BOURGES | D64: =IFERROR(VLOOKUP($B64,'Saisie Poussins'!$B$13:$AI$56,1+D$1,FALSE),0) -> Martin | E64: =IFERROR(VLOOKUP($B64,'Saisie Poussins'!$B$13:$AI$56,1+E$1,FALSE),0) -> H | F64: =IFERROR(VLOOKUP($B64,'Saisie Poussins'!$B$13:$AI$56,1+F$1,FALSE),0) -> E.C. LUXEUIL VOSGES SAONO | G64: =IFERROR(VLOOKUP($B64,'Saisie Poussins'!$B$13:$AI$56,1+G$1,FALSE),0) -> Poussin | H64: =IFERROR(VLOOKUP($B64,'Saisie Poussins'!$B$13:$AI$56,1+H$1,FALSE),0) -> 2 | I64: =IFERROR(VLOOKUP($B64,'Saisie Poussins'!$B$61:$AI$104,26+I$1,FALSE),0) -> 22.00000005 | J64: =IFERROR(VLOOKUP($B64,'Saisie Poussins'!$B$61:$AI$104,26+J$1,FALSE),0) -> 20.0000001 | K64: =IFERROR(VLOOKUP($B64,'Saisie Poussins'!$B$61:$AI$104,26+K$1,FALSE),0) -> 0 | L64: =IFERROR(VLOOKUP($B64,'Saisie Poussins'!$B$61:$AI$104,26+L$1,FALSE),0) -> 0 | M64: =IFERROR(VLOOKUP($B64,'Saisie Poussins'!$B$61:$AI$104,26+M$1,FALSE),0) -> 22.00000025 | N64: =IFERROR(VLOOKUP($B64,'Saisie Poussins'!$B$61:$AI$104,26+N$1,FALSE),0) -> 0 | O64: =IFERROR(VLOOKUP($B64,'Saisie Poussins'!$B$61:$AI$104,26+O$1,FALSE),0) -> 20.0000005 | P64: =IFERROR(VLOOKUP($B64,'Saisie Poussins'!$B$61:$AI$104,26+P$1,FALSE),0) -> 18.5000004 | Q64: 102.5000013
A65: =IFERROR(IF(A64+1<='Saisie Poussins'!$BF$12,A64+1,""),"") -> 4 | B65: =IFERROR(VLOOKUP(A65,'Saisie Poussins'!$BE$61:$BF$104,2,FALSE),"") -> 42900480124 | C65: =IFERROR(VLOOKUP($B65,'Saisie Poussins'!$B$13:$AI$56,1+C$1,FALSE),0) -> JOURNET | D65: =IFERROR(VLOOKUP($B65,'Saisie Poussins'!$B$13:$AI$56,1+D$1,FALSE),0) -> Paul | E65: =IFERROR(VLOOKUP($B65,'Saisie Poussins'!$B$13:$AI$56,1+E$1,FALSE),0) -> H | F65: =IFERROR(VLOOKUP($B65,'Saisie Poussins'!$B$13:$AI$56,1+F$1,FALSE),0) -> CC BELFORT MIOTTE | G65: =IFERROR(VLOOKUP($B65,'Saisie Poussins'!$B$13:$AI$56,1+G$1,FALSE),0) -> Poussin | H65: =IFERROR(VLOOKUP($B65,'Saisie Poussins'!$B$13:$AI$56,1+H$1,FALSE),0) -> 2 | I65: =IFERROR(VLOOKUP($B65,'Saisie Poussins'!$B$61:$AI$104,26+I$1,FALSE),0) -> 0 | J65: =IFERROR(VLOOKUP($B65,'Saisie Poussins'!$B$61:$AI$104,26+J$1,FALSE),0) -> 22.0000001 | K65: =IFERROR(VLOOKUP($B65,'Saisie Poussins'!$B$61:$AI$104,26+K$1,FALSE),0) -> 20.00000015 | L65: =IFERROR(VLOOKUP($B65,'Saisie Poussins'!$B$61:$AI$104,26+L$1,FALSE),0) -> 16.0000002 | M65: =IFERROR(VLOOKUP($B65,'Saisie Poussins'!$B$61:$AI$104,26+M$1,FALSE),0) -> 0 | N65: =IFERROR(VLOOKUP($B65,'Saisie Poussins'!$B$61:$AI$104,26+N$1,FALSE),0) -> 17.0000003 | O65: =IFERROR(VLOOKUP($B65,'Saisie Poussins'!$B$61:$AI$104,26+O$1,FALSE),0) -> 18.5000005 | P65: =IFERROR(VLOOKUP($B65,'Saisie Poussins'!$B$61:$AI$104,26+P$1,FALSE),0) -> 0 | Q65: 93.50000125
A66: =IFERROR(IF(A65+1<='Saisie Poussins'!$BF$12,A65+1,""),"") -> 5 | B66: =IFERROR(VLOOKUP(A66,'Saisie Poussins'!$BE$61:$BF$104,2,FALSE),"") -> 42250181212 | C66: =IFERROR(VLOOKUP($B66,'Saisie Poussins'!$B$13:$AI$56,1+C$1,FALSE),0) -> DEVILLERS | D66: =IFERROR(VLOOKUP($B66,'Saisie Poussins'!$B$13:$AI$56,1+D$1,FALSE),0) -> Louis | E66: =IFERROR(VLOOKUP($B66,'Saisie Poussins'!$B$13:$AI$56,1+E$1,FALSE),0) -> H | F66: =IFERROR(VLOOKUP($B66,'Saisie Poussins'!$B$13:$AI$56,1+F$1,FALSE),0) -> VC MORTEAU MONTBENOIT | G66: =IFERROR(VLOOKUP($B66,'Saisie Poussins'!$B$13:$AI$56,1+G$1,FALSE),0) -> Poussin | H66: =IFERROR(VLOOKUP($B66,'Saisie Poussins'!$B$13:$AI$56,1+H$1,FALSE),0) -> 1 | I66: =IFERROR(VLOOKUP($B66,'Saisie Poussins'!$B$61:$AI$104,26+I$1,FALSE),0) -> 0 | J66: =IFERROR(VLOOKUP($B66,'Saisie Poussins'!$B$61:$AI$104,26+J$1,FALSE),0) -> 17.0000001 | K66: =IFERROR(VLOOKUP($B66,'Saisie Poussins'!$B$61:$AI$104,26+K$1,FALSE),0) -> 18.50000015 | L66: =IFERROR(VLOOKUP($B66,'Saisie Poussins'!$B$61:$AI$104,26+L$1,FALSE),0) -> 0 | M66: =IFERROR(VLOOKUP($B66,'Saisie Poussins'!$B$61:$AI$104,26+M$1,FALSE),0) -> 0 | N66: =IFERROR(VLOOKUP($B66,'Saisie Poussins'!$B$61:$AI$104,26+N$1,FALSE),0) -> 15.0000003 | O66: =IFERROR(VLOOKUP($B66,'Saisie Poussins'!$B$61:$AI$104,26+O$1,FALSE),0) -> 16.0000005 | P66: =IFERROR(VLOOKUP($B66,'Saisie Poussins'!$B$61:$AI$104,26+P$1,FALSE),0) -> 15.0000004 | Q66: 81.50000145
A67: =IFERROR(IF(A66+1<='Saisie Poussins'!$BF$12,A66+1,""),"") -> 6 | B67: =IFERROR(VLOOKUP(A67,'Saisie Poussins'!$BE$61:$BF$104,2,FALSE),"") -> 42250181174 | C67: =IFERROR(VLOOKUP($B67,'Saisie Poussins'!$B$13:$AI$56,1+C$1,FALSE),0) -> DEVILLERS | D67: =IFERROR(VLOOKUP($B67,'Saisie Poussins'!$B$13:$AI$56,1+D$1,FALSE),0) -> Lylou | E67: =IFERROR(VLOOKUP($B67,'Saisie Poussins'!$B$13:$AI$56,1+E$1,FALSE),0) -> D | F67: =IFERROR(VLOOKUP($B67,'Saisie Poussins'!$B$13:$AI$56,1+F$1,FALSE),0) -> VC MORTEAU MONTBENOIT | G67: =IFERROR(VLOOKUP($B67,'Saisie Poussins'!$B$13:$AI$56,1+G$1,FALSE),0) -> Poussin | H67: =IFERROR(VLOOKUP($B67,'Saisie Poussins'!$B$13:$AI$56,1+H$1,FALSE),0) -> 2 | I67: =IFERROR(VLOOKUP($B67,'Saisie Poussins'!$B$61:$AI$104,26+I$1,FALSE),0) -> 0 | J67: =IFERROR(VLOOKUP($B67,'Saisie Poussins'!$B$61:$AI$104,26+J$1,FALSE),0) -> 20.0000001 | K67: =IFERROR(VLOOKUP($B67,'Saisie Poussins'!$B$61:$AI$104,26+K$1,FALSE),0) -> 16.00000015 | L67: =IFERROR(VLOOKUP($B67,'Saisie Poussins'!$B$61:$AI$104,26+L$1,FALSE),0) -> 14.0000002 | M67: =IFERROR(VLOOKUP($B67,'Saisie Poussins'!$B$61:$AI$104,26+M$1,FALSE),0) -> 0 | N67: =IFERROR(VLOOKUP($B67,'Saisie Poussins'!$B$61:$AI$104,26+N$1,FALSE),0) -> 14.0000003 | O67: =IFERROR(VLOOKUP($B67,'Saisie Poussins'!$B$61:$AI$104,26+O$1,FALSE),0) -> 0 | P67: =IFERROR(VLOOKUP($B67,'Saisie Poussins'!$B$61:$AI$104,26+P$1,FALSE),0) -> 14.0000004 | Q67: 78.00000115
A68: =IFERROR(IF(A67+1<='Saisie Poussins'!$BF$12,A67+1,""),"") -> 7 | B68: =IFERROR(VLOOKUP(A68,'Saisie Poussins'!$BE$61:$BF$104,2,FALSE),"") -> 42250181227 | C68: =IFERROR(VLOOKUP($B68,'Saisie Poussins'!$B$13:$AI$56,1+C$1,FALSE),0) -> DROZ VINCENT | D68: =IFERROR(VLOOKUP($B68,'Saisie Poussins'!$B$13:$AI$56,1+D$1,FALSE),0) -> Robin | E68: =IFERROR(VLOOKUP($B68,'Saisie Poussins'!$B$13:$AI$56,1+E$1,FALSE),0) -> H | F68: =IFERROR(VLOOKUP($B68,'Saisie Poussins'!$B$13:$AI$56,1+F$1,FALSE),0) -> VC MORTEAU MONTBENOIT | G68: =IFERROR(VLOOKUP($B68,'Saisie Poussins'!$B$13:$AI$56,1+G$1,FALSE),0) -> Poussin | H68: =IFERROR(VLOOKUP($B68,'Saisie Poussins'!$B$13:$AI$56,1+H$1,FALSE),0) -> 2 | I68: =IFERROR(VLOOKUP($B68,'Saisie Poussins'!$B$61:$AI$104,26+I$1,FALSE),0) -> 0 | J68: =IFERROR(VLOOKUP($B68,'Saisie Poussins'!$B$61:$AI$104,26+J$1,FALSE),0) -> 0 | K68: =IFERROR(VLOOKUP($B68,'Saisie Poussins'!$B$61:$AI$104,26+K$1,FALSE),0) -> 0 | L68: =IFERROR(VLOOKUP($B68,'Saisie Poussins'!$B$61:$AI$104,26+L$1,FALSE),0) -> 18.5000002 | M68: =IFERROR(VLOOKUP($B68,'Saisie Poussins'!$B$61:$AI$104,26+M$1,FALSE),0) -> 18.50000025 | N68: =IFERROR(VLOOKUP($B68,'Saisie Poussins'!$B$61:$AI$104,26+N$1,FALSE),0) -> 0 | O68: =IFERROR(VLOOKUP($B68,'Saisie Poussins'!$B$61:$AI$104,26+O$1,FALSE),0) -> 15.0000005 | P68: =IFERROR(VLOOKUP($B68,'Saisie Poussins'!$B$61:$AI$104,26+P$1,FALSE),0) -> 17.0000004 | Q68: 69.00000135
A69: =IFERROR(IF(A68+1<='Saisie Poussins'!$BF$12,A68+1,""),"") -> 8 | B69: =IFERROR(VLOOKUP(A69,'Saisie Poussins'!$BE$61:$BF$104,2,FALSE),"") -> 42700060276 | C69: =IFERROR(VLOOKUP($B69,'Saisie Poussins'!$B$13:$AI$56,1+C$1,FALSE),0) -> TAILHARDAT | D69: =IFERROR(VLOOKUP($B69,'Saisie Poussins'!$B$13:$AI$56,1+D$1,FALSE),0) -> Célestin | E69: =IFERROR(VLOOKUP($B69,'Saisie Poussins'!$B$13:$AI$56,1+E$1,FALSE),0) -> H | F69: =IFERROR(VLOOKUP($B69,'Saisie Poussins'!$B$13:$AI$56,1+F$1,FALSE),0) -> ROUE D`OR NOIDANS | G69: =IFERROR(VLOOKUP($B69,'Saisie Poussins'!$B$13:$AI$56,1+G$1,FALSE),0) -> Poussin | H69: =IFERROR(VLOOKUP($B69,'Saisie Poussins'!$B$13:$AI$56,1+H$1,FALSE),0) -> 1 | I69: =IFERROR(VLOOKUP($B69,'Saisie Poussins'!$B$61:$AI$104,26+I$1,FALSE),0) -> 18.50000005 | J69: =IFERROR(VLOOKUP($B69,'Saisie Poussins'!$B$61:$AI$104,26+J$1,FALSE),0) -> 0 | K69: =IFERROR(VLOOKUP($B69,'Saisie Poussins'!$B$61:$AI$104,26+K$1,FALSE),0) -> 0 | L69: =IFERROR(VLOOKUP($B69,'Saisie Poussins'!$B$61:$AI$104,26+L$1,FALSE),0) -> 22.0000002 | M69: =IFERROR(VLOOKUP($B69,'Saisie Poussins'!$B$61:$AI$104,26+M$1,FALSE),0) -> 15.00000025 | N69: =IFERROR(VLOOKUP($B69,'Saisie Poussins'!$B$61:$AI$104,26+N$1,FALSE),0) -> 0 | O69: =IFERROR(VLOOKUP($B69,'Saisie Poussins'!$B$61:$AI$104,26+O$1,FALSE),0) -> 9.0000005 | P69: =IFERROR(VLOOKUP($B69,'Saisie Poussins'!$B$61:$AI$104,26+P$1,FALSE),0) -> 0 | Q69: 64.500001
A70: =IFERROR(IF(A69+1<='Saisie Poussins'!$BF$12,A69+1,""),"") -> 9 | B70: =IFERROR(VLOOKUP(A70,'Saisie Poussins'!$BE$61:$BF$104,2,FALSE),"") -> 42700680166 | C70: =IFERROR(VLOOKUP($B70,'Saisie Poussins'!$B$13:$AI$56,1+C$1,FALSE),0) -> ANDRE | D70: =IFERROR(VLOOKUP($B70,'Saisie Poussins'!$B$13:$AI$56,1+D$1,FALSE),0) -> Louane | E70: =IFERROR(VLOOKUP($B70,'Saisie Poussins'!$B$13:$AI$56,1+E$1,FALSE),0) -> D | F70: =IFERROR(VLOOKUP($B70,'Saisie Poussins'!$B$13:$AI$56,1+F$1,FALSE),0) -> E.C. LUXEUIL VOSGES SAONO | G70: =IFERROR(VLOOKUP($B70,'Saisie Poussins'!$B$13:$AI$56,1+G$1,FALSE),0) -> Poussin | H70: =IFERROR(VLOOKUP($B70,'Saisie Poussins'!$B$13:$AI$56,1+H$1,FALSE),0) -> 2 | I70: =IFERROR(VLOOKUP($B70,'Saisie Poussins'!$B$61:$AI$104,26+I$1,FALSE),0) -> 14.00000005 | J70: =IFERROR(VLOOKUP($B70,'Saisie Poussins'!$B$61:$AI$104,26+J$1,FALSE),0) -> 10.5000001 | K70: =IFERROR(VLOOKUP($B70,'Saisie Poussins'!$B$61:$AI$104,26+K$1,FALSE),0) -> 15.00000015 | L70: =IFERROR(VLOOKUP($B70,'Saisie Poussins'!$B$61:$AI$104,26+L$1,FALSE),0) -> 0 | M70: =IFERROR(VLOOKUP($B70,'Saisie Poussins'!$B$61:$AI$104,26+M$1,FALSE),0) -> 0 | N70: =IFERROR(VLOOKUP($B70,'Saisie Poussins'!$B$61:$AI$104,26+N$1,FALSE),0) -> 0 | O70: =IFERROR(VLOOKUP($B70,'Saisie Poussins'!$B$61:$AI$104,26+O$1,FALSE),0) -> 11.0000005 | P70: =IFERROR(VLOOKUP($B70,'Saisie Poussins'!$B$61:$AI$104,26+P$1,FALSE),0) -> 13.0000004 | Q70: 63.5000012
A71: =IFERROR(IF(A70+1<='Saisie Poussins'!$BF$12,A70+1,""),"") -> 10 | B71: =IFERROR(VLOOKUP(A71,'Saisie Poussins'!$BE$61:$BF$104,2,FALSE),"") -> 42390960384 | C71: =IFERROR(VLOOKUP($B71,'Saisie Poussins'!$B$13:$AI$56,1+C$1,FALSE),0) -> BUGNET | D71: =IFERROR(VLOOKUP($B71,'Saisie Poussins'!$B$13:$AI$56,1+D$1,FALSE),0) -> Lucas | E71: =IFERROR(VLOOKUP($B71,'Saisie Poussins'!$B$13:$AI$56,1+E$1,FALSE),0) -> H | F71: =IFERROR(VLOOKUP($B71,'Saisie Poussins'!$B$13:$AI$56,1+F$1,FALSE),0) -> JURA CYCLISME PAYS DU REVERMONT | G71: =IFERROR(VLOOKUP($B71,'Saisie Poussins'!$B$13:$AI$56,1+G$1,FALSE),0) -> Poussin | H71: =IFERROR(VLOOKUP($B71,'Saisie Poussins'!$B$13:$AI$56,1+H$1,FALSE),0) -> 2 | I71: =IFERROR(VLOOKUP($B71,'Saisie Poussins'!$B$61:$AI$104,26+I$1,FALSE),0) -> 0 | J71: =IFERROR(VLOOKUP($B71,'Saisie Poussins'!$B$61:$AI$104,26+J$1,FALSE),0) -> 0 | K71: =IFERROR(VLOOKUP($B71,'Saisie Poussins'!$B$61:$AI$104,26+K$1,FALSE),0) -> 0 | L71: =IFERROR(VLOOKUP($B71,'Saisie Poussins'!$B$61:$AI$104,26+L$1,FALSE),0) -> 0 | M71: =IFERROR(VLOOKUP($B71,'Saisie Poussins'!$B$61:$AI$104,26+M$1,FALSE),0) -> 17.00000025 | N71: =IFERROR(VLOOKUP($B71,'Saisie Poussins'!$B$61:$AI$104,26+N$1,FALSE),0) -> 13.0000003 | O71: =IFERROR(VLOOKUP($B71,'Saisie Poussins'!$B$61:$AI$104,26+O$1,FALSE),0) -> 17.0000005 | P71: =IFERROR(VLOOKUP($B71,'Saisie Poussins'!$B$61:$AI$104,26+P$1,FALSE),0) -> 16.0000004 | Q71: 63.00000145
A72: =IFERROR(IF(A71+1<='Saisie Poussins'!$BF$12,A71+1,""),"") -> 11 | B72: =IFERROR(VLOOKUP(A72,'Saisie Poussins'!$BE$61:$BF$104,2,FALSE),"") -> 42700060248 | C72: =IFERROR(VLOOKUP($B72,'Saisie Poussins'!$B$13:$AI$56,1+C$1,FALSE),0) -> BOISSON | D72: =IFERROR(VLOOKUP($B72,'Saisie Poussins'!$B$13:$AI$56,1+D$1,FALSE),0) -> Marius | E72: =IFERROR(VLOOKUP($B72,'Saisie Poussins'!$B$13:$AI$56,1+E$1,FALSE),0) -> H | F72: =IFERROR(VLOOKUP($B72,'Saisie Poussins'!$B$13:$AI$56,1+F$1,FALSE),0) -> ROUE D`OR NOIDANS | G72: =IFERROR(VLOOKUP($B72,'Saisie Poussins'!$B$13:$AI$56,1+G$1,FALSE),0) -> Poussin | H72: =IFERROR(VLOOKUP($B72,'Saisie Poussins'!$B$13:$AI$56,1+H$1,FALSE),0) -> 1 | I72: =IFERROR(VLOOKUP($B72,'Saisie Poussins'!$B$61:$AI$104,26+I$1,FALSE),0) -> 15.00000005 | J72: =IFERROR(VLOOKUP($B72,'Saisie Poussins'!$B$61:$AI$104,26+J$1,FALSE),0) -> 18.5000001 | K72: =IFERROR(VLOOKUP($B72,'Saisie Poussins'!$B$61:$AI$104,26+K$1,FALSE),0) -> 0 | L72: =IFERROR(VLOOKUP($B72,'Saisie Poussins'!$B$61:$AI$104,26+L$1,FALSE),0) -> 15.0000002 | M72: =IFERROR(VLOOKUP($B72,'Saisie Poussins'!$B$61:$AI$104,26+M$1,FALSE),0) -> 0 | N72: =IFERROR(VLOOKUP($B72,'Saisie Poussins'!$B$61:$AI$104,26+N$1,FALSE),0) -> 0 | O72: =IFERROR(VLOOKUP($B72,'Saisie Poussins'!$B$61:$AI$104,26+O$1,FALSE),0) -> 10.0000005 | P72: =IFERROR(VLOOKUP($B72,'Saisie Poussins'!$B$61:$AI$104,26+P$1,FALSE),0) -> 0 | Q72: 58.50000085
A73: =IFERROR(IF(A72+1<='Saisie Poussins'!$BF$12,A72+1,""),"") -> 12 | B73: =IFERROR(VLOOKUP(A73,'Saisie Poussins'!$BE$61:$BF$104,2,FALSE),"") -> 42900360346 | C73: =IFERROR(VLOOKUP($B73,'Saisie Poussins'!$B$13:$AI$56,1+C$1,FALSE),0) -> STADLER | D73: =IFERROR(VLOOKUP($B73,'Saisie Poussins'!$B$13:$AI$56,1+D$1,FALSE),0) -> Gwennaelle | E73: =IFERROR(VLOOKUP($B73,'Saisie Poussins'!$B$13:$AI$56,1+E$1,FALSE),0) -> D | F73: =IFERROR(VLOOKUP($B73,'Saisie Poussins'!$B$13:$AI$56,1+F$1,FALSE),0) -> A.C.T. BELFORT | G73: =IFERROR(VLOOKUP($B73,'Saisie Poussins'!$B$13:$AI$56,1+G$1,FALSE),0) -> Poussin | H73: =IFERROR(VLOOKUP($B73,'Saisie Poussins'!$B$13:$AI$56,1+H$1,FALSE),0) -> 1 | I73: =IFERROR(VLOOKUP($B73,'Saisie Poussins'!$B$61:$AI$104,26+I$1,FALSE),0) -> 10.50000005 | J73: =IFERROR(VLOOKUP($B73,'Saisie Poussins'!$B$61:$AI$104,26+J$1,FALSE),0) -> 12.0000001 | K73: =IFERROR(VLOOKUP($B73,'Saisie Poussins'!$B$61:$AI$104,26+K$1,FALSE),0) -> 12.00000015 | L73: =IFERROR(VLOOKUP($B73,'Saisie Poussins'!$B$61:$AI$104,26+L$1,FALSE),0) -> 0 | M73: =IFERROR(VLOOKUP($B73,'Saisie Poussins'!$B$61:$AI$104,26+M$1,FALSE),0) -> 0 | N73: =IFERROR(VLOOKUP($B73,'Saisie Poussins'!$B$61:$AI$104,26+N$1,FALSE),0) -> 0 | O73: =IFERROR(VLOOKUP($B73,'Saisie Poussins'!$B$61:$AI$104,26+O$1,FALSE),0) -> 6.0000005 | P73: =IFERROR(VLOOKUP($B73,'Saisie Poussins'!$B$61:$AI$104,26+P$1,FALSE),0) -> 9.0000004 | Q73: 49.5000012
A74: =IFERROR(IF(A73+1<='Saisie Poussins'!$BF$12,A73+1,""),"") -> 13 | B74: =IFERROR(VLOOKUP(A74,'Saisie Poussins'!$BE$61:$BF$104,2,FALSE),"") -> 42700680169 | C74: =IFERROR(VLOOKUP($B74,'Saisie Poussins'!$B$13:$AI$56,1+C$1,FALSE),0) -> BRY | D74: =IFERROR(VLOOKUP($B74,'Saisie Poussins'!$B$13:$AI$56,1+D$1,FALSE),0) -> Eliott | E74: =IFERROR(VLOOKUP($B74,'Saisie Poussins'!$B$13:$AI$56,1+E$1,FALSE),0) -> H | F74: =IFERROR(VLOOKUP($B74,'Saisie Poussins'!$B$13:$AI$56,1+F$1,FALSE),0) -> E.C. LUXEUIL VOSGES SAONO | G74: =IFERROR(VLOOKUP($B74,'Saisie Poussins'!$B$13:$AI$56,1+G$1,FALSE),0) -> Poussin | H74: =IFERROR(VLOOKUP($B74,'Saisie Poussins'!$B$13:$AI$56,1+H$1,FALSE),0) -> 1 | I74: =IFERROR(VLOOKUP($B74,'Saisie Poussins'!$B$61:$AI$104,26+I$1,FALSE),0) -> 17.00000005 | J74: =IFERROR(VLOOKUP($B74,'Saisie Poussins'!$B$61:$AI$104,26+J$1,FALSE),0) -> 0 | K74: =IFERROR(VLOOKUP($B74,'Saisie Poussins'!$B$61:$AI$104,26+K$1,FALSE),0) -> 17.00000015 | L74: =IFERROR(VLOOKUP($B74,'Saisie Poussins'!$B$61:$AI$104,26+L$1,FALSE),0) -> 0 | M74: =IFERROR(VLOOKUP($B74,'Saisie Poussins'!$B$61:$AI$104,26+M$1,FALSE),0) -> 0 | N74: =IFERROR(VLOOKUP($B74,'Saisie Poussins'!$B$61:$AI$104,26+N$1,FALSE),0) -> 0 | O74: =IFERROR(VLOOKUP($B74,'Saisie Poussins'!$B$61:$AI$104,26+O$1,FALSE),0) -> 14.0000005 | P74: =IFERROR(VLOOKUP($B74,'Saisie Poussins'!$B$61:$AI$104,26+P$1,FALSE),0) -> 0 | Q74: 48.0000007
A75: =IFERROR(IF(A74+1<='Saisie Poussins'!$BF$12,A74+1,""),"") -> 14 | B75: =IFERROR(VLOOKUP(A75,'Saisie Poussins'!$BE$61:$BF$104,2,FALSE),"") -> 42700680157 | C75: =IFERROR(VLOOKUP($B75,'Saisie Poussins'!$B$13:$AI$56,1+C$1,FALSE),0) -> BARBASON | D75: =IFERROR(VLOOKUP($B75,'Saisie Poussins'!$B$13:$AI$56,1+D$1,FALSE),0) -> Jean | E75: =IFERROR(VLOOKUP($B75,'Saisie Poussins'!$B$13:$AI$56,1+E$1,FALSE),0) -> H | F75: =IFERROR(VLOOKUP($B75,'Saisie Poussins'!$B$13:$AI$56,1+F$1,FALSE),0) -> E.C. LUXEUIL VOSGES SAONO | G75: =IFERROR(VLOOKUP($B75,'Saisie Poussins'!$B$13:$AI$56,1+G$1,FALSE),0) -> Poussin | H75: =IFERROR(VLOOKUP($B75,'Saisie Poussins'!$B$13:$AI$56,1+H$1,FALSE),0) -> 2 | I75: =IFERROR(VLOOKUP($B75,'Saisie Poussins'!$B$61:$AI$104,26+I$1,FALSE),0) -> 12.00000005 | J75: =IFERROR(VLOOKUP($B75,'Saisie Poussins'!$B$61:$AI$104,26+J$1,FALSE),0) -> 17.0000001 | K75: =IFERROR(VLOOKUP($B75,'Saisie Poussins'!$B$61:$AI$104,26+K$1,FALSE),0) -> 0 | L75: =IFERROR(VLOOKUP($B75,'Saisie Poussins'!$B$61:$AI$104,26+L$1,FALSE),0) -> 0 | M75: =IFERROR(VLOOKUP($B75,'Saisie Poussins'!$B$61:$AI$104,26+M$1,FALSE),0) -> 0 | N75: =IFERROR(VLOOKUP($B75,'Saisie Poussins'!$B$61:$AI$104,26+N$1,FALSE),0) -> 0 | O75: =IFERROR(VLOOKUP($B75,'Saisie Poussins'!$B$61:$AI$104,26+O$1,FALSE),0) -> 13.0000005 | P75: =IFERROR(VLOOKUP($B75,'Saisie Poussins'!$B$61:$AI$104,26+P$1,FALSE),0) -> 0 | Q75: 42.00000065
A76: =IFERROR(IF(A75+1<='Saisie Poussins'!$BF$12,A75+1,""),"") -> 15 | B76: =IFERROR(VLOOKUP(A76,'Saisie Poussins'!$BE$61:$BF$104,2,FALSE),"") -> 42900480174 | C76: =IFERROR(VLOOKUP($B76,'Saisie Poussins'!$B$13:$AI$56,1+C$1,FALSE),0) -> FIEUX | D76: =IFERROR(VLOOKUP($B76,'Saisie Poussins'!$B$13:$AI$56,1+D$1,FALSE),0) -> Paul | E76: =IFERROR(VLOOKUP($B76,'Saisie Poussins'!$B$13:$AI$56,1+E$1,FALSE),0) -> H | F76: =IFERROR(VLOOKUP($B76,'Saisie Poussins'!$B$13:$AI$56,1+F$1,FALSE),0) -> CC BELFORT MIOTTE | G76: =IFERROR(VLOOKUP($B76,'Saisie Poussins'!$B$13:$AI$56,1+G$1,FALSE),0) -> Poussin | H76: =IFERROR(VLOOKUP($B76,'Saisie Poussins'!$B$13:$AI$56,1+H$1,FALSE),0) -> 2 | I76: =IFERROR(VLOOKUP($B76,'Saisie Poussins'!$B$61:$AI$104,26+I$1,FALSE),0) -> 0 | J76: =IFERROR(VLOOKUP($B76,'Saisie Poussins'!$B$61:$AI$104,26+J$1,FALSE),0) -> 14.0000001 | K76: =IFERROR(VLOOKUP($B76,'Saisie Poussins'!$B$61:$AI$104,26+K$1,FALSE),0) -> 14.00000015 | L76: =IFERROR(VLOOKUP($B76,'Saisie Poussins'!$B$61:$AI$104,26+L$1,FALSE),0) -> 12.0000002 | M76: =IFERROR(VLOOKUP($B76,'Saisie Poussins'!$B$61:$AI$104,26+M$1,FALSE),0) -> 0 | N76: =IFERROR(VLOOKUP($B76,'Saisie Poussins'!$B$61:$AI$104,26+N$1,FALSE),0) -> 0 | O76: =IFERROR(VLOOKUP($B76,'Saisie Poussins'!$B$61:$AI$104,26+O$1,FALSE),0) -> 0 | P76: =IFERROR(VLOOKUP($B76,'Saisie Poussins'!$B$61:$AI$104,26+P$1,FALSE),0) -> 0 | Q76: 40.00000045
A77: =IFERROR(IF(A76+1<='Saisie Poussins'!$BF$12,A76+1,""),"") -> 16 | B77: =IFERROR(VLOOKUP(A77,'Saisie Poussins'!$BE$61:$BF$104,2,FALSE),"") -> 42250010005 | C77: =IFERROR(VLOOKUP($B77,'Saisie Poussins'!$B$13:$AI$56,1+C$1,FALSE),0) -> CLEMENT | D77: =IFERROR(VLOOKUP($B77,'Saisie Poussins'!$B$13:$AI$56,1+D$1,FALSE),0) -> Marius | E77: =IFERROR(VLOOKUP($B77,'Saisie Poussins'!$B$13:$AI$56,1+E$1,FALSE),0) -> H | F77: =IFERROR(VLOOKUP($B77,'Saisie Poussins'!$B$13:$AI$56,1+F$1,FALSE),0) -> TEAM COBRA CYCLING | G77: =IFERROR(VLOOKUP($B77,'Saisie Poussins'!$B$13:$AI$56,1+G$1,FALSE),0) -> Poussin | H77: =IFERROR(VLOOKUP($B77,'Saisie Poussins'!$B$13:$AI$56,1+H$1,FALSE),0) -> 1 | I77: =IFERROR(VLOOKUP($B77,'Saisie Poussins'!$B$61:$AI$104,26+I$1,FALSE),0) -> 0 | J77: =IFERROR(VLOOKUP($B77,'Saisie Poussins'!$B$61:$AI$104,26+J$1,FALSE),0) -> 0 | K77: =IFERROR(VLOOKUP($B77,'Saisie Poussins'!$B$61:$AI$104,26+K$1,FALSE),0) -> 0 | L77: =IFERROR(VLOOKUP($B77,'Saisie Poussins'!$B$61:$AI$104,26+L$1,FALSE),0) -> 0 | M77: =IFERROR(VLOOKUP($B77,'Saisie Poussins'!$B$61:$AI$104,26+M$1,FALSE),0) -> 0 | N77: =IFERROR(VLOOKUP($B77,'Saisie Poussins'!$B$61:$AI$104,26+N$1,FALSE),0) -> 16.0000003 | O77: =IFERROR(VLOOKUP($B77,'Saisie Poussins'!$B$61:$AI$104,26+O$1,FALSE),0) -> 0 | P77: =IFERROR(VLOOKUP($B77,'Saisie Poussins'!$B$61:$AI$104,26+P$1,FALSE),0) -> 20.0000004 | Q77: 36.0000007
A78: =IFERROR(IF(A77+1<='Saisie Poussins'!$BF$12,A77+1,""),"") -> 17 | B78: =IFERROR(VLOOKUP(A78,'Saisie Poussins'!$BE$61:$BF$104,2,FALSE),"") -> 42250510156 | C78: =IFERROR(VLOOKUP($B78,'Saisie Poussins'!$B$13:$AI$56,1+C$1,FALSE),0) -> COUR | D78: =IFERROR(VLOOKUP($B78,'Saisie Poussins'!$B$13:$AI$56,1+D$1,FALSE),0) -> ANAEL | E78: =IFERROR(VLOOKUP($B78,'Saisie Poussins'!$B$13:$AI$56,1+E$1,FALSE),0) -> H | F78: =IFERROR(VLOOKUP($B78,'Saisie Poussins'!$B$13:$AI$56,1+F$1,FALSE),0) -> BAUME LES DAMES | G78: =IFERROR(VLOOKUP($B78,'Saisie Poussins'!$B$13:$AI$56,1+G$1,FALSE),0) -> Poussin | H78: =IFERROR(VLOOKUP($B78,'Saisie Poussins'!$B$13:$AI$56,1+H$1,FALSE),0) -> 2 | I78: =IFERROR(VLOOKUP($B78,'Saisie Poussins'!$B$61:$AI$104,26+I$1,FALSE),0) -> 0 | J78: =IFERROR(VLOOKUP($B78,'Saisie Poussins'!$B$61:$AI$104,26+J$1,FALSE),0) -> 0 | K78: =IFERROR(VLOOKUP($B78,'Saisie Poussins'!$B$61:$AI$104,26+K$1,FALSE),0) -> 0 | L78: =IFERROR(VLOOKUP($B78,'Saisie Poussins'!$B$61:$AI$104,26+L$1,FALSE),0) -> 20.0000002 | M78: =IFERROR(VLOOKUP($B78,'Saisie Poussins'!$B$61:$AI$104,26+M$1,FALSE),0) -> 16.00000025 | N78: =IFERROR(VLOOKUP($B78,'Saisie Poussins'!$B$61:$AI$104,26+N$1,FALSE),0) -> 0 | O78: =IFERROR(VLOOKUP($B78,'Saisie Poussins'!$B$61:$AI$104,26+O$1,FALSE),0) -> 0 | P78: =IFERROR(VLOOKUP($B78,'Saisie Poussins'!$B$61:$AI$104,26+P$1,FALSE),0) -> 0 | Q78: 36.00000045
A79: =IFERROR(IF(A78+1<='Saisie Poussins'!$BF$12,A78+1,""),"") -> 18 | B79: =IFERROR(VLOOKUP(A79,'Saisie Poussins'!$BE$61:$BF$104,2,FALSE),"") -> 42700680168 | C79: =IFERROR(VLOOKUP($B79,'Saisie Poussins'!$B$13:$AI$56,1+C$1,FALSE),0) -> CLERC | D79: =IFERROR(VLOOKUP($B79,'Saisie Poussins'!$B$13:$AI$56,1+D$1,FALSE),0) -> Zoé | E79: =IFERROR(VLOOKUP($B79,'Saisie Poussins'!$B$13:$AI$56,1+E$1,FALSE),0) -> H | F79: =IFERROR(VLOOKUP($B79,'Saisie Poussins'!$B$13:$AI$56,1+F$1,FALSE),0) -> E.C. LUXEUIL VOSGES SAONO | G79: =IFERROR(VLOOKUP($B79,'Saisie Poussins'!$B$13:$AI$56,1+G$1,FALSE),0) -> Poussin | H79: =IFERROR(VLOOKUP($B79,'Saisie Poussins'!$B$13:$AI$56,1+H$1,FALSE),0) -> 2 | I79: =IFERROR(VLOOKUP($B79,'Saisie Poussins'!$B$61:$AI$104,26+I$1,FALSE),0) -> 10.00000005 | J79: =IFERROR(VLOOKUP($B79,'Saisie Poussins'!$B$61:$AI$104,26+J$1,FALSE),0) -> 0 | K79: =IFERROR(VLOOKUP($B79,'Saisie Poussins'!$B$61:$AI$104,26+K$1,FALSE),0) -> 0 | L79: =IFERROR(VLOOKUP($B79,'Saisie Poussins'!$B$61:$AI$104,26+L$1,FALSE),0) -> 0 | M79: =IFERROR(VLOOKUP($B79,'Saisie Poussins'!$B$61:$AI$104,26+M$1,FALSE),0) -> 0 | N79: =IFERROR(VLOOKUP($B79,'Saisie Poussins'!$B$61:$AI$104,26+N$1,FALSE),0) -> 0 | O79: =IFERROR(VLOOKUP($B79,'Saisie Poussins'!$B$61:$AI$104,26+O$1,FALSE),0) -> 7.5000005 | P79: =IFERROR(VLOOKUP($B79,'Saisie Poussins'!$B$61:$AI$104,26+P$1,FALSE),0) -> 10.0000004 | Q79: 27.50000095
A80: =IFERROR(IF(A79+1<='Saisie Poussins'!$BF$12,A79+1,""),"") -> 19 | B80: =IFERROR(VLOOKUP(A80,'Saisie Poussins'!$BE$61:$BF$104,2,FALSE),"") -> 41690260501 | C80: =IFERROR(VLOOKUP($B80,'Saisie Poussins'!$B$13:$AI$56,1+C$1,FALSE),0) -> JACQUES | D80: =IFERROR(VLOOKUP($B80,'Saisie Poussins'!$B$13:$AI$56,1+D$1,FALSE),0) -> Albert | E80: =IFERROR(VLOOKUP($B80,'Saisie Poussins'!$B$13:$AI$56,1+E$1,FALSE),0) -> H | F80: =IFERROR(VLOOKUP($B80,'Saisie Poussins'!$B$13:$AI$56,1+F$1,FALSE),0) -> LYON SPRINT EVOLUTION | G80: =IFERROR(VLOOKUP($B80,'Saisie Poussins'!$B$13:$AI$56,1+G$1,FALSE),0) -> Poussin | H80: =IFERROR(VLOOKUP($B80,'Saisie Poussins'!$B$13:$AI$56,1+H$1,FALSE),0) -> 2 | I80: =IFERROR(VLOOKUP($B80,'Saisie Poussins'!$B$61:$AI$104,26+I$1,FALSE),0) -> 0 | J80: =IFERROR(VLOOKUP($B80,'Saisie Poussins'!$B$61:$AI$104,26+J$1,FALSE),0) -> 0 | K80: =IFERROR(VLOOKUP($B80,'Saisie Poussins'!$B$61:$AI$104,26+K$1,FALSE),0) -> 0 | L80: =IFERROR(VLOOKUP($B80,'Saisie Poussins'!$B$61:$AI$104,26+L$1,FALSE),0) -> 0 | M80: =IFERROR(VLOOKUP($B80,'Saisie Poussins'!$B$61:$AI$104,26+M$1,FALSE),0) -> 0 | N80: =IFERROR(VLOOKUP($B80,'Saisie Poussins'!$B$61:$AI$104,26+N$1,FALSE),0) -> 25.0000003 | O80: =IFERROR(VLOOKUP($B80,'Saisie Poussins'!$B$61:$AI$104,26+O$1,FALSE),0) -> 0 | P80: =IFERROR(VLOOKUP($B80,'Saisie Poussins'!$B$61:$AI$104,26+P$1,FALSE),0) -> 0 | Q80: 25.0000003
A81: =IFERROR(IF(A80+1<='Saisie Poussins'!$BF$12,A80+1,""),"") -> 20 | B81: =IFERROR(VLOOKUP(A81,'Saisie Poussins'!$BE$61:$BF$104,2,FALSE),"") -> 42250120377 | C81: =IFERROR(VLOOKUP($B81,'Saisie Poussins'!$B$13:$AI$56,1+C$1,FALSE),0) -> GAUROIS | D81: =IFERROR(VLOOKUP($B81,'Saisie Poussins'!$B$13:$AI$56,1+D$1,FALSE),0) -> Matthias | E81: =IFERROR(VLOOKUP($B81,'Saisie Poussins'!$B$13:$AI$56,1+E$1,FALSE),0) -> H | F81: =IFERROR(VLOOKUP($B81,'Saisie Poussins'!$B$13:$AI$56,1+F$1,FALSE),0) -> V.C.DE MONTBELIARD | G81: =IFERROR(VLOOKUP($B81,'Saisie Poussins'!$B$13:$AI$56,1+G$1,FALSE),0) -> Poussin | H81: =IFERROR(VLOOKUP($B81,'Saisie Poussins'!$B$13:$AI$56,1+H$1,FALSE),0) -> 2 | I81: =IFERROR(VLOOKUP($B81,'Saisie Poussins'!$B$61:$AI$104,26+I$1,FALSE),0) -> 0 | J81: =IFERROR(VLOOKUP($B81,'Saisie Poussins'!$B$61:$AI$104,26+J$1,FALSE),0) -> 13.0000001 | K81: =IFERROR(VLOOKUP($B81,'Saisie Poussins'!$B$61:$AI$104,26+K$1,FALSE),0) -> 0 | L81: =IFERROR(VLOOKUP($B81,'Saisie Poussins'!$B$61:$AI$104,26+L$1,FALSE),0) -> 0 | M81: =IFERROR(VLOOKUP($B81,'Saisie Poussins'!$B$61:$AI$104,26+M$1,FALSE),0) -> 0 | N81: =IFERROR(VLOOKUP($B81,'Saisie Poussins'!$B$61:$AI$104,26+N$1,FALSE),0) -> 0 | O81: =IFERROR(VLOOKUP($B81,'Saisie Poussins'!$B$61:$AI$104,26+O$1,FALSE),0) -> 7.0000005 | P81: =IFERROR(VLOOKUP($B81,'Saisie Poussins'!$B$61:$AI$104,26+P$1,FALSE),0) -> 0 | Q81: 20.0000006
A82: =IFERROR(IF(A81+1<='Saisie Poussins'!$BF$12,A81+1,""),"") -> 21 | B82: =IFERROR(VLOOKUP(A82,'Saisie Poussins'!$BE$61:$BF$104,2,FALSE),"") -> 42250120353 | C82: =IFERROR(VLOOKUP($B82,'Saisie Poussins'!$B$13:$AI$56,1+C$1,FALSE),0) -> PLANTEVIN BIRON | D82: =IFERROR(VLOOKUP($B82,'Saisie Poussins'!$B$13:$AI$56,1+D$1,FALSE),0) -> Antonia | E82: =IFERROR(VLOOKUP($B82,'Saisie Poussins'!$B$13:$AI$56,1+E$1,FALSE),0) -> D | F82: =IFERROR(VLOOKUP($B82,'Saisie Poussins'!$B$13:$AI$56,1+F$1,FALSE),0) -> V.C.DE MONTBELIARD | G82: =IFERROR(VLOOKUP($B82,'Saisie Poussins'!$B$13:$AI$56,1+G$1,FALSE),0) -> Poussin | H82: =IFERROR(VLOOKUP($B82,'Saisie Poussins'!$B$13:$AI$56,1+H$1,FALSE),0) -> 1 | I82: =IFERROR(VLOOKUP($B82,'Saisie Poussins'!$B$61:$AI$104,26+I$1,FALSE),0) -> 0 | J82: =IFERROR(VLOOKUP($B82,'Saisie Poussins'!$B$61:$AI$104,26+J$1,FALSE),0) -> 0 | K82: =IFERROR(VLOOKUP($B82,'Saisie Poussins'!$B$61:$AI$104,26+K$1,FALSE),0) -> 0 | L82: =IFERROR(VLOOKUP($B82,'Saisie Poussins'!$B$61:$AI$104,26+L$1,FALSE),0) -> 0 | M82: =IFERROR(VLOOKUP($B82,'Saisie Poussins'!$B$61:$AI$104,26+M$1,FALSE),0) -> 0 | N82: =IFERROR(VLOOKUP($B82,'Saisie Poussins'!$B$61:$AI$104,26+N$1,FALSE),0) -> 0 | O82: =IFERROR(VLOOKUP($B82,'Saisie Poussins'!$B$61:$AI$104,26+O$1,FALSE),0) -> 6.5000005 | P82: =IFERROR(VLOOKUP($B82,'Saisie Poussins'!$B$61:$AI$104,26+P$1,FALSE),0) -> 9.5000004 | Q82: 16.0000009
A83: =IFERROR(IF(A82+1<='Saisie Poussins'!$BF$12,A82+1,""),"") -> 22 | B83: =IFERROR(VLOOKUP(A83,'Saisie Poussins'!$BE$61:$BF$104,2,FALSE),"") -> 42900480176 | C83: =IFERROR(VLOOKUP($B83,'Saisie Poussins'!$B$13:$AI$56,1+C$1,FALSE),0) -> ALLIO | D83: =IFERROR(VLOOKUP($B83,'Saisie Poussins'!$B$13:$AI$56,1+D$1,FALSE),0) -> Alice | E83: =IFERROR(VLOOKUP($B83,'Saisie Poussins'!$B$13:$AI$56,1+E$1,FALSE),0) -> D | F83: =IFERROR(VLOOKUP($B83,'Saisie Poussins'!$B$13:$AI$56,1+F$1,FALSE),0) -> CC BELFORT MIOTTE | G83: =IFERROR(VLOOKUP($B83,'Saisie Poussins'!$B$13:$AI$56,1+G$1,FALSE),0) -> Poussin | H83: =IFERROR(VLOOKUP($B83,'Saisie Poussins'!$B$13:$AI$56,1+H$1,FALSE),0) -> 1 | I83: =IFERROR(VLOOKUP($B83,'Saisie Poussins'!$B$61:$AI$104,26+I$1,FALSE),0) -> 0 | J83: =IFERROR(VLOOKUP($B83,'Saisie Poussins'!$B$61:$AI$104,26+J$1,FALSE),0) -> 0 | K83: =IFERROR(VLOOKUP($B83,'Saisie Poussins'!$B$61:$AI$104,26+K$1,FALSE),0) -> 13.00000015 | L83: =IFERROR(VLOOKUP($B83,'Saisie Poussins'!$B$61:$AI$104,26+L$1,FALSE),0) -> 0 | M83: =IFERROR(VLOOKUP($B83,'Saisie Poussins'!$B$61:$AI$104,26+M$1,FALSE),0) -> 0 | N83: =IFERROR(VLOOKUP($B83,'Saisie Poussins'!$B$61:$AI$104,26+N$1,FALSE),0) -> 0 | O83: =IFERROR(VLOOKUP($B83,'Saisie Poussins'!$B$61:$AI$104,26+O$1,FALSE),0) -> 0 | P83: =IFERROR(VLOOKUP($B83,'Saisie Poussins'!$B$61:$AI$104,26+P$1,FALSE),0) -> 0 | Q83: 13.00000015
A84: =IFERROR(IF(A83+1<='Saisie Poussins'!$BF$12,A83+1,""),"") -> 23 | B84: =IFERROR(VLOOKUP(A84,'Saisie Poussins'!$BE$61:$BF$104,2,FALSE),"") -> 42390960404 | C84: =IFERROR(VLOOKUP($B84,'Saisie Poussins'!$B$13:$AI$56,1+C$1,FALSE),0) -> BLECHSCHMIDT | D84: =IFERROR(VLOOKUP($B84,'Saisie Poussins'!$B$13:$AI$56,1+D$1,FALSE),0) -> Antoine | E84: =IFERROR(VLOOKUP($B84,'Saisie Poussins'!$B$13:$AI$56,1+E$1,FALSE),0) -> H | F84: =IFERROR(VLOOKUP($B84,'Saisie Poussins'!$B$13:$AI$56,1+F$1,FALSE),0) -> JURA CYCLISME PAYS DU REVERMONT | G84: =IFERROR(VLOOKUP($B84,'Saisie Poussins'!$B$13:$AI$56,1+G$1,FALSE),0) -> Poussin | H84: =IFERROR(VLOOKUP($B84,'Saisie Poussins'!$B$13:$AI$56,1+H$1,FALSE),0) -> 1 | I84: =IFERROR(VLOOKUP($B84,'Saisie Poussins'!$B$61:$AI$104,26+I$1,FALSE),0) -> 0 | J84: =IFERROR(VLOOKUP($B84,'Saisie Poussins'!$B$61:$AI$104,26+J$1,FALSE),0) -> 0 | K84: =IFERROR(VLOOKUP($B84,'Saisie Poussins'!$B$61:$AI$104,26+K$1,FALSE),0) -> 0 | L84: =IFERROR(VLOOKUP($B84,'Saisie Poussins'!$B$61:$AI$104,26+L$1,FALSE),0) -> 0 | M84: =IFERROR(VLOOKUP($B84,'Saisie Poussins'!$B$61:$AI$104,26+M$1,FALSE),0) -> 0 | N84: =IFERROR(VLOOKUP($B84,'Saisie Poussins'!$B$61:$AI$104,26+N$1,FALSE),0) -> 12.0000003 | O84: =IFERROR(VLOOKUP($B84,'Saisie Poussins'!$B$61:$AI$104,26+O$1,FALSE),0) -> 0 | P84: =IFERROR(VLOOKUP($B84,'Saisie Poussins'!$B$61:$AI$104,26+P$1,FALSE),0) -> 0 | Q84: 12.0000003
A85: =IFERROR(IF(A84+1<='Saisie Poussins'!$BF$12,A84+1,""),"") -> 24 | B85: =IFERROR(VLOOKUP(A85,'Saisie Poussins'!$BE$61:$BF$104,2,FALSE),"") -> 42250080457 | C85: =IFERROR(VLOOKUP($B85,'Saisie Poussins'!$B$13:$AI$56,1+C$1,FALSE),0) -> CAYLAR | D85: =IFERROR(VLOOKUP($B85,'Saisie Poussins'!$B$13:$AI$56,1+D$1,FALSE),0) -> Martin | E85: =IFERROR(VLOOKUP($B85,'Saisie Poussins'!$B$13:$AI$56,1+E$1,FALSE),0) -> H | F85: =IFERROR(VLOOKUP($B85,'Saisie Poussins'!$B$13:$AI$56,1+F$1,FALSE),0) -> VELO CLUB PONTARLIER | G85: =IFERROR(VLOOKUP($B85,'Saisie Poussins'!$B$13:$AI$56,1+G$1,FALSE),0) -> Poussin | H85: =IFERROR(VLOOKUP($B85,'Saisie Poussins'!$B$13:$AI$56,1+H$1,FALSE),0) -> 2 | I85: =IFERROR(VLOOKUP($B85,'Saisie Poussins'!$B$61:$AI$104,26+I$1,FALSE),0) -> 0 | J85: =IFERROR(VLOOKUP($B85,'Saisie Poussins'!$B$61:$AI$104,26+J$1,FALSE),0) -> 0 | K85: =IFERROR(VLOOKUP($B85,'Saisie Poussins'!$B$61:$AI$104,26+K$1,FALSE),0) -> 0 | L85: =IFERROR(VLOOKUP($B85,'Saisie Poussins'!$B$61:$AI$104,26+L$1,FALSE),0) -> 0 | M85: =IFERROR(VLOOKUP($B85,'Saisie Poussins'!$B$61:$AI$104,26+M$1,FALSE),0) -> 12.00000025 | N85: =IFERROR(VLOOKUP($B85,'Saisie Poussins'!$B$61:$AI$104,26+N$1,FALSE),0) -> 0 | O85: =IFERROR(VLOOKUP($B85,'Saisie Poussins'!$B$61:$AI$104,26+O$1,FALSE),0) -> 0 | P85: =IFERROR(VLOOKUP($B85,'Saisie Poussins'!$B$61:$AI$104,26+P$1,FALSE),0) -> 0 | Q85: 12.00000025
A86: =IFERROR(IF(A85+1<='Saisie Poussins'!$BF$12,A85+1,""),"") -> 25 | B86: =IFERROR(VLOOKUP(A86,'Saisie Poussins'!$BE$61:$BF$104,2,FALSE),"") -> 42390330277 | C86: =IFERROR(VLOOKUP($B86,'Saisie Poussins'!$B$13:$AI$56,1+C$1,FALSE),0) -> BELLENOUE | D86: =IFERROR(VLOOKUP($B86,'Saisie Poussins'!$B$13:$AI$56,1+D$1,FALSE),0) -> Antone | E86: =IFERROR(VLOOKUP($B86,'Saisie Poussins'!$B$13:$AI$56,1+E$1,FALSE),0) -> M | F86: =IFERROR(VLOOKUP($B86,'Saisie Poussins'!$B$13:$AI$56,1+F$1,FALSE),0) -> GUIDON BLETTERANOIS | G86: =IFERROR(VLOOKUP($B86,'Saisie Poussins'!$B$13:$AI$56,1+G$1,FALSE),0) -> Poussin | H86: =IFERROR(VLOOKUP($B86,'Saisie Poussins'!$B$13:$AI$56,1+H$1,FALSE),0) -> 2 | I86: =IFERROR(VLOOKUP($B86,'Saisie Poussins'!$B$61:$AI$104,26+I$1,FALSE),0) -> 0 | J86: =IFERROR(VLOOKUP($B86,'Saisie Poussins'!$B$61:$AI$104,26+J$1,FALSE),0) -> 0 | K86: =IFERROR(VLOOKUP($B86,'Saisie Poussins'!$B$61:$AI$104,26+K$1,FALSE),0) -> 0 | L86: =IFERROR(VLOOKUP($B86,'Saisie Poussins'!$B$61:$AI$104,26+L$1,FALSE),0) -> 0 | M86: =IFERROR(VLOOKUP($B86,'Saisie Poussins'!$B$61:$AI$104,26+M$1,FALSE),0) -> 0 | N86: =IFERROR(VLOOKUP($B86,'Saisie Poussins'!$B$61:$AI$104,26+N$1,FALSE),0) -> 0 | O86: =IFERROR(VLOOKUP($B86,'Saisie Poussins'!$B$61:$AI$104,26+O$1,FALSE),0) -> 0 | P86: =IFERROR(VLOOKUP($B86,'Saisie Poussins'!$B$61:$AI$104,26+P$1,FALSE),0) -> 11.0000004 | Q86: 11.0000004
A87: =IFERROR(IF(A86+1<='Saisie Poussins'!$BF$12,A86+1,""),"") -> 26 | B87: =IFERROR(VLOOKUP(A87,'Saisie Poussins'!$BE$61:$BF$104,2,FALSE),"") -> 42390960405 | C87: =IFERROR(VLOOKUP($B87,'Saisie Poussins'!$B$13:$AI$56,1+C$1,FALSE),0) -> MONROLIN | D87: =IFERROR(VLOOKUP($B87,'Saisie Poussins'!$B$13:$AI$56,1+D$1,FALSE),0) -> Camille | E87: =IFERROR(VLOOKUP($B87,'Saisie Poussins'!$B$13:$AI$56,1+E$1,FALSE),0) -> H | F87: =IFERROR(VLOOKUP($B87,'Saisie Poussins'!$B$13:$AI$56,1+F$1,FALSE),0) -> JURA CYCLISME PAYS DU REVERMONT | G87: =IFERROR(VLOOKUP($B87,'Saisie Poussins'!$B$13:$AI$56,1+G$1,FALSE),0) -> Poussin | H87: =IFERROR(VLOOKUP($B87,'Saisie Poussins'!$B$13:$AI$56,1+H$1,FALSE),0) -> 1 | I87: =IFERROR(VLOOKUP($B87,'Saisie Poussins'!$B$61:$AI$104,26+I$1,FALSE),0) -> 0 | J87: =IFERROR(VLOOKUP($B87,'Saisie Poussins'!$B$61:$AI$104,26+J$1,FALSE),0) -> 0 | K87: =IFERROR(VLOOKUP($B87,'Saisie Poussins'!$B$61:$AI$104,26+K$1,FALSE),0) -> 0 | L87: =IFERROR(VLOOKUP($B87,'Saisie Poussins'!$B$61:$AI$104,26+L$1,FALSE),0) -> 0 | M87: =IFERROR(VLOOKUP($B87,'Saisie Poussins'!$B$61:$AI$104,26+M$1,FALSE),0) -> 0 | N87: =IFERROR(VLOOKUP($B87,'Saisie Poussins'!$B$61:$AI$104,26+N$1,FALSE),0) -> 11.0000003 | O87: =IFERROR(VLOOKUP($B87,'Saisie Poussins'!$B$61:$AI$104,26+O$1,FALSE),0) -> 0 | P87: =IFERROR(VLOOKUP($B87,'Saisie Poussins'!$B$61:$AI$104,26+P$1,FALSE),0) -> 0 | Q87: 11.0000003
A88: =IFERROR(IF(A87+1<='Saisie Poussins'!$BF$12,A87+1,""),"") -> 27 | B88: =IFERROR(VLOOKUP(A88,'Saisie Poussins'!$BE$61:$BF$104,2,FALSE),"") -> 42250080432 | C88: =IFERROR(VLOOKUP($B88,'Saisie Poussins'!$B$13:$AI$56,1+C$1,FALSE),0) -> METOZ | D88: =IFERROR(VLOOKUP($B88,'Saisie Poussins'!$B$13:$AI$56,1+D$1,FALSE),0) -> Constant | E88: =IFERROR(VLOOKUP($B88,'Saisie Poussins'!$B$13:$AI$56,1+E$1,FALSE),0) -> H | F88: =IFERROR(VLOOKUP($B88,'Saisie Poussins'!$B$13:$AI$56,1+F$1,FALSE),0) -> VELO CLUB PONTARLIER | G88: =IFERROR(VLOOKUP($B88,'Saisie Poussins'!$B$13:$AI$56,1+G$1,FALSE),0) -> Poussin | H88: =IFERROR(VLOOKUP($B88,'Saisie Poussins'!$B$13:$AI$56,1+H$1,FALSE),0) -> 1 | I88: =IFERROR(VLOOKUP($B88,'Saisie Poussins'!$B$61:$AI$104,26+I$1,FALSE),0) -> 0 | J88: =IFERROR(VLOOKUP($B88,'Saisie Poussins'!$B$61:$AI$104,26+J$1,FALSE),0) -> 0 | K88: =IFERROR(VLOOKUP($B88,'Saisie Poussins'!$B$61:$AI$104,26+K$1,FALSE),0) -> 0 | L88: =IFERROR(VLOOKUP($B88,'Saisie Poussins'!$B$61:$AI$104,26+L$1,FALSE),0) -> 0 | M88: =IFERROR(VLOOKUP($B88,'Saisie Poussins'!$B$61:$AI$104,26+M$1,FALSE),0) -> 11.00000025 | N88: =IFERROR(VLOOKUP($B88,'Saisie Poussins'!$B$61:$AI$104,26+N$1,FALSE),0) -> 0 | O88: =IFERROR(VLOOKUP($B88,'Saisie Poussins'!$B$61:$AI$104,26+O$1,FALSE),0) -> 0 | P88: =IFERROR(VLOOKUP($B88,'Saisie Poussins'!$B$61:$AI$104,26+P$1,FALSE),0) -> 0 | Q88: 11.00000025
A89: =IFERROR(IF(A88+1<='Saisie Poussins'!$BF$12,A88+1,""),"") -> 28 | B89: =IFERROR(VLOOKUP(A89,'Saisie Poussins'!$BE$61:$BF$104,2,FALSE),"") -> 42900480186 | C89: =IFERROR(VLOOKUP($B89,'Saisie Poussins'!$B$13:$AI$56,1+C$1,FALSE),0) -> TCHUDOVITCH | D89: =IFERROR(VLOOKUP($B89,'Saisie Poussins'!$B$13:$AI$56,1+D$1,FALSE),0) -> Alexandre | E89: =IFERROR(VLOOKUP($B89,'Saisie Poussins'!$B$13:$AI$56,1+E$1,FALSE),0) -> H | F89: =IFERROR(VLOOKUP($B89,'Saisie Poussins'!$B$13:$AI$56,1+F$1,FALSE),0) -> CC BELFORT MIOTTE | G89: =IFERROR(VLOOKUP($B89,'Saisie Poussins'!$B$13:$AI$56,1+G$1,FALSE),0) -> Poussin | H89: =IFERROR(VLOOKUP($B89,'Saisie Poussins'!$B$13:$AI$56,1+H$1,FALSE),0) -> 1 | I89: =IFERROR(VLOOKUP($B89,'Saisie Poussins'!$B$61:$AI$104,26+I$1,FALSE),0) -> 0 | J89: =IFERROR(VLOOKUP($B89,'Saisie Poussins'!$B$61:$AI$104,26+J$1,FALSE),0) -> 0 | K89: =IFERROR(VLOOKUP($B89,'Saisie Poussins'!$B$61:$AI$104,26+K$1,FALSE),0) -> 11.00000015 | L89: =IFERROR(VLOOKUP($B89,'Saisie Poussins'!$B$61:$AI$104,26+L$1,FALSE),0) -> 0 | M89: =IFERROR(VLOOKUP($B89,'Saisie Poussins'!$B$61:$AI$104,26+M$1,FALSE),0) -> 0 | N89: =IFERROR(VLOOKUP($B89,'Saisie Poussins'!$B$61:$AI$104,26+N$1,FALSE),0) -> 0 | O89: =IFERROR(VLOOKUP($B89,'Saisie Poussins'!$B$61:$AI$104,26+O$1,FALSE),0) -> 0 | P89: =IFERROR(VLOOKUP($B89,'Saisie Poussins'!$B$61:$AI$104,26+P$1,FALSE),0) -> 0 | Q89: 11.00000015
A90: =IFERROR(IF(A89+1<='Saisie Poussins'!$BF$12,A89+1,""),"") -> 29 | B90: =IFERROR(VLOOKUP(A90,'Saisie Poussins'!$BE$61:$BF$104,2,FALSE),"") -> 46880320466 | C90: =IFERROR(VLOOKUP($B90,'Saisie Poussins'!$B$13:$AI$56,1+C$1,FALSE),0) -> HERMANN | D90: =IFERROR(VLOOKUP($B90,'Saisie Poussins'!$B$13:$AI$56,1+D$1,FALSE),0) -> Robin | E90: =IFERROR(VLOOKUP($B90,'Saisie Poussins'!$B$13:$AI$56,1+E$1,FALSE),0) -> H | F90: =IFERROR(VLOOKUP($B90,'Saisie Poussins'!$B$13:$AI$56,1+F$1,FALSE),0) -> CYCLE GOLBEEN | G90: =IFERROR(VLOOKUP($B90,'Saisie Poussins'!$B$13:$AI$56,1+G$1,FALSE),0) -> Poussin | H90: =IFERROR(VLOOKUP($B90,'Saisie Poussins'!$B$13:$AI$56,1+H$1,FALSE),0) -> 1 | I90: =IFERROR(VLOOKUP($B90,'Saisie Poussins'!$B$61:$AI$104,26+I$1,FALSE),0) -> 0 | J90: =IFERROR(VLOOKUP($B90,'Saisie Poussins'!$B$61:$AI$104,26+J$1,FALSE),0) -> 11.0000001 | K90: =IFERROR(VLOOKUP($B90,'Saisie Poussins'!$B$61:$AI$104,26+K$1,FALSE),0) -> 0 | L90: =IFERROR(VLOOKUP($B90,'Saisie Poussins'!$B$61:$AI$104,26+L$1,FALSE),0) -> 0 | M90: =IFERROR(VLOOKUP($B90,'Saisie Poussins'!$B$61:$AI$104,26+M$1,FALSE),0) -> 0 | N90: =IFERROR(VLOOKUP($B90,'Saisie Poussins'!$B$61:$AI$104,26+N$1,FALSE),0) -> 0 | O90: =IFERROR(VLOOKUP($B90,'Saisie Poussins'!$B$61:$AI$104,26+O$1,FALSE),0) -> 0 | P90: =IFERROR(VLOOKUP($B90,'Saisie Poussins'!$B$61:$AI$104,26+P$1,FALSE),0) -> 0 | Q90: 11.0000001
A91: =IFERROR(IF(A90+1<='Saisie Poussins'!$BF$12,A90+1,""),"") -> 30 | B91: =IFERROR(VLOOKUP(A91,'Saisie Poussins'!$BE$61:$BF$104,2,FALSE),"") -> 42390960385 | C91: =IFERROR(VLOOKUP($B91,'Saisie Poussins'!$B$13:$AI$56,1+C$1,FALSE),0) -> PEREIRA | D91: =IFERROR(VLOOKUP($B91,'Saisie Poussins'!$B$13:$AI$56,1+D$1,FALSE),0) -> Tiago | E91: =IFERROR(VLOOKUP($B91,'Saisie Poussins'!$B$13:$AI$56,1+E$1,FALSE),0) -> M | F91: =IFERROR(VLOOKUP($B91,'Saisie Poussins'!$B$13:$AI$56,1+F$1,FALSE),0) -> JURA CYCLISME PAYS DU REVERMONT | G91: =IFERROR(VLOOKUP($B91,'Saisie Poussins'!$B$13:$AI$56,1+G$1,FALSE),0) -> Poussin | H91: =IFERROR(VLOOKUP($B91,'Saisie Poussins'!$B$13:$AI$56,1+H$1,FALSE),0) -> 1 | I91: =IFERROR(VLOOKUP($B91,'Saisie Poussins'!$B$61:$AI$104,26+I$1,FALSE),0) -> 0 | J91: =IFERROR(VLOOKUP($B91,'Saisie Poussins'!$B$61:$AI$104,26+J$1,FALSE),0) -> 0 | K91: =IFERROR(VLOOKUP($B91,'Saisie Poussins'!$B$61:$AI$104,26+K$1,FALSE),0) -> 0 | L91: =IFERROR(VLOOKUP($B91,'Saisie Poussins'!$B$61:$AI$104,26+L$1,FALSE),0) -> 0 | M91: =IFERROR(VLOOKUP($B91,'Saisie Poussins'!$B$61:$AI$104,26+M$1,FALSE),0) -> 0 | N91: =IFERROR(VLOOKUP($B91,'Saisie Poussins'!$B$61:$AI$104,26+N$1,FALSE),0) -> 0 | O91: =IFERROR(VLOOKUP($B91,'Saisie Poussins'!$B$61:$AI$104,26+O$1,FALSE),0) -> 0 | P91: =IFERROR(VLOOKUP($B91,'Saisie Poussins'!$B$61:$AI$104,26+P$1,FALSE),0) -> 10.5000004 | Q91: 10.5000004
A92: =IFERROR(IF(A91+1<='Saisie Poussins'!$BF$12,A91+1,""),"") -> 31 | B92: =IFERROR(VLOOKUP(A92,'Saisie Poussins'!$BE$61:$BF$104,2,FALSE),"") -> 46680680297 | C92: =IFERROR(VLOOKUP($B92,'Saisie Poussins'!$B$13:$AI$56,1+C$1,FALSE),0) -> LISZCZAK | D92: =IFERROR(VLOOKUP($B92,'Saisie Poussins'!$B$13:$AI$56,1+D$1,FALSE),0) -> Nolan | E92: =IFERROR(VLOOKUP($B92,'Saisie Poussins'!$B$13:$AI$56,1+E$1,FALSE),0) -> H | F92: =IFERROR(VLOOKUP($B92,'Saisie Poussins'!$B$13:$AI$56,1+F$1,FALSE),0) -> VC SUNDGOVIA ALTKIRCH | G92: =IFERROR(VLOOKUP($B92,'Saisie Poussins'!$B$13:$AI$56,1+G$1,FALSE),0) -> Poussin | H92: =IFERROR(VLOOKUP($B92,'Saisie Poussins'!$B$13:$AI$56,1+H$1,FALSE),0) -> 2 | I92: =IFERROR(VLOOKUP($B92,'Saisie Poussins'!$B$61:$AI$104,26+I$1,FALSE),0) -> 0 | J92: =IFERROR(VLOOKUP($B92,'Saisie Poussins'!$B$61:$AI$104,26+J$1,FALSE),0) -> 0 | K92: =IFERROR(VLOOKUP($B92,'Saisie Poussins'!$B$61:$AI$104,26+K$1,FALSE),0) -> 0 | L92: =IFERROR(VLOOKUP($B92,'Saisie Poussins'!$B$61:$AI$104,26+L$1,FALSE),0) -> 0 | M92: =IFERROR(VLOOKUP($B92,'Saisie Poussins'!$B$61:$AI$104,26+M$1,FALSE),0) -> 0 | N92: =IFERROR(VLOOKUP($B92,'Saisie Poussins'!$B$61:$AI$104,26+N$1,FALSE),0) -> 0 | O92: =IFERROR(VLOOKUP($B92,'Saisie Poussins'!$B$61:$AI$104,26+O$1,FALSE),0) -> 10.5000005 | P92: =IFERROR(VLOOKUP($B92,'Saisie Poussins'!$B$61:$AI$104,26+P$1,FALSE),0) -> 0 | Q92: 10.5000005
A93: =IFERROR(IF(A92+1<='Saisie Poussins'!$BF$12,A92+1,""),"") -> 32 | B93: =IFERROR(VLOOKUP(A93,'Saisie Poussins'!$BE$61:$BF$104,2,FALSE),"") -> 42700680168 | C93: =IFERROR(VLOOKUP($B93,'Saisie Poussins'!$B$13:$AI$56,1+C$1,FALSE),0) -> CLERC | D93: =IFERROR(VLOOKUP($B93,'Saisie Poussins'!$B$13:$AI$56,1+D$1,FALSE),0) -> Zoé | E93: =IFERROR(VLOOKUP($B93,'Saisie Poussins'!$B$13:$AI$56,1+E$1,FALSE),0) -> H | F93: =IFERROR(VLOOKUP($B93,'Saisie Poussins'!$B$13:$AI$56,1+F$1,FALSE),0) -> E.C. LUXEUIL VOSGES SAONO | G93: =IFERROR(VLOOKUP($B93,'Saisie Poussins'!$B$13:$AI$56,1+G$1,FALSE),0) -> Poussin | H93: =IFERROR(VLOOKUP($B93,'Saisie Poussins'!$B$13:$AI$56,1+H$1,FALSE),0) -> 2 | I93: =IFERROR(VLOOKUP($B93,'Saisie Poussins'!$B$61:$AI$104,26+I$1,FALSE),0) -> 10.00000005 | J93: =IFERROR(VLOOKUP($B93,'Saisie Poussins'!$B$61:$AI$104,26+J$1,FALSE),0) -> 0 | K93: =IFERROR(VLOOKUP($B93,'Saisie Poussins'!$B$61:$AI$104,26+K$1,FALSE),0) -> 0 | L93: =IFERROR(VLOOKUP($B93,'Saisie Poussins'!$B$61:$AI$104,26+L$1,FALSE),0) -> 0 | M93: =IFERROR(VLOOKUP($B93,'Saisie Poussins'!$B$61:$AI$104,26+M$1,FALSE),0) -> 0 | N93: =IFERROR(VLOOKUP($B93,'Saisie Poussins'!$B$61:$AI$104,26+N$1,FALSE),0) -> 0 | O93: =IFERROR(VLOOKUP($B93,'Saisie Poussins'!$B$61:$AI$104,26+O$1,FALSE),0) -> 7.5000005 | P93: =IFERROR(VLOOKUP($B93,'Saisie Poussins'!$B$61:$AI$104,26+P$1,FALSE),0) -> 10.0000004 | Q93: 27.50000095
A94: =IFERROR(IF(A93+1<='Saisie Poussins'!$BF$12,A93+1,""),"") -> 33 | B94: =IFERROR(VLOOKUP(A94,'Saisie Poussins'!$BE$61:$BF$104,2,FALSE),"") -> 4225012036 | C94: =IFERROR(VLOOKUP($B94,'Saisie Poussins'!$B$13:$AI$56,1+C$1,FALSE),0) -> AUERBACH | D94: =IFERROR(VLOOKUP($B94,'Saisie Poussins'!$B$13:$AI$56,1+D$1,FALSE),0) -> Minz | E94: =IFERROR(VLOOKUP($B94,'Saisie Poussins'!$B$13:$AI$56,1+E$1,FALSE),0) -> D | F94: =IFERROR(VLOOKUP($B94,'Saisie Poussins'!$B$13:$AI$56,1+F$1,FALSE),0) -> Carte journalière | G94: =IFERROR(VLOOKUP($B94,'Saisie Poussins'!$B$13:$AI$56,1+G$1,FALSE),0) -> Poussin | H94: =IFERROR(VLOOKUP($B94,'Saisie Poussins'!$B$13:$AI$56,1+H$1,FALSE),0) -> 0 | I94: =IFERROR(VLOOKUP($B94,'Saisie Poussins'!$B$61:$AI$104,26+I$1,FALSE),0) -> 0 | J94: =IFERROR(VLOOKUP($B94,'Saisie Poussins'!$B$61:$AI$104,26+J$1,FALSE),0) -> 0 | K94: =IFERROR(VLOOKUP($B94,'Saisie Poussins'!$B$61:$AI$104,26+K$1,FALSE),0) -> 0 | L94: =IFERROR(VLOOKUP($B94,'Saisie Poussins'!$B$61:$AI$104,26+L$1,FALSE),0) -> 0 | M94: =IFERROR(VLOOKUP($B94,'Saisie Poussins'!$B$61:$AI$104,26+M$1,FALSE),0) -> 0 | N94: =IFERROR(VLOOKUP($B94,'Saisie Poussins'!$B$61:$AI$104,26+N$1,FALSE),0) -> 0 | O94: =IFERROR(VLOOKUP($B94,'Saisie Poussins'!$B$61:$AI$104,26+O$1,FALSE),0) -> 9.5000005 | P94: =IFERROR(VLOOKUP($B94,'Saisie Poussins'!$B$61:$AI$104,26+P$1,FALSE),0) -> 0 | Q94: 9.5000005
A95: =IFERROR(IF(A94+1<='Saisie Poussins'!$BF$12,A94+1,""),"") -> 34 | B95: =IFERROR(VLOOKUP(A95,'Saisie Poussins'!$BE$61:$BF$104,2,FALSE),"") -> 46680680277 | C95: =IFERROR(VLOOKUP($B95,'Saisie Poussins'!$B$13:$AI$56,1+C$1,FALSE),0) -> MEISTER | D95: =IFERROR(VLOOKUP($B95,'Saisie Poussins'!$B$13:$AI$56,1+D$1,FALSE),0) -> Benjamin | E95: =IFERROR(VLOOKUP($B95,'Saisie Poussins'!$B$13:$AI$56,1+E$1,FALSE),0) -> H | F95: =IFERROR(VLOOKUP($B95,'Saisie Poussins'!$B$13:$AI$56,1+F$1,FALSE),0) -> VC SUNDGOVIA ALTKIRCH | G95: =IFERROR(VLOOKUP($B95,'Saisie Poussins'!$B$13:$AI$56,1+G$1,FALSE),0) -> Poussin | H95: =IFERROR(VLOOKUP($B95,'Saisie Poussins'!$B$13:$AI$56,1+H$1,FALSE),0) -> 2 | I95: =IFERROR(VLOOKUP($B95,'Saisie Poussins'!$B$61:$AI$104,26+I$1,FALSE),0) -> 0 | J95: =IFERROR(VLOOKUP($B95,'Saisie Poussins'!$B$61:$AI$104,26+J$1,FALSE),0) -> 0 | K95: =IFERROR(VLOOKUP($B95,'Saisie Poussins'!$B$61:$AI$104,26+K$1,FALSE),0) -> 0 | L95: =IFERROR(VLOOKUP($B95,'Saisie Poussins'!$B$61:$AI$104,26+L$1,FALSE),0) -> 0 | M95: =IFERROR(VLOOKUP($B95,'Saisie Poussins'!$B$61:$AI$104,26+M$1,FALSE),0) -> 0 | N95: =IFERROR(VLOOKUP($B95,'Saisie Poussins'!$B$61:$AI$104,26+N$1,FALSE),0) -> 0 | O95: =IFERROR(VLOOKUP($B95,'Saisie Poussins'!$B$61:$AI$104,26+O$1,FALSE),0) -> 8.5000005 | P95: =IFERROR(VLOOKUP($B95,'Saisie Poussins'!$B$61:$AI$104,26+P$1,FALSE),0) -> 0 | Q95: 8.5000005
A96: =IFERROR(IF(A95+1<='Saisie Poussins'!$BF$12,A95+1,""),"") -> 35 | B96: =IFERROR(VLOOKUP(A96,'Saisie Poussins'!$BE$61:$BF$104,2,FALSE),"") -> 42250120360 | C96: =IFERROR(VLOOKUP($B96,'Saisie Poussins'!$B$13:$AI$56,1+C$1,FALSE),0) -> ABGRALL | D96: =IFERROR(VLOOKUP($B96,'Saisie Poussins'!$B$13:$AI$56,1+D$1,FALSE),0) -> Maël | E96: =IFERROR(VLOOKUP($B96,'Saisie Poussins'!$B$13:$AI$56,1+E$1,FALSE),0) -> H | F96: =IFERROR(VLOOKUP($B96,'Saisie Poussins'!$B$13:$AI$56,1+F$1,FALSE),0) -> V.C.DE MONTBELIARD | G96: =IFERROR(VLOOKUP($B96,'Saisie Poussins'!$B$13:$AI$56,1+G$1,FALSE),0) -> Poussin | H96: =IFERROR(VLOOKUP($B96,'Saisie Poussins'!$B$13:$AI$56,1+H$1,FALSE),0) -> 1 | I96: =IFERROR(VLOOKUP($B96,'Saisie Poussins'!$B$61:$AI$104,26+I$1,FALSE),0) -> 0 | J96: =IFERROR(VLOOKUP($B96,'Saisie Poussins'!$B$61:$AI$104,26+J$1,FALSE),0) -> 0 | K96: =IFERROR(VLOOKUP($B96,'Saisie Poussins'!$B$61:$AI$104,26+K$1,FALSE),0) -> 0 | L96: =IFERROR(VLOOKUP($B96,'Saisie Poussins'!$B$61:$AI$104,26+L$1,FALSE),0) -> 0 | M96: =IFERROR(VLOOKUP($B96,'Saisie Poussins'!$B$61:$AI$104,26+M$1,FALSE),0) -> 0 | N96: =IFERROR(VLOOKUP($B96,'Saisie Poussins'!$B$61:$AI$104,26+N$1,FALSE),0) -> 0 | O96: =IFERROR(VLOOKUP($B96,'Saisie Poussins'!$B$61:$AI$104,26+O$1,FALSE),0) -> 8.0000005 | P96: =IFERROR(VLOOKUP($B96,'Saisie Poussins'!$B$61:$AI$104,26+P$1,FALSE),0) -> 0 | Q96: 8.0000005
A97: =IFERROR(IF(A96+1<='Saisie Poussins'!$BF$12,A96+1,""),"") -> 36 | B97: =IFERROR(VLOOKUP(A97,'Saisie Poussins'!$BE$61:$BF$104,2,FALSE),"") -> 46680680281 | C97: =IFERROR(VLOOKUP($B97,'Saisie Poussins'!$B$13:$AI$56,1+C$1,FALSE),0) -> KLEIN | D97: =IFERROR(VLOOKUP($B97,'Saisie Poussins'!$B$13:$AI$56,1+D$1,FALSE),0) -> Rose | E97: =IFERROR(VLOOKUP($B97,'Saisie Poussins'!$B$13:$AI$56,1+E$1,FALSE),0) -> D | F97: =IFERROR(VLOOKUP($B97,'Saisie Poussins'!$B$13:$AI$56,1+F$1,FALSE),0) -> VC SUNDGOVIA ALTKIRCH | G97: =IFERROR(VLOOKUP($B97,'Saisie Poussins'!$B$13:$AI$56,1+G$1,FALSE),0) -> Poussin | H97: =IFERROR(VLOOKUP($B97,'Saisie Poussins'!$B$13:$AI$56,1+H$1,FALSE),0) -> 2 | I97: =IFERROR(VLOOKUP($B97,'Saisie Poussins'!$B$61:$AI$104,26+I$1,FALSE),0) -> 0 | J97: =IFERROR(VLOOKUP($B97,'Saisie Poussins'!$B$61:$AI$104,26+J$1,FALSE),0) -> 0 | K97: =IFERROR(VLOOKUP($B97,'Saisie Poussins'!$B$61:$AI$104,26+K$1,FALSE),0) -> 0 | L97: =IFERROR(VLOOKUP($B97,'Saisie Poussins'!$B$61:$AI$104,26+L$1,FALSE),0) -> 0 | M97: =IFERROR(VLOOKUP($B97,'Saisie Poussins'!$B$61:$AI$104,26+M$1,FALSE),0) -> 0 | N97: =IFERROR(VLOOKUP($B97,'Saisie Poussins'!$B$61:$AI$104,26+N$1,FALSE),0) -> 0 | O97: =IFERROR(VLOOKUP($B97,'Saisie Poussins'!$B$61:$AI$104,26+O$1,FALSE),0) -> 5.5000005 | P97: =IFERROR(VLOOKUP($B97,'Saisie Poussins'!$B$61:$AI$104,26+P$1,FALSE),0) -> 0 | Q97: 5.5000005
A98: =IFERROR(IF(A97+1<='Saisie Poussins'!$BF$12,A97+1,""),"") -> 37 | B98: =IFERROR(VLOOKUP(A98,'Saisie Poussins'!$BE$61:$BF$104,2,FALSE),"") -> 42900480191 | C98: =IFERROR(VLOOKUP($B98,'Saisie Poussins'!$B$13:$AI$56,1+C$1,FALSE),0) -> HULLETTE FATOME | D98: =IFERROR(VLOOKUP($B98,'Saisie Poussins'!$B$13:$AI$56,1+D$1,FALSE),0) -> Stella | E98: =IFERROR(VLOOKUP($B98,'Saisie Poussins'!$B$13:$AI$56,1+E$1,FALSE),0) -> D | F98: =IFERROR(VLOOKUP($B98,'Saisie Poussins'!$B$13:$AI$56,1+F$1,FALSE),0) -> CC BELFORT MIOTTE | G98: =IFERROR(VLOOKUP($B98,'Saisie Poussins'!$B$13:$AI$56,1+G$1,FALSE),0) -> Poussin | H98: =IFERROR(VLOOKUP($B98,'Saisie Poussins'!$B$13:$AI$56,1+H$1,FALSE),0) -> 2 | I98: =IFERROR(VLOOKUP($B98,'Saisie Poussins'!$B$61:$AI$104,26+I$1,FALSE),0) -> 0 | J98: =IFERROR(VLOOKUP($B98,'Saisie Poussins'!$B$61:$AI$104,26+J$1,FALSE),0) -> 0 | K98: =IFERROR(VLOOKUP($B98,'Saisie Poussins'!$B$61:$AI$104,26+K$1,FALSE),0) -> 0 | L98: =IFERROR(VLOOKUP($B98,'Saisie Poussins'!$B$61:$AI$104,26+L$1,FALSE),0) -> 0 | M98: =IFERROR(VLOOKUP($B98,'Saisie Poussins'!$B$61:$AI$104,26+M$1,FALSE),0) -> 0 | N98: =IFERROR(VLOOKUP($B98,'Saisie Poussins'!$B$61:$AI$104,26+N$1,FALSE),0) -> 0 | O98: =IFERROR(VLOOKUP($B98,'Saisie Poussins'!$B$61:$AI$104,26+O$1,FALSE),0) -> 5.0000005 | P98: =IFERROR(VLOOKUP($B98,'Saisie Poussins'!$B$61:$AI$104,26+P$1,FALSE),0) -> 0 | Q98: 5.0000005
A99: =IFERROR(IF(A98+1<='Saisie Poussins'!$BF$12,A98+1,""),"") -> 38 | B99: =IFERROR(VLOOKUP(A99,'Saisie Poussins'!$BE$61:$BF$104,2,FALSE),"") -> 42250120372 | C99: =IFERROR(VLOOKUP($B99,'Saisie Poussins'!$B$13:$AI$56,1+C$1,FALSE),0) -> MACHET | D99: =IFERROR(VLOOKUP($B99,'Saisie Poussins'!$B$13:$AI$56,1+D$1,FALSE),0) -> Yanis | E99: =IFERROR(VLOOKUP($B99,'Saisie Poussins'!$B$13:$AI$56,1+E$1,FALSE),0) -> H | F99: =IFERROR(VLOOKUP($B99,'Saisie Poussins'!$B$13:$AI$56,1+F$1,FALSE),0) -> V.C.DE MONTBELIARD | G99: =IFERROR(VLOOKUP($B99,'Saisie Poussins'!$B$13:$AI$56,1+G$1,FALSE),0) -> Poussin | H99: =IFERROR(VLOOKUP($B99,'Saisie Poussins'!$B$13:$AI$56,1+H$1,FALSE),0) -> 1 | I99: =IFERROR(VLOOKUP($B99,'Saisie Poussins'!$B$61:$AI$104,26+I$1,FALSE),0) -> 0 | J99: =IFERROR(VLOOKUP($B99,'Saisie Poussins'!$B$61:$AI$104,26+J$1,FALSE),0) -> 0 | K99: =IFERROR(VLOOKUP($B99,'Saisie Poussins'!$B$61:$AI$104,26+K$1,FALSE),0) -> 0 | L99: =IFERROR(VLOOKUP($B99,'Saisie Poussins'!$B$61:$AI$104,26+L$1,FALSE),0) -> 0 | M99: =IFERROR(VLOOKUP($B99,'Saisie Poussins'!$B$61:$AI$104,26+M$1,FALSE),0) -> 0 | N99: =IFERROR(VLOOKUP($B99,'Saisie Poussins'!$B$61:$AI$104,26+N$1,FALSE),0) -> 0 | O99: =IFERROR(VLOOKUP($B99,'Saisie Poussins'!$B$61:$AI$104,26+O$1,FALSE),0) -> 4.5000005 | P99: =IFERROR(VLOOKUP($B99,'Saisie Poussins'!$B$61:$AI$104,26+P$1,FALSE),0) -> 0 | Q99: 4.5000005
A100: =IFERROR(IF(A99+1<='Saisie Poussins'!$BF$12,A99+1,""),"") ->  | B100: =IFERROR(VLOOKUP(A100,'Saisie Poussins'!$BE$61:$BF$104,2,FALSE),"") -> 0 | C100: =IFERROR(VLOOKUP($B100,'Saisie Poussins'!$B$13:$AI$56,1+C$1,FALSE),0) -> 0 | D100: =IFERROR(VLOOKUP($B100,'Saisie Poussins'!$B$13:$AI$56,1+D$1,FALSE),0) -> 0 | E100: =IFERROR(VLOOKUP($B100,'Saisie Poussins'!$B$13:$AI$56,1+E$1,FALSE),0) -> 0 | F100: =IFERROR(VLOOKUP($B100,'Saisie Poussins'!$B$13:$AI$56,1+F$1,FALSE),0) -> 0 | G100: =IFERROR(VLOOKUP($B100,'Saisie Poussins'!$B$13:$AI$56,1+G$1,FALSE),0) -> 0 | H100: =IFERROR(VLOOKUP($B100,'Saisie Poussins'!$B$13:$AI$56,1+H$1,FALSE),0) -> 0 | I100: =IFERROR(VLOOKUP($B100,'Saisie Poussins'!$B$61:$AI$104,26+I$1,FALSE),0) -> 0 | J100: =IFERROR(VLOOKUP($B100,'Saisie Poussins'!$B$61:$AI$104,26+J$1,FALSE),0) -> 0 | K100: =IFERROR(VLOOKUP($B100,'Saisie Poussins'!$B$61:$AI$104,26+K$1,FALSE),0) -> 0 | L100: =IFERROR(VLOOKUP($B100,'Saisie Poussins'!$B$61:$AI$104,26+L$1,FALSE),0) -> 0 | M100: =IFERROR(VLOOKUP($B100,'Saisie Poussins'!$B$61:$AI$104,26+M$1,FALSE),0) -> 0 | N100: =IFERROR(VLOOKUP($B100,'Saisie Poussins'!$B$61:$AI$104,26+N$1,FALSE),0) -> 0 | O100: =IFERROR(VLOOKUP($B100,'Saisie Poussins'!$B$61:$AI$104,26+O$1,FALSE),0) -> 0 | P100: =IFERROR(VLOOKUP($B100,'Saisie Poussins'!$B$61:$AI$104,26+P$1,FALSE),0) -> 0
A101: =IFERROR(IF(A100+1<='Saisie Poussins'!$BF$12,A100+1,""),"") ->  | B101: =IFERROR(VLOOKUP(A101,'Saisie Poussins'!$BE$61:$BF$104,2,FALSE),"") -> 0 | C101: =IFERROR(VLOOKUP($B101,'Saisie Poussins'!$B$13:$AI$56,1+C$1,FALSE),0) -> 0 | D101: =IFERROR(VLOOKUP($B101,'Saisie Poussins'!$B$13:$AI$56,1+D$1,FALSE),0) -> 0 | E101: =IFERROR(VLOOKUP($B101,'Saisie Poussins'!$B$13:$AI$56,1+E$1,FALSE),0) -> 0 | F101: =IFERROR(VLOOKUP($B101,'Saisie Poussins'!$B$13:$AI$56,1+F$1,FALSE),0) -> 0 | G101: =IFERROR(VLOOKUP($B101,'Saisie Poussins'!$B$13:$AI$56,1+G$1,FALSE),0) -> 0 | H101: =IFERROR(VLOOKUP($B101,'Saisie Poussins'!$B$13:$AI$56,1+H$1,FALSE),0) -> 0 | I101: =IFERROR(VLOOKUP($B101,'Saisie Poussins'!$B$61:$AI$104,26+I$1,FALSE),0) -> 0 | J101: =IFERROR(VLOOKUP($B101,'Saisie Poussins'!$B$61:$AI$104,26+J$1,FALSE),0) -> 0 | K101: =IFERROR(VLOOKUP($B101,'Saisie Poussins'!$B$61:$AI$104,26+K$1,FALSE),0) -> 0 | L101: =IFERROR(VLOOKUP($B101,'Saisie Poussins'!$B$61:$AI$104,26+L$1,FALSE),0) -> 0 | M101: =IFERROR(VLOOKUP($B101,'Saisie Poussins'!$B$61:$AI$104,26+M$1,FALSE),0) -> 0 | N101: =IFERROR(VLOOKUP($B101,'Saisie Poussins'!$B$61:$AI$104,26+N$1,FALSE),0) -> 0 | O101: =IFERROR(VLOOKUP($B101,'Saisie Poussins'!$B$61:$AI$104,26+O$1,FALSE),0) -> 0 | P101: =IFERROR(VLOOKUP($B101,'Saisie Poussins'!$B$61:$AI$104,26+P$1,FALSE),0) -> 0
A102: =IFERROR(IF(A101+1<='Saisie Poussins'!$BF$12,A101+1,""),"") ->  | B102: =IFERROR(VLOOKUP(A102,'Saisie Poussins'!$BE$61:$BF$104,2,FALSE),"") -> 0 | C102: =IFERROR(VLOOKUP($B102,'Saisie Poussins'!$B$13:$AI$56,1+C$1,FALSE),0) -> 0 | D102: =IFERROR(VLOOKUP($B102,'Saisie Poussins'!$B$13:$AI$56,1+D$1,FALSE),0) -> 0 | E102: =IFERROR(VLOOKUP($B102,'Saisie Poussins'!$B$13:$AI$56,1+E$1,FALSE),0) -> 0 | F102: =IFERROR(VLOOKUP($B102,'Saisie Poussins'!$B$13:$AI$56,1+F$1,FALSE),0) -> 0 | G102: =IFERROR(VLOOKUP($B102,'Saisie Poussins'!$B$13:$AI$56,1+G$1,FALSE),0) -> 0 | H102: =IFERROR(VLOOKUP($B102,'Saisie Poussins'!$B$13:$AI$56,1+H$1,FALSE),0) -> 0 | I102: =IFERROR(VLOOKUP($B102,'Saisie Poussins'!$B$61:$AI$104,26+I$1,FALSE),0) -> 0 | J102: =IFERROR(VLOOKUP($B102,'Saisie Poussins'!$B$61:$AI$104,26+J$1,FALSE),0) -> 0 | K102: =IFERROR(VLOOKUP($B102,'Saisie Poussins'!$B$61:$AI$104,26+K$1,FALSE),0) -> 0 | L102: =IFERROR(VLOOKUP($B102,'Saisie Poussins'!$B$61:$AI$104,26+L$1,FALSE),0) -> 0 | M102: =IFERROR(VLOOKUP($B102,'Saisie Poussins'!$B$61:$AI$104,26+M$1,FALSE),0) -> 0 | N102: =IFERROR(VLOOKUP($B102,'Saisie Poussins'!$B$61:$AI$104,26+N$1,FALSE),0) -> 0 | O102: =IFERROR(VLOOKUP($B102,'Saisie Poussins'!$B$61:$AI$104,26+O$1,FALSE),0) -> 0 | P102: =IFERROR(VLOOKUP($B102,'Saisie Poussins'!$B$61:$AI$104,26+P$1,FALSE),0) -> 0
A103: =IFERROR(IF(A102+1<='Saisie Poussins'!$BF$12,A102+1,""),"") ->  | B103: =IFERROR(VLOOKUP(A103,'Saisie Poussins'!$BE$61:$BF$104,2,FALSE),"") -> 0 | C103: =IFERROR(VLOOKUP($B103,'Saisie Poussins'!$B$13:$AI$56,1+C$1,FALSE),0) -> 0 | D103: =IFERROR(VLOOKUP($B103,'Saisie Poussins'!$B$13:$AI$56,1+D$1,FALSE),0) -> 0 | E103: =IFERROR(VLOOKUP($B103,'Saisie Poussins'!$B$13:$AI$56,1+E$1,FALSE),0) -> 0 | F103: =IFERROR(VLOOKUP($B103,'Saisie Poussins'!$B$13:$AI$56,1+F$1,FALSE),0) -> 0 | G103: =IFERROR(VLOOKUP($B103,'Saisie Poussins'!$B$13:$AI$56,1+G$1,FALSE),0) -> 0 | H103: =IFERROR(VLOOKUP($B103,'Saisie Poussins'!$B$13:$AI$56,1+H$1,FALSE),0) -> 0 | I103: =IFERROR(VLOOKUP($B103,'Saisie Poussins'!$B$61:$AI$104,26+I$1,FALSE),0) -> 0 | J103: =IFERROR(VLOOKUP($B103,'Saisie Poussins'!$B$61:$AI$104,26+J$1,FALSE),0) -> 0 | K103: =IFERROR(VLOOKUP($B103,'Saisie Poussins'!$B$61:$AI$104,26+K$1,FALSE),0) -> 0 | L103: =IFERROR(VLOOKUP($B103,'Saisie Poussins'!$B$61:$AI$104,26+L$1,FALSE),0) -> 0 | M103: =IFERROR(VLOOKUP($B103,'Saisie Poussins'!$B$61:$AI$104,26+M$1,FALSE),0) -> 0 | N103: =IFERROR(VLOOKUP($B103,'Saisie Poussins'!$B$61:$AI$104,26+N$1,FALSE),0) -> 0 | O103: =IFERROR(VLOOKUP($B103,'Saisie Poussins'!$B$61:$AI$104,26+O$1,FALSE),0) -> 0 | P103: =IFERROR(VLOOKUP($B103,'Saisie Poussins'!$B$61:$AI$104,26+P$1,FALSE),0) -> 0
A104: =IFERROR(IF(A103+1<='Saisie Poussins'!$BF$12,A103+1,""),"") ->  | B104: =IFERROR(VLOOKUP(A104,'Saisie Poussins'!$BE$61:$BF$104,2,FALSE),"") -> 0 | C104: =IFERROR(VLOOKUP($B104,'Saisie Poussins'!$B$13:$AI$56,1+C$1,FALSE),0) -> 0 | D104: =IFERROR(VLOOKUP($B104,'Saisie Poussins'!$B$13:$AI$56,1+D$1,FALSE),0) -> 0 | E104: =IFERROR(VLOOKUP($B104,'Saisie Poussins'!$B$13:$AI$56,1+E$1,FALSE),0) -> 0 | F104: =IFERROR(VLOOKUP($B104,'Saisie Poussins'!$B$13:$AI$56,1+F$1,FALSE),0) -> 0 | G104: =IFERROR(VLOOKUP($B104,'Saisie Poussins'!$B$13:$AI$56,1+G$1,FALSE),0) -> 0 | H104: =IFERROR(VLOOKUP($B104,'Saisie Poussins'!$B$13:$AI$56,1+H$1,FALSE),0) -> 0 | I104: =IFERROR(VLOOKUP($B104,'Saisie Poussins'!$B$61:$AI$104,26+I$1,FALSE),0) -> 0 | J104: =IFERROR(VLOOKUP($B104,'Saisie Poussins'!$B$61:$AI$104,26+J$1,FALSE),0) -> 0 | K104: =IFERROR(VLOOKUP($B104,'Saisie Poussins'!$B$61:$AI$104,26+K$1,FALSE),0) -> 0 | L104: =IFERROR(VLOOKUP($B104,'Saisie Poussins'!$B$61:$AI$104,26+L$1,FALSE),0) -> 0 | M104: =IFERROR(VLOOKUP($B104,'Saisie Poussins'!$B$61:$AI$104,26+M$1,FALSE),0) -> 0 | N104: =IFERROR(VLOOKUP($B104,'Saisie Poussins'!$B$61:$AI$104,26+N$1,FALSE),0) -> 0 | O104: =IFERROR(VLOOKUP($B104,'Saisie Poussins'!$B$61:$AI$104,26+O$1,FALSE),0) -> 0 | P104: =IFERROR(VLOOKUP($B104,'Saisie Poussins'!$B$61:$AI$104,26+P$1,FALSE),0) -> 0
A105: =IFERROR(IF(A104+1<='Saisie Poussins'!$BF$12,A104+1,""),"") ->  | B105: =IFERROR(VLOOKUP(A105,'Saisie Poussins'!$BE$61:$BF$104,2,FALSE),"") -> 0 | C105: =IFERROR(VLOOKUP($B105,'Saisie Poussins'!$B$13:$AI$56,1+C$1,FALSE),0) -> 0 | D105: =IFERROR(VLOOKUP($B105,'Saisie Poussins'!$B$13:$AI$56,1+D$1,FALSE),0) -> 0 | E105: =IFERROR(VLOOKUP($B105,'Saisie Poussins'!$B$13:$AI$56,1+E$1,FALSE),0) -> 0 | F105: =IFERROR(VLOOKUP($B105,'Saisie Poussins'!$B$13:$AI$56,1+F$1,FALSE),0) -> 0 | G105: =IFERROR(VLOOKUP($B105,'Saisie Poussins'!$B$13:$AI$56,1+G$1,FALSE),0) -> 0 | H105: =IFERROR(VLOOKUP($B105,'Saisie Poussins'!$B$13:$AI$56,1+H$1,FALSE),0) -> 0 | I105: =IFERROR(VLOOKUP($B105,'Saisie Poussins'!$B$61:$AI$104,26+I$1,FALSE),0) -> 0 | J105: =IFERROR(VLOOKUP($B105,'Saisie Poussins'!$B$61:$AI$104,26+J$1,FALSE),0) -> 0 | K105: =IFERROR(VLOOKUP($B105,'Saisie Poussins'!$B$61:$AI$104,26+K$1,FALSE),0) -> 0 | L105: =IFERROR(VLOOKUP($B105,'Saisie Poussins'!$B$61:$AI$104,26+L$1,FALSE),0) -> 0 | M105: =IFERROR(VLOOKUP($B105,'Saisie Poussins'!$B$61:$AI$104,26+M$1,FALSE),0) -> 0 | N105: =IFERROR(VLOOKUP($B105,'Saisie Poussins'!$B$61:$AI$104,26+N$1,FALSE),0) -> 0 | O105: =IFERROR(VLOOKUP($B105,'Saisie Poussins'!$B$61:$AI$104,26+O$1,FALSE),0) -> 0 | P105: =IFERROR(VLOOKUP($B105,'Saisie Poussins'!$B$61:$AI$104,26+P$1,FALSE),0) -> 0
B106: Leader Sprint | D106: ='Saisie Poussins'!E4 -> BOURGES Martin - E.C. LUXEUIL VOSGES SAONO | I106: ="Challenge régional "&Accueil!$C$3&" - "&Accueil!$C$5 -> Challenge régional BOURGOGNE FRANCHE COMTE - 2022
B107: Classement Sprint
A108: Place | B108: Licence | C108: Nom | D108: Prénom | F108: Club | G108: Catégorie | H108: Année | J108: =RIGHT(CELL("nomfichier",$A$1), LEN(CELL("nomfichier",$A$1))-FIND("]", CELL("nomfichier",$A$1))) -> Classement Poussins
I109: =Accueil!B$10 -> 03/04/2022 Luxeuil | J109: =Accueil!C$10 -> 24/04/2022 Noidans les Vesoul | K109: =Accueil!D$10 -> 1/05/2022 Vescemont | L109: =Accueil!E$10 -> 08/05/2022 Morteau | M109: =Accueil!F$10 -> 22/05/2022 Pontarlier | N109: =Accueil!G$10 -> 05/06/2022 Vadans | O109: =Accueil!H$10 -> 12/06/2022 Montbéliard | P109: =Accueil!I$10 -> 02 et 03/07/2022 Bletterans | Q109: Total des 5 meilleurs
A110: 1 | B110: =IFERROR(VLOOKUP(A110,'Saisie Poussins'!$BE$113:$BF$156,2,FALSE),"") -> 42700680182 | C110: =IFERROR(VLOOKUP($B110,'Saisie Poussins'!$B$13:$AI$56,1+C$1,FALSE),0) -> BOURGES | D110: =IFERROR(VLOOKUP($B110,'Saisie Poussins'!$B$13:$AI$56,1+D$1,FALSE),0) -> Martin | E110: =IFERROR(VLOOKUP($B110,'Saisie Poussins'!$B$13:$AI$56,1+E$1,FALSE),0) -> H | F110: =IFERROR(VLOOKUP($B110,'Saisie Poussins'!$B$13:$AI$56,1+F$1,FALSE),0) -> E.C. LUXEUIL VOSGES SAONO | G110: =IFERROR(VLOOKUP($B110,'Saisie Poussins'!$B$13:$AI$56,1+G$1,FALSE),0) -> Poussin | H110: =IFERROR(VLOOKUP($B110,'Saisie Poussins'!$B$13:$AI$56,1+H$1,FALSE),0) -> 2 | I110: =IFERROR(VLOOKUP($B110,'Saisie Poussins'!$B$113:$AI$156,26+I$1,FALSE),0) -> 50.0000001 | J110: =IFERROR(VLOOKUP($B110,'Saisie Poussins'!$B$113:$AI$156,26+J$1,FALSE),0) -> 50.0000002 | K110: =IFERROR(VLOOKUP($B110,'Saisie Poussins'!$B$113:$AI$156,26+K$1,FALSE),0) -> 0 | L110: =IFERROR(VLOOKUP($B110,'Saisie Poussins'!$B$113:$AI$156,26+L$1,FALSE),0) -> 0 | M110: =IFERROR(VLOOKUP($B110,'Saisie Poussins'!$B$113:$AI$156,26+M$1,FALSE),0) -> 50.0000005 | N110: =IFERROR(VLOOKUP($B110,'Saisie Poussins'!$B$113:$AI$156,26+N$1,FALSE),0) -> 50.0000006 | O110: =IFERROR(VLOOKUP($B110,'Saisie Poussins'!$B$113:$AI$156,26+O$1,FALSE),0) -> 44.000001 | P110: =IFERROR(VLOOKUP($B110,'Saisie Poussins'!$B$113:$AI$156,26+P$1,FALSE),0) -> 0 | Q110: =IF(B110>0,SUM(I110:P110),"") -> 244.0000024
A111: =IFERROR(IF(A110+1<='Saisie Poussins'!$BF$12,A110+1,""),"") -> 2 | B111: =IFERROR(VLOOKUP(A111,'Saisie Poussins'!$BE$113:$BF$156,2,FALSE),"") -> 42250120321 | C111: =IFERROR(VLOOKUP($B111,'Saisie Poussins'!$B$13:$AI$56,1+C$1,FALSE),0) -> GRIME | D111: =IFERROR(VLOOKUP($B111,'Saisie Poussins'!$B$13:$AI$56,1+D$1,FALSE),0) -> Lucas | E111: =IFERROR(VLOOKUP($B111,'Saisie Poussins'!$B$13:$AI$56,1+E$1,FALSE),0) -> H | F111: =IFERROR(VLOOKUP($B111,'Saisie Poussins'!$B$13:$AI$56,1+F$1,FALSE),0) -> V.C.DE MONTBELIARD | G111: =IFERROR(VLOOKUP($B111,'Saisie Poussins'!$B$13:$AI$56,1+G$1,FALSE),0) -> Poussin | H111: =IFERROR(VLOOKUP($B111,'Saisie Poussins'!$B$13:$AI$56,1+H$1,FALSE),0) -> 2 | I111: =IFERROR(VLOOKUP($B111,'Saisie Poussins'!$B$113:$AI$156,26+I$1,FALSE),0) -> 44.0000001 | J111: =IFERROR(VLOOKUP($B111,'Saisie Poussins'!$B$113:$AI$156,26+J$1,FALSE),0) -> 0 | K111: =IFERROR(VLOOKUP($B111,'Saisie Poussins'!$B$113:$AI$156,26+K$1,FALSE),0) -> 50.0000003 | L111: =IFERROR(VLOOKUP($B111,'Saisie Poussins'!$B$113:$AI$156,26+L$1,FALSE),0) -> 0 | M111: =IFERROR(VLOOKUP($B111,'Saisie Poussins'!$B$113:$AI$156,26+M$1,FALSE),0) -> 44.0000005 | N111: =IFERROR(VLOOKUP($B111,'Saisie Poussins'!$B$113:$AI$156,26+N$1,FALSE),0) -> 40.0000006 | O111: =IFERROR(VLOOKUP($B111,'Saisie Poussins'!$B$113:$AI$156,26+O$1,FALSE),0) -> 50.000001 | P111: =IFERROR(VLOOKUP($B111,'Saisie Poussins'!$B$113:$AI$156,26+P$1,FALSE),0) -> 0 | Q111: =IF(B111>0,SUM(I111:P111),"") -> 228.0000025
A112: =IFERROR(IF(A111+1<='Saisie Poussins'!$BF$12,A111+1,""),"") -> 3 | B112: =IFERROR(VLOOKUP(A112,'Saisie Poussins'!$BE$113:$BF$156,2,FALSE),"") -> 42900480124 | C112: =IFERROR(VLOOKUP($B112,'Saisie Poussins'!$B$13:$AI$56,1+C$1,FALSE),0) -> JOURNET | D112: =IFERROR(VLOOKUP($B112,'Saisie Poussins'!$B$13:$AI$56,1+D$1,FALSE),0) -> Paul | E112: =IFERROR(VLOOKUP($B112,'Saisie Poussins'!$B$13:$AI$56,1+E$1,FALSE),0) -> H | F112: =IFERROR(VLOOKUP($B112,'Saisie Poussins'!$B$13:$AI$56,1+F$1,FALSE),0) -> CC BELFORT MIOTTE | G112: =IFERROR(VLOOKUP($B112,'Saisie Poussins'!$B$13:$AI$56,1+G$1,FALSE),0) -> Poussin | H112: =IFERROR(VLOOKUP($B112,'Saisie Poussins'!$B$13:$AI$56,1+H$1,FALSE),0) -> 2 | I112: =IFERROR(VLOOKUP($B112,'Saisie Poussins'!$B$113:$AI$156,26+I$1,FALSE),0) -> 37.0000001 | J112: =IFERROR(VLOOKUP($B112,'Saisie Poussins'!$B$113:$AI$156,26+J$1,FALSE),0) -> 44.0000002 | K112: =IFERROR(VLOOKUP($B112,'Saisie Poussins'!$B$113:$AI$156,26+K$1,FALSE),0) -> 44.0000003 | L112: =IFERROR(VLOOKUP($B112,'Saisie Poussins'!$B$113:$AI$156,26+L$1,FALSE),0) -> 50.0000004 | M112: =IFERROR(VLOOKUP($B112,'Saisie Poussins'!$B$113:$AI$156,26+M$1,FALSE),0) -> 0 | N112: =IFERROR(VLOOKUP($B112,'Saisie Poussins'!$B$113:$AI$156,26+N$1,FALSE),0) -> 0 | O112: =IFERROR(VLOOKUP($B112,'Saisie Poussins'!$B$113:$AI$156,26+O$1,FALSE),0) -> 34.000001 | P112: =IFERROR(VLOOKUP($B112,'Saisie Poussins'!$B$113:$AI$156,26+P$1,FALSE),0) -> 0 | Q112: 209.000002
A113: =IFERROR(IF(A112+1<='Saisie Poussins'!$BF$12,A112+1,""),"") -> 4 | B113: =IFERROR(VLOOKUP(A113,'Saisie Poussins'!$BE$113:$BF$156,2,FALSE),"") -> 42900480168 | C113: =IFERROR(VLOOKUP($B113,'Saisie Poussins'!$B$13:$AI$56,1+C$1,FALSE),0) -> MURATORI | D113: =IFERROR(VLOOKUP($B113,'Saisie Poussins'!$B$13:$AI$56,1+D$1,FALSE),0) -> EZYO | E113: =IFERROR(VLOOKUP($B113,'Saisie Poussins'!$B$13:$AI$56,1+E$1,FALSE),0) -> H | F113: =IFERROR(VLOOKUP($B113,'Saisie Poussins'!$B$13:$AI$56,1+F$1,FALSE),0) -> CC BELFORT MIOTTE | G113: =IFERROR(VLOOKUP($B113,'Saisie Poussins'!$B$13:$AI$56,1+G$1,FALSE),0) -> Poussin | H113: =IFERROR(VLOOKUP($B113,'Saisie Poussins'!$B$13:$AI$56,1+H$1,FALSE),0) -> 2 | I113: =IFERROR(VLOOKUP($B113,'Saisie Poussins'!$B$113:$AI$156,26+I$1,FALSE),0) -> 40.0000001 | J113: =IFERROR(VLOOKUP($B113,'Saisie Poussins'!$B$113:$AI$156,26+J$1,FALSE),0) -> 40.0000002 | K113: =IFERROR(VLOOKUP($B113,'Saisie Poussins'!$B$113:$AI$156,26+K$1,FALSE),0) -> 40.0000003 | L113: =IFERROR(VLOOKUP($B113,'Saisie Poussins'!$B$113:$AI$156,26+L$1,FALSE),0) -> 44.0000004 | M113: =IFERROR(VLOOKUP($B113,'Saisie Poussins'!$B$113:$AI$156,26+M$1,FALSE),0) -> 0 | N113: =IFERROR(VLOOKUP($B113,'Saisie Poussins'!$B$113:$AI$156,26+N$1,FALSE),0) -> 0 | O113: =IFERROR(VLOOKUP($B113,'Saisie Poussins'!$B$113:$AI$156,26+O$1,FALSE),0) -> 37.000001 | P113: =IFERROR(VLOOKUP($B113,'Saisie Poussins'!$B$113:$AI$156,26+P$1,FALSE),0) -> 0 | Q113: 201.000002
A114: =IFERROR(IF(A113+1<='Saisie Poussins'!$BF$12,A113+1,""),"") -> 5 | B114: =IFERROR(VLOOKUP(A114,'Saisie Poussins'!$BE$113:$BF$156,2,FALSE),"") -> 42250181212 | C114: =IFERROR(VLOOKUP($B114,'Saisie Poussins'!$B$13:$AI$56,1+C$1,FALSE),0) -> DEVILLERS | D114: =IFERROR(VLOOKUP($B114,'Saisie Poussins'!$B$13:$AI$56,1+D$1,FALSE),0) -> Louis | E114: =IFERROR(VLOOKUP($B114,'Saisie Poussins'!$B$13:$AI$56,1+E$1,FALSE),0) -> H | F114: =IFERROR(VLOOKUP($B114,'Saisie Poussins'!$B$13:$AI$56,1+F$1,FALSE),0) -> VC MORTEAU MONTBENOIT | G114: =IFERROR(VLOOKUP($B114,'Saisie Poussins'!$B$13:$AI$56,1+G$1,FALSE),0) -> Poussin | H114: =IFERROR(VLOOKUP($B114,'Saisie Poussins'!$B$13:$AI$56,1+H$1,FALSE),0) -> 1 | I114: =IFERROR(VLOOKUP($B114,'Saisie Poussins'!$B$113:$AI$156,26+I$1,FALSE),0) -> 34.0000001 | J114: =IFERROR(VLOOKUP($B114,'Saisie Poussins'!$B$113:$AI$156,26+J$1,FALSE),0) -> 34.0000002 | K114: =IFERROR(VLOOKUP($B114,'Saisie Poussins'!$B$113:$AI$156,26+K$1,FALSE),0) -> 34.0000003 | L114: =IFERROR(VLOOKUP($B114,'Saisie Poussins'!$B$113:$AI$156,26+L$1,FALSE),0) -> 30.0000004 | M114: =IFERROR(VLOOKUP($B114,'Saisie Poussins'!$B$113:$AI$156,26+M$1,FALSE),0) -> 0 | N114: =IFERROR(VLOOKUP($B114,'Saisie Poussins'!$B$113:$AI$156,26+N$1,FALSE),0) -> 0 | O114: =IFERROR(VLOOKUP($B114,'Saisie Poussins'!$B$113:$AI$156,26+O$1,FALSE),0) -> 32.000001 | P114: =IFERROR(VLOOKUP($B114,'Saisie Poussins'!$B$113:$AI$156,26+P$1,FALSE),0) -> 0 | Q114: 164.000002
A115: =IFERROR(IF(A114+1<='Saisie Poussins'!$BF$12,A114+1,""),"") -> 6 | B115: =IFERROR(VLOOKUP(A115,'Saisie Poussins'!$BE$113:$BF$156,2,FALSE),"") -> 42390960384 | C115: =IFERROR(VLOOKUP($B115,'Saisie Poussins'!$B$13:$AI$56,1+C$1,FALSE),0) -> BUGNET | D115: =IFERROR(VLOOKUP($B115,'Saisie Poussins'!$B$13:$AI$56,1+D$1,FALSE),0) -> Lucas | E115: =IFERROR(VLOOKUP($B115,'Saisie Poussins'!$B$13:$AI$56,1+E$1,FALSE),0) -> H | F115: =IFERROR(VLOOKUP($B115,'Saisie Poussins'!$B$13:$AI$56,1+F$1,FALSE),0) -> JURA CYCLISME PAYS DU REVERMONT | G115: =IFERROR(VLOOKUP($B115,'Saisie Poussins'!$B$13:$AI$56,1+G$1,FALSE),0) -> Poussin | H115: =IFERROR(VLOOKUP($B115,'Saisie Poussins'!$B$13:$AI$56,1+H$1,FALSE),0) -> 2 | I115: =IFERROR(VLOOKUP($B115,'Saisie Poussins'!$B$113:$AI$156,26+I$1,FALSE),0) -> 0 | J115: =IFERROR(VLOOKUP($B115,'Saisie Poussins'!$B$113:$AI$156,26+J$1,FALSE),0) -> 0 | K115: =IFERROR(VLOOKUP($B115,'Saisie Poussins'!$B$113:$AI$156,26+K$1,FALSE),0) -> 0 | L115: =IFERROR(VLOOKUP($B115,'Saisie Poussins'!$B$113:$AI$156,26+L$1,FALSE),0) -> 0 | M115: =IFERROR(VLOOKUP($B115,'Saisie Poussins'!$B$113:$AI$156,26+M$1,FALSE),0) -> 40.0000005 | N115: =IFERROR(VLOOKUP($B115,'Saisie Poussins'!$B$113:$AI$156,26+N$1,FALSE),0) -> 30.0000006 | O115: =IFERROR(VLOOKUP($B115,'Saisie Poussins'!$B$113:$AI$156,26+O$1,FALSE),0) -> 40.000001 | P115: =IFERROR(VLOOKUP($B115,'Saisie Poussins'!$B$113:$AI$156,26+P$1,FALSE),0) -> 44.0000008 | Q115: 154.0000029
A116: =IFERROR(IF(A115+1<='Saisie Poussins'!$BF$12,A115+1,""),"") -> 7 | B116: =IFERROR(VLOOKUP(A116,'Saisie Poussins'!$BE$113:$BF$156,2,FALSE),"") -> 42250181174 | C116: =IFERROR(VLOOKUP($B116,'Saisie Poussins'!$B$13:$AI$56,1+C$1,FALSE),0) -> DEVILLERS | D116: =IFERROR(VLOOKUP($B116,'Saisie Poussins'!$B$13:$AI$56,1+D$1,FALSE),0) -> Lylou | E116: =IFERROR(VLOOKUP($B116,'Saisie Poussins'!$B$13:$AI$56,1+E$1,FALSE),0) -> D | F116: =IFERROR(VLOOKUP($B116,'Saisie Poussins'!$B$13:$AI$56,1+F$1,FALSE),0) -> VC MORTEAU MONTBENOIT | G116: =IFERROR(VLOOKUP($B116,'Saisie Poussins'!$B$13:$AI$56,1+G$1,FALSE),0) -> Poussin | H116: =IFERROR(VLOOKUP($B116,'Saisie Poussins'!$B$13:$AI$56,1+H$1,FALSE),0) -> 2 | I116: =IFERROR(VLOOKUP($B116,'Saisie Poussins'!$B$113:$AI$156,26+I$1,FALSE),0) -> 0 | J116: =IFERROR(VLOOKUP($B116,'Saisie Poussins'!$B$113:$AI$156,26+J$1,FALSE),0) -> 28.0000002 | K116: =IFERROR(VLOOKUP($B116,'Saisie Poussins'!$B$113:$AI$156,26+K$1,FALSE),0) -> 28.0000003 | L116: =IFERROR(VLOOKUP($B116,'Saisie Poussins'!$B$113:$AI$156,26+L$1,FALSE),0) -> 34.0000004 | M116: =IFERROR(VLOOKUP($B116,'Saisie Poussins'!$B$113:$AI$156,26+M$1,FALSE),0) -> 0 | N116: =IFERROR(VLOOKUP($B116,'Saisie Poussins'!$B$113:$AI$156,26+N$1,FALSE),0) -> 28.0000006 | O116: =IFERROR(VLOOKUP($B116,'Saisie Poussins'!$B$113:$AI$156,26+O$1,FALSE),0) -> 26.000001 | P116: =IFERROR(VLOOKUP($B116,'Saisie Poussins'!$B$113:$AI$156,26+P$1,FALSE),0) -> 0 | Q116: 144.0000025
A117: =IFERROR(IF(A116+1<='Saisie Poussins'!$BF$12,A116+1,""),"") -> 8 | B117: =IFERROR(VLOOKUP(A117,'Saisie Poussins'!$BE$113:$BF$156,2,FALSE),"") -> 42700680166 | C117: =IFERROR(VLOOKUP($B117,'Saisie Poussins'!$B$13:$AI$56,1+C$1,FALSE),0) -> ANDRE | D117: =IFERROR(VLOOKUP($B117,'Saisie Poussins'!$B$13:$AI$56,1+D$1,FALSE),0) -> Louane | E117: =IFERROR(VLOOKUP($B117,'Saisie Poussins'!$B$13:$AI$56,1+E$1,FALSE),0) -> D | F117: =IFERROR(VLOOKUP($B117,'Saisie Poussins'!$B$13:$AI$56,1+F$1,FALSE),0) -> E.C. LUXEUIL VOSGES SAONO | G117: =IFERROR(VLOOKUP($B117,'Saisie Poussins'!$B$13:$AI$56,1+G$1,FALSE),0) -> Poussin | H117: =IFERROR(VLOOKUP($B117,'Saisie Poussins'!$B$13:$AI$56,1+H$1,FALSE),0) -> 2 | I117: =IFERROR(VLOOKUP($B117,'Saisie Poussins'!$B$113:$AI$156,26+I$1,FALSE),0) -> 24.0000001 | J117: =IFERROR(VLOOKUP($B117,'Saisie Poussins'!$B$113:$AI$156,26+J$1,FALSE),0) -> 24.0000002 | K117: =IFERROR(VLOOKUP($B117,'Saisie Poussins'!$B$113:$AI$156,26+K$1,FALSE),0) -> 32.0000003 | L117: =IFERROR(VLOOKUP($B117,'Saisie Poussins'!$B$113:$AI$156,26+L$1,FALSE),0) -> 0 | M117: =IFERROR(VLOOKUP($B117,'Saisie Poussins'!$B$113:$AI$156,26+M$1,FALSE),0) -> 0 | N117: =IFERROR(VLOOKUP($B117,'Saisie Poussins'!$B$113:$AI$156,26+N$1,FALSE),0) -> 0 | O117: =IFERROR(VLOOKUP($B117,'Saisie Poussins'!$B$113:$AI$156,26+O$1,FALSE),0) -> 22.000001 | P117: =IFERROR(VLOOKUP($B117,'Saisie Poussins'!$B$113:$AI$156,26+P$1,FALSE),0) -> 22.0000008 | Q117: 124.0000024
A118: =IFERROR(IF(A117+1<='Saisie Poussins'!$BF$12,A117+1,""),"") -> 9 | B118: =IFERROR(VLOOKUP(A118,'Saisie Poussins'!$BE$113:$BF$156,2,FALSE),"") -> 42700060276 | C118: =IFERROR(VLOOKUP($B118,'Saisie Poussins'!$B$13:$AI$56,1+C$1,FALSE),0) -> TAILHARDAT | D118: =IFERROR(VLOOKUP($B118,'Saisie Poussins'!$B$13:$AI$56,1+D$1,FALSE),0) -> Célestin | E118: =IFERROR(VLOOKUP($B118,'Saisie Poussins'!$B$13:$AI$56,1+E$1,FALSE),0) -> H | F118: =IFERROR(VLOOKUP($B118,'Saisie Poussins'!$B$13:$AI$56,1+F$1,FALSE),0) -> ROUE D`OR NOIDANS | G118: =IFERROR(VLOOKUP($B118,'Saisie Poussins'!$B$13:$AI$56,1+G$1,FALSE),0) -> Poussin | H118: =IFERROR(VLOOKUP($B118,'Saisie Poussins'!$B$13:$AI$56,1+H$1,FALSE),0) -> 1 | I118: =IFERROR(VLOOKUP($B118,'Saisie Poussins'!$B$113:$AI$156,26+I$1,FALSE),0) -> 30.0000001 | J118: =IFERROR(VLOOKUP($B118,'Saisie Poussins'!$B$113:$AI$156,26+J$1,FALSE),0) -> 0 | K118: =IFERROR(VLOOKUP($B118,'Saisie Poussins'!$B$113:$AI$156,26+K$1,FALSE),0) -> 0 | L118: =IFERROR(VLOOKUP($B118,'Saisie Poussins'!$B$113:$AI$156,26+L$1,FALSE),0) -> 32.0000004 | M118: =IFERROR(VLOOKUP($B118,'Saisie Poussins'!$B$113:$AI$156,26+M$1,FALSE),0) -> 30.0000005 | N118: =IFERROR(VLOOKUP($B118,'Saisie Poussins'!$B$113:$AI$156,26+N$1,FALSE),0) -> 0 | O118: =IFERROR(VLOOKUP($B118,'Saisie Poussins'!$B$113:$AI$156,26+O$1,FALSE),0) -> 30.000001 | P118: =IFERROR(VLOOKUP($B118,'Saisie Poussins'!$B$113:$AI$156,26+P$1,FALSE),0) -> 0 | Q118: 122.000002
A119: =IFERROR(IF(A118+1<='Saisie Poussins'!$BF$12,A118+1,""),"") -> 10 | B119: =IFERROR(VLOOKUP(A119,'Saisie Poussins'!$BE$113:$BF$156,2,FALSE),"") -> 42250181227 | C119: =IFERROR(VLOOKUP($B119,'Saisie Poussins'!$B$13:$AI$56,1+C$1,FALSE),0) -> DROZ VINCENT | D119: =IFERROR(VLOOKUP($B119,'Saisie Poussins'!$B$13:$AI$56,1+D$1,FALSE),0) -> Robin | E119: =IFERROR(VLOOKUP($B119,'Saisie Poussins'!$B$13:$AI$56,1+E$1,FALSE),0) -> H | F119: =IFERROR(VLOOKUP($B119,'Saisie Poussins'!$B$13:$AI$56,1+F$1,FALSE),0) -> VC MORTEAU MONTBENOIT | G119: =IFERROR(VLOOKUP($B119,'Saisie Poussins'!$B$13:$AI$56,1+G$1,FALSE),0) -> Poussin | H119: =IFERROR(VLOOKUP($B119,'Saisie Poussins'!$B$13:$AI$56,1+H$1,FALSE),0) -> 2 | I119: =IFERROR(VLOOKUP($B119,'Saisie Poussins'!$B$113:$AI$156,26+I$1,FALSE),0) -> 0 | J119: =IFERROR(VLOOKUP($B119,'Saisie Poussins'!$B$113:$AI$156,26+J$1,FALSE),0) -> 0 | K119: =IFERROR(VLOOKUP($B119,'Saisie Poussins'!$B$113:$AI$156,26+K$1,FALSE),0) -> 0 | L119: =IFERROR(VLOOKUP($B119,'Saisie Poussins'!$B$113:$AI$156,26+L$1,FALSE),0) -> 28.0000004 | M119: =IFERROR(VLOOKUP($B119,'Saisie Poussins'!$B$113:$AI$156,26+M$1,FALSE),0) -> 34.0000005 | N119: =IFERROR(VLOOKUP($B119,'Saisie Poussins'!$B$113:$AI$156,26+N$1,FALSE),0) -> 0 | O119: =IFERROR(VLOOKUP($B119,'Saisie Poussins'!$B$113:$AI$156,26+O$1,FALSE),0) -> 24.000001 | P119: =IFERROR(VLOOKUP($B119,'Saisie Poussins'!$B$113:$AI$156,26+P$1,FALSE),0) -> 24.0000008 | Q119: 110.0000027
A120: =IFERROR(IF(A119+1<='Saisie Poussins'!$BF$12,A119+1,""),"") -> 11 | B120: =IFERROR(VLOOKUP(A120,'Saisie Poussins'!$BE$113:$BF$156,2,FALSE),"") -> 42700060248 | C120: =IFERROR(VLOOKUP($B120,'Saisie Poussins'!$B$13:$AI$56,1+C$1,FALSE),0) -> BOISSON | D120: =IFERROR(VLOOKUP($B120,'Saisie Poussins'!$B$13:$AI$56,1+D$1,FALSE),0) -> Marius | E120: =IFERROR(VLOOKUP($B120,'Saisie Poussins'!$B$13:$AI$56,1+E$1,FALSE),0) -> H | F120: =IFERROR(VLOOKUP($B120,'Saisie Poussins'!$B$13:$AI$56,1+F$1,FALSE),0) -> ROUE D`OR NOIDANS | G120: =IFERROR(VLOOKUP($B120,'Saisie Poussins'!$B$13:$AI$56,1+G$1,FALSE),0) -> Poussin | H120: =IFERROR(VLOOKUP($B120,'Saisie Poussins'!$B$13:$AI$56,1+H$1,FALSE),0) -> 1 | I120: =IFERROR(VLOOKUP($B120,'Saisie Poussins'!$B$113:$AI$156,26+I$1,FALSE),0) -> 32.0000001 | J120: =IFERROR(VLOOKUP($B120,'Saisie Poussins'!$B$113:$AI$156,26+J$1,FALSE),0) -> 32.0000002 | K120: =IFERROR(VLOOKUP($B120,'Saisie Poussins'!$B$113:$AI$156,26+K$1,FALSE),0) -> 0 | L120: =IFERROR(VLOOKUP($B120,'Saisie Poussins'!$B$113:$AI$156,26+L$1,FALSE),0) -> 26.0000004 | M120: =IFERROR(VLOOKUP($B120,'Saisie Poussins'!$B$113:$AI$156,26+M$1,FALSE),0) -> 0 | N120: =IFERROR(VLOOKUP($B120,'Saisie Poussins'!$B$113:$AI$156,26+N$1,FALSE),0) -> 0 | O120: =IFERROR(VLOOKUP($B120,'Saisie Poussins'!$B$113:$AI$156,26+O$1,FALSE),0) -> 15.000001 | P120: =IFERROR(VLOOKUP($B120,'Saisie Poussins'!$B$113:$AI$156,26+P$1,FALSE),0) -> 0 | Q120: 105.0000017
A121: =IFERROR(IF(A120+1<='Saisie Poussins'!$BF$12,A120+1,""),"") -> 12 | B121: =IFERROR(VLOOKUP(A121,'Saisie Poussins'!$BE$113:$BF$156,2,FALSE),"") -> 42900360346 | C121: =IFERROR(VLOOKUP($B121,'Saisie Poussins'!$B$13:$AI$56,1+C$1,FALSE),0) -> STADLER | D121: =IFERROR(VLOOKUP($B121,'Saisie Poussins'!$B$13:$AI$56,1+D$1,FALSE),0) -> Gwennaelle | E121: =IFERROR(VLOOKUP($B121,'Saisie Poussins'!$B$13:$AI$56,1+E$1,FALSE),0) -> D | F121: =IFERROR(VLOOKUP($B121,'Saisie Poussins'!$B$13:$AI$56,1+F$1,FALSE),0) -> A.C.T. BELFORT | G121: =IFERROR(VLOOKUP($B121,'Saisie Poussins'!$B$13:$AI$56,1+G$1,FALSE),0) -> Poussin | H121: =IFERROR(VLOOKUP($B121,'Saisie Poussins'!$B$13:$AI$56,1+H$1,FALSE),0) -> 1 | I121: =IFERROR(VLOOKUP($B121,'Saisie Poussins'!$B$113:$AI$156,26+I$1,FALSE),0) -> 21.0000001 | J121: =IFERROR(VLOOKUP($B121,'Saisie Poussins'!$B$113:$AI$156,26+J$1,FALSE),0) -> 26.0000002 | K121: =IFERROR(VLOOKUP($B121,'Saisie Poussins'!$B$113:$AI$156,26+K$1,FALSE),0) -> 26.0000003 | L121: =IFERROR(VLOOKUP($B121,'Saisie Poussins'!$B$113:$AI$156,26+L$1,FALSE),0) -> 0 | M121: =IFERROR(VLOOKUP($B121,'Saisie Poussins'!$B$113:$AI$156,26+M$1,FALSE),0) -> 0 | N121: =IFERROR(VLOOKUP($B121,'Saisie Poussins'!$B$113:$AI$156,26+N$1,FALSE),0) -> 0 | O121: =IFERROR(VLOOKUP($B121,'Saisie Poussins'!$B$113:$AI$156,26+O$1,FALSE),0) -> 12.000001 | P121: =IFERROR(VLOOKUP($B121,'Saisie Poussins'!$B$113:$AI$156,26+P$1,FALSE),0) -> 19.0000008 | Q121: 104.0000024
A122: =IFERROR(IF(A121+1<='Saisie Poussins'!$BF$12,A121+1,""),"") -> 13 | B122: =IFERROR(VLOOKUP(A122,'Saisie Poussins'!$BE$113:$BF$156,2,FALSE),"") -> 42700680157 | C122: =IFERROR(VLOOKUP($B122,'Saisie Poussins'!$B$13:$AI$56,1+C$1,FALSE),0) -> BARBASON | D122: =IFERROR(VLOOKUP($B122,'Saisie Poussins'!$B$13:$AI$56,1+D$1,FALSE),0) -> Jean | E122: =IFERROR(VLOOKUP($B122,'Saisie Poussins'!$B$13:$AI$56,1+E$1,FALSE),0) -> H | F122: =IFERROR(VLOOKUP($B122,'Saisie Poussins'!$B$13:$AI$56,1+F$1,FALSE),0) -> E.C. LUXEUIL VOSGES SAONO | G122: =IFERROR(VLOOKUP($B122,'Saisie Poussins'!$B$13:$AI$56,1+G$1,FALSE),0) -> Poussin | H122: =IFERROR(VLOOKUP($B122,'Saisie Poussins'!$B$13:$AI$56,1+H$1,FALSE),0) -> 2 | I122: =IFERROR(VLOOKUP($B122,'Saisie Poussins'!$B$113:$AI$156,26+I$1,FALSE),0) -> 28.0000001 | J122: =IFERROR(VLOOKUP($B122,'Saisie Poussins'!$B$113:$AI$156,26+J$1,FALSE),0) -> 37.0000002 | K122: =IFERROR(VLOOKUP($B122,'Saisie Poussins'!$B$113:$AI$156,26+K$1,FALSE),0) -> 0 | L122: =IFERROR(VLOOKUP($B122,'Saisie Poussins'!$B$113:$AI$156,26+L$1,FALSE),0) -> 0 | M122: =IFERROR(VLOOKUP($B122,'Saisie Poussins'!$B$113:$AI$156,26+M$1,FALSE),0) -> 0 | N122: =IFERROR(VLOOKUP($B122,'Saisie Poussins'!$B$113:$AI$156,26+N$1,FALSE),0) -> 0 | O122: =IFERROR(VLOOKUP($B122,'Saisie Poussins'!$B$113:$AI$156,26+O$1,FALSE),0) -> 28.000001 | P122: =IFERROR(VLOOKUP($B122,'Saisie Poussins'!$B$113:$AI$156,26+P$1,FALSE),0) -> 0 | Q122: 93.0000013
A123: =IFERROR(IF(A122+1<='Saisie Poussins'!$BF$12,A122+1,""),"") -> 14 | B123: =IFERROR(VLOOKUP(A123,'Saisie Poussins'!$BE$113:$BF$156,2,FALSE),"") -> 42250010005 | C123: =IFERROR(VLOOKUP($B123,'Saisie Poussins'!$B$13:$AI$56,1+C$1,FALSE),0) -> CLEMENT | D123: =IFERROR(VLOOKUP($B123,'Saisie Poussins'!$B$13:$AI$56,1+D$1,FALSE),0) -> Marius | E123: =IFERROR(VLOOKUP($B123,'Saisie Poussins'!$B$13:$AI$56,1+E$1,FALSE),0) -> H | F123: =IFERROR(VLOOKUP($B123,'Saisie Poussins'!$B$13:$AI$56,1+F$1,FALSE),0) -> TEAM COBRA CYCLING | G123: =IFERROR(VLOOKUP($B123,'Saisie Poussins'!$B$13:$AI$56,1+G$1,FALSE),0) -> Poussin | H123: =IFERROR(VLOOKUP($B123,'Saisie Poussins'!$B$13:$AI$56,1+H$1,FALSE),0) -> 1 | I123: =IFERROR(VLOOKUP($B123,'Saisie Poussins'!$B$113:$AI$156,26+I$1,FALSE),0) -> 0 | J123: =IFERROR(VLOOKUP($B123,'Saisie Poussins'!$B$113:$AI$156,26+J$1,FALSE),0) -> 0 | K123: =IFERROR(VLOOKUP($B123,'Saisie Poussins'!$B$113:$AI$156,26+K$1,FALSE),0) -> 0 | L123: =IFERROR(VLOOKUP($B123,'Saisie Poussins'!$B$113:$AI$156,26+L$1,FALSE),0) -> 0 | M123: =IFERROR(VLOOKUP($B123,'Saisie Poussins'!$B$113:$AI$156,26+M$1,FALSE),0) -> 0 | N123: =IFERROR(VLOOKUP($B123,'Saisie Poussins'!$B$113:$AI$156,26+N$1,FALSE),0) -> 37.0000006 | O123: =IFERROR(VLOOKUP($B123,'Saisie Poussins'!$B$113:$AI$156,26+O$1,FALSE),0) -> 0 | P123: =IFERROR(VLOOKUP($B123,'Saisie Poussins'!$B$113:$AI$156,26+P$1,FALSE),0) -> 50.0000008 | Q123: 87.0000014
A124: =IFERROR(IF(A123+1<='Saisie Poussins'!$BF$12,A123+1,""),"") -> 15 | B124: =IFERROR(VLOOKUP(A124,'Saisie Poussins'!$BE$113:$BF$156,2,FALSE),"") -> 42700680169 | C124: =IFERROR(VLOOKUP($B124,'Saisie Poussins'!$B$13:$AI$56,1+C$1,FALSE),0) -> BRY | D124: =IFERROR(VLOOKUP($B124,'Saisie Poussins'!$B$13:$AI$56,1+D$1,FALSE),0) -> Eliott | E124: =IFERROR(VLOOKUP($B124,'Saisie Poussins'!$B$13:$AI$56,1+E$1,FALSE),0) -> H | F124: =IFERROR(VLOOKUP($B124,'Saisie Poussins'!$B$13:$AI$56,1+F$1,FALSE),0) -> E.C. LUXEUIL VOSGES SAONO | G124: =IFERROR(VLOOKUP($B124,'Saisie Poussins'!$B$13:$AI$56,1+G$1,FALSE),0) -> Poussin | H124: =IFERROR(VLOOKUP($B124,'Saisie Poussins'!$B$13:$AI$56,1+H$1,FALSE),0) -> 1 | I124: =IFERROR(VLOOKUP($B124,'Saisie Poussins'!$B$113:$AI$156,26+I$1,FALSE),0) -> 26.0000001 | J124: =IFERROR(VLOOKUP($B124,'Saisie Poussins'!$B$113:$AI$156,26+J$1,FALSE),0) -> 0 | K124: =IFERROR(VLOOKUP($B124,'Saisie Poussins'!$B$113:$AI$156,26+K$1,FALSE),0) -> 37.0000003 | L124: =IFERROR(VLOOKUP($B124,'Saisie Poussins'!$B$113:$AI$156,26+L$1,FALSE),0) -> 0 | M124: =IFERROR(VLOOKUP($B124,'Saisie Poussins'!$B$113:$AI$156,26+M$1,FALSE),0) -> 0 | N124: =IFERROR(VLOOKUP($B124,'Saisie Poussins'!$B$113:$AI$156,26+N$1,FALSE),0) -> 0 | O124: =IFERROR(VLOOKUP($B124,'Saisie Poussins'!$B$113:$AI$156,26+O$1,FALSE),0) -> 20.000001 | P124: =IFERROR(VLOOKUP($B124,'Saisie Poussins'!$B$113:$AI$156,26+P$1,FALSE),0) -> 0 | Q124: 83.0000014
A125: =IFERROR(IF(A124+1<='Saisie Poussins'!$BF$12,A124+1,""),"") -> 16 | B125: =IFERROR(VLOOKUP(A125,'Saisie Poussins'!$BE$113:$BF$156,2,FALSE),"") -> 42900480174 | C125: =IFERROR(VLOOKUP($B125,'Saisie Poussins'!$B$13:$AI$56,1+C$1,FALSE),0) -> FIEUX | D125: =IFERROR(VLOOKUP($B125,'Saisie Poussins'!$B$13:$AI$56,1+D$1,FALSE),0) -> Paul | E125: =IFERROR(VLOOKUP($B125,'Saisie Poussins'!$B$13:$AI$56,1+E$1,FALSE),0) -> H | F125: =IFERROR(VLOOKUP($B125,'Saisie Poussins'!$B$13:$AI$56,1+F$1,FALSE),0) -> CC BELFORT MIOTTE | G125: =IFERROR(VLOOKUP($B125,'Saisie Poussins'!$B$13:$AI$56,1+G$1,FALSE),0) -> Poussin | H125: =IFERROR(VLOOKUP($B125,'Saisie Poussins'!$B$13:$AI$56,1+H$1,FALSE),0) -> 2 | I125: =IFERROR(VLOOKUP($B125,'Saisie Poussins'!$B$113:$AI$156,26+I$1,FALSE),0) -> 0 | J125: =IFERROR(VLOOKUP($B125,'Saisie Poussins'!$B$113:$AI$156,26+J$1,FALSE),0) -> 30.0000002 | K125: =IFERROR(VLOOKUP($B125,'Saisie Poussins'!$B$113:$AI$156,26+K$1,FALSE),0) -> 22.0000003 | L125: =IFERROR(VLOOKUP($B125,'Saisie Poussins'!$B$113:$AI$156,26+L$1,FALSE),0) -> 24.0000004 | M125: =IFERROR(VLOOKUP($B125,'Saisie Poussins'!$B$113:$AI$156,26+M$1,FALSE),0) -> 0 | N125: =IFERROR(VLOOKUP($B125,'Saisie Poussins'!$B$113:$AI$156,26+N$1,FALSE),0) -> 0 | O125: =IFERROR(VLOOKUP($B125,'Saisie Poussins'!$B$113:$AI$156,26+O$1,FALSE),0) -> 0 | P125: =IFERROR(VLOOKUP($B125,'Saisie Poussins'!$B$113:$AI$156,26+P$1,FALSE),0) -> 0 | Q125: 76.0000009
A126: =IFERROR(IF(A125+1<='Saisie Poussins'!$BF$12,A125+1,""),"") -> 17 | B126: =IFERROR(VLOOKUP(A126,'Saisie Poussins'!$BE$113:$BF$156,2,FALSE),"") -> 42250510156 | C126: =IFERROR(VLOOKUP($B126,'Saisie Poussins'!$B$13:$AI$56,1+C$1,FALSE),0) -> COUR | D126: =IFERROR(VLOOKUP($B126,'Saisie Poussins'!$B$13:$AI$56,1+D$1,FALSE),0) -> ANAEL | E126: =IFERROR(VLOOKUP($B126,'Saisie Poussins'!$B$13:$AI$56,1+E$1,FALSE),0) -> H | F126: =IFERROR(VLOOKUP($B126,'Saisie Poussins'!$B$13:$AI$56,1+F$1,FALSE),0) -> BAUME LES DAMES | G126: =IFERROR(VLOOKUP($B126,'Saisie Poussins'!$B$13:$AI$56,1+G$1,FALSE),0) -> Poussin | H126: =IFERROR(VLOOKUP($B126,'Saisie Poussins'!$B$13:$AI$56,1+H$1,FALSE),0) -> 2 | I126: =IFERROR(VLOOKUP($B126,'Saisie Poussins'!$B$113:$AI$156,26+I$1,FALSE),0) -> 0 | J126: =IFERROR(VLOOKUP($B126,'Saisie Poussins'!$B$113:$AI$156,26+J$1,FALSE),0) -> 0 | K126: =IFERROR(VLOOKUP($B126,'Saisie Poussins'!$B$113:$AI$156,26+K$1,FALSE),0) -> 0 | L126: =IFERROR(VLOOKUP($B126,'Saisie Poussins'!$B$113:$AI$156,26+L$1,FALSE),0) -> 37.0000004 | M126: =IFERROR(VLOOKUP($B126,'Saisie Poussins'!$B$113:$AI$156,26+M$1,FALSE),0) -> 26.0000005 | N126: =IFERROR(VLOOKUP($B126,'Saisie Poussins'!$B$113:$AI$156,26+N$1,FALSE),0) -> 0 | O126: =IFERROR(VLOOKUP($B126,'Saisie Poussins'!$B$113:$AI$156,26+O$1,FALSE),0) -> 0 | P126: =IFERROR(VLOOKUP($B126,'Saisie Poussins'!$B$113:$AI$156,26+P$1,FALSE),0) -> 0 | Q126: 63.0000009
A127: =IFERROR(IF(A126+1<='Saisie Poussins'!$BF$12,A126+1,""),"") -> 18 | B127: =IFERROR(VLOOKUP(A127,'Saisie Poussins'!$BE$113:$BF$156,2,FALSE),"") -> 42700680168 | C127: =IFERROR(VLOOKUP($B127,'Saisie Poussins'!$B$13:$AI$56,1+C$1,FALSE),0) -> CLERC | D127: =IFERROR(VLOOKUP($B127,'Saisie Poussins'!$B$13:$AI$56,1+D$1,FALSE),0) -> Zoé | E127: =IFERROR(VLOOKUP($B127,'Saisie Poussins'!$B$13:$AI$56,1+E$1,FALSE),0) -> H | F127: =IFERROR(VLOOKUP($B127,'Saisie Poussins'!$B$13:$AI$56,1+F$1,FALSE),0) -> E.C. LUXEUIL VOSGES SAONO | G127: =IFERROR(VLOOKUP($B127,'Saisie Poussins'!$B$13:$AI$56,1+G$1,FALSE),0) -> Poussin | H127: =IFERROR(VLOOKUP($B127,'Saisie Poussins'!$B$13:$AI$56,1+H$1,FALSE),0) -> 2 | I127: =IFERROR(VLOOKUP($B127,'Saisie Poussins'!$B$113:$AI$156,26+I$1,FALSE),0) -> 20.0000001 | J127: =IFERROR(VLOOKUP($B127,'Saisie Poussins'!$B$113:$AI$156,26+J$1,FALSE),0) -> 0 | K127: =IFERROR(VLOOKUP($B127,'Saisie Poussins'!$B$113:$AI$156,26+K$1,FALSE),0) -> 0 | L127: =IFERROR(VLOOKUP($B127,'Saisie Poussins'!$B$113:$AI$156,26+L$1,FALSE),0) -> 0 | M127: =IFERROR(VLOOKUP($B127,'Saisie Poussins'!$B$113:$AI$156,26+M$1,FALSE),0) -> 0 | N127: =IFERROR(VLOOKUP($B127,'Saisie Poussins'!$B$113:$AI$156,26+N$1,FALSE),0) -> 0 | O127: =IFERROR(VLOOKUP($B127,'Saisie Poussins'!$B$113:$AI$156,26+O$1,FALSE),0) -> 16.000001 | P127: =IFERROR(VLOOKUP($B127,'Saisie Poussins'!$B$113:$AI$156,26+P$1,FALSE),0) -> 21.0000008 | Q127: 57.0000019
A128: =IFERROR(IF(A127+1<='Saisie Poussins'!$BF$12,A127+1,""),"") -> 19 | B128: =IFERROR(VLOOKUP(A128,'Saisie Poussins'!$BE$113:$BF$156,2,FALSE),"") -> 41690260501 | C128: =IFERROR(VLOOKUP($B128,'Saisie Poussins'!$B$13:$AI$56,1+C$1,FALSE),0) -> JACQUES | D128: =IFERROR(VLOOKUP($B128,'Saisie Poussins'!$B$13:$AI$56,1+D$1,FALSE),0) -> Albert | E128: =IFERROR(VLOOKUP($B128,'Saisie Poussins'!$B$13:$AI$56,1+E$1,FALSE),0) -> H | F128: =IFERROR(VLOOKUP($B128,'Saisie Poussins'!$B$13:$AI$56,1+F$1,FALSE),0) -> LYON SPRINT EVOLUTION | G128: =IFERROR(VLOOKUP($B128,'Saisie Poussins'!$B$13:$AI$56,1+G$1,FALSE),0) -> Poussin | H128: =IFERROR(VLOOKUP($B128,'Saisie Poussins'!$B$13:$AI$56,1+H$1,FALSE),0) -> 2 | I128: =IFERROR(VLOOKUP($B128,'Saisie Poussins'!$B$113:$AI$156,26+I$1,FALSE),0) -> 0 | J128: =IFERROR(VLOOKUP($B128,'Saisie Poussins'!$B$113:$AI$156,26+J$1,FALSE),0) -> 0 | K128: =IFERROR(VLOOKUP($B128,'Saisie Poussins'!$B$113:$AI$156,26+K$1,FALSE),0) -> 0 | L128: =IFERROR(VLOOKUP($B128,'Saisie Poussins'!$B$113:$AI$156,26+L$1,FALSE),0) -> 0 | M128: =IFERROR(VLOOKUP($B128,'Saisie Poussins'!$B$113:$AI$156,26+M$1,FALSE),0) -> 0 | N128: =IFERROR(VLOOKUP($B128,'Saisie Poussins'!$B$113:$AI$156,26+N$1,FALSE),0) -> 44.0000006 | O128: =IFERROR(VLOOKUP($B128,'Saisie Poussins'!$B$113:$AI$156,26+O$1,FALSE),0) -> 0 | P128: =IFERROR(VLOOKUP($B128,'Saisie Poussins'!$B$113:$AI$156,26+P$1,FALSE),0) -> 0 | Q128: 44.0000006
A129: =IFERROR(IF(A128+1<='Saisie Poussins'!$BF$12,A128+1,""),"") -> 20 | B129: =IFERROR(VLOOKUP(A129,'Saisie Poussins'!$BE$113:$BF$156,2,FALSE),"") -> 42250120353 | C129: =IFERROR(VLOOKUP($B129,'Saisie Poussins'!$B$13:$AI$56,1+C$1,FALSE),0) -> PLANTEVIN BIRON | D129: =IFERROR(VLOOKUP($B129,'Saisie Poussins'!$B$13:$AI$56,1+D$1,FALSE),0) -> Antonia | E129: =IFERROR(VLOOKUP($B129,'Saisie Poussins'!$B$13:$AI$56,1+E$1,FALSE),0) -> D | F129: =IFERROR(VLOOKUP($B129,'Saisie Poussins'!$B$13:$AI$56,1+F$1,FALSE),0) -> V.C.DE MONTBELIARD | G129: =IFERROR(VLOOKUP($B129,'Saisie Poussins'!$B$13:$AI$56,1+G$1,FALSE),0) -> Poussin | H129: =IFERROR(VLOOKUP($B129,'Saisie Poussins'!$B$13:$AI$56,1+H$1,FALSE),0) -> 1 | I129: =IFERROR(VLOOKUP($B129,'Saisie Poussins'!$B$113:$AI$156,26+I$1,FALSE),0) -> 0 | J129: =IFERROR(VLOOKUP($B129,'Saisie Poussins'!$B$113:$AI$156,26+J$1,FALSE),0) -> 0 | K129: =IFERROR(VLOOKUP($B129,'Saisie Poussins'!$B$113:$AI$156,26+K$1,FALSE),0) -> 0 | L129: =IFERROR(VLOOKUP($B129,'Saisie Poussins'!$B$113:$AI$156,26+L$1,FALSE),0) -> 0 | M129: =IFERROR(VLOOKUP($B129,'Saisie Poussins'!$B$113:$AI$156,26+M$1,FALSE),0) -> 0 | N129: =IFERROR(VLOOKUP($B129,'Saisie Poussins'!$B$113:$AI$156,26+N$1,FALSE),0) -> 0 | O129: =IFERROR(VLOOKUP($B129,'Saisie Poussins'!$B$113:$AI$156,26+O$1,FALSE),0) -> 14.000001 | P129: =IFERROR(VLOOKUP($B129,'Saisie Poussins'!$B$113:$AI$156,26+P$1,FALSE),0) -> 20.0000008 | Q129: 34.0000018
A130: =IFERROR(IF(A129+1<='Saisie Poussins'!$BF$12,A129+1,""),"") -> 21 | B130: =IFERROR(VLOOKUP(A130,'Saisie Poussins'!$BE$113:$BF$156,2,FALSE),"") -> 42250120377 | C130: =IFERROR(VLOOKUP($B130,'Saisie Poussins'!$B$13:$AI$56,1+C$1,FALSE),0) -> GAUROIS | D130: =IFERROR(VLOOKUP($B130,'Saisie Poussins'!$B$13:$AI$56,1+D$1,FALSE),0) -> Matthias | E130: =IFERROR(VLOOKUP($B130,'Saisie Poussins'!$B$13:$AI$56,1+E$1,FALSE),0) -> H | F130: =IFERROR(VLOOKUP($B130,'Saisie Poussins'!$B$13:$AI$56,1+F$1,FALSE),0) -> V.C.DE MONTBELIARD | G130: =IFERROR(VLOOKUP($B130,'Saisie Poussins'!$B$13:$AI$56,1+G$1,FALSE),0) -> Poussin | H130: =IFERROR(VLOOKUP($B130,'Saisie Poussins'!$B$13:$AI$56,1+H$1,FALSE),0) -> 2 | I130: =IFERROR(VLOOKUP($B130,'Saisie Poussins'!$B$113:$AI$156,26+I$1,FALSE),0) -> 0 | J130: =IFERROR(VLOOKUP($B130,'Saisie Poussins'!$B$113:$AI$156,26+J$1,FALSE),0) -> 24.0000002 | K130: =IFERROR(VLOOKUP($B130,'Saisie Poussins'!$B$113:$AI$156,26+K$1,FALSE),0) -> 0 | L130: =IFERROR(VLOOKUP($B130,'Saisie Poussins'!$B$113:$AI$156,26+L$1,FALSE),0) -> 0 | M130: =IFERROR(VLOOKUP($B130,'Saisie Poussins'!$B$113:$AI$156,26+M$1,FALSE),0) -> 0 | N130: =IFERROR(VLOOKUP($B130,'Saisie Poussins'!$B$113:$AI$156,26+N$1,FALSE),0) -> 0 | O130: =IFERROR(VLOOKUP($B130,'Saisie Poussins'!$B$113:$AI$156,26+O$1,FALSE),0) -> 10.000001 | P130: =IFERROR(VLOOKUP($B130,'Saisie Poussins'!$B$113:$AI$156,26+P$1,FALSE),0) -> 0 | Q130: 34.0000012
A131: =IFERROR(IF(A130+1<='Saisie Poussins'!$BF$12,A130+1,""),"") -> 22 | B131: =IFERROR(VLOOKUP(A131,'Saisie Poussins'!$BE$113:$BF$156,2,FALSE),"") -> 42390330277 | C131: =IFERROR(VLOOKUP($B131,'Saisie Poussins'!$B$13:$AI$56,1+C$1,FALSE),0) -> BELLENOUE | D131: =IFERROR(VLOOKUP($B131,'Saisie Poussins'!$B$13:$AI$56,1+D$1,FALSE),0) -> Antone | E131: =IFERROR(VLOOKUP($B131,'Saisie Poussins'!$B$13:$AI$56,1+E$1,FALSE),0) -> M | F131: =IFERROR(VLOOKUP($B131,'Saisie Poussins'!$B$13:$AI$56,1+F$1,FALSE),0) -> GUIDON BLETTERANOIS | G131: =IFERROR(VLOOKUP($B131,'Saisie Poussins'!$B$13:$AI$56,1+G$1,FALSE),0) -> Poussin | H131: =IFERROR(VLOOKUP($B131,'Saisie Poussins'!$B$13:$AI$56,1+H$1,FALSE),0) -> 2 | I131: =IFERROR(VLOOKUP($B131,'Saisie Poussins'!$B$113:$AI$156,26+I$1,FALSE),0) -> 0 | J131: =IFERROR(VLOOKUP($B131,'Saisie Poussins'!$B$113:$AI$156,26+J$1,FALSE),0) -> 0 | K131: =IFERROR(VLOOKUP($B131,'Saisie Poussins'!$B$113:$AI$156,26+K$1,FALSE),0) -> 0 | L131: =IFERROR(VLOOKUP($B131,'Saisie Poussins'!$B$113:$AI$156,26+L$1,FALSE),0) -> 0 | M131: =IFERROR(VLOOKUP($B131,'Saisie Poussins'!$B$113:$AI$156,26+M$1,FALSE),0) -> 0 | N131: =IFERROR(VLOOKUP($B131,'Saisie Poussins'!$B$113:$AI$156,26+N$1,FALSE),0) -> 0 | O131: =IFERROR(VLOOKUP($B131,'Saisie Poussins'!$B$113:$AI$156,26+O$1,FALSE),0) -> 0 | P131: =IFERROR(VLOOKUP($B131,'Saisie Poussins'!$B$113:$AI$156,26+P$1,FALSE),0) -> 30.0000008 | Q131: 30.0000008
A132: =IFERROR(IF(A131+1<='Saisie Poussins'!$BF$12,A131+1,""),"") -> 23 | B132: =IFERROR(VLOOKUP(A132,'Saisie Poussins'!$BE$113:$BF$156,2,FALSE),"") -> 42900480176 | C132: =IFERROR(VLOOKUP($B132,'Saisie Poussins'!$B$13:$AI$56,1+C$1,FALSE),0) -> ALLIO | D132: =IFERROR(VLOOKUP($B132,'Saisie Poussins'!$B$13:$AI$56,1+D$1,FALSE),0) -> Alice | E132: =IFERROR(VLOOKUP($B132,'Saisie Poussins'!$B$13:$AI$56,1+E$1,FALSE),0) -> D | F132: =IFERROR(VLOOKUP($B132,'Saisie Poussins'!$B$13:$AI$56,1+F$1,FALSE),0) -> CC BELFORT MIOTTE | G132: =IFERROR(VLOOKUP($B132,'Saisie Poussins'!$B$13:$AI$56,1+G$1,FALSE),0) -> Poussin | H132: =IFERROR(VLOOKUP($B132,'Saisie Poussins'!$B$13:$AI$56,1+H$1,FALSE),0) -> 1 | I132: =IFERROR(VLOOKUP($B132,'Saisie Poussins'!$B$113:$AI$156,26+I$1,FALSE),0) -> 0 | J132: =IFERROR(VLOOKUP($B132,'Saisie Poussins'!$B$113:$AI$156,26+J$1,FALSE),0) -> 0 | K132: =IFERROR(VLOOKUP($B132,'Saisie Poussins'!$B$113:$AI$156,26+K$1,FALSE),0) -> 30.0000003 | L132: =IFERROR(VLOOKUP($B132,'Saisie Poussins'!$B$113:$AI$156,26+L$1,FALSE),0) -> 0 | M132: =IFERROR(VLOOKUP($B132,'Saisie Poussins'!$B$113:$AI$156,26+M$1,FALSE),0) -> 0 | N132: =IFERROR(VLOOKUP($B132,'Saisie Poussins'!$B$113:$AI$156,26+N$1,FALSE),0) -> 0 | O132: =IFERROR(VLOOKUP($B132,'Saisie Poussins'!$B$113:$AI$156,26+O$1,FALSE),0) -> 0 | P132: =IFERROR(VLOOKUP($B132,'Saisie Poussins'!$B$113:$AI$156,26+P$1,FALSE),0) -> 0 | Q132: 30.0000003
A133: =IFERROR(IF(A132+1<='Saisie Poussins'!$BF$12,A132+1,""),"") -> 24 | B133: =IFERROR(VLOOKUP(A133,'Saisie Poussins'!$BE$113:$BF$156,2,FALSE),"") -> 42390960404 | C133: =IFERROR(VLOOKUP($B133,'Saisie Poussins'!$B$13:$AI$56,1+C$1,FALSE),0) -> BLECHSCHMIDT | D133: =IFERROR(VLOOKUP($B133,'Saisie Poussins'!$B$13:$AI$56,1+D$1,FALSE),0) -> Antoine | E133: =IFERROR(VLOOKUP($B133,'Saisie Poussins'!$B$13:$AI$56,1+E$1,FALSE),0) -> H | F133: =IFERROR(VLOOKUP($B133,'Saisie Poussins'!$B$13:$AI$56,1+F$1,FALSE),0) -> JURA CYCLISME PAYS DU REVERMONT | G133: =IFERROR(VLOOKUP($B133,'Saisie Poussins'!$B$13:$AI$56,1+G$1,FALSE),0) -> Poussin | H133: =IFERROR(VLOOKUP($B133,'Saisie Poussins'!$B$13:$AI$56,1+H$1,FALSE),0) -> 1 | I133: =IFERROR(VLOOKUP($B133,'Saisie Poussins'!$B$113:$AI$156,26+I$1,FALSE),0) -> 0 | J133: =IFERROR(VLOOKUP($B133,'Saisie Poussins'!$B$113:$AI$156,26+J$1,FALSE),0) -> 0 | K133: =IFERROR(VLOOKUP($B133,'Saisie Poussins'!$B$113:$AI$156,26+K$1,FALSE),0) -> 0 | L133: =IFERROR(VLOOKUP($B133,'Saisie Poussins'!$B$113:$AI$156,26+L$1,FALSE),0) -> 0 | M133: =IFERROR(VLOOKUP($B133,'Saisie Poussins'!$B$113:$AI$156,26+M$1,FALSE),0) -> 0 | N133: =IFERROR(VLOOKUP($B133,'Saisie Poussins'!$B$113:$AI$156,26+N$1,FALSE),0) -> 24.0000006 | O133: =IFERROR(VLOOKUP($B133,'Saisie Poussins'!$B$113:$AI$156,26+O$1,FALSE),0) -> 0 | P133: =IFERROR(VLOOKUP($B133,'Saisie Poussins'!$B$113:$AI$156,26+P$1,FALSE),0) -> 0 | Q133: 24.0000006
A134: =IFERROR(IF(A133+1<='Saisie Poussins'!$BF$12,A133+1,""),"") -> 25 | B134: =IFERROR(VLOOKUP(A134,'Saisie Poussins'!$BE$113:$BF$156,2,FALSE),"") -> 42900480186 | C134: =IFERROR(VLOOKUP($B134,'Saisie Poussins'!$B$13:$AI$56,1+C$1,FALSE),0) -> TCHUDOVITCH | D134: =IFERROR(VLOOKUP($B134,'Saisie Poussins'!$B$13:$AI$56,1+D$1,FALSE),0) -> Alexandre | E134: =IFERROR(VLOOKUP($B134,'Saisie Poussins'!$B$13:$AI$56,1+E$1,FALSE),0) -> H | F134: =IFERROR(VLOOKUP($B134,'Saisie Poussins'!$B$13:$AI$56,1+F$1,FALSE),0) -> CC BELFORT MIOTTE | G134: =IFERROR(VLOOKUP($B134,'Saisie Poussins'!$B$13:$AI$56,1+G$1,FALSE),0) -> Poussin | H134: =IFERROR(VLOOKUP($B134,'Saisie Poussins'!$B$13:$AI$56,1+H$1,FALSE),0) -> 1 | I134: =IFERROR(VLOOKUP($B134,'Saisie Poussins'!$B$113:$AI$156,26+I$1,FALSE),0) -> 0 | J134: =IFERROR(VLOOKUP($B134,'Saisie Poussins'!$B$113:$AI$156,26+J$1,FALSE),0) -> 0 | K134: =IFERROR(VLOOKUP($B134,'Saisie Poussins'!$B$113:$AI$156,26+K$1,FALSE),0) -> 24.0000003 | L134: =IFERROR(VLOOKUP($B134,'Saisie Poussins'!$B$113:$AI$156,26+L$1,FALSE),0) -> 0 | M134: =IFERROR(VLOOKUP($B134,'Saisie Poussins'!$B$113:$AI$156,26+M$1,FALSE),0) -> 0 | N134: =IFERROR(VLOOKUP($B134,'Saisie Poussins'!$B$113:$AI$156,26+N$1,FALSE),0) -> 0 | O134: =IFERROR(VLOOKUP($B134,'Saisie Poussins'!$B$113:$AI$156,26+O$1,FALSE),0) -> 0 | P134: =IFERROR(VLOOKUP($B134,'Saisie Poussins'!$B$113:$AI$156,26+P$1,FALSE),0) -> 0 | Q134: 24.0000003
A135: =IFERROR(IF(A134+1<='Saisie Poussins'!$BF$12,A134+1,""),"") -> 26 | B135: =IFERROR(VLOOKUP(A135,'Saisie Poussins'!$BE$113:$BF$156,2,FALSE),"") -> 46880320466 | C135: =IFERROR(VLOOKUP($B135,'Saisie Poussins'!$B$13:$AI$56,1+C$1,FALSE),0) -> HERMANN | D135: =IFERROR(VLOOKUP($B135,'Saisie Poussins'!$B$13:$AI$56,1+D$1,FALSE),0) -> Robin | E135: =IFERROR(VLOOKUP($B135,'Saisie Poussins'!$B$13:$AI$56,1+E$1,FALSE),0) -> H | F135: =IFERROR(VLOOKUP($B135,'Saisie Poussins'!$B$13:$AI$56,1+F$1,FALSE),0) -> CYCLE GOLBEEN | G135: =IFERROR(VLOOKUP($B135,'Saisie Poussins'!$B$13:$AI$56,1+G$1,FALSE),0) -> Poussin | H135: =IFERROR(VLOOKUP($B135,'Saisie Poussins'!$B$13:$AI$56,1+H$1,FALSE),0) -> 1 | I135: =IFERROR(VLOOKUP($B135,'Saisie Poussins'!$B$113:$AI$156,26+I$1,FALSE),0) -> 0 | J135: =IFERROR(VLOOKUP($B135,'Saisie Poussins'!$B$113:$AI$156,26+J$1,FALSE),0) -> 24.0000002 | K135: =IFERROR(VLOOKUP($B135,'Saisie Poussins'!$B$113:$AI$156,26+K$1,FALSE),0) -> 0 | L135: =IFERROR(VLOOKUP($B135,'Saisie Poussins'!$B$113:$AI$156,26+L$1,FALSE),0) -> 0 | M135: =IFERROR(VLOOKUP($B135,'Saisie Poussins'!$B$113:$AI$156,26+M$1,FALSE),0) -> 0 | N135: =IFERROR(VLOOKUP($B135,'Saisie Poussins'!$B$113:$AI$156,26+N$1,FALSE),0) -> 0 | O135: =IFERROR(VLOOKUP($B135,'Saisie Poussins'!$B$113:$AI$156,26+O$1,FALSE),0) -> 0 | P135: =IFERROR(VLOOKUP($B135,'Saisie Poussins'!$B$113:$AI$156,26+P$1,FALSE),0) -> 0 | Q135: 24.0000002
A136: =IFERROR(IF(A135+1<='Saisie Poussins'!$BF$12,A135+1,""),"") -> 27 | B136: =IFERROR(VLOOKUP(A136,'Saisie Poussins'!$BE$113:$BF$156,2,FALSE),"") -> 42390960405 | C136: =IFERROR(VLOOKUP($B136,'Saisie Poussins'!$B$13:$AI$56,1+C$1,FALSE),0) -> MONROLIN | D136: =IFERROR(VLOOKUP($B136,'Saisie Poussins'!$B$13:$AI$56,1+D$1,FALSE),0) -> Camille | E136: =IFERROR(VLOOKUP($B136,'Saisie Poussins'!$B$13:$AI$56,1+E$1,FALSE),0) -> H | F136: =IFERROR(VLOOKUP($B136,'Saisie Poussins'!$B$13:$AI$56,1+F$1,FALSE),0) -> JURA CYCLISME PAYS DU REVERMONT | G136: =IFERROR(VLOOKUP($B136,'Saisie Poussins'!$B$13:$AI$56,1+G$1,FALSE),0) -> Poussin | H136: =IFERROR(VLOOKUP($B136,'Saisie Poussins'!$B$13:$AI$56,1+H$1,FALSE),0) -> 1 | I136: =IFERROR(VLOOKUP($B136,'Saisie Poussins'!$B$113:$AI$156,26+I$1,FALSE),0) -> 0 | J136: =IFERROR(VLOOKUP($B136,'Saisie Poussins'!$B$113:$AI$156,26+J$1,FALSE),0) -> 0 | K136: =IFERROR(VLOOKUP($B136,'Saisie Poussins'!$B$113:$AI$156,26+K$1,FALSE),0) -> 0 | L136: =IFERROR(VLOOKUP($B136,'Saisie Poussins'!$B$113:$AI$156,26+L$1,FALSE),0) -> 0 | M136: =IFERROR(VLOOKUP($B136,'Saisie Poussins'!$B$113:$AI$156,26+M$1,FALSE),0) -> 0 | N136: =IFERROR(VLOOKUP($B136,'Saisie Poussins'!$B$113:$AI$156,26+N$1,FALSE),0) -> 22.0000006 | O136: =IFERROR(VLOOKUP($B136,'Saisie Poussins'!$B$113:$AI$156,26+O$1,FALSE),0) -> 0 | P136: =IFERROR(VLOOKUP($B136,'Saisie Poussins'!$B$113:$AI$156,26+P$1,FALSE),0) -> 0 | Q136: 22.0000006
A137: =IFERROR(IF(A136+1<='Saisie Poussins'!$BF$12,A136+1,""),"") -> 28 | B137: =IFERROR(VLOOKUP(A137,'Saisie Poussins'!$BE$113:$BF$156,2,FALSE),"") -> 42250080457 | C137: =IFERROR(VLOOKUP($B137,'Saisie Poussins'!$B$13:$AI$56,1+C$1,FALSE),0) -> CAYLAR | D137: =IFERROR(VLOOKUP($B137,'Saisie Poussins'!$B$13:$AI$56,1+D$1,FALSE),0) -> Martin | E137: =IFERROR(VLOOKUP($B137,'Saisie Poussins'!$B$13:$AI$56,1+E$1,FALSE),0) -> H | F137: =IFERROR(VLOOKUP($B137,'Saisie Poussins'!$B$13:$AI$56,1+F$1,FALSE),0) -> VELO CLUB PONTARLIER | G137: =IFERROR(VLOOKUP($B137,'Saisie Poussins'!$B$13:$AI$56,1+G$1,FALSE),0) -> Poussin | H137: =IFERROR(VLOOKUP($B137,'Saisie Poussins'!$B$13:$AI$56,1+H$1,FALSE),0) -> 2 | I137: =IFERROR(VLOOKUP($B137,'Saisie Poussins'!$B$113:$AI$156,26+I$1,FALSE),0) -> 0 | J137: =IFERROR(VLOOKUP($B137,'Saisie Poussins'!$B$113:$AI$156,26+J$1,FALSE),0) -> 0 | K137: =IFERROR(VLOOKUP($B137,'Saisie Poussins'!$B$113:$AI$156,26+K$1,FALSE),0) -> 0 | L137: =IFERROR(VLOOKUP($B137,'Saisie Poussins'!$B$113:$AI$156,26+L$1,FALSE),0) -> 0 | M137: =IFERROR(VLOOKUP($B137,'Saisie Poussins'!$B$113:$AI$156,26+M$1,FALSE),0) -> 22.0000005 | N137: =IFERROR(VLOOKUP($B137,'Saisie Poussins'!$B$113:$AI$156,26+N$1,FALSE),0) -> 0 | O137: =IFERROR(VLOOKUP($B137,'Saisie Poussins'!$B$113:$AI$156,26+O$1,FALSE),0) -> 0 | P137: =IFERROR(VLOOKUP($B137,'Saisie Poussins'!$B$113:$AI$156,26+P$1,FALSE),0) -> 0 | Q137: 22.0000005
A138: =IFERROR(IF(A137+1<='Saisie Poussins'!$BF$12,A137+1,""),"") -> 29 | B138: =IFERROR(VLOOKUP(A138,'Saisie Poussins'!$BE$113:$BF$156,2,FALSE),"") -> 42700680168 | C138: =IFERROR(VLOOKUP($B138,'Saisie Poussins'!$B$13:$AI$56,1+C$1,FALSE),0) -> CLERC | D138: =IFERROR(VLOOKUP($B138,'Saisie Poussins'!$B$13:$AI$56,1+D$1,FALSE),0) -> Zoé | E138: =IFERROR(VLOOKUP($B138,'Saisie Poussins'!$B$13:$AI$56,1+E$1,FALSE),0) -> H | F138: =IFERROR(VLOOKUP($B138,'Saisie Poussins'!$B$13:$AI$56,1+F$1,FALSE),0) -> E.C. LUXEUIL VOSGES SAONO | G138: =IFERROR(VLOOKUP($B138,'Saisie Poussins'!$B$13:$AI$56,1+G$1,FALSE),0) -> Poussin | H138: =IFERROR(VLOOKUP($B138,'Saisie Poussins'!$B$13:$AI$56,1+H$1,FALSE),0) -> 2 | I138: =IFERROR(VLOOKUP($B138,'Saisie Poussins'!$B$113:$AI$156,26+I$1,FALSE),0) -> 20.0000001 | J138: =IFERROR(VLOOKUP($B138,'Saisie Poussins'!$B$113:$AI$156,26+J$1,FALSE),0) -> 0 | K138: =IFERROR(VLOOKUP($B138,'Saisie Poussins'!$B$113:$AI$156,26+K$1,FALSE),0) -> 0 | L138: =IFERROR(VLOOKUP($B138,'Saisie Poussins'!$B$113:$AI$156,26+L$1,FALSE),0) -> 0 | M138: =IFERROR(VLOOKUP($B138,'Saisie Poussins'!$B$113:$AI$156,26+M$1,FALSE),0) -> 0 | N138: =IFERROR(VLOOKUP($B138,'Saisie Poussins'!$B$113:$AI$156,26+N$1,FALSE),0) -> 0 | O138: =IFERROR(VLOOKUP($B138,'Saisie Poussins'!$B$113:$AI$156,26+O$1,FALSE),0) -> 16.000001 | P138: =IFERROR(VLOOKUP($B138,'Saisie Poussins'!$B$113:$AI$156,26+P$1,FALSE),0) -> 21.0000008 | Q138: 57.0000019
A139: =IFERROR(IF(A138+1<='Saisie Poussins'!$BF$12,A138+1,""),"") -> 30 | B139: =IFERROR(VLOOKUP(A139,'Saisie Poussins'!$BE$113:$BF$156,2,FALSE),"") -> 42250120372 | C139: =IFERROR(VLOOKUP($B139,'Saisie Poussins'!$B$13:$AI$56,1+C$1,FALSE),0) -> MACHET | D139: =IFERROR(VLOOKUP($B139,'Saisie Poussins'!$B$13:$AI$56,1+D$1,FALSE),0) -> Yanis | E139: =IFERROR(VLOOKUP($B139,'Saisie Poussins'!$B$13:$AI$56,1+E$1,FALSE),0) -> H | F139: =IFERROR(VLOOKUP($B139,'Saisie Poussins'!$B$13:$AI$56,1+F$1,FALSE),0) -> V.C.DE MONTBELIARD | G139: =IFERROR(VLOOKUP($B139,'Saisie Poussins'!$B$13:$AI$56,1+G$1,FALSE),0) -> Poussin | H139: =IFERROR(VLOOKUP($B139,'Saisie Poussins'!$B$13:$AI$56,1+H$1,FALSE),0) -> 1 | I139: =IFERROR(VLOOKUP($B139,'Saisie Poussins'!$B$113:$AI$156,26+I$1,FALSE),0) -> 0 | J139: =IFERROR(VLOOKUP($B139,'Saisie Poussins'!$B$113:$AI$156,26+J$1,FALSE),0) -> 0 | K139: =IFERROR(VLOOKUP($B139,'Saisie Poussins'!$B$113:$AI$156,26+K$1,FALSE),0) -> 0 | L139: =IFERROR(VLOOKUP($B139,'Saisie Poussins'!$B$113:$AI$156,26+L$1,FALSE),0) -> 0 | M139: =IFERROR(VLOOKUP($B139,'Saisie Poussins'!$B$113:$AI$156,26+M$1,FALSE),0) -> 0 | N139: =IFERROR(VLOOKUP($B139,'Saisie Poussins'!$B$113:$AI$156,26+N$1,FALSE),0) -> 0 | O139: =IFERROR(VLOOKUP($B139,'Saisie Poussins'!$B$113:$AI$156,26+O$1,FALSE),0) -> 21.000001 | P139: =IFERROR(VLOOKUP($B139,'Saisie Poussins'!$B$113:$AI$156,26+P$1,FALSE),0) -> 0 | Q139: 21.000001
A140: =IFERROR(IF(A139+1<='Saisie Poussins'!$BF$12,A139+1,""),"") -> 31 | B140: =IFERROR(VLOOKUP(A140,'Saisie Poussins'!$BE$113:$BF$156,2,FALSE),"") -> 42250080432 | C140: =IFERROR(VLOOKUP($B140,'Saisie Poussins'!$B$13:$AI$56,1+C$1,FALSE),0) -> METOZ | D140: =IFERROR(VLOOKUP($B140,'Saisie Poussins'!$B$13:$AI$56,1+D$1,FALSE),0) -> Constant | E140: =IFERROR(VLOOKUP($B140,'Saisie Poussins'!$B$13:$AI$56,1+E$1,FALSE),0) -> H | F140: =IFERROR(VLOOKUP($B140,'Saisie Poussins'!$B$13:$AI$56,1+F$1,FALSE),0) -> VELO CLUB PONTARLIER | G140: =IFERROR(VLOOKUP($B140,'Saisie Poussins'!$B$13:$AI$56,1+G$1,FALSE),0) -> Poussin | H140: =IFERROR(VLOOKUP($B140,'Saisie Poussins'!$B$13:$AI$56,1+H$1,FALSE),0) -> 1 | I140: =IFERROR(VLOOKUP($B140,'Saisie Poussins'!$B$113:$AI$156,26+I$1,FALSE),0) -> 0 | J140: =IFERROR(VLOOKUP($B140,'Saisie Poussins'!$B$113:$AI$156,26+J$1,FALSE),0) -> 0 | K140: =IFERROR(VLOOKUP($B140,'Saisie Poussins'!$B$113:$AI$156,26+K$1,FALSE),0) -> 0 | L140: =IFERROR(VLOOKUP($B140,'Saisie Poussins'!$B$113:$AI$156,26+L$1,FALSE),0) -> 0 | M140: =IFERROR(VLOOKUP($B140,'Saisie Poussins'!$B$113:$AI$156,26+M$1,FALSE),0) -> 21.0000005 | N140: =IFERROR(VLOOKUP($B140,'Saisie Poussins'!$B$113:$AI$156,26+N$1,FALSE),0) -> 0 | O140: =IFERROR(VLOOKUP($B140,'Saisie Poussins'!$B$113:$AI$156,26+O$1,FALSE),0) -> 0 | P140: =IFERROR(VLOOKUP($B140,'Saisie Poussins'!$B$113:$AI$156,26+P$1,FALSE),0) -> 0 | Q140: 21.0000005
A141: =IFERROR(IF(A140+1<='Saisie Poussins'!$BF$12,A140+1,""),"") -> 32 | B141: =IFERROR(VLOOKUP(A141,'Saisie Poussins'!$BE$113:$BF$156,2,FALSE),"") -> 46680680277 | C141: =IFERROR(VLOOKUP($B141,'Saisie Poussins'!$B$13:$AI$56,1+C$1,FALSE),0) -> MEISTER | D141: =IFERROR(VLOOKUP($B141,'Saisie Poussins'!$B$13:$AI$56,1+D$1,FALSE),0) -> Benjamin | E141: =IFERROR(VLOOKUP($B141,'Saisie Poussins'!$B$13:$AI$56,1+E$1,FALSE),0) -> H | F141: =IFERROR(VLOOKUP($B141,'Saisie Poussins'!$B$13:$AI$56,1+F$1,FALSE),0) -> VC SUNDGOVIA ALTKIRCH | G141: =IFERROR(VLOOKUP($B141,'Saisie Poussins'!$B$13:$AI$56,1+G$1,FALSE),0) -> Poussin | H141: =IFERROR(VLOOKUP($B141,'Saisie Poussins'!$B$13:$AI$56,1+H$1,FALSE),0) -> 2 | I141: =IFERROR(VLOOKUP($B141,'Saisie Poussins'!$B$113:$AI$156,26+I$1,FALSE),0) -> 0 | J141: =IFERROR(VLOOKUP($B141,'Saisie Poussins'!$B$113:$AI$156,26+J$1,FALSE),0) -> 0 | K141: =IFERROR(VLOOKUP($B141,'Saisie Poussins'!$B$113:$AI$156,26+K$1,FALSE),0) -> 0 | L141: =IFERROR(VLOOKUP($B141,'Saisie Poussins'!$B$113:$AI$156,26+L$1,FALSE),0) -> 0 | M141: =IFERROR(VLOOKUP($B141,'Saisie Poussins'!$B$113:$AI$156,26+M$1,FALSE),0) -> 0 | N141: =IFERROR(VLOOKUP($B141,'Saisie Poussins'!$B$113:$AI$156,26+N$1,FALSE),0) -> 0 | O141: =IFERROR(VLOOKUP($B141,'Saisie Poussins'!$B$113:$AI$156,26+O$1,FALSE),0) -> 19.000001 | P141: =IFERROR(VLOOKUP($B141,'Saisie Poussins'!$B$113:$AI$156,26+P$1,FALSE),0) -> 0 | Q141: 19.000001
A142: =IFERROR(IF(A141+1<='Saisie Poussins'!$BF$12,A141+1,""),"") -> 33 | B142: =IFERROR(VLOOKUP(A142,'Saisie Poussins'!$BE$113:$BF$156,2,FALSE),"") -> 46680680297 | C142: =IFERROR(VLOOKUP($B142,'Saisie Poussins'!$B$13:$AI$56,1+C$1,FALSE),0) -> LISZCZAK | D142: =IFERROR(VLOOKUP($B142,'Saisie Poussins'!$B$13:$AI$56,1+D$1,FALSE),0) -> Nolan | E142: =IFERROR(VLOOKUP($B142,'Saisie Poussins'!$B$13:$AI$56,1+E$1,FALSE),0) -> H | F142: =IFERROR(VLOOKUP($B142,'Saisie Poussins'!$B$13:$AI$56,1+F$1,FALSE),0) -> VC SUNDGOVIA ALTKIRCH | G142: =IFERROR(VLOOKUP($B142,'Saisie Poussins'!$B$13:$AI$56,1+G$1,FALSE),0) -> Poussin | H142: =IFERROR(VLOOKUP($B142,'Saisie Poussins'!$B$13:$AI$56,1+H$1,FALSE),0) -> 2 | I142: =IFERROR(VLOOKUP($B142,'Saisie Poussins'!$B$113:$AI$156,26+I$1,FALSE),0) -> 0 | J142: =IFERROR(VLOOKUP($B142,'Saisie Poussins'!$B$113:$AI$156,26+J$1,FALSE),0) -> 0 | K142: =IFERROR(VLOOKUP($B142,'Saisie Poussins'!$B$113:$AI$156,26+K$1,FALSE),0) -> 0 | L142: =IFERROR(VLOOKUP($B142,'Saisie Poussins'!$B$113:$AI$156,26+L$1,FALSE),0) -> 0 | M142: =IFERROR(VLOOKUP($B142,'Saisie Poussins'!$B$113:$AI$156,26+M$1,FALSE),0) -> 0 | N142: =IFERROR(VLOOKUP($B142,'Saisie Poussins'!$B$113:$AI$156,26+N$1,FALSE),0) -> 0 | O142: =IFERROR(VLOOKUP($B142,'Saisie Poussins'!$B$113:$AI$156,26+O$1,FALSE),0) -> 18.000001 | P142: =IFERROR(VLOOKUP($B142,'Saisie Poussins'!$B$113:$AI$156,26+P$1,FALSE),0) -> 0 | Q142: 18.000001
A143: =IFERROR(IF(A142+1<='Saisie Poussins'!$BF$12,A142+1,""),"") -> 34 | B143: =IFERROR(VLOOKUP(A143,'Saisie Poussins'!$BE$113:$BF$156,2,FALSE),"") -> 4225012036 | C143: =IFERROR(VLOOKUP($B143,'Saisie Poussins'!$B$13:$AI$56,1+C$1,FALSE),0) -> AUERBACH | D143: =IFERROR(VLOOKUP($B143,'Saisie Poussins'!$B$13:$AI$56,1+D$1,FALSE),0) -> Minz | E143: =IFERROR(VLOOKUP($B143,'Saisie Poussins'!$B$13:$AI$56,1+E$1,FALSE),0) -> D | F143: =IFERROR(VLOOKUP($B143,'Saisie Poussins'!$B$13:$AI$56,1+F$1,FALSE),0) -> Carte journalière | G143: =IFERROR(VLOOKUP($B143,'Saisie Poussins'!$B$13:$AI$56,1+G$1,FALSE),0) -> Poussin | H143: =IFERROR(VLOOKUP($B143,'Saisie Poussins'!$B$13:$AI$56,1+H$1,FALSE),0) -> 0 | I143: =IFERROR(VLOOKUP($B143,'Saisie Poussins'!$B$113:$AI$156,26+I$1,FALSE),0) -> 0 | J143: =IFERROR(VLOOKUP($B143,'Saisie Poussins'!$B$113:$AI$156,26+J$1,FALSE),0) -> 0 | K143: =IFERROR(VLOOKUP($B143,'Saisie Poussins'!$B$113:$AI$156,26+K$1,FALSE),0) -> 0 | L143: =IFERROR(VLOOKUP($B143,'Saisie Poussins'!$B$113:$AI$156,26+L$1,FALSE),0) -> 0 | M143: =IFERROR(VLOOKUP($B143,'Saisie Poussins'!$B$113:$AI$156,26+M$1,FALSE),0) -> 0 | N143: =IFERROR(VLOOKUP($B143,'Saisie Poussins'!$B$113:$AI$156,26+N$1,FALSE),0) -> 0 | O143: =IFERROR(VLOOKUP($B143,'Saisie Poussins'!$B$113:$AI$156,26+O$1,FALSE),0) -> 17.000001 | P143: =IFERROR(VLOOKUP($B143,'Saisie Poussins'!$B$113:$AI$156,26+P$1,FALSE),0) -> 0 | Q143: 17.000001
A144: =IFERROR(IF(A143+1<='Saisie Poussins'!$BF$12,A143+1,""),"") -> 35 | B144: =IFERROR(VLOOKUP(A144,'Saisie Poussins'!$BE$113:$BF$156,2,FALSE),"") -> 42250120360 | C144: =IFERROR(VLOOKUP($B144,'Saisie Poussins'!$B$13:$AI$56,1+C$1,FALSE),0) -> ABGRALL | D144: =IFERROR(VLOOKUP($B144,'Saisie Poussins'!$B$13:$AI$56,1+D$1,FALSE),0) -> Maël | E144: =IFERROR(VLOOKUP($B144,'Saisie Poussins'!$B$13:$AI$56,1+E$1,FALSE),0) -> H | F144: =IFERROR(VLOOKUP($B144,'Saisie Poussins'!$B$13:$AI$56,1+F$1,FALSE),0) -> V.C.DE MONTBELIARD | G144: =IFERROR(VLOOKUP($B144,'Saisie Poussins'!$B$13:$AI$56,1+G$1,FALSE),0) -> Poussin | H144: =IFERROR(VLOOKUP($B144,'Saisie Poussins'!$B$13:$AI$56,1+H$1,FALSE),0) -> 1 | I144: =IFERROR(VLOOKUP($B144,'Saisie Poussins'!$B$113:$AI$156,26+I$1,FALSE),0) -> 0 | J144: =IFERROR(VLOOKUP($B144,'Saisie Poussins'!$B$113:$AI$156,26+J$1,FALSE),0) -> 0 | K144: =IFERROR(VLOOKUP($B144,'Saisie Poussins'!$B$113:$AI$156,26+K$1,FALSE),0) -> 0 | L144: =IFERROR(VLOOKUP($B144,'Saisie Poussins'!$B$113:$AI$156,26+L$1,FALSE),0) -> 0 | M144: =IFERROR(VLOOKUP($B144,'Saisie Poussins'!$B$113:$AI$156,26+M$1,FALSE),0) -> 0 | N144: =IFERROR(VLOOKUP($B144,'Saisie Poussins'!$B$113:$AI$156,26+N$1,FALSE),0) -> 0 | O144: =IFERROR(VLOOKUP($B144,'Saisie Poussins'!$B$113:$AI$156,26+O$1,FALSE),0) -> 13.000001 | P144: =IFERROR(VLOOKUP($B144,'Saisie Poussins'!$B$113:$AI$156,26+P$1,FALSE),0) -> 0 | Q144: 13.000001
A145: =IFERROR(IF(A144+1<='Saisie Poussins'!$BF$12,A144+1,""),"") -> 36 | B145: =IFERROR(VLOOKUP(A145,'Saisie Poussins'!$BE$113:$BF$156,2,FALSE),"") -> 46680680281 | C145: =IFERROR(VLOOKUP($B145,'Saisie Poussins'!$B$13:$AI$56,1+C$1,FALSE),0) -> KLEIN | D145: =IFERROR(VLOOKUP($B145,'Saisie Poussins'!$B$13:$AI$56,1+D$1,FALSE),0) -> Rose | E145: =IFERROR(VLOOKUP($B145,'Saisie Poussins'!$B$13:$AI$56,1+E$1,FALSE),0) -> D | F145: =IFERROR(VLOOKUP($B145,'Saisie Poussins'!$B$13:$AI$56,1+F$1,FALSE),0) -> VC SUNDGOVIA ALTKIRCH | G145: =IFERROR(VLOOKUP($B145,'Saisie Poussins'!$B$13:$AI$56,1+G$1,FALSE),0) -> Poussin | H145: =IFERROR(VLOOKUP($B145,'Saisie Poussins'!$B$13:$AI$56,1+H$1,FALSE),0) -> 2 | I145: =IFERROR(VLOOKUP($B145,'Saisie Poussins'!$B$113:$AI$156,26+I$1,FALSE),0) -> 0 | J145: =IFERROR(VLOOKUP($B145,'Saisie Poussins'!$B$113:$AI$156,26+J$1,FALSE),0) -> 0 | K145: =IFERROR(VLOOKUP($B145,'Saisie Poussins'!$B$113:$AI$156,26+K$1,FALSE),0) -> 0 | L145: =IFERROR(VLOOKUP($B145,'Saisie Poussins'!$B$113:$AI$156,26+L$1,FALSE),0) -> 0 | M145: =IFERROR(VLOOKUP($B145,'Saisie Poussins'!$B$113:$AI$156,26+M$1,FALSE),0) -> 0 | N145: =IFERROR(VLOOKUP($B145,'Saisie Poussins'!$B$113:$AI$156,26+N$1,FALSE),0) -> 0 | O145: =IFERROR(VLOOKUP($B145,'Saisie Poussins'!$B$113:$AI$156,26+O$1,FALSE),0) -> 11.000001 | P145: =IFERROR(VLOOKUP($B145,'Saisie Poussins'!$B$113:$AI$156,26+P$1,FALSE),0) -> 0 | Q145: 11.000001
A146: =IFERROR(IF(A145+1<='Saisie Poussins'!$BF$12,A145+1,""),"") -> 37 | B146: =IFERROR(VLOOKUP(A146,'Saisie Poussins'!$BE$113:$BF$156,2,FALSE),"") -> 42900480191 | C146: =IFERROR(VLOOKUP($B146,'Saisie Poussins'!$B$13:$AI$56,1+C$1,FALSE),0) -> HULLETTE FATOME | D146: =IFERROR(VLOOKUP($B146,'Saisie Poussins'!$B$13:$AI$56,1+D$1,FALSE),0) -> Stella | E146: =IFERROR(VLOOKUP($B146,'Saisie Poussins'!$B$13:$AI$56,1+E$1,FALSE),0) -> D | F146: =IFERROR(VLOOKUP($B146,'Saisie Poussins'!$B$13:$AI$56,1+F$1,FALSE),0) -> CC BELFORT MIOTTE | G146: =IFERROR(VLOOKUP($B146,'Saisie Poussins'!$B$13:$AI$56,1+G$1,FALSE),0) -> Poussin | H146: =IFERROR(VLOOKUP($B146,'Saisie Poussins'!$B$13:$AI$56,1+H$1,FALSE),0) -> 2 | I146: =IFERROR(VLOOKUP($B146,'Saisie Poussins'!$B$113:$AI$156,26+I$1,FALSE),0) -> 0 | J146: =IFERROR(VLOOKUP($B146,'Saisie Poussins'!$B$113:$AI$156,26+J$1,FALSE),0) -> 0 | K146: =IFERROR(VLOOKUP($B146,'Saisie Poussins'!$B$113:$AI$156,26+K$1,FALSE),0) -> 0 | L146: =IFERROR(VLOOKUP($B146,'Saisie Poussins'!$B$113:$AI$156,26+L$1,FALSE),0) -> 0 | M146: =IFERROR(VLOOKUP($B146,'Saisie Poussins'!$B$113:$AI$156,26+M$1,FALSE),0) -> 0 | N146: =IFERROR(VLOOKUP($B146,'Saisie Poussins'!$B$113:$AI$156,26+N$1,FALSE),0) -> 0 | O146: =IFERROR(VLOOKUP($B146,'Saisie Poussins'!$B$113:$AI$156,26+O$1,FALSE),0) -> 9.000001 | P146: =IFERROR(VLOOKUP($B146,'Saisie Poussins'!$B$113:$AI$156,26+P$1,FALSE),0) -> 0 | Q146: 9.000001
A147: =IFERROR(IF(A146+1<='Saisie Poussins'!$BF$12,A146+1,""),"") -> 38 | B147: =IFERROR(VLOOKUP(A147,'Saisie Poussins'!$BE$113:$BF$156,2,FALSE),"") ->  | C147: =IFERROR(VLOOKUP($B147,'Saisie Poussins'!$B$13:$AI$56,1+C$1,FALSE),0) -> 0 | D147: =IFERROR(VLOOKUP($B147,'Saisie Poussins'!$B$13:$AI$56,1+D$1,FALSE),0) -> 0 | E147: =IFERROR(VLOOKUP($B147,'Saisie Poussins'!$B$13:$AI$56,1+E$1,FALSE),0) -> 0 | F147: =IFERROR(VLOOKUP($B147,'Saisie Poussins'!$B$13:$AI$56,1+F$1,FALSE),0) -> 0 | G147: =IFERROR(VLOOKUP($B147,'Saisie Poussins'!$B$13:$AI$56,1+G$1,FALSE),0) -> 0 | H147: =IFERROR(VLOOKUP($B147,'Saisie Poussins'!$B$13:$AI$56,1+H$1,FALSE),0) -> 0 | I147: =IFERROR(VLOOKUP($B147,'Saisie Poussins'!$B$113:$AI$156,26+I$1,FALSE),0) -> 0 | J147: =IFERROR(VLOOKUP($B147,'Saisie Poussins'!$B$113:$AI$156,26+J$1,FALSE),0) -> 0 | K147: =IFERROR(VLOOKUP($B147,'Saisie Poussins'!$B$113:$AI$156,26+K$1,FALSE),0) -> 0 | L147: =IFERROR(VLOOKUP($B147,'Saisie Poussins'!$B$113:$AI$156,26+L$1,FALSE),0) -> 0 | M147: =IFERROR(VLOOKUP($B147,'Saisie Poussins'!$B$113:$AI$156,26+M$1,FALSE),0) -> 0 | N147: =IFERROR(VLOOKUP($B147,'Saisie Poussins'!$B$113:$AI$156,26+N$1,FALSE),0) -> 0 | O147: =IFERROR(VLOOKUP($B147,'Saisie Poussins'!$B$113:$AI$156,26+O$1,FALSE),0) -> 0 | P147: =IFERROR(VLOOKUP($B147,'Saisie Poussins'!$B$113:$AI$156,26+P$1,FALSE),0) -> 0 | Q147: 0
A148: =IFERROR(IF(A147+1<='Saisie Poussins'!$BF$12,A147+1,""),"") ->  | B148: =IFERROR(VLOOKUP(A148,'Saisie Poussins'!$BE$113:$BF$156,2,FALSE),"") ->  | C148: =IFERROR(VLOOKUP($B148,'Saisie Poussins'!$B$13:$AI$56,1+C$1,FALSE),0) -> 0 | D148: =IFERROR(VLOOKUP($B148,'Saisie Poussins'!$B$13:$AI$56,1+D$1,FALSE),0) -> 0 | E148: =IFERROR(VLOOKUP($B148,'Saisie Poussins'!$B$13:$AI$56,1+E$1,FALSE),0) -> 0 | F148: =IFERROR(VLOOKUP($B148,'Saisie Poussins'!$B$13:$AI$56,1+F$1,FALSE),0) -> 0 | G148: =IFERROR(VLOOKUP($B148,'Saisie Poussins'!$B$13:$AI$56,1+G$1,FALSE),0) -> 0 | H148: =IFERROR(VLOOKUP($B148,'Saisie Poussins'!$B$13:$AI$56,1+H$1,FALSE),0) -> 0 | I148: =IFERROR(VLOOKUP($B148,'Saisie Poussins'!$B$113:$AI$156,26+I$1,FALSE),0) -> 0 | J148: =IFERROR(VLOOKUP($B148,'Saisie Poussins'!$B$113:$AI$156,26+J$1,FALSE),0) -> 0 | K148: =IFERROR(VLOOKUP($B148,'Saisie Poussins'!$B$113:$AI$156,26+K$1,FALSE),0) -> 0 | L148: =IFERROR(VLOOKUP($B148,'Saisie Poussins'!$B$113:$AI$156,26+L$1,FALSE),0) -> 0 | M148: =IFERROR(VLOOKUP($B148,'Saisie Poussins'!$B$113:$AI$156,26+M$1,FALSE),0) -> 0 | N148: =IFERROR(VLOOKUP($B148,'Saisie Poussins'!$B$113:$AI$156,26+N$1,FALSE),0) -> 0 | O148: =IFERROR(VLOOKUP($B148,'Saisie Poussins'!$B$113:$AI$156,26+O$1,FALSE),0) -> 0 | P148: =IFERROR(VLOOKUP($B148,'Saisie Poussins'!$B$113:$AI$156,26+P$1,FALSE),0) -> 0 | Q148: 0
A149: =IFERROR(IF(A148+1<='Saisie Poussins'!$BF$12,A148+1,""),"") ->  | B149: =IFERROR(VLOOKUP(A149,'Saisie Poussins'!$BE$113:$BF$156,2,FALSE),"") ->  | C149: =IFERROR(VLOOKUP($B149,'Saisie Poussins'!$B$13:$AI$56,1+C$1,FALSE),0) -> 0 | D149: =IFERROR(VLOOKUP($B149,'Saisie Poussins'!$B$13:$AI$56,1+D$1,FALSE),0) -> 0 | E149: =IFERROR(VLOOKUP($B149,'Saisie Poussins'!$B$13:$AI$56,1+E$1,FALSE),0) -> 0 | F149: =IFERROR(VLOOKUP($B149,'Saisie Poussins'!$B$13:$AI$56,1+F$1,FALSE),0) -> 0 | G149: =IFERROR(VLOOKUP($B149,'Saisie Poussins'!$B$13:$AI$56,1+G$1,FALSE),0) -> 0 | H149: =IFERROR(VLOOKUP($B149,'Saisie Poussins'!$B$13:$AI$56,1+H$1,FALSE),0) -> 0 | I149: =IFERROR(VLOOKUP($B149,'Saisie Poussins'!$B$113:$AI$156,26+I$1,FALSE),0) -> 0 | J149: =IFERROR(VLOOKUP($B149,'Saisie Poussins'!$B$113:$AI$156,26+J$1,FALSE),0) -> 0 | K149: =IFERROR(VLOOKUP($B149,'Saisie Poussins'!$B$113:$AI$156,26+K$1,FALSE),0) -> 0 | L149: =IFERROR(VLOOKUP($B149,'Saisie Poussins'!$B$113:$AI$156,26+L$1,FALSE),0) -> 0 | M149: =IFERROR(VLOOKUP($B149,'Saisie Poussins'!$B$113:$AI$156,26+M$1,FALSE),0) -> 0 | N149: =IFERROR(VLOOKUP($B149,'Saisie Poussins'!$B$113:$AI$156,26+N$1,FALSE),0) -> 0 | O149: =IFERROR(VLOOKUP($B149,'Saisie Poussins'!$B$113:$AI$156,26+O$1,FALSE),0) -> 0 | P149: =IFERROR(VLOOKUP($B149,'Saisie Poussins'!$B$113:$AI$156,26+P$1,FALSE),0) -> 0 | Q149: 0
A150: =IFERROR(IF(A149+1<='Saisie Poussins'!$BF$12,A149+1,""),"") ->  | B150: =IFERROR(VLOOKUP(A150,'Saisie Poussins'!$BE$113:$BF$156,2,FALSE),"") ->  | C150: =IFERROR(VLOOKUP($B150,'Saisie Poussins'!$B$13:$AI$56,1+C$1,FALSE),0) -> 0 | D150: =IFERROR(VLOOKUP($B150,'Saisie Poussins'!$B$13:$AI$56,1+D$1,FALSE),0) -> 0 | E150: =IFERROR(VLOOKUP($B150,'Saisie Poussins'!$B$13:$AI$56,1+E$1,FALSE),0) -> 0 | F150: =IFERROR(VLOOKUP($B150,'Saisie Poussins'!$B$13:$AI$56,1+F$1,FALSE),0) -> 0 | G150: =IFERROR(VLOOKUP($B150,'Saisie Poussins'!$B$13:$AI$56,1+G$1,FALSE),0) -> 0 | H150: =IFERROR(VLOOKUP($B150,'Saisie Poussins'!$B$13:$AI$56,1+H$1,FALSE),0) -> 0 | I150: =IFERROR(VLOOKUP($B150,'Saisie Poussins'!$B$113:$AI$156,26+I$1,FALSE),0) -> 0 | J150: =IFERROR(VLOOKUP($B150,'Saisie Poussins'!$B$113:$AI$156,26+J$1,FALSE),0) -> 0 | K150: =IFERROR(VLOOKUP($B150,'Saisie Poussins'!$B$113:$AI$156,26+K$1,FALSE),0) -> 0 | L150: =IFERROR(VLOOKUP($B150,'Saisie Poussins'!$B$113:$AI$156,26+L$1,FALSE),0) -> 0 | M150: =IFERROR(VLOOKUP($B150,'Saisie Poussins'!$B$113:$AI$156,26+M$1,FALSE),0) -> 0 | N150: =IFERROR(VLOOKUP($B150,'Saisie Poussins'!$B$113:$AI$156,26+N$1,FALSE),0) -> 0 | O150: =IFERROR(VLOOKUP($B150,'Saisie Poussins'!$B$113:$AI$156,26+O$1,FALSE),0) -> 0 | P150: =IFERROR(VLOOKUP($B150,'Saisie Poussins'!$B$113:$AI$156,26+P$1,FALSE),0) -> 0 | Q150: 0
A151: =IFERROR(IF(A150+1<='Saisie Poussins'!$BF$12,A150+1,""),"") ->  | B151: =IFERROR(VLOOKUP(A151,'Saisie Poussins'!$BE$113:$BF$156,2,FALSE),"") ->  | C151: =IFERROR(VLOOKUP($B151,'Saisie Poussins'!$B$13:$AI$56,1+C$1,FALSE),0) -> 0 | D151: =IFERROR(VLOOKUP($B151,'Saisie Poussins'!$B$13:$AI$56,1+D$1,FALSE),0) -> 0 | E151: =IFERROR(VLOOKUP($B151,'Saisie Poussins'!$B$13:$AI$56,1+E$1,FALSE),0) -> 0 | F151: =IFERROR(VLOOKUP($B151,'Saisie Poussins'!$B$13:$AI$56,1+F$1,FALSE),0) -> 0 | G151: =IFERROR(VLOOKUP($B151,'Saisie Poussins'!$B$13:$AI$56,1+G$1,FALSE),0) -> 0 | H151: =IFERROR(VLOOKUP($B151,'Saisie Poussins'!$B$13:$AI$56,1+H$1,FALSE),0) -> 0 | I151: =IFERROR(VLOOKUP($B151,'Saisie Poussins'!$B$113:$AI$156,26+I$1,FALSE),0) -> 0 | J151: =IFERROR(VLOOKUP($B151,'Saisie Poussins'!$B$113:$AI$156,26+J$1,FALSE),0) -> 0 | K151: =IFERROR(VLOOKUP($B151,'Saisie Poussins'!$B$113:$AI$156,26+K$1,FALSE),0) -> 0 | L151: =IFERROR(VLOOKUP($B151,'Saisie Poussins'!$B$113:$AI$156,26+L$1,FALSE),0) -> 0 | M151: =IFERROR(VLOOKUP($B151,'Saisie Poussins'!$B$113:$AI$156,26+M$1,FALSE),0) -> 0 | N151: =IFERROR(VLOOKUP($B151,'Saisie Poussins'!$B$113:$AI$156,26+N$1,FALSE),0) -> 0 | O151: =IFERROR(VLOOKUP($B151,'Saisie Poussins'!$B$113:$AI$156,26+O$1,FALSE),0) -> 0 | P151: =IFERROR(VLOOKUP($B151,'Saisie Poussins'!$B$113:$AI$156,26+P$1,FALSE),0) -> 0 | Q151: 0
A152: =IFERROR(IF(A151+1<='Saisie Poussins'!$BF$12,A151+1,""),"") ->  | B152: =IFERROR(VLOOKUP(A152,'Saisie Poussins'!$BE$113:$BF$156,2,FALSE),"") ->  | C152: =IFERROR(VLOOKUP($B152,'Saisie Poussins'!$B$13:$AI$56,1+C$1,FALSE),0) -> 0 | D152: =IFERROR(VLOOKUP($B152,'Saisie Poussins'!$B$13:$AI$56,1+D$1,FALSE),0) -> 0 | E152: =IFERROR(VLOOKUP($B152,'Saisie Poussins'!$B$13:$AI$56,1+E$1,FALSE),0) -> 0 | F152: =IFERROR(VLOOKUP($B152,'Saisie Poussins'!$B$13:$AI$56,1+F$1,FALSE),0) -> 0 | G152: =IFERROR(VLOOKUP($B152,'Saisie Poussins'!$B$13:$AI$56,1+G$1,FALSE),0) -> 0 | H152: =IFERROR(VLOOKUP($B152,'Saisie Poussins'!$B$13:$AI$56,1+H$1,FALSE),0) -> 0 | I152: =IFERROR(VLOOKUP($B152,'Saisie Poussins'!$B$113:$AI$156,26+I$1,FALSE),0) -> 0 | J152: =IFERROR(VLOOKUP($B152,'Saisie Poussins'!$B$113:$AI$156,26+J$1,FALSE),0) -> 0 | K152: =IFERROR(VLOOKUP($B152,'Saisie Poussins'!$B$113:$AI$156,26+K$1,FALSE),0) -> 0 | L152: =IFERROR(VLOOKUP($B152,'Saisie Poussins'!$B$113:$AI$156,26+L$1,FALSE),0) -> 0 | M152: =IFERROR(VLOOKUP($B152,'Saisie Poussins'!$B$113:$AI$156,26+M$1,FALSE),0) -> 0 | N152: =IFERROR(VLOOKUP($B152,'Saisie Poussins'!$B$113:$AI$156,26+N$1,FALSE),0) -> 0 | O152: =IFERROR(VLOOKUP($B152,'Saisie Poussins'!$B$113:$AI$156,26+O$1,FALSE),0) -> 0 | P152: =IFERROR(VLOOKUP($B152,'Saisie Poussins'!$B$113:$AI$156,26+P$1,FALSE),0) -> 0 | Q152: 0
A153: =IFERROR(IF(A152+1<='Saisie Poussins'!$BF$12,A152+1,""),"") ->  | B153: =IFERROR(VLOOKUP(A153,'Saisie Poussins'!$BE$113:$BF$156,2,FALSE),"") ->  | C153: =IFERROR(VLOOKUP($B153,'Saisie Poussins'!$B$13:$AI$56,1+C$1,FALSE),0) -> 0 | D153: =IFERROR(VLOOKUP($B153,'Saisie Poussins'!$B$13:$AI$56,1+D$1,FALSE),0) -> 0 | E153: =IFERROR(VLOOKUP($B153,'Saisie Poussins'!$B$13:$AI$56,1+E$1,FALSE),0) -> 0 | F153: =IFERROR(VLOOKUP($B153,'Saisie Poussins'!$B$13:$AI$56,1+F$1,FALSE),0) -> 0 | G153: =IFERROR(VLOOKUP($B153,'Saisie Poussins'!$B$13:$AI$56,1+G$1,FALSE),0) -> 0 | H153: =IFERROR(VLOOKUP($B153,'Saisie Poussins'!$B$13:$AI$56,1+H$1,FALSE),0) -> 0 | I153: =IFERROR(VLOOKUP($B153,'Saisie Poussins'!$B$113:$AI$156,26+I$1,FALSE),0) -> 0 | J153: =IFERROR(VLOOKUP($B153,'Saisie Poussins'!$B$113:$AI$156,26+J$1,FALSE),0) -> 0 | K153: =IFERROR(VLOOKUP($B153,'Saisie Poussins'!$B$113:$AI$156,26+K$1,FALSE),0) -> 0 | L153: =IFERROR(VLOOKUP($B153,'Saisie Poussins'!$B$113:$AI$156,26+L$1,FALSE),0) -> 0 | M153: =IFERROR(VLOOKUP($B153,'Saisie Poussins'!$B$113:$AI$156,26+M$1,FALSE),0) -> 0 | N153: =IFERROR(VLOOKUP($B153,'Saisie Poussins'!$B$113:$AI$156,26+N$1,FALSE),0) -> 0 | O153: =IFERROR(VLOOKUP($B153,'Saisie Poussins'!$B$113:$AI$156,26+O$1,FALSE),0) -> 0 | P153: =IFERROR(VLOOKUP($B153,'Saisie Poussins'!$B$113:$AI$156,26+P$1,FALSE),0) -> 0 | Q153: 0
B154: Leader Cyclo-Cross | D154: ='Saisie Poussins'!E5 -> JOURNET Paul - CC BELFORT MIOTTE | I154: ="Challenge régional "&Accueil!$C$3&" - "&Accueil!$C$5 -> Challenge régional BOURGOGNE FRANCHE COMTE - 2022
B155: Classement Cyclo-Cross
A156: Place | B156: Licence | C156: Nom | D156: Prénom | F156: Club | G156: Catégorie | H156: Année | J156: =RIGHT(CELL("nomfichier",$A$1), LEN(CELL("nomfichier",$A$1))-FIND("]", CELL("nomfichier",$A$1))) -> Classement Poussins
I157: =Accueil!B$10 -> 03/04/2022 Luxeuil | J157: =Accueil!C$10 -> 24/04/2022 Noidans les Vesoul | K157: =Accueil!D$10 -> 1/05/2022 Vescemont | L157: =Accueil!E$10 -> 08/05/2022 Morteau | M157: =Accueil!F$10 -> 22/05/2022 Pontarlier | N157: =Accueil!G$10 -> 05/06/2022 Vadans | O157: =Accueil!H$10 -> 12/06/2022 Montbéliard | P157: =Accueil!I$10 -> 02 et 03/07/2022 Bletterans | Q157: Total des 5 meilleurs
A158: 1 | B158: =IFERROR(VLOOKUP(A158,'Saisie Poussins'!$BE$165:$BF$208,2,FALSE),"") -> 42250120321 | C158: =IFERROR(VLOOKUP($B158,'Saisie Poussins'!$B$13:$AI$56,1+C$1,FALSE),0) -> GRIME | D158: =IFERROR(VLOOKUP($B158,'Saisie Poussins'!$B$13:$AI$56,1+D$1,FALSE),0) -> Lucas | E158: =IFERROR(VLOOKUP($B158,'Saisie Poussins'!$B$13:$AI$56,1+E$1,FALSE),0) -> H | F158: =IFERROR(VLOOKUP($B158,'Saisie Poussins'!$B$13:$AI$56,1+F$1,FALSE),0) -> V.C.DE MONTBELIARD | G158: =IFERROR(VLOOKUP($B158,'Saisie Poussins'!$B$13:$AI$56,1+G$1,FALSE),0) -> Poussin | H158: =IFERROR(VLOOKUP($B158,'Saisie Poussins'!$B$13:$AI$56,1+H$1,FALSE),0) -> 2 | I158: =IFERROR(VLOOKUP($B158,'Saisie Poussins'!$B$165:$AI$208,26+I$1,FALSE),0) -> 50.0000001 | J158: =IFERROR(VLOOKUP($B158,'Saisie Poussins'!$B$165:$AI$208,26+J$1,FALSE),0) -> 0 | K158: =IFERROR(VLOOKUP($B158,'Saisie Poussins'!$B$165:$AI$208,26+K$1,FALSE),0) -> 0 | L158: =IFERROR(VLOOKUP($B158,'Saisie Poussins'!$B$165:$AI$208,26+L$1,FALSE),0) -> 0 | M158: =IFERROR(VLOOKUP($B158,'Saisie Poussins'!$B$165:$AI$208,26+M$1,FALSE),0) -> 0 | N158: =IFERROR(VLOOKUP($B158,'Saisie Poussins'!$B$165:$AI$208,26+N$1,FALSE),0) -> 0 | O158: =IFERROR(VLOOKUP($B158,'Saisie Poussins'!$B$165:$AI$208,26+O$1,FALSE),0) -> 0 | P158: =IFERROR(VLOOKUP($B158,'Saisie Poussins'!$B$165:$AI$208,26+P$1,FALSE),0) -> 50.0000008 | Q158: =IF(B158>0,SUM(I158:P158),"") -> 100.0000009
A159: =IFERROR(IF(A158+1<='Saisie Poussins'!$AJ$163,A158+1,""),"") -> 2 | B159: =IFERROR(VLOOKUP(A159,'Saisie Poussins'!$BE$165:$BF$208,2,FALSE),"") -> 42900480124 | C159: =IFERROR(VLOOKUP($B159,'Saisie Poussins'!$B$13:$AI$56,1+C$1,FALSE),0) -> JOURNET | D159: =IFERROR(VLOOKUP($B159,'Saisie Poussins'!$B$13:$AI$56,1+D$1,FALSE),0) -> Paul | E159: =IFERROR(VLOOKUP($B159,'Saisie Poussins'!$B$13:$AI$56,1+E$1,FALSE),0) -> H | F159: =IFERROR(VLOOKUP($B159,'Saisie Poussins'!$B$13:$AI$56,1+F$1,FALSE),0) -> CC BELFORT MIOTTE | G159: =IFERROR(VLOOKUP($B159,'Saisie Poussins'!$B$13:$AI$56,1+G$1,FALSE),0) -> Poussin | H159: =IFERROR(VLOOKUP($B159,'Saisie Poussins'!$B$13:$AI$56,1+H$1,FALSE),0) -> 2 | I159: =IFERROR(VLOOKUP($B159,'Saisie Poussins'!$B$165:$AI$208,26+I$1,FALSE),0) -> 44.0000001 | J159: =IFERROR(VLOOKUP($B159,'Saisie Poussins'!$B$165:$AI$208,26+J$1,FALSE),0) -> 0 | K159: =IFERROR(VLOOKUP($B159,'Saisie Poussins'!$B$165:$AI$208,26+K$1,FALSE),0) -> 0 | L159: =IFERROR(VLOOKUP($B159,'Saisie Poussins'!$B$165:$AI$208,26+L$1,FALSE),0) -> 0 | M159: =IFERROR(VLOOKUP($B159,'Saisie Poussins'!$B$165:$AI$208,26+M$1,FALSE),0) -> 0 | N159: =IFERROR(VLOOKUP($B159,'Saisie Poussins'!$B$165:$AI$208,26+N$1,FALSE),0) -> 0 | O159: =IFERROR(VLOOKUP($B159,'Saisie Poussins'!$B$165:$AI$208,26+O$1,FALSE),0) -> 0 | P159: =IFERROR(VLOOKUP($B159,'Saisie Poussins'!$B$165:$AI$208,26+P$1,FALSE),0) -> 44.0000008 | Q159: =IF(B159>0,SUM(I159:P159),"") -> 88.0000009
A160: =IFERROR(IF(A159+1<='Saisie Poussins'!$AJ$163,A159+1,""),"") -> 3 | B160: =IFERROR(VLOOKUP(A160,'Saisie Poussins'!$BE$165:$BF$208,2,FALSE),"") -> 42900480168 | C160: =IFERROR(VLOOKUP($B160,'Saisie Poussins'!$B$13:$AI$56,1+C$1,FALSE),0) -> MURATORI | D160: =IFERROR(VLOOKUP($B160,'Saisie Poussins'!$B$13:$AI$56,1+D$1,FALSE),0) -> EZYO | E160: =IFERROR(VLOOKUP($B160,'Saisie Poussins'!$B$13:$AI$56,1+E$1,FALSE),0) -> H | F160: =IFERROR(VLOOKUP($B160,'Saisie Poussins'!$B$13:$AI$56,1+F$1,FALSE),0) -> CC BELFORT MIOTTE | G160: =IFERROR(VLOOKUP($B160,'Saisie Poussins'!$B$13:$AI$56,1+G$1,FALSE),0) -> Poussin | H160: =IFERROR(VLOOKUP($B160,'Saisie Poussins'!$B$13:$AI$56,1+H$1,FALSE),0) -> 2 | I160: =IFERROR(VLOOKUP($B160,'Saisie Poussins'!$B$165:$AI$208,26+I$1,FALSE),0) -> 40.0000001 | J160: =IFERROR(VLOOKUP($B160,'Saisie Poussins'!$B$165:$AI$208,26+J$1,FALSE),0) -> 0 | K160: =IFERROR(VLOOKUP($B160,'Saisie Poussins'!$B$165:$AI$208,26+K$1,FALSE),0) -> 0 | L160: =IFERROR(VLOOKUP($B160,'Saisie Poussins'!$B$165:$AI$208,26+L$1,FALSE),0) -> 0 | M160: =IFERROR(VLOOKUP($B160,'Saisie Poussins'!$B$165:$AI$208,26+M$1,FALSE),0) -> 0 | N160: =IFERROR(VLOOKUP($B160,'Saisie Poussins'!$B$165:$AI$208,26+N$1,FALSE),0) -> 0 | O160: =IFERROR(VLOOKUP($B160,'Saisie Poussins'!$B$165:$AI$208,26+O$1,FALSE),0) -> 0 | P160: =IFERROR(VLOOKUP($B160,'Saisie Poussins'!$B$165:$AI$208,26+P$1,FALSE),0) -> 32.0000008 | Q160: 72.0000009
A161: =IFERROR(IF(A160+1<='Saisie Poussins'!$AJ$163,A160+1,""),"") -> 4 | B161: =IFERROR(VLOOKUP(A161,'Saisie Poussins'!$BE$165:$BF$208,2,FALSE),"") -> 42700680182 | C161: =IFERROR(VLOOKUP($B161,'Saisie Poussins'!$B$13:$AI$56,1+C$1,FALSE),0) -> BOURGES | D161: =IFERROR(VLOOKUP($B161,'Saisie Poussins'!$B$13:$AI$56,1+D$1,FALSE),0) -> Martin | E161: =IFERROR(VLOOKUP($B161,'Saisie Poussins'!$B$13:$AI$56,1+E$1,FALSE),0) -> H | F161: =IFERROR(VLOOKUP($B161,'Saisie Poussins'!$B$13:$AI$56,1+F$1,FALSE),0) -> E.C. LUXEUIL VOSGES SAONO | G161: =IFERROR(VLOOKUP($B161,'Saisie Poussins'!$B$13:$AI$56,1+G$1,FALSE),0) -> Poussin | H161: =IFERROR(VLOOKUP($B161,'Saisie Poussins'!$B$13:$AI$56,1+H$1,FALSE),0) -> 2 | I161: =IFERROR(VLOOKUP($B161,'Saisie Poussins'!$B$165:$AI$208,26+I$1,FALSE),0) -> 37.0000001 | J161: =IFERROR(VLOOKUP($B161,'Saisie Poussins'!$B$165:$AI$208,26+J$1,FALSE),0) -> 0 | K161: =IFERROR(VLOOKUP($B161,'Saisie Poussins'!$B$165:$AI$208,26+K$1,FALSE),0) -> 0 | L161: =IFERROR(VLOOKUP($B161,'Saisie Poussins'!$B$165:$AI$208,26+L$1,FALSE),0) -> 0 | M161: =IFERROR(VLOOKUP($B161,'Saisie Poussins'!$B$165:$AI$208,26+M$1,FALSE),0) -> 0 | N161: =IFERROR(VLOOKUP($B161,'Saisie Poussins'!$B$165:$AI$208,26+N$1,FALSE),0) -> 0 | O161: =IFERROR(VLOOKUP($B161,'Saisie Poussins'!$B$165:$AI$208,26+O$1,FALSE),0) -> 0 | P161: =IFERROR(VLOOKUP($B161,'Saisie Poussins'!$B$165:$AI$208,26+P$1,FALSE),0) -> 30.0000008 | Q161: 67.0000009
A162: =IFERROR(IF(A161+1<='Saisie Poussins'!$AJ$163,A161+1,""),"") -> 5 | B162: =IFERROR(VLOOKUP(A162,'Saisie Poussins'!$BE$165:$BF$208,2,FALSE),"") -> 42250181174 | C162: =IFERROR(VLOOKUP($B162,'Saisie Poussins'!$B$13:$AI$56,1+C$1,FALSE),0) -> DEVILLERS | D162: =IFERROR(VLOOKUP($B162,'Saisie Poussins'!$B$13:$AI$56,1+D$1,FALSE),0) -> Lylou | E162: =IFERROR(VLOOKUP($B162,'Saisie Poussins'!$B$13:$AI$56,1+E$1,FALSE),0) -> D | F162: =IFERROR(VLOOKUP($B162,'Saisie Poussins'!$B$13:$AI$56,1+F$1,FALSE),0) -> VC MORTEAU MONTBENOIT | G162: =IFERROR(VLOOKUP($B162,'Saisie Poussins'!$B$13:$AI$56,1+G$1,FALSE),0) -> Poussin | H162: =IFERROR(VLOOKUP($B162,'Saisie Poussins'!$B$13:$AI$56,1+H$1,FALSE),0) -> 2 | I162: =IFERROR(VLOOKUP($B162,'Saisie Poussins'!$B$165:$AI$208,26+I$1,FALSE),0) -> 32.0000001 | J162: =IFERROR(VLOOKUP($B162,'Saisie Poussins'!$B$165:$AI$208,26+J$1,FALSE),0) -> 0 | K162: =IFERROR(VLOOKUP($B162,'Saisie Poussins'!$B$165:$AI$208,26+K$1,FALSE),0) -> 0 | L162: =IFERROR(VLOOKUP($B162,'Saisie Poussins'!$B$165:$AI$208,26+L$1,FALSE),0) -> 0 | M162: =IFERROR(VLOOKUP($B162,'Saisie Poussins'!$B$165:$AI$208,26+M$1,FALSE),0) -> 0 | N162: =IFERROR(VLOOKUP($B162,'Saisie Poussins'!$B$165:$AI$208,26+N$1,FALSE),0) -> 0 | O162: =IFERROR(VLOOKUP($B162,'Saisie Poussins'!$B$165:$AI$208,26+O$1,FALSE),0) -> 0 | P162: =IFERROR(VLOOKUP($B162,'Saisie Poussins'!$B$165:$AI$208,26+P$1,FALSE),0) -> 34.0000008 | Q162: 66.0000009
A163: =IFERROR(IF(A162+1<='Saisie Poussins'!$AJ$163,A162+1,""),"") -> 6 | B163: =IFERROR(VLOOKUP(A163,'Saisie Poussins'!$BE$165:$BF$208,2,FALSE),"") -> 42250181212 | C163: =IFERROR(VLOOKUP($B163,'Saisie Poussins'!$B$13:$AI$56,1+C$1,FALSE),0) -> DEVILLERS | D163: =IFERROR(VLOOKUP($B163,'Saisie Poussins'!$B$13:$AI$56,1+D$1,FALSE),0) -> Louis | E163: =IFERROR(VLOOKUP($B163,'Saisie Poussins'!$B$13:$AI$56,1+E$1,FALSE),0) -> H | F163: =IFERROR(VLOOKUP($B163,'Saisie Poussins'!$B$13:$AI$56,1+F$1,FALSE),0) -> VC MORTEAU MONTBENOIT | G163: =IFERROR(VLOOKUP($B163,'Saisie Poussins'!$B$13:$AI$56,1+G$1,FALSE),0) -> Poussin | H163: =IFERROR(VLOOKUP($B163,'Saisie Poussins'!$B$13:$AI$56,1+H$1,FALSE),0) -> 1 | I163: =IFERROR(VLOOKUP($B163,'Saisie Poussins'!$B$165:$AI$208,26+I$1,FALSE),0) -> 34.0000001 | J163: =IFERROR(VLOOKUP($B163,'Saisie Poussins'!$B$165:$AI$208,26+J$1,FALSE),0) -> 0 | K163: =IFERROR(VLOOKUP($B163,'Saisie Poussins'!$B$165:$AI$208,26+K$1,FALSE),0) -> 0 | L163: =IFERROR(VLOOKUP($B163,'Saisie Poussins'!$B$165:$AI$208,26+L$1,FALSE),0) -> 0 | M163: =IFERROR(VLOOKUP($B163,'Saisie Poussins'!$B$165:$AI$208,26+M$1,FALSE),0) -> 0 | N163: =IFERROR(VLOOKUP($B163,'Saisie Poussins'!$B$165:$AI$208,26+N$1,FALSE),0) -> 0 | O163: =IFERROR(VLOOKUP($B163,'Saisie Poussins'!$B$165:$AI$208,26+O$1,FALSE),0) -> 0 | P163: =IFERROR(VLOOKUP($B163,'Saisie Poussins'!$B$165:$AI$208,26+P$1,FALSE),0) -> 26.0000008 | Q163: 60.0000009
A164: =IFERROR(IF(A163+1<='Saisie Poussins'!$AJ$163,A163+1,""),"") -> 7 | B164: =IFERROR(VLOOKUP(A164,'Saisie Poussins'!$BE$165:$BF$208,2,FALSE),"") -> 42700680168 | C164: =IFERROR(VLOOKUP($B164,'Saisie Poussins'!$B$13:$AI$56,1+C$1,FALSE),0) -> CLERC | D164: =IFERROR(VLOOKUP($B164,'Saisie Poussins'!$B$13:$AI$56,1+D$1,FALSE),0) -> Zoé | E164: =IFERROR(VLOOKUP($B164,'Saisie Poussins'!$B$13:$AI$56,1+E$1,FALSE),0) -> H | F164: =IFERROR(VLOOKUP($B164,'Saisie Poussins'!$B$13:$AI$56,1+F$1,FALSE),0) -> E.C. LUXEUIL VOSGES SAONO | G164: =IFERROR(VLOOKUP($B164,'Saisie Poussins'!$B$13:$AI$56,1+G$1,FALSE),0) -> Poussin | H164: =IFERROR(VLOOKUP($B164,'Saisie Poussins'!$B$13:$AI$56,1+H$1,FALSE),0) -> 2 | I164: =IFERROR(VLOOKUP($B164,'Saisie Poussins'!$B$165:$AI$208,26+I$1,FALSE),0) -> 30.0000001 | J164: =IFERROR(VLOOKUP($B164,'Saisie Poussins'!$B$165:$AI$208,26+J$1,FALSE),0) -> 0 | K164: =IFERROR(VLOOKUP($B164,'Saisie Poussins'!$B$165:$AI$208,26+K$1,FALSE),0) -> 0 | L164: =IFERROR(VLOOKUP($B164,'Saisie Poussins'!$B$165:$AI$208,26+L$1,FALSE),0) -> 0 | M164: =IFERROR(VLOOKUP($B164,'Saisie Poussins'!$B$165:$AI$208,26+M$1,FALSE),0) -> 0 | N164: =IFERROR(VLOOKUP($B164,'Saisie Poussins'!$B$165:$AI$208,26+N$1,FALSE),0) -> 0 | O164: =IFERROR(VLOOKUP($B164,'Saisie Poussins'!$B$165:$AI$208,26+O$1,FALSE),0) -> 0 | P164: =IFERROR(VLOOKUP($B164,'Saisie Poussins'!$B$165:$AI$208,26+P$1,FALSE),0) -> 24.0000008 | Q164: 54.0000009
A165: =IFERROR(IF(A164+1<='Saisie Poussins'!$AJ$163,A164+1,""),"") -> 8 | B165: =IFERROR(VLOOKUP(A165,'Saisie Poussins'!$BE$165:$BF$208,2,FALSE),"") -> 42700680166 | C165: =IFERROR(VLOOKUP($B165,'Saisie Poussins'!$B$13:$AI$56,1+C$1,FALSE),0) -> ANDRE | D165: =IFERROR(VLOOKUP($B165,'Saisie Poussins'!$B$13:$AI$56,1+D$1,FALSE),0) -> Louane | E165: =IFERROR(VLOOKUP($B165,'Saisie Poussins'!$B$13:$AI$56,1+E$1,FALSE),0) -> D | F165: =IFERROR(VLOOKUP($B165,'Saisie Poussins'!$B$13:$AI$56,1+F$1,FALSE),0) -> E.C. LUXEUIL VOSGES SAONO | G165: =IFERROR(VLOOKUP($B165,'Saisie Poussins'!$B$13:$AI$56,1+G$1,FALSE),0) -> Poussin | H165: =IFERROR(VLOOKUP($B165,'Saisie Poussins'!$B$13:$AI$56,1+H$1,FALSE),0) -> 2 | I165: =IFERROR(VLOOKUP($B165,'Saisie Poussins'!$B$165:$AI$208,26+I$1,FALSE),0) -> 20.0000001 | J165: =IFERROR(VLOOKUP($B165,'Saisie Poussins'!$B$165:$AI$208,26+J$1,FALSE),0) -> 0 | K165: =IFERROR(VLOOKUP($B165,'Saisie Poussins'!$B$165:$AI$208,26+K$1,FALSE),0) -> 0 | L165: =IFERROR(VLOOKUP($B165,'Saisie Poussins'!$B$165:$AI$208,26+L$1,FALSE),0) -> 0 | M165: =IFERROR(VLOOKUP($B165,'Saisie Poussins'!$B$165:$AI$208,26+M$1,FALSE),0) -> 0 | N165: =IFERROR(VLOOKUP($B165,'Saisie Poussins'!$B$165:$AI$208,26+N$1,FALSE),0) -> 0 | O165: =IFERROR(VLOOKUP($B165,'Saisie Poussins'!$B$165:$AI$208,26+O$1,FALSE),0) -> 0 | P165: =IFERROR(VLOOKUP($B165,'Saisie Poussins'!$B$165:$AI$208,26+P$1,FALSE),0) -> 28.0000008 | Q165: 48.0000009
A166: =IFERROR(IF(A165+1<='Saisie Poussins'!$AJ$163,A165+1,""),"") -> 9 | B166: =IFERROR(VLOOKUP(A166,'Saisie Poussins'!$BE$165:$BF$208,2,FALSE),"") -> 42250181227 | C166: =IFERROR(VLOOKUP($B166,'Saisie Poussins'!$B$13:$AI$56,1+C$1,FALSE),0) -> DROZ VINCENT | D166: =IFERROR(VLOOKUP($B166,'Saisie Poussins'!$B$13:$AI$56,1+D$1,FALSE),0) -> Robin | E166: =IFERROR(VLOOKUP($B166,'Saisie Poussins'!$B$13:$AI$56,1+E$1,FALSE),0) -> H | F166: =IFERROR(VLOOKUP($B166,'Saisie Poussins'!$B$13:$AI$56,1+F$1,FALSE),0) -> VC MORTEAU MONTBENOIT | G166: =IFERROR(VLOOKUP($B166,'Saisie Poussins'!$B$13:$AI$56,1+G$1,FALSE),0) -> Poussin | H166: =IFERROR(VLOOKUP($B166,'Saisie Poussins'!$B$13:$AI$56,1+H$1,FALSE),0) -> 2 | I166: =IFERROR(VLOOKUP($B166,'Saisie Poussins'!$B$165:$AI$208,26+I$1,FALSE),0) -> 0 | J166: =IFERROR(VLOOKUP($B166,'Saisie Poussins'!$B$165:$AI$208,26+J$1,FALSE),0) -> 0 | K166: =IFERROR(VLOOKUP($B166,'Saisie Poussins'!$B$165:$AI$208,26+K$1,FALSE),0) -> 0 | L166: =IFERROR(VLOOKUP($B166,'Saisie Poussins'!$B$165:$AI$208,26+L$1,FALSE),0) -> 0 | M166: =IFERROR(VLOOKUP($B166,'Saisie Poussins'!$B$165:$AI$208,26+M$1,FALSE),0) -> 0 | N166: =IFERROR(VLOOKUP($B166,'Saisie Poussins'!$B$165:$AI$208,26+N$1,FALSE),0) -> 0 | O166: =IFERROR(VLOOKUP($B166,'Saisie Poussins'!$B$165:$AI$208,26+O$1,FALSE),0) -> 0 | P166: =IFERROR(VLOOKUP($B166,'Saisie Poussins'!$B$165:$AI$208,26+P$1,FALSE),0) -> 40.0000008 | Q166: 40.0000008
A167: =IFERROR(IF(A166+1<='Saisie Poussins'!$AJ$163,A166+1,""),"") -> 10 | B167: =IFERROR(VLOOKUP(A167,'Saisie Poussins'!$BE$165:$BF$208,2,FALSE),"") -> 42900360346 | C167: =IFERROR(VLOOKUP($B167,'Saisie Poussins'!$B$13:$AI$56,1+C$1,FALSE),0) -> STADLER | D167: =IFERROR(VLOOKUP($B167,'Saisie Poussins'!$B$13:$AI$56,1+D$1,FALSE),0) -> Gwennaelle | E167: =IFERROR(VLOOKUP($B167,'Saisie Poussins'!$B$13:$AI$56,1+E$1,FALSE),0) -> D | F167: =IFERROR(VLOOKUP($B167,'Saisie Poussins'!$B$13:$AI$56,1+F$1,FALSE),0) -> A.C.T. BELFORT | G167: =IFERROR(VLOOKUP($B167,'Saisie Poussins'!$B$13:$AI$56,1+G$1,FALSE),0) -> Poussin | H167: =IFERROR(VLOOKUP($B167,'Saisie Poussins'!$B$13:$AI$56,1+H$1,FALSE),0) -> 1 | I167: =IFERROR(VLOOKUP($B167,'Saisie Poussins'!$B$165:$AI$208,26+I$1,FALSE),0) -> 21.0000001 | J167: =IFERROR(VLOOKUP($B167,'Saisie Poussins'!$B$165:$AI$208,26+J$1,FALSE),0) -> 0 | K167: =IFERROR(VLOOKUP($B167,'Saisie Poussins'!$B$165:$AI$208,26+K$1,FALSE),0) -> 0 | L167: =IFERROR(VLOOKUP($B167,'Saisie Poussins'!$B$165:$AI$208,26+L$1,FALSE),0) -> 0 | M167: =IFERROR(VLOOKUP($B167,'Saisie Poussins'!$B$165:$AI$208,26+M$1,FALSE),0) -> 0 | N167: =IFERROR(VLOOKUP($B167,'Saisie Poussins'!$B$165:$AI$208,26+N$1,FALSE),0) -> 0 | O167: =IFERROR(VLOOKUP($B167,'Saisie Poussins'!$B$165:$AI$208,26+O$1,FALSE),0) -> 0 | P167: =IFERROR(VLOOKUP($B167,'Saisie Poussins'!$B$165:$AI$208,26+P$1,FALSE),0) -> 18.0000008 | Q167: 39.0000009
A168: =IFERROR(IF(A167+1<='Saisie Poussins'!$AJ$163,A167+1,""),"") -> 11 | B168: =IFERROR(VLOOKUP(A168,'Saisie Poussins'!$BE$165:$BF$208,2,FALSE),"") -> 42250010005 | C168: =IFERROR(VLOOKUP($B168,'Saisie Poussins'!$B$13:$AI$56,1+C$1,FALSE),0) -> CLEMENT | D168: =IFERROR(VLOOKUP($B168,'Saisie Poussins'!$B$13:$AI$56,1+D$1,FALSE),0) -> Marius | E168: =IFERROR(VLOOKUP($B168,'Saisie Poussins'!$B$13:$AI$56,1+E$1,FALSE),0) -> H | F168: =IFERROR(VLOOKUP($B168,'Saisie Poussins'!$B$13:$AI$56,1+F$1,FALSE),0) -> TEAM COBRA CYCLING | G168: =IFERROR(VLOOKUP($B168,'Saisie Poussins'!$B$13:$AI$56,1+G$1,FALSE),0) -> Poussin | H168: =IFERROR(VLOOKUP($B168,'Saisie Poussins'!$B$13:$AI$56,1+H$1,FALSE),0) -> 1 | I168: =IFERROR(VLOOKUP($B168,'Saisie Poussins'!$B$165:$AI$208,26+I$1,FALSE),0) -> 0 | J168: =IFERROR(VLOOKUP($B168,'Saisie Poussins'!$B$165:$AI$208,26+J$1,FALSE),0) -> 0 | K168: =IFERROR(VLOOKUP($B168,'Saisie Poussins'!$B$165:$AI$208,26+K$1,FALSE),0) -> 0 | L168: =IFERROR(VLOOKUP($B168,'Saisie Poussins'!$B$165:$AI$208,26+L$1,FALSE),0) -> 0 | M168: =IFERROR(VLOOKUP($B168,'Saisie Poussins'!$B$165:$AI$208,26+M$1,FALSE),0) -> 0 | N168: =IFERROR(VLOOKUP($B168,'Saisie Poussins'!$B$165:$AI$208,26+N$1,FALSE),0) -> 0 | O168: =IFERROR(VLOOKUP($B168,'Saisie Poussins'!$B$165:$AI$208,26+O$1,FALSE),0) -> 0 | P168: =IFERROR(VLOOKUP($B168,'Saisie Poussins'!$B$165:$AI$208,26+P$1,FALSE),0) -> 37.0000008 | Q168: 37.0000008
A169: =IFERROR(IF(A168+1<='Saisie Poussins'!$AJ$163,A168+1,""),"") -> 12 | B169: =IFERROR(VLOOKUP(A169,'Saisie Poussins'!$BE$165:$BF$208,2,FALSE),"") -> 42700680169 | C169: =IFERROR(VLOOKUP($B169,'Saisie Poussins'!$B$13:$AI$56,1+C$1,FALSE),0) -> BRY | D169: =IFERROR(VLOOKUP($B169,'Saisie Poussins'!$B$13:$AI$56,1+D$1,FALSE),0) -> Eliott | E169: =IFERROR(VLOOKUP($B169,'Saisie Poussins'!$B$13:$AI$56,1+E$1,FALSE),0) -> H | F169: =IFERROR(VLOOKUP($B169,'Saisie Poussins'!$B$13:$AI$56,1+F$1,FALSE),0) -> E.C. LUXEUIL VOSGES SAONO | G169: =IFERROR(VLOOKUP($B169,'Saisie Poussins'!$B$13:$AI$56,1+G$1,FALSE),0) -> Poussin | H169: =IFERROR(VLOOKUP($B169,'Saisie Poussins'!$B$13:$AI$56,1+H$1,FALSE),0) -> 1 | I169: =IFERROR(VLOOKUP($B169,'Saisie Poussins'!$B$165:$AI$208,26+I$1,FALSE),0) -> 28.0000001 | J169: =IFERROR(VLOOKUP($B169,'Saisie Poussins'!$B$165:$AI$208,26+J$1,FALSE),0) -> 0 | K169: =IFERROR(VLOOKUP($B169,'Saisie Poussins'!$B$165:$AI$208,26+K$1,FALSE),0) -> 0 | L169: =IFERROR(VLOOKUP($B169,'Saisie Poussins'!$B$165:$AI$208,26+L$1,FALSE),0) -> 0 | M169: =IFERROR(VLOOKUP($B169,'Saisie Poussins'!$B$165:$AI$208,26+M$1,FALSE),0) -> 0 | N169: =IFERROR(VLOOKUP($B169,'Saisie Poussins'!$B$165:$AI$208,26+N$1,FALSE),0) -> 0 | O169: =IFERROR(VLOOKUP($B169,'Saisie Poussins'!$B$165:$AI$208,26+O$1,FALSE),0) -> 0 | P169: =IFERROR(VLOOKUP($B169,'Saisie Poussins'!$B$165:$AI$208,26+P$1,FALSE),0) -> 0 | Q169: 28.0000001
A170: =IFERROR(IF(A169+1<='Saisie Poussins'!$AJ$163,A169+1,""),"") -> 13 | B170: =IFERROR(VLOOKUP(A170,'Saisie Poussins'!$BE$165:$BF$208,2,FALSE),"") -> 42700680157 | C170: =IFERROR(VLOOKUP($B170,'Saisie Poussins'!$B$13:$AI$56,1+C$1,FALSE),0) -> BARBASON | D170: =IFERROR(VLOOKUP($B170,'Saisie Poussins'!$B$13:$AI$56,1+D$1,FALSE),0) -> Jean | E170: =IFERROR(VLOOKUP($B170,'Saisie Poussins'!$B$13:$AI$56,1+E$1,FALSE),0) -> H | F170: =IFERROR(VLOOKUP($B170,'Saisie Poussins'!$B$13:$AI$56,1+F$1,FALSE),0) -> E.C. LUXEUIL VOSGES SAONO | G170: =IFERROR(VLOOKUP($B170,'Saisie Poussins'!$B$13:$AI$56,1+G$1,FALSE),0) -> Poussin | H170: =IFERROR(VLOOKUP($B170,'Saisie Poussins'!$B$13:$AI$56,1+H$1,FALSE),0) -> 2 | I170: =IFERROR(VLOOKUP($B170,'Saisie Poussins'!$B$165:$AI$208,26+I$1,FALSE),0) -> 26.0000001 | J170: =IFERROR(VLOOKUP($B170,'Saisie Poussins'!$B$165:$AI$208,26+J$1,FALSE),0) -> 0 | K170: =IFERROR(VLOOKUP($B170,'Saisie Poussins'!$B$165:$AI$208,26+K$1,FALSE),0) -> 0 | L170: =IFERROR(VLOOKUP($B170,'Saisie Poussins'!$B$165:$AI$208,26+L$1,FALSE),0) -> 0 | M170: =IFERROR(VLOOKUP($B170,'Saisie Poussins'!$B$165:$AI$208,26+M$1,FALSE),0) -> 0 | N170: =IFERROR(VLOOKUP($B170,'Saisie Poussins'!$B$165:$AI$208,26+N$1,FALSE),0) -> 0 | O170: =IFERROR(VLOOKUP($B170,'Saisie Poussins'!$B$165:$AI$208,26+O$1,FALSE),0) -> 0 | P170: =IFERROR(VLOOKUP($B170,'Saisie Poussins'!$B$165:$AI$208,26+P$1,FALSE),0) -> 0 | Q170: 26.0000001
A171: =IFERROR(IF(A170+1<='Saisie Poussins'!$AJ$163,A170+1,""),"") -> 14 | B171: =IFERROR(VLOOKUP(A171,'Saisie Poussins'!$BE$165:$BF$208,2,FALSE),"") -> 42700680168 | C171: =IFERROR(VLOOKUP($B171,'Saisie Poussins'!$B$13:$AI$56,1+C$1,FALSE),0) -> CLERC | D171: =IFERROR(VLOOKUP($B171,'Saisie Poussins'!$B$13:$AI$56,1+D$1,FALSE),0) -> Zoé | E171: =IFERROR(VLOOKUP($B171,'Saisie Poussins'!$B$13:$AI$56,1+E$1,FALSE),0) -> H | F171: =IFERROR(VLOOKUP($B171,'Saisie Poussins'!$B$13:$AI$56,1+F$1,FALSE),0) -> E.C. LUXEUIL VOSGES SAONO | G171: =IFERROR(VLOOKUP($B171,'Saisie Poussins'!$B$13:$AI$56,1+G$1,FALSE),0) -> Poussin | H171: =IFERROR(VLOOKUP($B171,'Saisie Poussins'!$B$13:$AI$56,1+H$1,FALSE),0) -> 2 | I171: =IFERROR(VLOOKUP($B171,'Saisie Poussins'!$B$165:$AI$208,26+I$1,FALSE),0) -> 30.0000001 | J171: =IFERROR(VLOOKUP($B171,'Saisie Poussins'!$B$165:$AI$208,26+J$1,FALSE),0) -> 0 | K171: =IFERROR(VLOOKUP($B171,'Saisie Poussins'!$B$165:$AI$208,26+K$1,FALSE),0) -> 0 | L171: =IFERROR(VLOOKUP($B171,'Saisie Poussins'!$B$165:$AI$208,26+L$1,FALSE),0) -> 0 | M171: =IFERROR(VLOOKUP($B171,'Saisie Poussins'!$B$165:$AI$208,26+M$1,FALSE),0) -> 0 | N171: =IFERROR(VLOOKUP($B171,'Saisie Poussins'!$B$165:$AI$208,26+N$1,FALSE),0) -> 0 | O171: =IFERROR(VLOOKUP($B171,'Saisie Poussins'!$B$165:$AI$208,26+O$1,FALSE),0) -> 0 | P171: =IFERROR(VLOOKUP($B171,'Saisie Poussins'!$B$165:$AI$208,26+P$1,FALSE),0) -> 24.0000008 | Q171: 54.0000009
A172: =IFERROR(IF(A171+1<='Saisie Poussins'!$AJ$163,A171+1,""),"") -> 15 | B172: =IFERROR(VLOOKUP(A172,'Saisie Poussins'!$BE$165:$BF$208,2,FALSE),"") -> 42700060276 | C172: =IFERROR(VLOOKUP($B172,'Saisie Poussins'!$B$13:$AI$56,1+C$1,FALSE),0) -> TAILHARDAT | D172: =IFERROR(VLOOKUP($B172,'Saisie Poussins'!$B$13:$AI$56,1+D$1,FALSE),0) -> Célestin | E172: =IFERROR(VLOOKUP($B172,'Saisie Poussins'!$B$13:$AI$56,1+E$1,FALSE),0) -> H | F172: =IFERROR(VLOOKUP($B172,'Saisie Poussins'!$B$13:$AI$56,1+F$1,FALSE),0) -> ROUE D`OR NOIDANS | G172: =IFERROR(VLOOKUP($B172,'Saisie Poussins'!$B$13:$AI$56,1+G$1,FALSE),0) -> Poussin | H172: =IFERROR(VLOOKUP($B172,'Saisie Poussins'!$B$13:$AI$56,1+H$1,FALSE),0) -> 1 | I172: =IFERROR(VLOOKUP($B172,'Saisie Poussins'!$B$165:$AI$208,26+I$1,FALSE),0) -> 24.0000001 | J172: =IFERROR(VLOOKUP($B172,'Saisie Poussins'!$B$165:$AI$208,26+J$1,FALSE),0) -> 0 | K172: =IFERROR(VLOOKUP($B172,'Saisie Poussins'!$B$165:$AI$208,26+K$1,FALSE),0) -> 0 | L172: =IFERROR(VLOOKUP($B172,'Saisie Poussins'!$B$165:$AI$208,26+L$1,FALSE),0) -> 0 | M172: =IFERROR(VLOOKUP($B172,'Saisie Poussins'!$B$165:$AI$208,26+M$1,FALSE),0) -> 0 | N172: =IFERROR(VLOOKUP($B172,'Saisie Poussins'!$B$165:$AI$208,26+N$1,FALSE),0) -> 0 | O172: =IFERROR(VLOOKUP($B172,'Saisie Poussins'!$B$165:$AI$208,26+O$1,FALSE),0) -> 0 | P172: =IFERROR(VLOOKUP($B172,'Saisie Poussins'!$B$165:$AI$208,26+P$1,FALSE),0) -> 0 | Q172: 24.0000001
A173: =IFERROR(IF(A172+1<='Saisie Poussins'!$AJ$163,A172+1,""),"") -> 16 | B173: =IFERROR(VLOOKUP(A173,'Saisie Poussins'!$BE$165:$BF$208,2,FALSE),"") -> 42390960384 | C173: =IFERROR(VLOOKUP($B173,'Saisie Poussins'!$B$13:$AI$56,1+C$1,FALSE),0) -> BUGNET | D173: =IFERROR(VLOOKUP($B173,'Saisie Poussins'!$B$13:$AI$56,1+D$1,FALSE),0) -> Lucas | E173: =IFERROR(VLOOKUP($B173,'Saisie Poussins'!$B$13:$AI$56,1+E$1,FALSE),0) -> H | F173: =IFERROR(VLOOKUP($B173,'Saisie Poussins'!$B$13:$AI$56,1+F$1,FALSE),0) -> JURA CYCLISME PAYS DU REVERMONT | G173: =IFERROR(VLOOKUP($B173,'Saisie Poussins'!$B$13:$AI$56,1+G$1,FALSE),0) -> Poussin | H173: =IFERROR(VLOOKUP($B173,'Saisie Poussins'!$B$13:$AI$56,1+H$1,FALSE),0) -> 2 | I173: =IFERROR(VLOOKUP($B173,'Saisie Poussins'!$B$165:$AI$208,26+I$1,FALSE),0) -> 0 | J173: =IFERROR(VLOOKUP($B173,'Saisie Poussins'!$B$165:$AI$208,26+J$1,FALSE),0) -> 0 | K173: =IFERROR(VLOOKUP($B173,'Saisie Poussins'!$B$165:$AI$208,26+K$1,FALSE),0) -> 0 | L173: =IFERROR(VLOOKUP($B173,'Saisie Poussins'!$B$165:$AI$208,26+L$1,FALSE),0) -> 0 | M173: =IFERROR(VLOOKUP($B173,'Saisie Poussins'!$B$165:$AI$208,26+M$1,FALSE),0) -> 0 | N173: =IFERROR(VLOOKUP($B173,'Saisie Poussins'!$B$165:$AI$208,26+N$1,FALSE),0) -> 0 | O173: =IFERROR(VLOOKUP($B173,'Saisie Poussins'!$B$165:$AI$208,26+O$1,FALSE),0) -> 0 | P173: =IFERROR(VLOOKUP($B173,'Saisie Poussins'!$B$165:$AI$208,26+P$1,FALSE),0) -> 22.0000008 | Q173: 22.0000008
A174: =IFERROR(IF(A173+1<='Saisie Poussins'!$AJ$163,A173+1,""),"") -> 17 | B174: =IFERROR(VLOOKUP(A174,'Saisie Poussins'!$BE$165:$BF$208,2,FALSE),"") -> 42700060248 | C174: =IFERROR(VLOOKUP($B174,'Saisie Poussins'!$B$13:$AI$56,1+C$1,FALSE),0) -> BOISSON | D174: =IFERROR(VLOOKUP($B174,'Saisie Poussins'!$B$13:$AI$56,1+D$1,FALSE),0) -> Marius | E174: =IFERROR(VLOOKUP($B174,'Saisie Poussins'!$B$13:$AI$56,1+E$1,FALSE),0) -> H | F174: =IFERROR(VLOOKUP($B174,'Saisie Poussins'!$B$13:$AI$56,1+F$1,FALSE),0) -> ROUE D`OR NOIDANS | G174: =IFERROR(VLOOKUP($B174,'Saisie Poussins'!$B$13:$AI$56,1+G$1,FALSE),0) -> Poussin | H174: =IFERROR(VLOOKUP($B174,'Saisie Poussins'!$B$13:$AI$56,1+H$1,FALSE),0) -> 1 | I174: =IFERROR(VLOOKUP($B174,'Saisie Poussins'!$B$165:$AI$208,26+I$1,FALSE),0) -> 22.0000001 | J174: =IFERROR(VLOOKUP($B174,'Saisie Poussins'!$B$165:$AI$208,26+J$1,FALSE),0) -> 0 | K174: =IFERROR(VLOOKUP($B174,'Saisie Poussins'!$B$165:$AI$208,26+K$1,FALSE),0) -> 0 | L174: =IFERROR(VLOOKUP($B174,'Saisie Poussins'!$B$165:$AI$208,26+L$1,FALSE),0) -> 0 | M174: =IFERROR(VLOOKUP($B174,'Saisie Poussins'!$B$165:$AI$208,26+M$1,FALSE),0) -> 0 | N174: =IFERROR(VLOOKUP($B174,'Saisie Poussins'!$B$165:$AI$208,26+N$1,FALSE),0) -> 0 | O174: =IFERROR(VLOOKUP($B174,'Saisie Poussins'!$B$165:$AI$208,26+O$1,FALSE),0) -> 0 | P174: =IFERROR(VLOOKUP($B174,'Saisie Poussins'!$B$165:$AI$208,26+P$1,FALSE),0) -> 0 | Q174: 22.0000001
A175: =IFERROR(IF(A174+1<='Saisie Poussins'!$AJ$163,A174+1,""),"") -> 18 | B175: =IFERROR(VLOOKUP(A175,'Saisie Poussins'!$BE$165:$BF$208,2,FALSE),"") -> 42250120353 | C175: =IFERROR(VLOOKUP($B175,'Saisie Poussins'!$B$13:$AI$56,1+C$1,FALSE),0) -> PLANTEVIN BIRON | D175: =IFERROR(VLOOKUP($B175,'Saisie Poussins'!$B$13:$AI$56,1+D$1,FALSE),0) -> Antonia | E175: =IFERROR(VLOOKUP($B175,'Saisie Poussins'!$B$13:$AI$56,1+E$1,FALSE),0) -> D | F175: =IFERROR(VLOOKUP($B175,'Saisie Poussins'!$B$13:$AI$56,1+F$1,FALSE),0) -> V.C.DE MONTBELIARD | G175: =IFERROR(VLOOKUP($B175,'Saisie Poussins'!$B$13:$AI$56,1+G$1,FALSE),0) -> Poussin | H175: =IFERROR(VLOOKUP($B175,'Saisie Poussins'!$B$13:$AI$56,1+H$1,FALSE),0) -> 1 | I175: =IFERROR(VLOOKUP($B175,'Saisie Poussins'!$B$165:$AI$208,26+I$1,FALSE),0) -> 0 | J175: =IFERROR(VLOOKUP($B175,'Saisie Poussins'!$B$165:$AI$208,26+J$1,FALSE),0) -> 0 | K175: =IFERROR(VLOOKUP($B175,'Saisie Poussins'!$B$165:$AI$208,26+K$1,FALSE),0) -> 0 | L175: =IFERROR(VLOOKUP($B175,'Saisie Poussins'!$B$165:$AI$208,26+L$1,FALSE),0) -> 0 | M175: =IFERROR(VLOOKUP($B175,'Saisie Poussins'!$B$165:$AI$208,26+M$1,FALSE),0) -> 0 | N175: =IFERROR(VLOOKUP($B175,'Saisie Poussins'!$B$165:$AI$208,26+N$1,FALSE),0) -> 0 | O175: =IFERROR(VLOOKUP($B175,'Saisie Poussins'!$B$165:$AI$208,26+O$1,FALSE),0) -> 0 | P175: =IFERROR(VLOOKUP($B175,'Saisie Poussins'!$B$165:$AI$208,26+P$1,FALSE),0) -> 21.0000008 | Q175: 21.0000008
A176: =IFERROR(IF(A175+1<='Saisie Poussins'!$AJ$163,A175+1,""),"") -> 19 | B176: =IFERROR(VLOOKUP(A176,'Saisie Poussins'!$BE$165:$BF$208,2,FALSE),"") -> 42390330277 | C176: =IFERROR(VLOOKUP($B176,'Saisie Poussins'!$B$13:$AI$56,1+C$1,FALSE),0) -> BELLENOUE | D176: =IFERROR(VLOOKUP($B176,'Saisie Poussins'!$B$13:$AI$56,1+D$1,FALSE),0) -> Antone | E176: =IFERROR(VLOOKUP($B176,'Saisie Poussins'!$B$13:$AI$56,1+E$1,FALSE),0) -> M | F176: =IFERROR(VLOOKUP($B176,'Saisie Poussins'!$B$13:$AI$56,1+F$1,FALSE),0) -> GUIDON BLETTERANOIS | G176: =IFERROR(VLOOKUP($B176,'Saisie Poussins'!$B$13:$AI$56,1+G$1,FALSE),0) -> Poussin | H176: =IFERROR(VLOOKUP($B176,'Saisie Poussins'!$B$13:$AI$56,1+H$1,FALSE),0) -> 2 | I176: =IFERROR(VLOOKUP($B176,'Saisie Poussins'!$B$165:$AI$208,26+I$1,FALSE),0) -> 0 | J176: =IFERROR(VLOOKUP($B176,'Saisie Poussins'!$B$165:$AI$208,26+J$1,FALSE),0) -> 0 | K176: =IFERROR(VLOOKUP($B176,'Saisie Poussins'!$B$165:$AI$208,26+K$1,FALSE),0) -> 0 | L176: =IFERROR(VLOOKUP($B176,'Saisie Poussins'!$B$165:$AI$208,26+L$1,FALSE),0) -> 0 | M176: =IFERROR(VLOOKUP($B176,'Saisie Poussins'!$B$165:$AI$208,26+M$1,FALSE),0) -> 0 | N176: =IFERROR(VLOOKUP($B176,'Saisie Poussins'!$B$165:$AI$208,26+N$1,FALSE),0) -> 0 | O176: =IFERROR(VLOOKUP($B176,'Saisie Poussins'!$B$165:$AI$208,26+O$1,FALSE),0) -> 0 | P176: =IFERROR(VLOOKUP($B176,'Saisie Poussins'!$B$165:$AI$208,26+P$1,FALSE),0) -> 20.0000008 | Q176: 20.0000008
A177: =IFERROR(IF(A176+1<='Saisie Poussins'!$AJ$163,A176+1,""),"") -> 20 | B177: =IFERROR(VLOOKUP(A177,'Saisie Poussins'!$BE$165:$BF$208,2,FALSE),"") -> 42390960385 | C177: =IFERROR(VLOOKUP($B177,'Saisie Poussins'!$B$13:$AI$56,1+C$1,FALSE),0) -> PEREIRA | D177: =IFERROR(VLOOKUP($B177,'Saisie Poussins'!$B$13:$AI$56,1+D$1,FALSE),0) -> Tiago | E177: =IFERROR(VLOOKUP($B177,'Saisie Poussins'!$B$13:$AI$56,1+E$1,FALSE),0) -> M | F177: =IFERROR(VLOOKUP($B177,'Saisie Poussins'!$B$13:$AI$56,1+F$1,FALSE),0) -> JURA CYCLISME PAYS DU REVERMONT | G177: =IFERROR(VLOOKUP($B177,'Saisie Poussins'!$B$13:$AI$56,1+G$1,FALSE),0) -> Poussin | H177: =IFERROR(VLOOKUP($B177,'Saisie Poussins'!$B$13:$AI$56,1+H$1,FALSE),0) -> 1 | I177: =IFERROR(VLOOKUP($B177,'Saisie Poussins'!$B$165:$AI$208,26+I$1,FALSE),0) -> 0 | J177: =IFERROR(VLOOKUP($B177,'Saisie Poussins'!$B$165:$AI$208,26+J$1,FALSE),0) -> 0 | K177: =IFERROR(VLOOKUP($B177,'Saisie Poussins'!$B$165:$AI$208,26+K$1,FALSE),0) -> 0 | L177: =IFERROR(VLOOKUP($B177,'Saisie Poussins'!$B$165:$AI$208,26+L$1,FALSE),0) -> 0 | M177: =IFERROR(VLOOKUP($B177,'Saisie Poussins'!$B$165:$AI$208,26+M$1,FALSE),0) -> 0 | N177: =IFERROR(VLOOKUP($B177,'Saisie Poussins'!$B$165:$AI$208,26+N$1,FALSE),0) -> 0 | O177: =IFERROR(VLOOKUP($B177,'Saisie Poussins'!$B$165:$AI$208,26+O$1,FALSE),0) -> 0 | P177: =IFERROR(VLOOKUP($B177,'Saisie Poussins'!$B$165:$AI$208,26+P$1,FALSE),0) -> 19.0000008 | Q177: 19.0000008
A178: =IFERROR(IF(A177+1<='Saisie Poussins'!$AJ$163,A177+1,""),"") ->  | B178: =IFERROR(VLOOKUP(A178,'Saisie Poussins'!$BE$165:$BF$208,2,FALSE),"") -> 0 | C178: =IFERROR(VLOOKUP($B178,'Saisie Poussins'!$B$13:$AI$56,1+C$1,FALSE),0) -> 0 | D178: =IFERROR(VLOOKUP($B178,'Saisie Poussins'!$B$13:$AI$56,1+D$1,FALSE),0) -> 0 | E178: =IFERROR(VLOOKUP($B178,'Saisie Poussins'!$B$13:$AI$56,1+E$1,FALSE),0) -> 0 | F178: =IFERROR(VLOOKUP($B178,'Saisie Poussins'!$B$13:$AI$56,1+F$1,FALSE),0) -> 0 | G178: =IFERROR(VLOOKUP($B178,'Saisie Poussins'!$B$13:$AI$56,1+G$1,FALSE),0) -> 0 | H178: =IFERROR(VLOOKUP($B178,'Saisie Poussins'!$B$13:$AI$56,1+H$1,FALSE),0) -> 0 | I178: =IFERROR(VLOOKUP($B178,'Saisie Poussins'!$B$165:$AI$208,26+I$1,FALSE),0) -> 0 | J178: =IFERROR(VLOOKUP($B178,'Saisie Poussins'!$B$165:$AI$208,26+J$1,FALSE),0) -> 0 | K178: =IFERROR(VLOOKUP($B178,'Saisie Poussins'!$B$165:$AI$208,26+K$1,FALSE),0) -> 0 | L178: =IFERROR(VLOOKUP($B178,'Saisie Poussins'!$B$165:$AI$208,26+L$1,FALSE),0) -> 0 | M178: =IFERROR(VLOOKUP($B178,'Saisie Poussins'!$B$165:$AI$208,26+M$1,FALSE),0) -> 0 | N178: =IFERROR(VLOOKUP($B178,'Saisie Poussins'!$B$165:$AI$208,26+N$1,FALSE),0) -> 0 | O178: =IFERROR(VLOOKUP($B178,'Saisie Poussins'!$B$165:$AI$208,26+O$1,FALSE),0) -> 0 | P178: =IFERROR(VLOOKUP($B178,'Saisie Poussins'!$B$165:$AI$208,26+P$1,FALSE),0) -> 0
A179: =IFERROR(IF(A178+1<='Saisie Poussins'!$AJ$163,A178+1,""),"") ->  | B179: =IFERROR(VLOOKUP(A179,'Saisie Poussins'!$BE$165:$BF$208,2,FALSE),"") -> 0 | C179: =IFERROR(VLOOKUP($B179,'Saisie Poussins'!$B$13:$AI$56,1+C$1,FALSE),0) -> 0 | D179: =IFERROR(VLOOKUP($B179,'Saisie Poussins'!$B$13:$AI$56,1+D$1,FALSE),0) -> 0 | E179: =IFERROR(VLOOKUP($B179,'Saisie Poussins'!$B$13:$AI$56,1+E$1,FALSE),0) -> 0 | F179: =IFERROR(VLOOKUP($B179,'Saisie Poussins'!$B$13:$AI$56,1+F$1,FALSE),0) -> 0 | G179: =IFERROR(VLOOKUP($B179,'Saisie Poussins'!$B$13:$AI$56,1+G$1,FALSE),0) -> 0 | H179: =IFERROR(VLOOKUP($B179,'Saisie Poussins'!$B$13:$AI$56,1+H$1,FALSE),0) -> 0 | I179: =IFERROR(VLOOKUP($B179,'Saisie Poussins'!$B$165:$AI$208,26+I$1,FALSE),0) -> 0 | J179: =IFERROR(VLOOKUP($B179,'Saisie Poussins'!$B$165:$AI$208,26+J$1,FALSE),0) -> 0 | K179: =IFERROR(VLOOKUP($B179,'Saisie Poussins'!$B$165:$AI$208,26+K$1,FALSE),0) -> 0 | L179: =IFERROR(VLOOKUP($B179,'Saisie Poussins'!$B$165:$AI$208,26+L$1,FALSE),0) -> 0 | M179: =IFERROR(VLOOKUP($B179,'Saisie Poussins'!$B$165:$AI$208,26+M$1,FALSE),0) -> 0 | N179: =IFERROR(VLOOKUP($B179,'Saisie Poussins'!$B$165:$AI$208,26+N$1,FALSE),0) -> 0 | O179: =IFERROR(VLOOKUP($B179,'Saisie Poussins'!$B$165:$AI$208,26+O$1,FALSE),0) -> 0 | P179: =IFERROR(VLOOKUP($B179,'Saisie Poussins'!$B$165:$AI$208,26+P$1,FALSE),0) -> 0
A180: =IFERROR(IF(A179+1<='Saisie Poussins'!$AJ$163,A179+1,""),"") ->  | B180: =IFERROR(VLOOKUP(A180,'Saisie Poussins'!$BE$165:$BF$208,2,FALSE),"") -> 0 | C180: =IFERROR(VLOOKUP($B180,'Saisie Poussins'!$B$13:$AI$56,1+C$1,FALSE),0) -> 0 | D180: =IFERROR(VLOOKUP($B180,'Saisie Poussins'!$B$13:$AI$56,1+D$1,FALSE),0) -> 0 | E180: =IFERROR(VLOOKUP($B180,'Saisie Poussins'!$B$13:$AI$56,1+E$1,FALSE),0) -> 0 | F180: =IFERROR(VLOOKUP($B180,'Saisie Poussins'!$B$13:$AI$56,1+F$1,FALSE),0) -> 0 | G180: =IFERROR(VLOOKUP($B180,'Saisie Poussins'!$B$13:$AI$56,1+G$1,FALSE),0) -> 0 | H180: =IFERROR(VLOOKUP($B180,'Saisie Poussins'!$B$13:$AI$56,1+H$1,FALSE),0) -> 0 | I180: =IFERROR(VLOOKUP($B180,'Saisie Poussins'!$B$165:$AI$208,26+I$1,FALSE),0) -> 0 | J180: =IFERROR(VLOOKUP($B180,'Saisie Poussins'!$B$165:$AI$208,26+J$1,FALSE),0) -> 0 | K180: =IFERROR(VLOOKUP($B180,'Saisie Poussins'!$B$165:$AI$208,26+K$1,FALSE),0) -> 0 | L180: =IFERROR(VLOOKUP($B180,'Saisie Poussins'!$B$165:$AI$208,26+L$1,FALSE),0) -> 0 | M180: =IFERROR(VLOOKUP($B180,'Saisie Poussins'!$B$165:$AI$208,26+M$1,FALSE),0) -> 0 | N180: =IFERROR(VLOOKUP($B180,'Saisie Poussins'!$B$165:$AI$208,26+N$1,FALSE),0) -> 0 | O180: =IFERROR(VLOOKUP($B180,'Saisie Poussins'!$B$165:$AI$208,26+O$1,FALSE),0) -> 0 | P180: =IFERROR(VLOOKUP($B180,'Saisie Poussins'!$B$165:$AI$208,26+P$1,FALSE),0) -> 0
A181: =IFERROR(IF(A180+1<='Saisie Poussins'!$AJ$163,A180+1,""),"") ->  | B181: =IFERROR(VLOOKUP(A181,'Saisie Poussins'!$BE$165:$BF$208,2,FALSE),"") -> 0 | C181: =IFERROR(VLOOKUP($B181,'Saisie Poussins'!$B$13:$AI$56,1+C$1,FALSE),0) -> 0 | D181: =IFERROR(VLOOKUP($B181,'Saisie Poussins'!$B$13:$AI$56,1+D$1,FALSE),0) -> 0 | E181: =IFERROR(VLOOKUP($B181,'Saisie Poussins'!$B$13:$AI$56,1+E$1,FALSE),0) -> 0 | F181: =IFERROR(VLOOKUP($B181,'Saisie Poussins'!$B$13:$AI$56,1+F$1,FALSE),0) -> 0 | G181: =IFERROR(VLOOKUP($B181,'Saisie Poussins'!$B$13:$AI$56,1+G$1,FALSE),0) -> 0 | H181: =IFERROR(VLOOKUP($B181,'Saisie Poussins'!$B$13:$AI$56,1+H$1,FALSE),0) -> 0 | I181: =IFERROR(VLOOKUP($B181,'Saisie Poussins'!$B$165:$AI$208,26+I$1,FALSE),0) -> 0 | J181: =IFERROR(VLOOKUP($B181,'Saisie Poussins'!$B$165:$AI$208,26+J$1,FALSE),0) -> 0 | K181: =IFERROR(VLOOKUP($B181,'Saisie Poussins'!$B$165:$AI$208,26+K$1,FALSE),0) -> 0 | L181: =IFERROR(VLOOKUP($B181,'Saisie Poussins'!$B$165:$AI$208,26+L$1,FALSE),0) -> 0 | M181: =IFERROR(VLOOKUP($B181,'Saisie Poussins'!$B$165:$AI$208,26+M$1,FALSE),0) -> 0 | N181: =IFERROR(VLOOKUP($B181,'Saisie Poussins'!$B$165:$AI$208,26+N$1,FALSE),0) -> 0 | O181: =IFERROR(VLOOKUP($B181,'Saisie Poussins'!$B$165:$AI$208,26+O$1,FALSE),0) -> 0 | P181: =IFERROR(VLOOKUP($B181,'Saisie Poussins'!$B$165:$AI$208,26+P$1,FALSE),0) -> 0
A182: =IFERROR(IF(A181+1<='Saisie Poussins'!$AJ$163,A181+1,""),"") ->  | B182: =IFERROR(VLOOKUP(A182,'Saisie Poussins'!$BE$165:$BF$208,2,FALSE),"") -> 0 | C182: =IFERROR(VLOOKUP($B182,'Saisie Poussins'!$B$13:$AI$56,1+C$1,FALSE),0) -> 0 | D182: =IFERROR(VLOOKUP($B182,'Saisie Poussins'!$B$13:$AI$56,1+D$1,FALSE),0) -> 0 | E182: =IFERROR(VLOOKUP($B182,'Saisie Poussins'!$B$13:$AI$56,1+E$1,FALSE),0) -> 0 | F182: =IFERROR(VLOOKUP($B182,'Saisie Poussins'!$B$13:$AI$56,1+F$1,FALSE),0) -> 0 | G182: =IFERROR(VLOOKUP($B182,'Saisie Poussins'!$B$13:$AI$56,1+G$1,FALSE),0) -> 0 | H182: =IFERROR(VLOOKUP($B182,'Saisie Poussins'!$B$13:$AI$56,1+H$1,FALSE),0) -> 0 | I182: =IFERROR(VLOOKUP($B182,'Saisie Poussins'!$B$165:$AI$208,26+I$1,FALSE),0) -> 0 | J182: =IFERROR(VLOOKUP($B182,'Saisie Poussins'!$B$165:$AI$208,26+J$1,FALSE),0) -> 0 | K182: =IFERROR(VLOOKUP($B182,'Saisie Poussins'!$B$165:$AI$208,26+K$1,FALSE),0) -> 0 | L182: =IFERROR(VLOOKUP($B182,'Saisie Poussins'!$B$165:$AI$208,26+L$1,FALSE),0) -> 0 | M182: =IFERROR(VLOOKUP($B182,'Saisie Poussins'!$B$165:$AI$208,26+M$1,FALSE),0) -> 0 | N182: =IFERROR(VLOOKUP($B182,'Saisie Poussins'!$B$165:$AI$208,26+N$1,FALSE),0) -> 0 | O182: =IFERROR(VLOOKUP($B182,'Saisie Poussins'!$B$165:$AI$208,26+O$1,FALSE),0) -> 0 | P182: =IFERROR(VLOOKUP($B182,'Saisie Poussins'!$B$165:$AI$208,26+P$1,FALSE),0) -> 0
A183: =IFERROR(IF(A182+1<='Saisie Poussins'!$AJ$163,A182+1,""),"") ->  | B183: =IFERROR(VLOOKUP(A183,'Saisie Poussins'!$BE$165:$BF$208,2,FALSE),"") -> 0 | C183: =IFERROR(VLOOKUP($B183,'Saisie Poussins'!$B$13:$AI$56,1+C$1,FALSE),0) -> 0 | D183: =IFERROR(VLOOKUP($B183,'Saisie Poussins'!$B$13:$AI$56,1+D$1,FALSE),0) -> 0 | E183: =IFERROR(VLOOKUP($B183,'Saisie Poussins'!$B$13:$AI$56,1+E$1,FALSE),0) -> 0 | F183: =IFERROR(VLOOKUP($B183,'Saisie Poussins'!$B$13:$AI$56,1+F$1,FALSE),0) -> 0 | G183: =IFERROR(VLOOKUP($B183,'Saisie Poussins'!$B$13:$AI$56,1+G$1,FALSE),0) -> 0 | H183: =IFERROR(VLOOKUP($B183,'Saisie Poussins'!$B$13:$AI$56,1+H$1,FALSE),0) -> 0 | I183: =IFERROR(VLOOKUP($B183,'Saisie Poussins'!$B$165:$AI$208,26+I$1,FALSE),0) -> 0 | J183: =IFERROR(VLOOKUP($B183,'Saisie Poussins'!$B$165:$AI$208,26+J$1,FALSE),0) -> 0 | K183: =IFERROR(VLOOKUP($B183,'Saisie Poussins'!$B$165:$AI$208,26+K$1,FALSE),0) -> 0 | L183: =IFERROR(VLOOKUP($B183,'Saisie Poussins'!$B$165:$AI$208,26+L$1,FALSE),0) -> 0 | M183: =IFERROR(VLOOKUP($B183,'Saisie Poussins'!$B$165:$AI$208,26+M$1,FALSE),0) -> 0 | N183: =IFERROR(VLOOKUP($B183,'Saisie Poussins'!$B$165:$AI$208,26+N$1,FALSE),0) -> 0 | O183: =IFERROR(VLOOKUP($B183,'Saisie Poussins'!$B$165:$AI$208,26+O$1,FALSE),0) -> 0 | P183: =IFERROR(VLOOKUP($B183,'Saisie Poussins'!$B$165:$AI$208,26+P$1,FALSE),0) -> 0
A184: =IFERROR(IF(A183+1<='Saisie Poussins'!$AJ$163,A183+1,""),"") ->  | B184: =IFERROR(VLOOKUP(A184,'Saisie Poussins'!$BE$165:$BF$208,2,FALSE),"") -> 0 | C184: =IFERROR(VLOOKUP($B184,'Saisie Poussins'!$B$13:$AI$56,1+C$1,FALSE),0) -> 0 | D184: =IFERROR(VLOOKUP($B184,'Saisie Poussins'!$B$13:$AI$56,1+D$1,FALSE),0) -> 0 | E184: =IFERROR(VLOOKUP($B184,'Saisie Poussins'!$B$13:$AI$56,1+E$1,FALSE),0) -> 0 | F184: =IFERROR(VLOOKUP($B184,'Saisie Poussins'!$B$13:$AI$56,1+F$1,FALSE),0) -> 0 | G184: =IFERROR(VLOOKUP($B184,'Saisie Poussins'!$B$13:$AI$56,1+G$1,FALSE),0) -> 0 | H184: =IFERROR(VLOOKUP($B184,'Saisie Poussins'!$B$13:$AI$56,1+H$1,FALSE),0) -> 0 | I184: =IFERROR(VLOOKUP($B184,'Saisie Poussins'!$B$165:$AI$208,26+I$1,FALSE),0) -> 0 | J184: =IFERROR(VLOOKUP($B184,'Saisie Poussins'!$B$165:$AI$208,26+J$1,FALSE),0) -> 0 | K184: =IFERROR(VLOOKUP($B184,'Saisie Poussins'!$B$165:$AI$208,26+K$1,FALSE),0) -> 0 | L184: =IFERROR(VLOOKUP($B184,'Saisie Poussins'!$B$165:$AI$208,26+L$1,FALSE),0) -> 0 | M184: =IFERROR(VLOOKUP($B184,'Saisie Poussins'!$B$165:$AI$208,26+M$1,FALSE),0) -> 0 | N184: =IFERROR(VLOOKUP($B184,'Saisie Poussins'!$B$165:$AI$208,26+N$1,FALSE),0) -> 0 | O184: =IFERROR(VLOOKUP($B184,'Saisie Poussins'!$B$165:$AI$208,26+O$1,FALSE),0) -> 0 | P184: =IFERROR(VLOOKUP($B184,'Saisie Poussins'!$B$165:$AI$208,26+P$1,FALSE),0) -> 0
A185: =IFERROR(IF(A184+1<='Saisie Poussins'!$AJ$163,A184+1,""),"") ->  | B185: =IFERROR(VLOOKUP(A185,'Saisie Poussins'!$BE$165:$BF$208,2,FALSE),"") -> 0 | C185: =IFERROR(VLOOKUP($B185,'Saisie Poussins'!$B$13:$AI$56,1+C$1,FALSE),0) -> 0 | D185: =IFERROR(VLOOKUP($B185,'Saisie Poussins'!$B$13:$AI$56,1+D$1,FALSE),0) -> 0 | E185: =IFERROR(VLOOKUP($B185,'Saisie Poussins'!$B$13:$AI$56,1+E$1,FALSE),0) -> 0 | F185: =IFERROR(VLOOKUP($B185,'Saisie Poussins'!$B$13:$AI$56,1+F$1,FALSE),0) -> 0 | G185: =IFERROR(VLOOKUP($B185,'Saisie Poussins'!$B$13:$AI$56,1+G$1,FALSE),0) -> 0 | H185: =IFERROR(VLOOKUP($B185,'Saisie Poussins'!$B$13:$AI$56,1+H$1,FALSE),0) -> 0 | I185: =IFERROR(VLOOKUP($B185,'Saisie Poussins'!$B$165:$AI$208,26+I$1,FALSE),0) -> 0 | J185: =IFERROR(VLOOKUP($B185,'Saisie Poussins'!$B$165:$AI$208,26+J$1,FALSE),0) -> 0 | K185: =IFERROR(VLOOKUP($B185,'Saisie Poussins'!$B$165:$AI$208,26+K$1,FALSE),0) -> 0 | L185: =IFERROR(VLOOKUP($B185,'Saisie Poussins'!$B$165:$AI$208,26+L$1,FALSE),0) -> 0 | M185: =IFERROR(VLOOKUP($B185,'Saisie Poussins'!$B$165:$AI$208,26+M$1,FALSE),0) -> 0 | N185: =IFERROR(VLOOKUP($B185,'Saisie Poussins'!$B$165:$AI$208,26+N$1,FALSE),0) -> 0 | O185: =IFERROR(VLOOKUP($B185,'Saisie Poussins'!$B$165:$AI$208,26+O$1,FALSE),0) -> 0 | P185: =IFERROR(VLOOKUP($B185,'Saisie Poussins'!$B$165:$AI$208,26+P$1,FALSE),0) -> 0
A186: =IFERROR(IF(A185+1<='Saisie Poussins'!$AJ$163,A185+1,""),"") ->  | B186: =IFERROR(VLOOKUP(A186,'Saisie Poussins'!$BE$165:$BF$208,2,FALSE),"") -> 0 | C186: =IFERROR(VLOOKUP($B186,'Saisie Poussins'!$B$13:$AI$56,1+C$1,FALSE),0) -> 0 | D186: =IFERROR(VLOOKUP($B186,'Saisie Poussins'!$B$13:$AI$56,1+D$1,FALSE),0) -> 0 | E186: =IFERROR(VLOOKUP($B186,'Saisie Poussins'!$B$13:$AI$56,1+E$1,FALSE),0) -> 0 | F186: =IFERROR(VLOOKUP($B186,'Saisie Poussins'!$B$13:$AI$56,1+F$1,FALSE),0) -> 0 | G186: =IFERROR(VLOOKUP($B186,'Saisie Poussins'!$B$13:$AI$56,1+G$1,FALSE),0) -> 0 | H186: =IFERROR(VLOOKUP($B186,'Saisie Poussins'!$B$13:$AI$56,1+H$1,FALSE),0) -> 0 | I186: =IFERROR(VLOOKUP($B186,'Saisie Poussins'!$B$165:$AI$208,26+I$1,FALSE),0) -> 0 | J186: =IFERROR(VLOOKUP($B186,'Saisie Poussins'!$B$165:$AI$208,26+J$1,FALSE),0) -> 0 | K186: =IFERROR(VLOOKUP($B186,'Saisie Poussins'!$B$165:$AI$208,26+K$1,FALSE),0) -> 0 | L186: =IFERROR(VLOOKUP($B186,'Saisie Poussins'!$B$165:$AI$208,26+L$1,FALSE),0) -> 0 | M186: =IFERROR(VLOOKUP($B186,'Saisie Poussins'!$B$165:$AI$208,26+M$1,FALSE),0) -> 0 | N186: =IFERROR(VLOOKUP($B186,'Saisie Poussins'!$B$165:$AI$208,26+N$1,FALSE),0) -> 0 | O186: =IFERROR(VLOOKUP($B186,'Saisie Poussins'!$B$165:$AI$208,26+O$1,FALSE),0) -> 0 | P186: =IFERROR(VLOOKUP($B186,'Saisie Poussins'!$B$165:$AI$208,26+P$1,FALSE),0) -> 0
A187: =IFERROR(IF(A186+1<='Saisie Poussins'!$AJ$163,A186+1,""),"") ->  | B187: =IFERROR(VLOOKUP(A187,'Saisie Poussins'!$BE$165:$BF$208,2,FALSE),"") -> 0 | C187: =IFERROR(VLOOKUP($B187,'Saisie Poussins'!$B$13:$AI$56,1+C$1,FALSE),0) -> 0 | D187: =IFERROR(VLOOKUP($B187,'Saisie Poussins'!$B$13:$AI$56,1+D$1,FALSE),0) -> 0 | E187: =IFERROR(VLOOKUP($B187,'Saisie Poussins'!$B$13:$AI$56,1+E$1,FALSE),0) -> 0 | F187: =IFERROR(VLOOKUP($B187,'Saisie Poussins'!$B$13:$AI$56,1+F$1,FALSE),0) -> 0 | G187: =IFERROR(VLOOKUP($B187,'Saisie Poussins'!$B$13:$AI$56,1+G$1,FALSE),0) -> 0 | H187: =IFERROR(VLOOKUP($B187,'Saisie Poussins'!$B$13:$AI$56,1+H$1,FALSE),0) -> 0 | I187: =IFERROR(VLOOKUP($B187,'Saisie Poussins'!$B$165:$AI$208,26+I$1,FALSE),0) -> 0 | J187: =IFERROR(VLOOKUP($B187,'Saisie Poussins'!$B$165:$AI$208,26+J$1,FALSE),0) -> 0 | K187: =IFERROR(VLOOKUP($B187,'Saisie Poussins'!$B$165:$AI$208,26+K$1,FALSE),0) -> 0 | L187: =IFERROR(VLOOKUP($B187,'Saisie Poussins'!$B$165:$AI$208,26+L$1,FALSE),0) -> 0 | M187: =IFERROR(VLOOKUP($B187,'Saisie Poussins'!$B$165:$AI$208,26+M$1,FALSE),0) -> 0 | N187: =IFERROR(VLOOKUP($B187,'Saisie Poussins'!$B$165:$AI$208,26+N$1,FALSE),0) -> 0 | O187: =IFERROR(VLOOKUP($B187,'Saisie Poussins'!$B$165:$AI$208,26+O$1,FALSE),0) -> 0 | P187: =IFERROR(VLOOKUP($B187,'Saisie Poussins'!$B$165:$AI$208,26+P$1,FALSE),0) -> 0
A188: =IFERROR(IF(A187+1<='Saisie Poussins'!$AJ$163,A187+1,""),"") ->  | B188: =IFERROR(VLOOKUP(A188,'Saisie Poussins'!$BE$165:$BF$208,2,FALSE),"") -> 0 | C188: =IFERROR(VLOOKUP($B188,'Saisie Poussins'!$B$13:$AI$56,1+C$1,FALSE),0) -> 0 | D188: =IFERROR(VLOOKUP($B188,'Saisie Poussins'!$B$13:$AI$56,1+D$1,FALSE),0) -> 0 | E188: =IFERROR(VLOOKUP($B188,'Saisie Poussins'!$B$13:$AI$56,1+E$1,FALSE),0) -> 0 | F188: =IFERROR(VLOOKUP($B188,'Saisie Poussins'!$B$13:$AI$56,1+F$1,FALSE),0) -> 0 | G188: =IFERROR(VLOOKUP($B188,'Saisie Poussins'!$B$13:$AI$56,1+G$1,FALSE),0) -> 0 | H188: =IFERROR(VLOOKUP($B188,'Saisie Poussins'!$B$13:$AI$56,1+H$1,FALSE),0) -> 0 | I188: =IFERROR(VLOOKUP($B188,'Saisie Poussins'!$B$165:$AI$208,26+I$1,FALSE),0) -> 0 | J188: =IFERROR(VLOOKUP($B188,'Saisie Poussins'!$B$165:$AI$208,26+J$1,FALSE),0) -> 0 | K188: =IFERROR(VLOOKUP($B188,'Saisie Poussins'!$B$165:$AI$208,26+K$1,FALSE),0) -> 0 | L188: =IFERROR(VLOOKUP($B188,'Saisie Poussins'!$B$165:$AI$208,26+L$1,FALSE),0) -> 0 | M188: =IFERROR(VLOOKUP($B188,'Saisie Poussins'!$B$165:$AI$208,26+M$1,FALSE),0) -> 0 | N188: =IFERROR(VLOOKUP($B188,'Saisie Poussins'!$B$165:$AI$208,26+N$1,FALSE),0) -> 0 | O188: =IFERROR(VLOOKUP($B188,'Saisie Poussins'!$B$165:$AI$208,26+O$1,FALSE),0) -> 0 | P188: =IFERROR(VLOOKUP($B188,'Saisie Poussins'!$B$165:$AI$208,26+P$1,FALSE),0) -> 0
A189: =IFERROR(IF(A188+1<='Saisie Poussins'!$AJ$163,A188+1,""),"") ->  | B189: =IFERROR(VLOOKUP(A189,'Saisie Poussins'!$BE$165:$BF$208,2,FALSE),"") -> 0 | C189: =IFERROR(VLOOKUP($B189,'Saisie Poussins'!$B$13:$AI$56,1+C$1,FALSE),0) -> 0 | D189: =IFERROR(VLOOKUP($B189,'Saisie Poussins'!$B$13:$AI$56,1+D$1,FALSE),0) -> 0 | E189: =IFERROR(VLOOKUP($B189,'Saisie Poussins'!$B$13:$AI$56,1+E$1,FALSE),0) -> 0 | F189: =IFERROR(VLOOKUP($B189,'Saisie Poussins'!$B$13:$AI$56,1+F$1,FALSE),0) -> 0 | G189: =IFERROR(VLOOKUP($B189,'Saisie Poussins'!$B$13:$AI$56,1+G$1,FALSE),0) -> 0 | H189: =IFERROR(VLOOKUP($B189,'Saisie Poussins'!$B$13:$AI$56,1+H$1,FALSE),0) -> 0 | I189: =IFERROR(VLOOKUP($B189,'Saisie Poussins'!$B$165:$AI$208,26+I$1,FALSE),0) -> 0 | J189: =IFERROR(VLOOKUP($B189,'Saisie Poussins'!$B$165:$AI$208,26+J$1,FALSE),0) -> 0 | K189: =IFERROR(VLOOKUP($B189,'Saisie Poussins'!$B$165:$AI$208,26+K$1,FALSE),0) -> 0 | L189: =IFERROR(VLOOKUP($B189,'Saisie Poussins'!$B$165:$AI$208,26+L$1,FALSE),0) -> 0 | M189: =IFERROR(VLOOKUP($B189,'Saisie Poussins'!$B$165:$AI$208,26+M$1,FALSE),0) -> 0 | N189: =IFERROR(VLOOKUP($B189,'Saisie Poussins'!$B$165:$AI$208,26+N$1,FALSE),0) -> 0 | O189: =IFERROR(VLOOKUP($B189,'Saisie Poussins'!$B$165:$AI$208,26+O$1,FALSE),0) -> 0 | P189: =IFERROR(VLOOKUP($B189,'Saisie Poussins'!$B$165:$AI$208,26+P$1,FALSE),0) -> 0
A190: =IFERROR(IF(A189+1<='Saisie Poussins'!$AJ$163,A189+1,""),"") ->  | B190: =IFERROR(VLOOKUP(A190,'Saisie Poussins'!$BE$165:$BF$208,2,FALSE),"") -> 0 | C190: =IFERROR(VLOOKUP($B190,'Saisie Poussins'!$B$13:$AI$56,1+C$1,FALSE),0) -> 0 | D190: =IFERROR(VLOOKUP($B190,'Saisie Poussins'!$B$13:$AI$56,1+D$1,FALSE),0) -> 0 | E190: =IFERROR(VLOOKUP($B190,'Saisie Poussins'!$B$13:$AI$56,1+E$1,FALSE),0) -> 0 | F190: =IFERROR(VLOOKUP($B190,'Saisie Poussins'!$B$13:$AI$56,1+F$1,FALSE),0) -> 0 | G190: =IFERROR(VLOOKUP($B190,'Saisie Poussins'!$B$13:$AI$56,1+G$1,FALSE),0) -> 0 | H190: =IFERROR(VLOOKUP($B190,'Saisie Poussins'!$B$13:$AI$56,1+H$1,FALSE),0) -> 0 | I190: =IFERROR(VLOOKUP($B190,'Saisie Poussins'!$B$165:$AI$208,26+I$1,FALSE),0) -> 0 | J190: =IFERROR(VLOOKUP($B190,'Saisie Poussins'!$B$165:$AI$208,26+J$1,FALSE),0) -> 0 | K190: =IFERROR(VLOOKUP($B190,'Saisie Poussins'!$B$165:$AI$208,26+K$1,FALSE),0) -> 0 | L190: =IFERROR(VLOOKUP($B190,'Saisie Poussins'!$B$165:$AI$208,26+L$1,FALSE),0) -> 0 | M190: =IFERROR(VLOOKUP($B190,'Saisie Poussins'!$B$165:$AI$208,26+M$1,FALSE),0) -> 0 | N190: =IFERROR(VLOOKUP($B190,'Saisie Poussins'!$B$165:$AI$208,26+N$1,FALSE),0) -> 0 | O190: =IFERROR(VLOOKUP($B190,'Saisie Poussins'!$B$165:$AI$208,26+O$1,FALSE),0) -> 0 | P190: =IFERROR(VLOOKUP($B190,'Saisie Poussins'!$B$165:$AI$208,26+P$1,FALSE),0) -> 0
A191: =IFERROR(IF(A190+1<='Saisie Poussins'!$AJ$163,A190+1,""),"") ->  | B191: =IFERROR(VLOOKUP(A191,'Saisie Poussins'!$BE$165:$BF$208,2,FALSE),"") -> 0 | C191: =IFERROR(VLOOKUP($B191,'Saisie Poussins'!$B$13:$AI$56,1+C$1,FALSE),0) -> 0 | D191: =IFERROR(VLOOKUP($B191,'Saisie Poussins'!$B$13:$AI$56,1+D$1,FALSE),0) -> 0 | E191: =IFERROR(VLOOKUP($B191,'Saisie Poussins'!$B$13:$AI$56,1+E$1,FALSE),0) -> 0 | F191: =IFERROR(VLOOKUP($B191,'Saisie Poussins'!$B$13:$AI$56,1+F$1,FALSE),0) -> 0 | G191: =IFERROR(VLOOKUP($B191,'Saisie Poussins'!$B$13:$AI$56,1+G$1,FALSE),0) -> 0 | H191: =IFERROR(VLOOKUP($B191,'Saisie Poussins'!$B$13:$AI$56,1+H$1,FALSE),0) -> 0 | I191: =IFERROR(VLOOKUP($B191,'Saisie Poussins'!$B$165:$AI$208,26+I$1,FALSE),0) -> 0 | J191: =IFERROR(VLOOKUP($B191,'Saisie Poussins'!$B$165:$AI$208,26+J$1,FALSE),0) -> 0 | K191: =IFERROR(VLOOKUP($B191,'Saisie Poussins'!$B$165:$AI$208,26+K$1,FALSE),0) -> 0 | L191: =IFERROR(VLOOKUP($B191,'Saisie Poussins'!$B$165:$AI$208,26+L$1,FALSE),0) -> 0 | M191: =IFERROR(VLOOKUP($B191,'Saisie Poussins'!$B$165:$AI$208,26+M$1,FALSE),0) -> 0 | N191: =IFERROR(VLOOKUP($B191,'Saisie Poussins'!$B$165:$AI$208,26+N$1,FALSE),0) -> 0 | O191: =IFERROR(VLOOKUP($B191,'Saisie Poussins'!$B$165:$AI$208,26+O$1,FALSE),0) -> 0 | P191: =IFERROR(VLOOKUP($B191,'Saisie Poussins'!$B$165:$AI$208,26+P$1,FALSE),0) -> 0
A192: =IFERROR(IF(A191+1<='Saisie Poussins'!$AJ$163,A191+1,""),"") ->  | B192: =IFERROR(VLOOKUP(A192,'Saisie Poussins'!$BE$165:$BF$208,2,FALSE),"") -> 0 | C192: =IFERROR(VLOOKUP($B192,'Saisie Poussins'!$B$13:$AI$56,1+C$1,FALSE),0) -> 0 | D192: =IFERROR(VLOOKUP($B192,'Saisie Poussins'!$B$13:$AI$56,1+D$1,FALSE),0) -> 0 | E192: =IFERROR(VLOOKUP($B192,'Saisie Poussins'!$B$13:$AI$56,1+E$1,FALSE),0) -> 0 | F192: =IFERROR(VLOOKUP($B192,'Saisie Poussins'!$B$13:$AI$56,1+F$1,FALSE),0) -> 0 | G192: =IFERROR(VLOOKUP($B192,'Saisie Poussins'!$B$13:$AI$56,1+G$1,FALSE),0) -> 0 | H192: =IFERROR(VLOOKUP($B192,'Saisie Poussins'!$B$13:$AI$56,1+H$1,FALSE),0) -> 0 | I192: =IFERROR(VLOOKUP($B192,'Saisie Poussins'!$B$165:$AI$208,26+I$1,FALSE),0) -> 0 | J192: =IFERROR(VLOOKUP($B192,'Saisie Poussins'!$B$165:$AI$208,26+J$1,FALSE),0) -> 0 | K192: =IFERROR(VLOOKUP($B192,'Saisie Poussins'!$B$165:$AI$208,26+K$1,FALSE),0) -> 0 | L192: =IFERROR(VLOOKUP($B192,'Saisie Poussins'!$B$165:$AI$208,26+L$1,FALSE),0) -> 0 | M192: =IFERROR(VLOOKUP($B192,'Saisie Poussins'!$B$165:$AI$208,26+M$1,FALSE),0) -> 0 | N192: =IFERROR(VLOOKUP($B192,'Saisie Poussins'!$B$165:$AI$208,26+N$1,FALSE),0) -> 0 | O192: =IFERROR(VLOOKUP($B192,'Saisie Poussins'!$B$165:$AI$208,26+O$1,FALSE),0) -> 0 | P192: =IFERROR(VLOOKUP($B192,'Saisie Poussins'!$B$165:$AI$208,26+P$1,FALSE),0) -> 0
A193: =IFERROR(IF(A192+1<='Saisie Poussins'!$AJ$163,A192+1,""),"") ->  | B193: =IFERROR(VLOOKUP(A193,'Saisie Poussins'!$BE$165:$BF$208,2,FALSE),"") -> 0 | C193: =IFERROR(VLOOKUP($B193,'Saisie Poussins'!$B$13:$AI$56,1+C$1,FALSE),0) -> 0 | D193: =IFERROR(VLOOKUP($B193,'Saisie Poussins'!$B$13:$AI$56,1+D$1,FALSE),0) -> 0 | E193: =IFERROR(VLOOKUP($B193,'Saisie Poussins'!$B$13:$AI$56,1+E$1,FALSE),0) -> 0 | F193: =IFERROR(VLOOKUP($B193,'Saisie Poussins'!$B$13:$AI$56,1+F$1,FALSE),0) -> 0 | G193: =IFERROR(VLOOKUP($B193,'Saisie Poussins'!$B$13:$AI$56,1+G$1,FALSE),0) -> 0 | H193: =IFERROR(VLOOKUP($B193,'Saisie Poussins'!$B$13:$AI$56,1+H$1,FALSE),0) -> 0 | I193: =IFERROR(VLOOKUP($B193,'Saisie Poussins'!$B$165:$AI$208,26+I$1,FALSE),0) -> 0 | J193: =IFERROR(VLOOKUP($B193,'Saisie Poussins'!$B$165:$AI$208,26+J$1,FALSE),0) -> 0 | K193: =IFERROR(VLOOKUP($B193,'Saisie Poussins'!$B$165:$AI$208,26+K$1,FALSE),0) -> 0 | L193: =IFERROR(VLOOKUP($B193,'Saisie Poussins'!$B$165:$AI$208,26+L$1,FALSE),0) -> 0 | M193: =IFERROR(VLOOKUP($B193,'Saisie Poussins'!$B$165:$AI$208,26+M$1,FALSE),0) -> 0 | N193: =IFERROR(VLOOKUP($B193,'Saisie Poussins'!$B$165:$AI$208,26+N$1,FALSE),0) -> 0 | O193: =IFERROR(VLOOKUP($B193,'Saisie Poussins'!$B$165:$AI$208,26+O$1,FALSE),0) -> 0 | P193: =IFERROR(VLOOKUP($B193,'Saisie Poussins'!$B$165:$AI$208,26+P$1,FALSE),0) -> 0
A194: =IFERROR(IF(A193+1<='Saisie Poussins'!$AJ$163,A193+1,""),"") ->  | B194: =IFERROR(VLOOKUP(A194,'Saisie Poussins'!$BE$165:$BF$208,2,FALSE),"") -> 0 | C194: =IFERROR(VLOOKUP($B194,'Saisie Poussins'!$B$13:$AI$56,1+C$1,FALSE),0) -> 0 | D194: =IFERROR(VLOOKUP($B194,'Saisie Poussins'!$B$13:$AI$56,1+D$1,FALSE),0) -> 0 | E194: =IFERROR(VLOOKUP($B194,'Saisie Poussins'!$B$13:$AI$56,1+E$1,FALSE),0) -> 0 | F194: =IFERROR(VLOOKUP($B194,'Saisie Poussins'!$B$13:$AI$56,1+F$1,FALSE),0) -> 0 | G194: =IFERROR(VLOOKUP($B194,'Saisie Poussins'!$B$13:$AI$56,1+G$1,FALSE),0) -> 0 | H194: =IFERROR(VLOOKUP($B194,'Saisie Poussins'!$B$13:$AI$56,1+H$1,FALSE),0) -> 0 | I194: =IFERROR(VLOOKUP($B194,'Saisie Poussins'!$B$165:$AI$208,26+I$1,FALSE),0) -> 0 | J194: =IFERROR(VLOOKUP($B194,'Saisie Poussins'!$B$165:$AI$208,26+J$1,FALSE),0) -> 0 | K194: =IFERROR(VLOOKUP($B194,'Saisie Poussins'!$B$165:$AI$208,26+K$1,FALSE),0) -> 0 | L194: =IFERROR(VLOOKUP($B194,'Saisie Poussins'!$B$165:$AI$208,26+L$1,FALSE),0) -> 0 | M194: =IFERROR(VLOOKUP($B194,'Saisie Poussins'!$B$165:$AI$208,26+M$1,FALSE),0) -> 0 | N194: =IFERROR(VLOOKUP($B194,'Saisie Poussins'!$B$165:$AI$208,26+N$1,FALSE),0) -> 0 | O194: =IFERROR(VLOOKUP($B194,'Saisie Poussins'!$B$165:$AI$208,26+O$1,FALSE),0) -> 0 | P194: =IFERROR(VLOOKUP($B194,'Saisie Poussins'!$B$165:$AI$208,26+P$1,FALSE),0) -> 0
A195: =IFERROR(IF(A194+1<='Saisie Poussins'!$AJ$163,A194+1,""),"") ->  | B195: =IFERROR(VLOOKUP(A195,'Saisie Poussins'!$BE$165:$BF$208,2,FALSE),"") -> 0 | C195: =IFERROR(VLOOKUP($B195,'Saisie Poussins'!$B$13:$AI$56,1+C$1,FALSE),0) -> 0 | D195: =IFERROR(VLOOKUP($B195,'Saisie Poussins'!$B$13:$AI$56,1+D$1,FALSE),0) -> 0 | E195: =IFERROR(VLOOKUP($B195,'Saisie Poussins'!$B$13:$AI$56,1+E$1,FALSE),0) -> 0 | F195: =IFERROR(VLOOKUP($B195,'Saisie Poussins'!$B$13:$AI$56,1+F$1,FALSE),0) -> 0 | G195: =IFERROR(VLOOKUP($B195,'Saisie Poussins'!$B$13:$AI$56,1+G$1,FALSE),0) -> 0 | H195: =IFERROR(VLOOKUP($B195,'Saisie Poussins'!$B$13:$AI$56,1+H$1,FALSE),0) -> 0 | I195: =IFERROR(VLOOKUP($B195,'Saisie Poussins'!$B$165:$AI$208,26+I$1,FALSE),0) -> 0 | J195: =IFERROR(VLOOKUP($B195,'Saisie Poussins'!$B$165:$AI$208,26+J$1,FALSE),0) -> 0 | K195: =IFERROR(VLOOKUP($B195,'Saisie Poussins'!$B$165:$AI$208,26+K$1,FALSE),0) -> 0 | L195: =IFERROR(VLOOKUP($B195,'Saisie Poussins'!$B$165:$AI$208,26+L$1,FALSE),0) -> 0 | M195: =IFERROR(VLOOKUP($B195,'Saisie Poussins'!$B$165:$AI$208,26+M$1,FALSE),0) -> 0 | N195: =IFERROR(VLOOKUP($B195,'Saisie Poussins'!$B$165:$AI$208,26+N$1,FALSE),0) -> 0 | O195: =IFERROR(VLOOKUP($B195,'Saisie Poussins'!$B$165:$AI$208,26+O$1,FALSE),0) -> 0 | P195: =IFERROR(VLOOKUP($B195,'Saisie Poussins'!$B$165:$AI$208,26+P$1,FALSE),0) -> 0
A196: =IFERROR(IF(A195+1<='Saisie Poussins'!$AJ$163,A195+1,""),"") ->  | B196: =IFERROR(VLOOKUP(A196,'Saisie Poussins'!$BE$165:$BF$208,2,FALSE),"") -> 0 | C196: =IFERROR(VLOOKUP($B196,'Saisie Poussins'!$B$13:$AI$56,1+C$1,FALSE),0) -> 0 | D196: =IFERROR(VLOOKUP($B196,'Saisie Poussins'!$B$13:$AI$56,1+D$1,FALSE),0) -> 0 | E196: =IFERROR(VLOOKUP($B196,'Saisie Poussins'!$B$13:$AI$56,1+E$1,FALSE),0) -> 0 | F196: =IFERROR(VLOOKUP($B196,'Saisie Poussins'!$B$13:$AI$56,1+F$1,FALSE),0) -> 0 | G196: =IFERROR(VLOOKUP($B196,'Saisie Poussins'!$B$13:$AI$56,1+G$1,FALSE),0) -> 0 | H196: =IFERROR(VLOOKUP($B196,'Saisie Poussins'!$B$13:$AI$56,1+H$1,FALSE),0) -> 0 | I196: =IFERROR(VLOOKUP($B196,'Saisie Poussins'!$B$165:$AI$208,26+I$1,FALSE),0) -> 0 | J196: =IFERROR(VLOOKUP($B196,'Saisie Poussins'!$B$165:$AI$208,26+J$1,FALSE),0) -> 0 | K196: =IFERROR(VLOOKUP($B196,'Saisie Poussins'!$B$165:$AI$208,26+K$1,FALSE),0) -> 0 | L196: =IFERROR(VLOOKUP($B196,'Saisie Poussins'!$B$165:$AI$208,26+L$1,FALSE),0) -> 0 | M196: =IFERROR(VLOOKUP($B196,'Saisie Poussins'!$B$165:$AI$208,26+M$1,FALSE),0) -> 0 | N196: =IFERROR(VLOOKUP($B196,'Saisie Poussins'!$B$165:$AI$208,26+N$1,FALSE),0) -> 0 | O196: =IFERROR(VLOOKUP($B196,'Saisie Poussins'!$B$165:$AI$208,26+O$1,FALSE),0) -> 0 | P196: =IFERROR(VLOOKUP($B196,'Saisie Poussins'!$B$165:$AI$208,26+P$1,FALSE),0) -> 0
A197: =IFERROR(IF(A196+1<='Saisie Poussins'!$AJ$163,A196+1,""),"") ->  | B197: =IFERROR(VLOOKUP(A197,'Saisie Poussins'!$BE$165:$BF$208,2,FALSE),"") -> 0 | C197: =IFERROR(VLOOKUP($B197,'Saisie Poussins'!$B$13:$AI$56,1+C$1,FALSE),0) -> 0 | D197: =IFERROR(VLOOKUP($B197,'Saisie Poussins'!$B$13:$AI$56,1+D$1,FALSE),0) -> 0 | E197: =IFERROR(VLOOKUP($B197,'Saisie Poussins'!$B$13:$AI$56,1+E$1,FALSE),0) -> 0 | F197: =IFERROR(VLOOKUP($B197,'Saisie Poussins'!$B$13:$AI$56,1+F$1,FALSE),0) -> 0 | G197: =IFERROR(VLOOKUP($B197,'Saisie Poussins'!$B$13:$AI$56,1+G$1,FALSE),0) -> 0 | H197: =IFERROR(VLOOKUP($B197,'Saisie Poussins'!$B$13:$AI$56,1+H$1,FALSE),0) -> 0 | I197: =IFERROR(VLOOKUP($B197,'Saisie Poussins'!$B$165:$AI$208,26+I$1,FALSE),0) -> 0 | J197: =IFERROR(VLOOKUP($B197,'Saisie Poussins'!$B$165:$AI$208,26+J$1,FALSE),0) -> 0 | K197: =IFERROR(VLOOKUP($B197,'Saisie Poussins'!$B$165:$AI$208,26+K$1,FALSE),0) -> 0 | L197: =IFERROR(VLOOKUP($B197,'Saisie Poussins'!$B$165:$AI$208,26+L$1,FALSE),0) -> 0 | M197: =IFERROR(VLOOKUP($B197,'Saisie Poussins'!$B$165:$AI$208,26+M$1,FALSE),0) -> 0 | N197: =IFERROR(VLOOKUP($B197,'Saisie Poussins'!$B$165:$AI$208,26+N$1,FALSE),0) -> 0 | O197: =IFERROR(VLOOKUP($B197,'Saisie Poussins'!$B$165:$AI$208,26+O$1,FALSE),0) -> 0 | P197: =IFERROR(VLOOKUP($B197,'Saisie Poussins'!$B$165:$AI$208,26+P$1,FALSE),0) -> 0
A198: =IFERROR(IF(A197+1<='Saisie Poussins'!$AJ$163,A197+1,""),"") ->  | B198: =IFERROR(VLOOKUP(A198,'Saisie Poussins'!$BE$165:$BF$208,2,FALSE),"") -> 0 | C198: =IFERROR(VLOOKUP($B198,'Saisie Poussins'!$B$13:$AI$56,1+C$1,FALSE),0) -> 0 | D198: =IFERROR(VLOOKUP($B198,'Saisie Poussins'!$B$13:$AI$56,1+D$1,FALSE),0) -> 0 | E198: =IFERROR(VLOOKUP($B198,'Saisie Poussins'!$B$13:$AI$56,1+E$1,FALSE),0) -> 0 | F198: =IFERROR(VLOOKUP($B198,'Saisie Poussins'!$B$13:$AI$56,1+F$1,FALSE),0) -> 0 | G198: =IFERROR(VLOOKUP($B198,'Saisie Poussins'!$B$13:$AI$56,1+G$1,FALSE),0) -> 0 | H198: =IFERROR(VLOOKUP($B198,'Saisie Poussins'!$B$13:$AI$56,1+H$1,FALSE),0) -> 0 | I198: =IFERROR(VLOOKUP($B198,'Saisie Poussins'!$B$165:$AI$208,26+I$1,FALSE),0) -> 0 | J198: =IFERROR(VLOOKUP($B198,'Saisie Poussins'!$B$165:$AI$208,26+J$1,FALSE),0) -> 0 | K198: =IFERROR(VLOOKUP($B198,'Saisie Poussins'!$B$165:$AI$208,26+K$1,FALSE),0) -> 0 | L198: =IFERROR(VLOOKUP($B198,'Saisie Poussins'!$B$165:$AI$208,26+L$1,FALSE),0) -> 0 | M198: =IFERROR(VLOOKUP($B198,'Saisie Poussins'!$B$165:$AI$208,26+M$1,FALSE),0) -> 0 | N198: =IFERROR(VLOOKUP($B198,'Saisie Poussins'!$B$165:$AI$208,26+N$1,FALSE),0) -> 0 | O198: =IFERROR(VLOOKUP($B198,'Saisie Poussins'!$B$165:$AI$208,26+O$1,FALSE),0) -> 0 | P198: =IFERROR(VLOOKUP($B198,'Saisie Poussins'!$B$165:$AI$208,26+P$1,FALSE),0) -> 0
A199: =IFERROR(IF(A198+1<='Saisie Poussins'!$AJ$163,A198+1,""),"") ->  | B199: =IFERROR(VLOOKUP(A199,'Saisie Poussins'!$BE$165:$BF$208,2,FALSE),"") -> 0 | C199: =IFERROR(VLOOKUP($B199,'Saisie Poussins'!$B$13:$AI$56,1+C$1,FALSE),0) -> 0 | D199: =IFERROR(VLOOKUP($B199,'Saisie Poussins'!$B$13:$AI$56,1+D$1,FALSE),0) -> 0 | E199: =IFERROR(VLOOKUP($B199,'Saisie Poussins'!$B$13:$AI$56,1+E$1,FALSE),0) -> 0 | F199: =IFERROR(VLOOKUP($B199,'Saisie Poussins'!$B$13:$AI$56,1+F$1,FALSE),0) -> 0 | G199: =IFERROR(VLOOKUP($B199,'Saisie Poussins'!$B$13:$AI$56,1+G$1,FALSE),0) -> 0 | H199: =IFERROR(VLOOKUP($B199,'Saisie Poussins'!$B$13:$AI$56,1+H$1,FALSE),0) -> 0 | I199: =IFERROR(VLOOKUP($B199,'Saisie Poussins'!$B$165:$AI$208,26+I$1,FALSE),0) -> 0 | J199: =IFERROR(VLOOKUP($B199,'Saisie Poussins'!$B$165:$AI$208,26+J$1,FALSE),0) -> 0 | K199: =IFERROR(VLOOKUP($B199,'Saisie Poussins'!$B$165:$AI$208,26+K$1,FALSE),0) -> 0 | L199: =IFERROR(VLOOKUP($B199,'Saisie Poussins'!$B$165:$AI$208,26+L$1,FALSE),0) -> 0 | M199: =IFERROR(VLOOKUP($B199,'Saisie Poussins'!$B$165:$AI$208,26+M$1,FALSE),0) -> 0 | N199: =IFERROR(VLOOKUP($B199,'Saisie Poussins'!$B$165:$AI$208,26+N$1,FALSE),0) -> 0 | O199: =IFERROR(VLOOKUP($B199,'Saisie Poussins'!$B$165:$AI$208,26+O$1,FALSE),0) -> 0 | P199: =IFERROR(VLOOKUP($B199,'Saisie Poussins'!$B$165:$AI$208,26+P$1,FALSE),0) -> 0
A200: =IFERROR(IF(A199+1<='Saisie Poussins'!$AJ$163,A199+1,""),"") ->  | B200: =IFERROR(VLOOKUP(A200,'Saisie Poussins'!$BE$165:$BF$208,2,FALSE),"") -> 0 | C200: =IFERROR(VLOOKUP($B200,'Saisie Poussins'!$B$13:$AI$56,1+C$1,FALSE),0) -> 0 | D200: =IFERROR(VLOOKUP($B200,'Saisie Poussins'!$B$13:$AI$56,1+D$1,FALSE),0) -> 0 | E200: =IFERROR(VLOOKUP($B200,'Saisie Poussins'!$B$13:$AI$56,1+E$1,FALSE),0) -> 0 | F200: =IFERROR(VLOOKUP($B200,'Saisie Poussins'!$B$13:$AI$56,1+F$1,FALSE),0) -> 0 | G200: =IFERROR(VLOOKUP($B200,'Saisie Poussins'!$B$13:$AI$56,1+G$1,FALSE),0) -> 0 | H200: =IFERROR(VLOOKUP($B200,'Saisie Poussins'!$B$13:$AI$56,1+H$1,FALSE),0) -> 0 | I200: =IFERROR(VLOOKUP($B200,'Saisie Poussins'!$B$165:$AI$208,26+I$1,FALSE),0) -> 0 | J200: =IFERROR(VLOOKUP($B200,'Saisie Poussins'!$B$165:$AI$208,26+J$1,FALSE),0) -> 0 | K200: =IFERROR(VLOOKUP($B200,'Saisie Poussins'!$B$165:$AI$208,26+K$1,FALSE),0) -> 0 | L200: =IFERROR(VLOOKUP($B200,'Saisie Poussins'!$B$165:$AI$208,26+L$1,FALSE),0) -> 0 | M200: =IFERROR(VLOOKUP($B200,'Saisie Poussins'!$B$165:$AI$208,26+M$1,FALSE),0) -> 0 | N200: =IFERROR(VLOOKUP($B200,'Saisie Poussins'!$B$165:$AI$208,26+N$1,FALSE),0) -> 0 | O200: =IFERROR(VLOOKUP($B200,'Saisie Poussins'!$B$165:$AI$208,26+O$1,FALSE),0) -> 0 | P200: =IFERROR(VLOOKUP($B200,'Saisie Poussins'!$B$165:$AI$208,26+P$1,FALSE),0) -> 0
A201: =IFERROR(IF(A200+1<='Saisie Poussins'!$AJ$163,A200+1,""),"") ->  | B201: =IFERROR(VLOOKUP(A201,'Saisie Poussins'!$BE$165:$BF$208,2,FALSE),"") -> 0 | C201: =IFERROR(VLOOKUP($B201,'Saisie Poussins'!$B$13:$AI$56,1+C$1,FALSE),0) -> 0 | D201: =IFERROR(VLOOKUP($B201,'Saisie Poussins'!$B$13:$AI$56,1+D$1,FALSE),0) -> 0 | E201: =IFERROR(VLOOKUP($B201,'Saisie Poussins'!$B$13:$AI$56,1+E$1,FALSE),0) -> 0 | F201: =IFERROR(VLOOKUP($B201,'Saisie Poussins'!$B$13:$AI$56,1+F$1,FALSE),0) -> 0 | G201: =IFERROR(VLOOKUP($B201,'Saisie Poussins'!$B$13:$AI$56,1+G$1,FALSE),0) -> 0 | H201: =IFERROR(VLOOKUP($B201,'Saisie Poussins'!$B$13:$AI$56,1+H$1,FALSE),0) -> 0 | I201: =IFERROR(VLOOKUP($B201,'Saisie Poussins'!$B$165:$AI$208,26+I$1,FALSE),0) -> 0 | J201: =IFERROR(VLOOKUP($B201,'Saisie Poussins'!$B$165:$AI$208,26+J$1,FALSE),0) -> 0 | K201: =IFERROR(VLOOKUP($B201,'Saisie Poussins'!$B$165:$AI$208,26+K$1,FALSE),0) -> 0 | L201: =IFERROR(VLOOKUP($B201,'Saisie Poussins'!$B$165:$AI$208,26+L$1,FALSE),0) -> 0 | M201: =IFERROR(VLOOKUP($B201,'Saisie Poussins'!$B$165:$AI$208,26+M$1,FALSE),0) -> 0 | N201: =IFERROR(VLOOKUP($B201,'Saisie Poussins'!$B$165:$AI$208,26+N$1,FALSE),0) -> 0 | O201: =IFERROR(VLOOKUP($B201,'Saisie Poussins'!$B$165:$AI$208,26+O$1,FALSE),0) -> 0 | P201: =IFERROR(VLOOKUP($B201,'Saisie Poussins'!$B$165:$AI$208,26+P$1,FALSE),0) -> 0
... 93 more rows

Sheet Classement Pupilles
C1: 1 | D1: 2 | E1: 3 | F1: 5 | G1: 6 | H1: 7 | I1: 1 | J1: 2 | K1: 3 | L1: 4 | M1: 5 | N1: 6 | O1: 7 | P1: 8
B2: leader classement général | D2: =+'Saisie Pupilles'!E2 -> CONVERSET Lucas - V.C.DE MONTBELIARD
B3: Leader Route | D3: =+'Saisie Pupilles'!E3 -> BORNERT Lucien - VC MORTEAU MONTBENOIT
B4: Leader Sprint | D4: =+'Saisie Pupilles'!E4 -> PETITGIRARD Léa - E.C. LUXEUIL VOSGES SAONO
B5: Leader Cyclo-Cross | D5: =+'Saisie Pupilles'!E5 -> VICHARD Maxime - GUIDON BLETTERANOIS
B6: Leader Agilité | D6: =+'Saisie Pupilles'!E6 -> THALGOTT Timeo - E.C. LUXEUIL VOSGES SAONO
B7: Leader 1ère année | D7: =+'Saisie Pupilles'!E7 -> LEHERLE Thibaut - V.C.DE MONTBELIARD
B8: Leader Féminine | D8: =+'Saisie Pupilles'!E8 -> MARTINI Mila - VC MORTEAU MONTBENOIT
B10: Leader maillot Jaune | D10: ='Saisie Pupilles'!E2 -> CONVERSET Lucas - V.C.DE MONTBELIARD | I10: ="Challenge régional "&Accueil!$C$3&" - "&Accueil!$C$5 -> Challenge régional BOURGOGNE FRANCHE COMTE - 2022
B11: Classement Général
A12: Place | B12: Licence | C12: Nom | D12: Prénom | F12: Club | G12: Catégorie | H12: Année | J12: =RIGHT(CELL("nomfichier",$A$1), LEN(CELL("nomfichier",$A$1))-FIND("]", CELL("nomfichier",$A$1))) -> Classement Pupilles
I13: =Accueil!B$10 -> 03/04/2022 Luxeuil | J13: =Accueil!C$10 -> 24/04/2022 Noidans les Vesoul | K13: =Accueil!D$10 -> 1/05/2022 Vescemont | L13: =Accueil!E$10 -> 08/05/2022 Morteau | M13: =Accueil!F$10 -> 22/05/2022 Pontarlier | N13: =Accueil!G$10 -> 05/06/2022 Vadans | O13: =Accueil!H$10 -> 12/06/2022 Montbéliard | P13: =Accueil!I$10 -> 02 et 03/07/2022 Bletterans | Q13: Total des 5 meilleurs
A14: 1 | B14: =IFERROR(IF(A14<>"",VLOOKUP(A14,'Saisie Pupilles'!$BE$13:$BF$68,2,FALSE),""),"") -> 42250120335 | C14: =IFERROR(VLOOKUP($B14,'Saisie Pupilles'!$B$13:$AI$68,1+C$1,FALSE),0) -> CONVERSET | D14: =IFERROR(VLOOKUP($B14,'Saisie Pupilles'!$B$13:$AI$68,1+D$1,FALSE),0) -> Lucas | E14: =IFERROR(VLOOKUP($B14,'Saisie Pupilles'!$B$13:$AI$68,1+E$1,FALSE),0) -> H | F14: =IFERROR(VLOOKUP($B14,'Saisie Pupilles'!$B$13:$AI$68,1+F$1,FALSE),0) -> V.C.DE MONTBELIARD | G14: =IFERROR(VLOOKUP($B14,'Saisie Pupilles'!$B$13:$AI$68,1+G$1,FALSE),0) -> Pupille | H14: =IFERROR(VLOOKUP($B14,'Saisie Pupilles'!$B$13:$AI$68,1+H$1,FALSE),0) -> 2 | I14: =IFERROR(VLOOKUP($B14,'Saisie Pupilles'!$B$13:$AI$68,26+I$1,FALSE),0) -> 0 | J14: =IFERROR(VLOOKUP($B14,'Saisie Pupilles'!$B$13:$AI$68,26+J$1,FALSE),0) -> 50.0000002 | K14: =IFERROR(VLOOKUP($B14,'Saisie Pupilles'!$B$13:$AI$68,26+K$1,FALSE),0) -> 50.0000003 | L14: =IFERROR(VLOOKUP($B14,'Saisie Pupilles'!$B$13:$AI$68,26+L$1,FALSE),0) -> 50.0000004 | M14: =IFERROR(VLOOKUP($B14,'Saisie Pupilles'!$B$13:$AI$68,26+M$1,FALSE),0) -> 0 | N14: =IFERROR(VLOOKUP($B14,'Saisie Pupilles'!$B$13:$AI$68,26+N$1,FALSE),0) -> 0 | O14: =IFERROR(VLOOKUP($B14,'Saisie Pupilles'!$B$13:$AI$68,26+O$1,FALSE),0) -> 50.000001 | P14: =IFERROR(VLOOKUP($B14,'Saisie Pupilles'!$B$13:$AI$68,26+P$1,FALSE),0) -> 44.0000008 | Q14: =IF(B14>0,SUM(I14:P14),"") -> 244.0000027
A15: =IFERROR(IF(A14+1<='Saisie Pupilles'!$BF$12,A14+1,""),"") -> 2 | B15: =IFERROR(IF(A15<>"",VLOOKUP(A15,'Saisie Pupilles'!$BE$13:$BF$68,2,FALSE),""),"") -> 42250181120 | C15: =IFERROR(VLOOKUP($B15,'Saisie Pupilles'!$B$13:$AI$68,1+C$1,FALSE),0) -> BORNERT | D15: =IFERROR(VLOOKUP($B15,'Saisie Pupilles'!$B$13:$AI$68,1+D$1,FALSE),0) -> Lucien | E15: =IFERROR(VLOOKUP($B15,'Saisie Pupilles'!$B$13:$AI$68,1+E$1,FALSE),0) -> H | F15: =IFERROR(VLOOKUP($B15,'Saisie Pupilles'!$B$13:$AI$68,1+F$1,FALSE),0) -> VC MORTEAU MONTBENOIT | G15: =IFERROR(VLOOKUP($B15,'Saisie Pupilles'!$B$13:$AI$68,1+G$1,FALSE),0) -> Pupille | H15: =IFERROR(VLOOKUP($B15,'Saisie Pupilles'!$B$13:$AI$68,1+H$1,FALSE),0) -> 2 | I15: =IFERROR(VLOOKUP($B15,'Saisie Pupilles'!$B$13:$AI$68,26+I$1,FALSE),0) -> 50.0000001 | J15: =IFERROR(VLOOKUP($B15,'Saisie Pupilles'!$B$13:$AI$68,26+J$1,FALSE),0) -> 0 | K15: =IFERROR(VLOOKUP($B15,'Saisie Pupilles'!$B$13:$AI$68,26+K$1,FALSE),0) -> 44.0000003 | L15: =IFERROR(VLOOKUP($B15,'Saisie Pupilles'!$B$13:$AI$68,26+L$1,FALSE),0) -> 44.0000004 | M15: =IFERROR(VLOOKUP($B15,'Saisie Pupilles'!$B$13:$AI$68,26+M$1,FALSE),0) -> 44.0000005 | N15: =IFERROR(VLOOKUP($B15,'Saisie Pupilles'!$B$13:$AI$68,26+N$1,FALSE),0) -> 44.0000006 | O15: =IFERROR(VLOOKUP($B15,'Saisie Pupilles'!$B$13:$AI$68,26+O$1,FALSE),0) -> 0 | P15: =IFERROR(VLOOKUP($B15,'Saisie Pupilles'!$B$13:$AI$68,26+P$1,FALSE),0) -> 0 | Q15: =IF(B15>0,SUM(I15:P15),"") -> 226.0000019
A16: =IFERROR(IF(A15+1<='Saisie Pupilles'!$BF$12,A15+1,""),"") -> 3 | B16: =IFERROR(IF(A16<>"",VLOOKUP(A16,'Saisie Pupilles'!$BE$13:$BF$68,2,FALSE),""),"") -> 42250120128 | C16: =IFERROR(VLOOKUP($B16,'Saisie Pupilles'!$B$13:$AI$68,1+C$1,FALSE),0) -> LEHERLE | D16: =IFERROR(VLOOKUP($B16,'Saisie Pupilles'!$B$13:$AI$68,1+D$1,FALSE),0) -> Thibaut | E16: =IFERROR(VLOOKUP($B16,'Saisie Pupilles'!$B$13:$AI$68,1+E$1,FALSE),0) -> H | F16: =IFERROR(VLOOKUP($B16,'Saisie Pupilles'!$B$13:$AI$68,1+F$1,FALSE),0) -> V.C.DE MONTBELIARD | G16: =IFERROR(VLOOKUP($B16,'Saisie Pupilles'!$B$13:$AI$68,1+G$1,FALSE),0) -> Pupille | H16: =IFERROR(VLOOKUP($B16,'Saisie Pupilles'!$B$13:$AI$68,1+H$1,FALSE),0) -> 1 | I16: =IFERROR(VLOOKUP($B16,'Saisie Pupilles'!$B$13:$AI$68,26+I$1,FALSE),0) -> 44.0000001 | J16: =IFERROR(VLOOKUP($B16,'Saisie Pupilles'!$B$13:$AI$68,26+J$1,FALSE),0) -> 40.0000002 | K16: =IFERROR(VLOOKUP($B16,'Saisie Pupilles'!$B$13:$AI$68,26+K$1,FALSE),0) -> 0 | L16: =IFERROR(VLOOKUP($B16,'Saisie Pupilles'!$B$13:$AI$68,26+L$1,FALSE),0) -> 32.0000004 | M16: =IFERROR(VLOOKUP($B16,'Saisie Pupilles'!$B$13:$AI$68,26+M$1,FALSE),0) -> 40.0000005 | N16: =IFERROR(VLOOKUP($B16,'Saisie Pupilles'!$B$13:$AI$68,26+N$1,FALSE),0) -> 0 | O16: =IFERROR(VLOOKUP($B16,'Saisie Pupilles'!$B$13:$AI$68,26+O$1,FALSE),0) -> 44.000001 | P16: =IFERROR(VLOOKUP($B16,'Saisie Pupilles'!$B$13:$AI$68,26+P$1,FALSE),0) -> 0 | Q16: 200.0000022
A17: =IFERROR(IF(A16+1<='Saisie Pupilles'!$BF$12,A16+1,""),"") -> 4 | B17: =IFERROR(IF(A17<>"",VLOOKUP(A17,'Saisie Pupilles'!$BE$13:$BF$68,2,FALSE),""),"") -> 42250181144 | C17: =IFERROR(VLOOKUP($B17,'Saisie Pupilles'!$B$13:$AI$68,1+C$1,FALSE),0) -> LANGEL | D17: =IFERROR(VLOOKUP($B17,'Saisie Pupilles'!$B$13:$AI$68,1+D$1,FALSE),0) -> Sven | E17: =IFERROR(VLOOKUP($B17,'Saisie Pupilles'!$B$13:$AI$68,1+E$1,FALSE),0) -> H | F17: =IFERROR(VLOOKUP($B17,'Saisie Pupilles'!$B$13:$AI$68,1+F$1,FALSE),0) -> VC MORTEAU MONTBENOIT | G17: =IFERROR(VLOOKUP($B17,'Saisie Pupilles'!$B$13:$AI$68,1+G$1,FALSE),0) -> Pupille | H17: =IFERROR(VLOOKUP($B17,'Saisie Pupilles'!$B$13:$AI$68,1+H$1,FALSE),0) -> 1 | I17: =IFERROR(VLOOKUP($B17,'Saisie Pupilles'!$B$13:$AI$68,26+I$1,FALSE),0) -> 0 | J17: =IFERROR(VLOOKUP($B17,'Saisie Pupilles'!$B$13:$AI$68,26+J$1,FALSE),0) -> 0 | K17: =IFERROR(VLOOKUP($B17,'Saisie Pupilles'!$B$13:$AI$68,26+K$1,FALSE),0) -> 0 | L17: =IFERROR(VLOOKUP($B17,'Saisie Pupilles'!$B$13:$AI$68,26+L$1,FALSE),0) -> 40.0000004 | M17: =IFERROR(VLOOKUP($B17,'Saisie Pupilles'!$B$13:$AI$68,26+M$1,FALSE),0) -> 50.0000005 | N17: =IFERROR(VLOOKUP($B17,'Saisie Pupilles'!$B$13:$AI$68,26+N$1,FALSE),0) -> 50.0000006 | O17: =IFERROR(VLOOKUP($B17,'Saisie Pupilles'!$B$13:$AI$68,26+O$1,FALSE),0) -> 0 | P17: =IFERROR(VLOOKUP($B17,'Saisie Pupilles'!$B$13:$AI$68,26+P$1,FALSE),0) -> 50.0000008 | Q17: 190.0000023
A18: =IFERROR(IF(A17+1<='Saisie Pupilles'!$BF$12,A17+1,""),"") -> 5 | B18: =IFERROR(IF(A18<>"",VLOOKUP(A18,'Saisie Pupilles'!$BE$13:$BF$68,2,FALSE),""),"") -> 42390330243 | C18: =IFERROR(VLOOKUP($B18,'Saisie Pupilles'!$B$13:$AI$68,1+C$1,FALSE),0) -> VICHARD | D18: =IFERROR(VLOOKUP($B18,'Saisie Pupilles'!$B$13:$AI$68,1+D$1,FALSE),0) -> Maxime | E18: =IFERROR(VLOOKUP($B18,'Saisie Pupilles'!$B$13:$AI$68,1+E$1,FALSE),0) -> H | F18: =IFERROR(VLOOKUP($B18,'Saisie Pupilles'!$B$13:$AI$68,1+F$1,FALSE),0) -> GUIDON BLETTERANOIS | G18: =IFERROR(VLOOKUP($B18,'Saisie Pupilles'!$B$13:$AI$68,1+G$1,FALSE),0) -> Pupille | H18: =IFERROR(VLOOKUP($B18,'Saisie Pupilles'!$B$13:$AI$68,1+H$1,FALSE),0) -> 2 | I18: =IFERROR(VLOOKUP($B18,'Saisie Pupilles'!$B$13:$AI$68,26+I$1,FALSE),0) -> 37.0000001 | J18: =IFERROR(VLOOKUP($B18,'Saisie Pupilles'!$B$13:$AI$68,26+J$1,FALSE),0) -> 0 | K18: =IFERROR(VLOOKUP($B18,'Saisie Pupilles'!$B$13:$AI$68,26+K$1,FALSE),0) -> 0 | L18: =IFERROR(VLOOKUP($B18,'Saisie Pupilles'!$B$13:$AI$68,26+L$1,FALSE),0) -> 0 | M18: =IFERROR(VLOOKUP($B18,'Saisie Pupilles'!$B$13:$AI$68,26+M$1,FALSE),0) -> 37.0000005 | N18: =IFERROR(VLOOKUP($B18,'Saisie Pupilles'!$B$13:$AI$68,26+N$1,FALSE),0) -> 40.0000006 | O18: =IFERROR(VLOOKUP($B18,'Saisie Pupilles'!$B$13:$AI$68,26+O$1,FALSE),0) -> 40.000001 | P18: =IFERROR(VLOOKUP($B18,'Saisie Pupilles'!$B$13:$AI$68,26+P$1,FALSE),0) -> 32.0000008 | Q18: 186.000003
A19: =IFERROR(IF(A18+1<='Saisie Pupilles'!$BF$12,A18+1,""),"") -> 6 | B19: =IFERROR(IF(A19<>"",VLOOKUP(A19,'Saisie Pupilles'!$BE$13:$BF$68,2,FALSE),""),"") -> 42900480109 | C19: =IFERROR(VLOOKUP($B19,'Saisie Pupilles'!$B$13:$AI$68,1+C$1,FALSE),0) -> SIMON | D19: =IFERROR(VLOOKUP($B19,'Saisie Pupilles'!$B$13:$AI$68,1+D$1,FALSE),0) -> Adam | E19: =IFERROR(VLOOKUP($B19,'Saisie Pupilles'!$B$13:$AI$68,1+E$1,FALSE),0) -> H | F19: =IFERROR(VLOOKUP($B19,'Saisie Pupilles'!$B$13:$AI$68,1+F$1,FALSE),0) -> CC BELFORT MIOTTE | G19: =IFERROR(VLOOKUP($B19,'Saisie Pupilles'!$B$13:$AI$68,1+G$1,FALSE),0) -> Pupille | H19: =IFERROR(VLOOKUP($B19,'Saisie Pupilles'!$B$13:$AI$68,1+H$1,FALSE),0) -> 2 | I19: =IFERROR(VLOOKUP($B19,'Saisie Pupilles'!$B$13:$AI$68,26+I$1,FALSE),0) -> 30.0000001 | J19: =IFERROR(VLOOKUP($B19,'Saisie Pupilles'!$B$13:$AI$68,26+J$1,FALSE),0) -> 40.0000002 | K19: =IFERROR(VLOOKUP($B19,'Saisie Pupilles'!$B$13:$AI$68,26+K$1,FALSE),0) -> 40.0000003 | L19: =IFERROR(VLOOKUP($B19,'Saisie Pupilles'!$B$13:$AI$68,26+L$1,FALSE),0) -> 0 | M19: =IFERROR(VLOOKUP($B19,'Saisie Pupilles'!$B$13:$AI$68,26+M$1,FALSE),0) -> 0 | N19: =IFERROR(VLOOKUP($B19,'Saisie Pupilles'!$B$13:$AI$68,26+N$1,FALSE),0) -> 28.0000006 | O19: =IFERROR(VLOOKUP($B19,'Saisie Pupilles'!$B$13:$AI$68,26+O$1,FALSE),0) -> 28.000001 | P19: =IFERROR(VLOOKUP($B19,'Saisie Pupilles'!$B$13:$AI$68,26+P$1,FALSE),0) -> 0 | Q19: 166.0000022
A20: =IFERROR(IF(A19+1<='Saisie Pupilles'!$BF$12,A19+1,""),"") -> 7 | B20: =IFERROR(IF(A20<>"",VLOOKUP(A20,'Saisie Pupilles'!$BE$13:$BF$68,2,FALSE),""),"") -> 42700680145 | C20: =IFERROR(VLOOKUP($B20,'Saisie Pupilles'!$B$13:$AI$68,1+C$1,FALSE),0) -> PETITGIRARD | D20: =IFERROR(VLOOKUP($B20,'Saisie Pupilles'!$B$13:$AI$68,1+D$1,FALSE),0) -> Léa | E20: =IFERROR(VLOOKUP($B20,'Saisie Pupilles'!$B$13:$AI$68,1+E$1,FALSE),0) -> D | F20: =IFERROR(VLOOKUP($B20,'Saisie Pupilles'!$B$13:$AI$68,1+F$1,FALSE),0) -> E.C. LUXEUIL VOSGES SAONO | G20: =IFERROR(VLOOKUP($B20,'Saisie Pupilles'!$B$13:$AI$68,1+G$1,FALSE),0) -> Pupille | H20: =IFERROR(VLOOKUP($B20,'Saisie Pupilles'!$B$13:$AI$68,1+H$1,FALSE),0) -> 2 | I20: =IFERROR(VLOOKUP($B20,'Saisie Pupilles'!$B$13:$AI$68,26+I$1,FALSE),0) -> 34.0000001 | J20: =IFERROR(VLOOKUP($B20,'Saisie Pupilles'!$B$13:$AI$68,26+J$1,FALSE),0) -> 44.0000002 | K20: =IFERROR(VLOOKUP($B20,'Saisie Pupilles'!$B$13:$AI$68,26+K$1,FALSE),0) -> 32.0000003 | L20: =IFERROR(VLOOKUP($B20,'Saisie Pupilles'!$B$13:$AI$68,26+L$1,FALSE),0) -> 0 | M20: =IFERROR(VLOOKUP($B20,'Saisie Pupilles'!$B$13:$AI$68,26+M$1,FALSE),0) -> 30.0000005 | N20: =IFERROR(VLOOKUP($B20,'Saisie Pupilles'!$B$13:$AI$68,26+N$1,FALSE),0) -> 0 | O20: =IFERROR(VLOOKUP($B20,'Saisie Pupilles'!$B$13:$AI$68,26+O$1,FALSE),0) -> 0 | P20: =IFERROR(VLOOKUP($B20,'Saisie Pupilles'!$B$13:$AI$68,26+P$1,FALSE),0) -> 26.0000008 | Q20: 166.0000019
A21: =IFERROR(IF(A20+1<='Saisie Pupilles'!$BF$12,A20+1,""),"") -> 8 | B21: =IFERROR(IF(A21<>"",VLOOKUP(A21,'Saisie Pupilles'!$BE$13:$BF$68,2,FALSE),""),"") -> 42250120325 | C21: =IFERROR(VLOOKUP($B21,'Saisie Pupilles'!$B$13:$AI$68,1+C$1,FALSE),0) -> BOONE | D21: =IFERROR(VLOOKUP($B21,'Saisie Pupilles'!$B$13:$AI$68,1+D$1,FALSE),0) -> Ancelin | E21: =IFERROR(VLOOKUP($B21,'Saisie Pupilles'!$B$13:$AI$68,1+E$1,FALSE),0) -> H | F21: =IFERROR(VLOOKUP($B21,'Saisie Pupilles'!$B$13:$AI$68,1+F$1,FALSE),0) -> V.C.DE MONTBELIARD | G21: =IFERROR(VLOOKUP($B21,'Saisie Pupilles'!$B$13:$AI$68,1+G$1,FALSE),0) -> Pupille | H21: =IFERROR(VLOOKUP($B21,'Saisie Pupilles'!$B$13:$AI$68,1+H$1,FALSE),0) -> 1 | I21: =IFERROR(VLOOKUP($B21,'Saisie Pupilles'!$B$13:$AI$68,26+I$1,FALSE),0) -> 0 | J21: =IFERROR(VLOOKUP($B21,'Saisie Pupilles'!$B$13:$AI$68,26+J$1,FALSE),0) -> 32.0000002 | K21: =IFERROR(VLOOKUP($B21,'Saisie Pupilles'!$B$13:$AI$68,26+K$1,FALSE),0) -> 34.0000003 | L21: =IFERROR(VLOOKUP($B21,'Saisie Pupilles'!$B$13:$AI$68,26+L$1,FALSE),0) -> 21.0000004 | M21: =IFERROR(VLOOKUP($B21,'Saisie Pupilles'!$B$13:$AI$68,26+M$1,FALSE),0) -> 28.0000005 | N21: =IFERROR(VLOOKUP($B21,'Saisie Pupilles'!$B$13:$AI$68,26+N$1,FALSE),0) -> 0 | O21: =IFERROR(VLOOKUP($B21,'Saisie Pupilles'!$B$13:$AI$68,26+O$1,FALSE),0) -> 37.000001 | P21: =IFERROR(VLOOKUP($B21,'Saisie Pupilles'!$B$13:$AI$68,26+P$1,FALSE),0) -> 0 | Q21: 152.0000024
A22: =IFERROR(IF(A21+1<='Saisie Pupilles'!$BF$12,A21+1,""),"") -> 9 | B22: =IFERROR(IF(A22<>"",VLOOKUP(A22,'Saisie Pupilles'!$BE$13:$BF$68,2,FALSE),""),"") -> 42700680171 | C22: =IFERROR(VLOOKUP($B22,'Saisie Pupilles'!$B$13:$AI$68,1+C$1,FALSE),0) -> THALGOTT | D22: =IFERROR(VLOOKUP($B22,'Saisie Pupilles'!$B$13:$AI$68,1+D$1,FALSE),0) -> Timeo | E22: =IFERROR(VLOOKUP($B22,'Saisie Pupilles'!$B$13:$AI$68,1+E$1,FALSE),0) -> H | F22: =IFERROR(VLOOKUP($B22,'Saisie Pupilles'!$B$13:$AI$68,1+F$1,FALSE),0) -> E.C. LUXEUIL VOSGES SAONO | G22: =IFERROR(VLOOKUP($B22,'Saisie Pupilles'!$B$13:$AI$68,1+G$1,FALSE),0) -> Pupille | H22: =IFERROR(VLOOKUP($B22,'Saisie Pupilles'!$B$13:$AI$68,1+H$1,FALSE),0) -> 1 | I22: =IFERROR(VLOOKUP($B22,'Saisie Pupilles'!$B$13:$AI$68,26+I$1,FALSE),0) -> 26.0000001 | J22: =IFERROR(VLOOKUP($B22,'Saisie Pupilles'!$B$13:$AI$68,26+J$1,FALSE),0) -> 28.0000002 | K22: =IFERROR(VLOOKUP($B22,'Saisie Pupilles'!$B$13:$AI$68,26+K$1,FALSE),0) -> 28.0000003 | L22: =IFERROR(VLOOKUP($B22,'Saisie Pupilles'!$B$13:$AI$68,26+L$1,FALSE),0) -> 22.0000004 | M22: =IFERROR(VLOOKUP($B22,'Saisie Pupilles'!$B$13:$AI$68,26+M$1,FALSE),0) -> 24.0000005 | N22: =IFERROR(VLOOKUP($B22,'Saisie Pupilles'!$B$13:$AI$68,26+N$1,FALSE),0) -> 0 | O22: =IFERROR(VLOOKUP($B22,'Saisie Pupilles'!$B$13:$AI$68,26+O$1,FALSE),0) -> 0 | P22: =IFERROR(VLOOKUP($B22,'Saisie Pupilles'!$B$13:$AI$68,26+P$1,FALSE),0) -> 0 | Q22: 128.0000015
A23: =IFERROR(IF(A22+1<='Saisie Pupilles'!$BF$12,A22+1,""),"") -> 10 | B23: =IFERROR(IF(A23<>"",VLOOKUP(A23,'Saisie Pupilles'!$BE$13:$BF$68,2,FALSE),""),"") -> 42390960287 | C23: =IFERROR(VLOOKUP($B23,'Saisie Pupilles'!$B$13:$AI$68,1+C$1,FALSE),0) -> ROUSSEL | D23: =IFERROR(VLOOKUP($B23,'Saisie Pupilles'!$B$13:$AI$68,1+D$1,FALSE),0) -> Louison | E23: =IFERROR(VLOOKUP($B23,'Saisie Pupilles'!$B$13:$AI$68,1+E$1,FALSE),0) -> H | F23: =IFERROR(VLOOKUP($B23,'Saisie Pupilles'!$B$13:$AI$68,1+F$1,FALSE),0) -> JURA CYCLISME PAYS DU REVER | G23: =IFERROR(VLOOKUP($B23,'Saisie Pupilles'!$B$13:$AI$68,1+G$1,FALSE),0) -> Pupille | H23: =IFERROR(VLOOKUP($B23,'Saisie Pupilles'!$B$13:$AI$68,1+H$1,FALSE),0) -> 2 | I23: =IFERROR(VLOOKUP($B23,'Saisie Pupilles'!$B$13:$AI$68,26+I$1,FALSE),0) -> 0 | J23: =IFERROR(VLOOKUP($B23,'Saisie Pupilles'!$B$13:$AI$68,26+J$1,FALSE),0) -> 0 | K23: =IFERROR(VLOOKUP($B23,'Saisie Pupilles'!$B$13:$AI$68,26+K$1,FALSE),0) -> 0 | L23: =IFERROR(VLOOKUP($B23,'Saisie Pupilles'!$B$13:$AI$68,26+L$1,FALSE),0) -> 34.0000004 | M23: =IFERROR(VLOOKUP($B23,'Saisie Pupilles'!$B$13:$AI$68,26+M$1,FALSE),0) -> 0 | N23: =IFERROR(VLOOKUP($B23,'Saisie Pupilles'!$B$13:$AI$68,26+N$1,FALSE),0) -> 32.0000006 | O23: =IFERROR(VLOOKUP($B23,'Saisie Pupilles'!$B$13:$AI$68,26+O$1,FALSE),0) -> 24.000001 | P23: =IFERROR(VLOOKUP($B23,'Saisie Pupilles'!$B$13:$AI$68,26+P$1,FALSE),0) -> 22.0000008 | Q23: 112.0000028
A24: =IFERROR(IF(A23+1<='Saisie Pupilles'!$BF$12,A23+1,""),"") -> 11 | B24: =IFERROR(IF(A24<>"",VLOOKUP(A24,'Saisie Pupilles'!$BE$13:$BF$68,2,FALSE),""),"") -> 42250181188 | C24: =IFERROR(VLOOKUP($B24,'Saisie Pupilles'!$B$13:$AI$68,1+C$1,FALSE),0) -> MYOTTE DUQUET | D24: =IFERROR(VLOOKUP($B24,'Saisie Pupilles'!$B$13:$AI$68,1+D$1,FALSE),0) -> Thiago | E24: =IFERROR(VLOOKUP($B24,'Saisie Pupilles'!$B$13:$AI$68,1+E$1,FALSE),0) -> H | F24: =IFERROR(VLOOKUP($B24,'Saisie Pupilles'!$B$13:$AI$68,1+F$1,FALSE),0) -> VC MORTEAU MONTBENOIT | G24: =IFERROR(VLOOKUP($B24,'Saisie Pupilles'!$B$13:$AI$68,1+G$1,FALSE),0) -> Pupille | H24: =IFERROR(VLOOKUP($B24,'Saisie Pupilles'!$B$13:$AI$68,1+H$1,FALSE),0) -> 2 | I24: =IFERROR(VLOOKUP($B24,'Saisie Pupilles'!$B$13:$AI$68,26+I$1,FALSE),0) -> 0 | J24: =IFERROR(VLOOKUP($B24,'Saisie Pupilles'!$B$13:$AI$68,26+J$1,FALSE),0) -> 22.0000002 | K24: =IFERROR(VLOOKUP($B24,'Saisie Pupilles'!$B$13:$AI$68,26+K$1,FALSE),0) -> 0 | L24: =IFERROR(VLOOKUP($B24,'Saisie Pupilles'!$B$13:$AI$68,26+L$1,FALSE),0) -> 18.0000004 | M24: =IFERROR(VLOOKUP($B24,'Saisie Pupilles'!$B$13:$AI$68,26+M$1,FALSE),0) -> 26.0000005 | N24: =IFERROR(VLOOKUP($B24,'Saisie Pupilles'!$B$13:$AI$68,26+N$1,FALSE),0) -> 22.0000006 | O24: =IFERROR(VLOOKUP($B24,'Saisie Pupilles'!$B$13:$AI$68,26+O$1,FALSE),0) -> 0 | P24: =IFERROR(VLOOKUP($B24,'Saisie Pupilles'!$B$13:$AI$68,26+P$1,FALSE),0) -> 24.0000008 | Q24: 112.0000025
A25: =IFERROR(IF(A24+1<='Saisie Pupilles'!$BF$12,A24+1,""),"") -> 12 | B25: =IFERROR(IF(A25<>"",VLOOKUP(A25,'Saisie Pupilles'!$BE$13:$BF$68,2,FALSE),""),"") -> 42250181215 | C25: =IFERROR(VLOOKUP($B25,'Saisie Pupilles'!$B$13:$AI$68,1+C$1,FALSE),0) -> THORAX | D25: =IFERROR(VLOOKUP($B25,'Saisie Pupilles'!$B$13:$AI$68,1+D$1,FALSE),0) -> Michel | E25: =IFERROR(VLOOKUP($B25,'Saisie Pupilles'!$B$13:$AI$68,1+E$1,FALSE),0) -> H | F25: =IFERROR(VLOOKUP($B25,'Saisie Pupilles'!$B$13:$AI$68,1+F$1,FALSE),0) -> VC MORTEAU MONTBENOIT | G25: =IFERROR(VLOOKUP($B25,'Saisie Pupilles'!$B$13:$AI$68,1+G$1,FALSE),0) -> Pupille | H25: =IFERROR(VLOOKUP($B25,'Saisie Pupilles'!$B$13:$AI$68,1+H$1,FALSE),0) -> 2 | I25: =IFERROR(VLOOKUP($B25,'Saisie Pupilles'!$B$13:$AI$68,26+I$1,FALSE),0) -> 0 | J25: =IFERROR(VLOOKUP($B25,'Saisie Pupilles'!$B$13:$AI$68,26+J$1,FALSE),0) -> 0 | K25: =IFERROR(VLOOKUP($B25,'Saisie Pupilles'!$B$13:$AI$68,26+K$1,FALSE),0) -> 37.0000003 | L25: =IFERROR(VLOOKUP($B25,'Saisie Pupilles'!$B$13:$AI$68,26+L$1,FALSE),0) -> 37.0000004 | M25: =IFERROR(VLOOKUP($B25,'Saisie Pupilles'!$B$13:$AI$68,26+M$1,FALSE),0) -> 32.0000005 | N25: =IFERROR(VLOOKUP($B25,'Saisie Pupilles'!$B$13:$AI$68,26+N$1,FALSE),0) -> 0 | O25: =IFERROR(VLOOKUP($B25,'Saisie Pupilles'!$B$13:$AI$68,26+O$1,FALSE),0) -> 0 | P25: =IFERROR(VLOOKUP($B25,'Saisie Pupilles'!$B$13:$AI$68,26+P$1,FALSE),0) -> 0 | Q25: 106.0000012
A26: =IFERROR(IF(A25+1<='Saisie Pupilles'!$BF$12,A25+1,""),"") -> 13 | B26: =IFERROR(IF(A26<>"",VLOOKUP(A26,'Saisie Pupilles'!$BE$13:$BF$68,2,FALSE),""),"") -> 46880320418 | C26: =IFERROR(VLOOKUP($B26,'Saisie Pupilles'!$B$13:$AI$68,1+C$1,FALSE),0) -> SIBILLE | D26: =IFERROR(VLOOKUP($B26,'Saisie Pupilles'!$B$13:$AI$68,1+D$1,FALSE),0) -> Léo | E26: =IFERROR(VLOOKUP($B26,'Saisie Pupilles'!$B$13:$AI$68,1+E$1,FALSE),0) -> H | F26: =IFERROR(VLOOKUP($B26,'Saisie Pupilles'!$B$13:$AI$68,1+F$1,FALSE),0) -> CYCLE GOLBEEN | G26: =IFERROR(VLOOKUP($B26,'Saisie Pupilles'!$B$13:$AI$68,1+G$1,FALSE),0) -> Pupille | H26: =IFERROR(VLOOKUP($B26,'Saisie Pupilles'!$B$13:$AI$68,1+H$1,FALSE),0) -> 2 | I26: =IFERROR(VLOOKUP($B26,'Saisie Pupilles'!$B$13:$AI$68,26+I$1,FALSE),0) -> 40.0000001 | J26: =IFERROR(VLOOKUP($B26,'Saisie Pupilles'!$B$13:$AI$68,26+J$1,FALSE),0) -> 0 | K26: =IFERROR(VLOOKUP($B26,'Saisie Pupilles'!$B$13:$AI$68,26+K$1,FALSE),0) -> 0 | L26: =IFERROR(VLOOKUP($B26,'Saisie Pupilles'!$B$13:$AI$68,26+L$1,FALSE),0) -> 0 | M26: =IFERROR(VLOOKUP($B26,'Saisie Pupilles'!$B$13:$AI$68,26+M$1,FALSE),0) -> 0 | N26: =IFERROR(VLOOKUP($B26,'Saisie Pupilles'!$B$13:$AI$68,26+N$1,FALSE),0) -> 0 | O26: =IFERROR(VLOOKUP($B26,'Saisie Pupilles'!$B$13:$AI$68,26+O$1,FALSE),0) -> 30.000001 | P26: =IFERROR(VLOOKUP($B26,'Saisie Pupilles'!$B$13:$AI$68,26+P$1,FALSE),0) -> 34.0000008 | Q26: 104.0000019
A27: =IFERROR(IF(A26+1<='Saisie Pupilles'!$BF$12,A26+1,""),"") -> 14 | B27: =IFERROR(IF(A27<>"",VLOOKUP(A27,'Saisie Pupilles'!$BE$13:$BF$68,2,FALSE),""),"") -> 42250181146 | C27: =IFERROR(VLOOKUP($B27,'Saisie Pupilles'!$B$13:$AI$68,1+C$1,FALSE),0) -> MARTINI | D27: =IFERROR(VLOOKUP($B27,'Saisie Pupilles'!$B$13:$AI$68,1+D$1,FALSE),0) -> Mila | E27: =IFERROR(VLOOKUP($B27,'Saisie Pupilles'!$B$13:$AI$68,1+E$1,FALSE),0) -> D | F27: =IFERROR(VLOOKUP($B27,'Saisie Pupilles'!$B$13:$AI$68,1+F$1,FALSE),0) -> VC MORTEAU MONTBENOIT | G27: =IFERROR(VLOOKUP($B27,'Saisie Pupilles'!$B$13:$AI$68,1+G$1,FALSE),0) -> Pupille | H27: =IFERROR(VLOOKUP($B27,'Saisie Pupilles'!$B$13:$AI$68,1+H$1,FALSE),0) -> 1 | I27: =IFERROR(VLOOKUP($B27,'Saisie Pupilles'!$B$13:$AI$68,26+I$1,FALSE),0) -> 0 | J27: =IFERROR(VLOOKUP($B27,'Saisie Pupilles'!$B$13:$AI$68,26+J$1,FALSE),0) -> 20.0000002 | K27: =IFERROR(VLOOKUP($B27,'Saisie Pupilles'!$B$13:$AI$68,26+K$1,FALSE),0) -> 21.0000003 | L27: =IFERROR(VLOOKUP($B27,'Saisie Pupilles'!$B$13:$AI$68,26+L$1,FALSE),0) -> 17.0000004 | M27: =IFERROR(VLOOKUP($B27,'Saisie Pupilles'!$B$13:$AI$68,26+M$1,FALSE),0) -> 16.0000005 | N27: =IFERROR(VLOOKUP($B27,'Saisie Pupilles'!$B$13:$AI$68,26+N$1,FALSE),0) -> 0 | O27: =IFERROR(VLOOKUP($B27,'Saisie Pupilles'!$B$13:$AI$68,26+O$1,FALSE),0) -> 18.000001 | P27: =IFERROR(VLOOKUP($B27,'Saisie Pupilles'!$B$13:$AI$68,26+P$1,FALSE),0) -> 0 | Q27: 92.0000024
A28: =IFERROR(IF(A27+1<='Saisie Pupilles'!$BF$12,A27+1,""),"") -> 15 | B28: =IFERROR(IF(A28<>"",VLOOKUP(A28,'Saisie Pupilles'!$BE$13:$BF$68,2,FALSE),""),"") -> 42390960347 | C28: =IFERROR(VLOOKUP($B28,'Saisie Pupilles'!$B$13:$AI$68,1+C$1,FALSE),0) -> BOUILLET | D28: =IFERROR(VLOOKUP($B28,'Saisie Pupilles'!$B$13:$AI$68,1+D$1,FALSE),0) -> Noah | E28: =IFERROR(VLOOKUP($B28,'Saisie Pupilles'!$B$13:$AI$68,1+E$1,FALSE),0) -> H | F28: =IFERROR(VLOOKUP($B28,'Saisie Pupilles'!$B$13:$AI$68,1+F$1,FALSE),0) -> JURA CYCLISME PAYS DU REVERMONT | G28: =IFERROR(VLOOKUP($B28,'Saisie Pupilles'!$B$13:$AI$68,1+G$1,FALSE),0) -> Pupille | H28: =IFERROR(VLOOKUP($B28,'Saisie Pupilles'!$B$13:$AI$68,1+H$1,FALSE),0) -> 1 | I28: =IFERROR(VLOOKUP($B28,'Saisie Pupilles'!$B$13:$AI$68,26+I$1,FALSE),0) -> 0 | J28: =IFERROR(VLOOKUP($B28,'Saisie Pupilles'!$B$13:$AI$68,26+J$1,FALSE),0) -> 0 | K28: =IFERROR(VLOOKUP($B28,'Saisie Pupilles'!$B$13:$AI$68,26+K$1,FALSE),0) -> 0 | L28: =IFERROR(VLOOKUP($B28,'Saisie Pupilles'!$B$13:$AI$68,26+L$1,FALSE),0) -> 0 | M28: =IFERROR(VLOOKUP($B28,'Saisie Pupilles'!$B$13:$AI$68,26+M$1,FALSE),0) -> 22.0000005 | N28: =IFERROR(VLOOKUP($B28,'Saisie Pupilles'!$B$13:$AI$68,26+N$1,FALSE),0) -> 34.0000006 | O28: =IFERROR(VLOOKUP($B28,'Saisie Pupilles'!$B$13:$AI$68,26+O$1,FALSE),0) -> 32.000001 | P28: =IFERROR(VLOOKUP($B28,'Saisie Pupilles'!$B$13:$AI$68,26+P$1,FALSE),0) -> 0 | Q28: 88.0000021
A29: =IFERROR(IF(A28+1<='Saisie Pupilles'!$BF$12,A28+1,""),"") -> 16 | B29: =IFERROR(IF(A29<>"",VLOOKUP(A29,'Saisie Pupilles'!$BE$13:$BF$68,2,FALSE),""),"") -> 46520180127 | C29: =IFERROR(VLOOKUP($B29,'Saisie Pupilles'!$B$13:$AI$68,1+C$1,FALSE),0) -> MATIS | D29: =IFERROR(VLOOKUP($B29,'Saisie Pupilles'!$B$13:$AI$68,1+D$1,FALSE),0) -> Juliette | E29: =IFERROR(VLOOKUP($B29,'Saisie Pupilles'!$B$13:$AI$68,1+E$1,FALSE),0) -> D | F29: =IFERROR(VLOOKUP($B29,'Saisie Pupilles'!$B$13:$AI$68,1+F$1,FALSE),0) -> V.C.LANGROIS | G29: =IFERROR(VLOOKUP($B29,'Saisie Pupilles'!$B$13:$AI$68,1+G$1,FALSE),0) -> Pupille | H29: =IFERROR(VLOOKUP($B29,'Saisie Pupilles'!$B$13:$AI$68,1+H$1,FALSE),0) -> 1 | I29: =IFERROR(VLOOKUP($B29,'Saisie Pupilles'!$B$13:$AI$68,26+I$1,FALSE),0) -> 32.0000001 | J29: =IFERROR(VLOOKUP($B29,'Saisie Pupilles'!$B$13:$AI$68,26+J$1,FALSE),0) -> 30.0000002 | K29: =IFERROR(VLOOKUP($B29,'Saisie Pupilles'!$B$13:$AI$68,26+K$1,FALSE),0) -> 0 | L29: =IFERROR(VLOOKUP($B29,'Saisie Pupilles'!$B$13:$AI$68,26+L$1,FALSE),0) -> 0 | M29: =IFERROR(VLOOKUP($B29,'Saisie Pupilles'!$B$13:$AI$68,26+M$1,FALSE),0) -> 0 | N29: =IFERROR(VLOOKUP($B29,'Saisie Pupilles'!$B$13:$AI$68,26+N$1,FALSE),0) -> 0 | O29: =IFERROR(VLOOKUP($B29,'Saisie Pupilles'!$B$13:$AI$68,26+O$1,FALSE),0) -> 21.000001 | P29: =IFERROR(VLOOKUP($B29,'Saisie Pupilles'!$B$13:$AI$68,26+P$1,FALSE),0) -> 0 | Q29: 83.0000013
A30: =IFERROR(IF(A29+1<='Saisie Pupilles'!$BF$12,A29+1,""),"") -> 17 | B30: =IFERROR(IF(A30<>"",VLOOKUP(A30,'Saisie Pupilles'!$BE$13:$BF$68,2,FALSE),""),"") -> 42250181211 | C30: =IFERROR(VLOOKUP($B30,'Saisie Pupilles'!$B$13:$AI$68,1+C$1,FALSE),0) -> BROCHARD | D30: =IFERROR(VLOOKUP($B30,'Saisie Pupilles'!$B$13:$AI$68,1+D$1,FALSE),0) -> Mathys | E30: =IFERROR(VLOOKUP($B30,'Saisie Pupilles'!$B$13:$AI$68,1+E$1,FALSE),0) -> H | F30: =IFERROR(VLOOKUP($B30,'Saisie Pupilles'!$B$13:$AI$68,1+F$1,FALSE),0) -> VC MORTEAU MONTBENOIT | G30: =IFERROR(VLOOKUP($B30,'Saisie Pupilles'!$B$13:$AI$68,1+G$1,FALSE),0) -> Pupille | H30: =IFERROR(VLOOKUP($B30,'Saisie Pupilles'!$B$13:$AI$68,1+H$1,FALSE),0) -> 2 | I30: =IFERROR(VLOOKUP($B30,'Saisie Pupilles'!$B$13:$AI$68,26+I$1,FALSE),0) -> 0 | J30: =IFERROR(VLOOKUP($B30,'Saisie Pupilles'!$B$13:$AI$68,26+J$1,FALSE),0) -> 18.0000002 | K30: =IFERROR(VLOOKUP($B30,'Saisie Pupilles'!$B$13:$AI$68,26+K$1,FALSE),0) -> 0 | L30: =IFERROR(VLOOKUP($B30,'Saisie Pupilles'!$B$13:$AI$68,26+L$1,FALSE),0) -> 19.0000004 | M30: =IFERROR(VLOOKUP($B30,'Saisie Pupilles'!$B$13:$AI$68,26+M$1,FALSE),0) -> 15.0000005 | N30: =IFERROR(VLOOKUP($B30,'Saisie Pupilles'!$B$13:$AI$68,26+N$1,FALSE),0) -> 14.0000006 | O30: =IFERROR(VLOOKUP($B30,'Saisie Pupilles'!$B$13:$AI$68,26+O$1,FALSE),0) -> 13.000001 | P30: =IFERROR(VLOOKUP($B30,'Saisie Pupilles'!$B$13:$AI$68,26+P$1,FALSE),0) -> 0 | Q30: 79.0000027
A31: =IFERROR(IF(A30+1<='Saisie Pupilles'!$BF$12,A30+1,""),"") -> 18 | B31: =IFERROR(IF(A31<>"",VLOOKUP(A31,'Saisie Pupilles'!$BE$13:$BF$68,2,FALSE),""),"") -> 42250120354 | C31: =IFERROR(VLOOKUP($B31,'Saisie Pupilles'!$B$13:$AI$68,1+C$1,FALSE),0) -> BOURQUIN DROUART | D31: =IFERROR(VLOOKUP($B31,'Saisie Pupilles'!$B$13:$AI$68,1+D$1,FALSE),0) -> Loris | E31: =IFERROR(VLOOKUP($B31,'Saisie Pupilles'!$B$13:$AI$68,1+E$1,FALSE),0) -> H | F31: =IFERROR(VLOOKUP($B31,'Saisie Pupilles'!$B$13:$AI$68,1+F$1,FALSE),0) -> V.C.DE MONTBELIARD | G31: =IFERROR(VLOOKUP($B31,'Saisie Pupilles'!$B$13:$AI$68,1+G$1,FALSE),0) -> Pupille | H31: =IFERROR(VLOOKUP($B31,'Saisie Pupilles'!$B$13:$AI$68,1+H$1,FALSE),0) -> 1 | I31: =IFERROR(VLOOKUP($B31,'Saisie Pupilles'!$B$13:$AI$68,26+I$1,FALSE),0) -> 0 | J31: =IFERROR(VLOOKUP($B31,'Saisie Pupilles'!$B$13:$AI$68,26+J$1,FALSE),0) -> 24.0000002 | K31: =IFERROR(VLOOKUP($B31,'Saisie Pupilles'!$B$13:$AI$68,26+K$1,FALSE),0) -> 0 | L31: =IFERROR(VLOOKUP($B31,'Saisie Pupilles'!$B$13:$AI$68,26+L$1,FALSE),0) -> 11.0000004 | M31: =IFERROR(VLOOKUP($B31,'Saisie Pupilles'!$B$13:$AI$68,26+M$1,FALSE),0) -> 14.0000005 | N31: =IFERROR(VLOOKUP($B31,'Saisie Pupilles'!$B$13:$AI$68,26+N$1,FALSE),0) -> 0 | O31: =IFERROR(VLOOKUP($B31,'Saisie Pupilles'!$B$13:$AI$68,26+O$1,FALSE),0) -> 12.000001 | P31: =IFERROR(VLOOKUP($B31,'Saisie Pupilles'!$B$13:$AI$68,26+P$1,FALSE),0) -> 14.0000008 | Q31: 75.0000029
A32: =IFERROR(IF(A31+1<='Saisie Pupilles'!$BF$12,A31+1,""),"") -> 19 | B32: =IFERROR(IF(A32<>"",VLOOKUP(A32,'Saisie Pupilles'!$BE$13:$BF$68,2,FALSE),""),"") -> 42250120301 | C32: =IFERROR(VLOOKUP($B32,'Saisie Pupilles'!$B$13:$AI$68,1+C$1,FALSE),0) -> HANAUER | D32: =IFERROR(VLOOKUP($B32,'Saisie Pupilles'!$B$13:$AI$68,1+D$1,FALSE),0) -> Anais | E32: =IFERROR(VLOOKUP($B32,'Saisie Pupilles'!$B$13:$AI$68,1+E$1,FALSE),0) -> D | F32: =IFERROR(VLOOKUP($B32,'Saisie Pupilles'!$B$13:$AI$68,1+F$1,FALSE),0) -> V.C.DE MONTBELIARD | G32: =IFERROR(VLOOKUP($B32,'Saisie Pupilles'!$B$13:$AI$68,1+G$1,FALSE),0) -> Pupille | H32: =IFERROR(VLOOKUP($B32,'Saisie Pupilles'!$B$13:$AI$68,1+H$1,FALSE),0) -> 1 | I32: =IFERROR(VLOOKUP($B32,'Saisie Pupilles'!$B$13:$AI$68,26+I$1,FALSE),0) -> 0 | J32: =IFERROR(VLOOKUP($B32,'Saisie Pupilles'!$B$13:$AI$68,26+J$1,FALSE),0) -> 0 | K32: =IFERROR(VLOOKUP($B32,'Saisie Pupilles'!$B$13:$AI$68,26+K$1,FALSE),0) -> 0 | L32: =IFERROR(VLOOKUP($B32,'Saisie Pupilles'!$B$13:$AI$68,26+L$1,FALSE),0) -> 15.0000004 | M32: =IFERROR(VLOOKUP($B32,'Saisie Pupilles'!$B$13:$AI$68,26+M$1,FALSE),0) -> 18.0000005 | N32: =IFERROR(VLOOKUP($B32,'Saisie Pupilles'!$B$13:$AI$68,26+N$1,FALSE),0) -> 18.0000006 | O32: =IFERROR(VLOOKUP($B32,'Saisie Pupilles'!$B$13:$AI$68,26+O$1,FALSE),0) -> 19.000001 | P32: =IFERROR(VLOOKUP($B32,'Saisie Pupilles'!$B$13:$AI$68,26+P$1,FALSE),0) -> 0 | Q32: 70.0000025
A33: =IFERROR(IF(A32+1<='Saisie Pupilles'!$BF$12,A32+1,""),"") -> 20 | B33: =IFERROR(IF(A33<>"",VLOOKUP(A33,'Saisie Pupilles'!$BE$13:$BF$68,2,FALSE),""),"") -> 42700680163 | C33: =IFERROR(VLOOKUP($B33,'Saisie Pupilles'!$B$13:$AI$68,1+C$1,FALSE),0) -> RIANDET | D33: =IFERROR(VLOOKUP($B33,'Saisie Pupilles'!$B$13:$AI$68,1+D$1,FALSE),0) -> Gabriel | E33: =IFERROR(VLOOKUP($B33,'Saisie Pupilles'!$B$13:$AI$68,1+E$1,FALSE),0) -> H | F33: =IFERROR(VLOOKUP($B33,'Saisie Pupilles'!$B$13:$AI$68,1+F$1,FALSE),0) -> E.C. LUXEUIL VOSGES SAONO | G33: =IFERROR(VLOOKUP($B33,'Saisie Pupilles'!$B$13:$AI$68,1+G$1,FALSE),0) -> Pupille | H33: =IFERROR(VLOOKUP($B33,'Saisie Pupilles'!$B$13:$AI$68,1+H$1,FALSE),0) -> 2 | I33: =IFERROR(VLOOKUP($B33,'Saisie Pupilles'!$B$13:$AI$68,26+I$1,FALSE),0) -> 21.0000001 | J33: =IFERROR(VLOOKUP($B33,'Saisie Pupilles'!$B$13:$AI$68,26+J$1,FALSE),0) -> 19.0000002 | K33: =IFERROR(VLOOKUP($B33,'Saisie Pupilles'!$B$13:$AI$68,26+K$1,FALSE),0) -> 24.0000003 | L33: =IFERROR(VLOOKUP($B33,'Saisie Pupilles'!$B$13:$AI$68,26+L$1,FALSE),0) -> 0 | M33: =IFERROR(VLOOKUP($B33,'Saisie Pupilles'!$B$13:$AI$68,26+M$1,FALSE),0) -> 0 | N33: =IFERROR(VLOOKUP($B33,'Saisie Pupilles'!$B$13:$AI$68,26+N$1,FALSE),0) -> 0 | O33: =IFERROR(VLOOKUP($B33,'Saisie Pupilles'!$B$13:$AI$68,26+O$1,FALSE),0) -> 5.000001 | P33: =IFERROR(VLOOKUP($B33,'Saisie Pupilles'!$B$13:$AI$68,26+P$1,FALSE),0) -> 0 | Q33: 69.0000016
A34: =IFERROR(IF(A33+1<='Saisie Pupilles'!$BF$12,A33+1,""),"") -> 21 | B34: =IFERROR(IF(A34<>"",VLOOKUP(A34,'Saisie Pupilles'!$BE$13:$BF$68,2,FALSE),""),"") -> 42390960387 | C34: =IFERROR(VLOOKUP($B34,'Saisie Pupilles'!$B$13:$AI$68,1+C$1,FALSE),0) -> COUREL | D34: =IFERROR(VLOOKUP($B34,'Saisie Pupilles'!$B$13:$AI$68,1+D$1,FALSE),0) -> Léo Baptiste | E34: =IFERROR(VLOOKUP($B34,'Saisie Pupilles'!$B$13:$AI$68,1+E$1,FALSE),0) -> H | F34: =IFERROR(VLOOKUP($B34,'Saisie Pupilles'!$B$13:$AI$68,1+F$1,FALSE),0) -> JURA CYCLISME PAYS DU REVER | G34: =IFERROR(VLOOKUP($B34,'Saisie Pupilles'!$B$13:$AI$68,1+G$1,FALSE),0) -> Pupille | H34: =IFERROR(VLOOKUP($B34,'Saisie Pupilles'!$B$13:$AI$68,1+H$1,FALSE),0) -> 1 | I34: =IFERROR(VLOOKUP($B34,'Saisie Pupilles'!$B$13:$AI$68,26+I$1,FALSE),0) -> 0 | J34: =IFERROR(VLOOKUP($B34,'Saisie Pupilles'!$B$13:$AI$68,26+J$1,FALSE),0) -> 0 | K34: =IFERROR(VLOOKUP($B34,'Saisie Pupilles'!$B$13:$AI$68,26+K$1,FALSE),0) -> 0 | L34: =IFERROR(VLOOKUP($B34,'Saisie Pupilles'!$B$13:$AI$68,26+L$1,FALSE),0) -> 16.0000004 | M34: =IFERROR(VLOOKUP($B34,'Saisie Pupilles'!$B$13:$AI$68,26+M$1,FALSE),0) -> 0 | N34: =IFERROR(VLOOKUP($B34,'Saisie Pupilles'!$B$13:$AI$68,26+N$1,FALSE),0) -> 30.0000006 | O34: =IFERROR(VLOOKUP($B34,'Saisie Pupilles'!$B$13:$AI$68,26+O$1,FALSE),0) -> 11.000001 | P34: =IFERROR(VLOOKUP($B34,'Saisie Pupilles'!$B$13:$AI$68,26+P$1,FALSE),0) -> 10.0000008 | Q34: 67.0000028
A35: =IFERROR(IF(A34+1<='Saisie Pupilles'!$BF$12,A34+1,""),"") -> 22 | B35: =IFERROR(IF(A35<>"",VLOOKUP(A35,'Saisie Pupilles'!$BE$13:$BF$68,2,FALSE),""),"") -> 42250181045 | C35: =IFERROR(VLOOKUP($B35,'Saisie Pupilles'!$B$13:$AI$68,1+C$1,FALSE),0) -> MIMRAM | D35: =IFERROR(VLOOKUP($B35,'Saisie Pupilles'!$B$13:$AI$68,1+D$1,FALSE),0) -> Marceau | E35: =IFERROR(VLOOKUP($B35,'Saisie Pupilles'!$B$13:$AI$68,1+E$1,FALSE),0) -> H | F35: =IFERROR(VLOOKUP($B35,'Saisie Pupilles'!$B$13:$AI$68,1+F$1,FALSE),0) -> VC MORTEAU MONTBENOIT | G35: =IFERROR(VLOOKUP($B35,'Saisie Pupilles'!$B$13:$AI$68,1+G$1,FALSE),0) -> Pupille | H35: =IFERROR(VLOOKUP($B35,'Saisie Pupilles'!$B$13:$AI$68,1+H$1,FALSE),0) -> 1 | I35: =IFERROR(VLOOKUP($B35,'Saisie Pupilles'!$B$13:$AI$68,26+I$1,FALSE),0) -> 0 | J35: =IFERROR(VLOOKUP($B35,'Saisie Pupilles'!$B$13:$AI$68,26+J$1,FALSE),0) -> 0 | K35: =IFERROR(VLOOKUP($B35,'Saisie Pupilles'!$B$13:$AI$68,26+K$1,FALSE),0) -> 0 | L35: =IFERROR(VLOOKUP($B35,'Saisie Pupilles'!$B$13:$AI$68,26+L$1,FALSE),0) -> 30.0000004 | M35: =IFERROR(VLOOKUP($B35,'Saisie Pupilles'!$B$13:$AI$68,26+M$1,FALSE),0) -> 34.0000005 | N35: =IFERROR(VLOOKUP($B35,'Saisie Pupilles'!$B$13:$AI$68,26+N$1,FALSE),0) -> 0 | O35: =IFERROR(VLOOKUP($B35,'Saisie Pupilles'!$B$13:$AI$68,26+O$1,FALSE),0) -> 0 | P35: =IFERROR(VLOOKUP($B35,'Saisie Pupilles'!$B$13:$AI$68,26+P$1,FALSE),0) -> 0 | Q35: 64.0000009
A36: =IFERROR(IF(A35+1<='Saisie Pupilles'!$BF$12,A35+1,""),"") -> 23 | B36: =IFERROR(IF(A36<>"",VLOOKUP(A36,'Saisie Pupilles'!$BE$13:$BF$68,2,FALSE),""),"") -> 42700680155 | C36: =IFERROR(VLOOKUP($B36,'Saisie Pupilles'!$B$13:$AI$68,1+C$1,FALSE),0) -> MAUFFREY | D36: =IFERROR(VLOOKUP($B36,'Saisie Pupilles'!$B$13:$AI$68,1+D$1,FALSE),0) -> Adèle | E36: =IFERROR(VLOOKUP($B36,'Saisie Pupilles'!$B$13:$AI$68,1+E$1,FALSE),0) -> D | F36: =IFERROR(VLOOKUP($B36,'Saisie Pupilles'!$B$13:$AI$68,1+F$1,FALSE),0) -> E.C. LUXEUIL VOSGES SAONO | G36: =IFERROR(VLOOKUP($B36,'Saisie Pupilles'!$B$13:$AI$68,1+G$1,FALSE),0) -> Pupille | H36: =IFERROR(VLOOKUP($B36,'Saisie Pupilles'!$B$13:$AI$68,1+H$1,FALSE),0) -> 1 | I36: =IFERROR(VLOOKUP($B36,'Saisie Pupilles'!$B$13:$AI$68,26+I$1,FALSE),0) -> 24.0000001 | J36: =IFERROR(VLOOKUP($B36,'Saisie Pupilles'!$B$13:$AI$68,26+J$1,FALSE),0) -> 0 | K36: =IFERROR(VLOOKUP($B36,'Saisie Pupilles'!$B$13:$AI$68,26+K$1,FALSE),0) -> 26.0000003 | L36: =IFERROR(VLOOKUP($B36,'Saisie Pupilles'!$B$13:$AI$68,26+L$1,FALSE),0) -> 0 | M36: =IFERROR(VLOOKUP($B36,'Saisie Pupilles'!$B$13:$AI$68,26+M$1,FALSE),0) -> 0 | N36: =IFERROR(VLOOKUP($B36,'Saisie Pupilles'!$B$13:$AI$68,26+N$1,FALSE),0) -> 0 | O36: =IFERROR(VLOOKUP($B36,'Saisie Pupilles'!$B$13:$AI$68,26+O$1,FALSE),0) -> 0 | P36: =IFERROR(VLOOKUP($B36,'Saisie Pupilles'!$B$13:$AI$68,26+P$1,FALSE),0) -> 12.0000008 | Q36: 62.0000012
A37: =IFERROR(IF(A36+1<='Saisie Pupilles'!$BF$12,A36+1,""),"") -> 24 | B37: =IFERROR(IF(A37<>"",VLOOKUP(A37,'Saisie Pupilles'!$BE$13:$BF$68,2,FALSE),""),"") -> 42700060270 | C37: =IFERROR(VLOOKUP($B37,'Saisie Pupilles'!$B$13:$AI$68,1+C$1,FALSE),0) -> DESGRANCHAMPS | D37: =IFERROR(VLOOKUP($B37,'Saisie Pupilles'!$B$13:$AI$68,1+D$1,FALSE),0) -> Maxence | E37: =IFERROR(VLOOKUP($B37,'Saisie Pupilles'!$B$13:$AI$68,1+E$1,FALSE),0) -> H | F37: =IFERROR(VLOOKUP($B37,'Saisie Pupilles'!$B$13:$AI$68,1+F$1,FALSE),0) -> ROUE D`OR NOIDANS | G37: =IFERROR(VLOOKUP($B37,'Saisie Pupilles'!$B$13:$AI$68,1+G$1,FALSE),0) -> Pupille | H37: =IFERROR(VLOOKUP($B37,'Saisie Pupilles'!$B$13:$AI$68,1+H$1,FALSE),0) -> 1 | I37: =IFERROR(VLOOKUP($B37,'Saisie Pupilles'!$B$13:$AI$68,26+I$1,FALSE),0) -> 0 | J37: =IFERROR(VLOOKUP($B37,'Saisie Pupilles'!$B$13:$AI$68,26+J$1,FALSE),0) -> 21.0000002 | K37: =IFERROR(VLOOKUP($B37,'Saisie Pupilles'!$B$13:$AI$68,26+K$1,FALSE),0) -> 0 | L37: =IFERROR(VLOOKUP($B37,'Saisie Pupilles'!$B$13:$AI$68,26+L$1,FALSE),0) -> 10.0000004 | M37: =IFERROR(VLOOKUP($B37,'Saisie Pupilles'!$B$13:$AI$68,26+M$1,FALSE),0) -> 0 | N37: =IFERROR(VLOOKUP($B37,'Saisie Pupilles'!$B$13:$AI$68,26+N$1,FALSE),0) -> 17.0000006 | O37: =IFERROR(VLOOKUP($B37,'Saisie Pupilles'!$B$13:$AI$68,26+O$1,FALSE),0) -> 10.000001 | P37: =IFERROR(VLOOKUP($B37,'Saisie Pupilles'!$B$13:$AI$68,26+P$1,FALSE),0) -> 0 | Q37: 58.0000022
A38: =IFERROR(IF(A37+1<='Saisie Pupilles'!$BF$12,A37+1,""),"") -> 25 | B38: =IFERROR(IF(A38<>"",VLOOKUP(A38,'Saisie Pupilles'!$BE$13:$BF$68,2,FALSE),""),"") -> 42390960358 | C38: =IFERROR(VLOOKUP($B38,'Saisie Pupilles'!$B$13:$AI$68,1+C$1,FALSE),0) -> BOLE GALEOTTI | D38: =IFERROR(VLOOKUP($B38,'Saisie Pupilles'!$B$13:$AI$68,1+D$1,FALSE),0) -> Ilenzo | E38: =IFERROR(VLOOKUP($B38,'Saisie Pupilles'!$B$13:$AI$68,1+E$1,FALSE),0) -> H | F38: =IFERROR(VLOOKUP($B38,'Saisie Pupilles'!$B$13:$AI$68,1+F$1,FALSE),0) -> JURA CYCLISME PAYS DU REVER | G38: =IFERROR(VLOOKUP($B38,'Saisie Pupilles'!$B$13:$AI$68,1+G$1,FALSE),0) -> Pupille | H38: =IFERROR(VLOOKUP($B38,'Saisie Pupilles'!$B$13:$AI$68,1+H$1,FALSE),0) -> 1 | I38: =IFERROR(VLOOKUP($B38,'Saisie Pupilles'!$B$13:$AI$68,26+I$1,FALSE),0) -> 0 | J38: =IFERROR(VLOOKUP($B38,'Saisie Pupilles'!$B$13:$AI$68,26+J$1,FALSE),0) -> 0 | K38: =IFERROR(VLOOKUP($B38,'Saisie Pupilles'!$B$13:$AI$68,26+K$1,FALSE),0) -> 0 | L38: =IFERROR(VLOOKUP($B38,'Saisie Pupilles'!$B$13:$AI$68,26+L$1,FALSE),0) -> 14.0000004 | M38: =IFERROR(VLOOKUP($B38,'Saisie Pupilles'!$B$13:$AI$68,26+M$1,FALSE),0) -> 0 | N38: =IFERROR(VLOOKUP($B38,'Saisie Pupilles'!$B$13:$AI$68,26+N$1,FALSE),0) -> 19.0000006 | O38: =IFERROR(VLOOKUP($B38,'Saisie Pupilles'!$B$13:$AI$68,26+O$1,FALSE),0) -> 0 | P38: =IFERROR(VLOOKUP($B38,'Saisie Pupilles'!$B$13:$AI$68,26+P$1,FALSE),0) -> 16.0000008 | Q38: 49.0000018
A39: =IFERROR(IF(A38+1<='Saisie Pupilles'!$BF$12,A38+1,""),"") -> 26 | B39: =IFERROR(IF(A39<>"",VLOOKUP(A39,'Saisie Pupilles'!$BE$13:$BF$68,2,FALSE),""),"") -> 42250150362 | C39: =IFERROR(VLOOKUP($B39,'Saisie Pupilles'!$B$13:$AI$68,1+C$1,FALSE),0) -> LAFON | D39: =IFERROR(VLOOKUP($B39,'Saisie Pupilles'!$B$13:$AI$68,1+D$1,FALSE),0) -> Maxime | E39: =IFERROR(VLOOKUP($B39,'Saisie Pupilles'!$B$13:$AI$68,1+E$1,FALSE),0) -> H | F39: =IFERROR(VLOOKUP($B39,'Saisie Pupilles'!$B$13:$AI$68,1+F$1,FALSE),0) -> VELO CLUB ORNANS | G39: =IFERROR(VLOOKUP($B39,'Saisie Pupilles'!$B$13:$AI$68,1+G$1,FALSE),0) -> Pupille | H39: =IFERROR(VLOOKUP($B39,'Saisie Pupilles'!$B$13:$AI$68,1+H$1,FALSE),0) -> 2 | I39: =IFERROR(VLOOKUP($B39,'Saisie Pupilles'!$B$13:$AI$68,26+I$1,FALSE),0) -> 0 | J39: =IFERROR(VLOOKUP($B39,'Saisie Pupilles'!$B$13:$AI$68,26+J$1,FALSE),0) -> 15.0000002 | K39: =IFERROR(VLOOKUP($B39,'Saisie Pupilles'!$B$13:$AI$68,26+K$1,FALSE),0) -> 0 | L39: =IFERROR(VLOOKUP($B39,'Saisie Pupilles'!$B$13:$AI$68,26+L$1,FALSE),0) -> 0 | M39: =IFERROR(VLOOKUP($B39,'Saisie Pupilles'!$B$13:$AI$68,26+M$1,FALSE),0) -> 21.0000005 | N39: =IFERROR(VLOOKUP($B39,'Saisie Pupilles'!$B$13:$AI$68,26+N$1,FALSE),0) -> 13.0000006 | O39: =IFERROR(VLOOKUP($B39,'Saisie Pupilles'!$B$13:$AI$68,26+O$1,FALSE),0) -> 0 | P39: =IFERROR(VLOOKUP($B39,'Saisie Pupilles'!$B$13:$AI$68,26+P$1,FALSE),0) -> 0 | Q39: 49.0000013
A40: =IFERROR(IF(A39+1<='Saisie Pupilles'!$BF$12,A39+1,""),"") -> 27 | B40: =IFERROR(IF(A40<>"",VLOOKUP(A40,'Saisie Pupilles'!$BE$13:$BF$68,2,FALSE),""),"") -> 42250181116 | C40: =IFERROR(VLOOKUP($B40,'Saisie Pupilles'!$B$13:$AI$68,1+C$1,FALSE),0) -> MAMET | D40: =IFERROR(VLOOKUP($B40,'Saisie Pupilles'!$B$13:$AI$68,1+D$1,FALSE),0) -> Clément | E40: =IFERROR(VLOOKUP($B40,'Saisie Pupilles'!$B$13:$AI$68,1+E$1,FALSE),0) -> H | F40: =IFERROR(VLOOKUP($B40,'Saisie Pupilles'!$B$13:$AI$68,1+F$1,FALSE),0) -> VC MORTEAU MONTBENOIT | G40: =IFERROR(VLOOKUP($B40,'Saisie Pupilles'!$B$13:$AI$68,1+G$1,FALSE),0) -> Pupille | H40: =IFERROR(VLOOKUP($B40,'Saisie Pupilles'!$B$13:$AI$68,1+H$1,FALSE),0) -> 1 | I40: =IFERROR(VLOOKUP($B40,'Saisie Pupilles'!$B$13:$AI$68,26+I$1,FALSE),0) -> 0 | J40: =IFERROR(VLOOKUP($B40,'Saisie Pupilles'!$B$13:$AI$68,26+J$1,FALSE),0) -> 0 | K40: =IFERROR(VLOOKUP($B40,'Saisie Pupilles'!$B$13:$AI$68,26+K$1,FALSE),0) -> 0 | L40: =IFERROR(VLOOKUP($B40,'Saisie Pupilles'!$B$13:$AI$68,26+L$1,FALSE),0) -> 28.0000004 | M40: =IFERROR(VLOOKUP($B40,'Saisie Pupilles'!$B$13:$AI$68,26+M$1,FALSE),0) -> 19.0000005 | N40: =IFERROR(VLOOKUP($B40,'Saisie Pupilles'!$B$13:$AI$68,26+N$1,FALSE),0) -> 0 | O40: =IFERROR(VLOOKUP($B40,'Saisie Pupilles'!$B$13:$AI$68,26+O$1,FALSE),0) -> 0 | P40: =IFERROR(VLOOKUP($B40,'Saisie Pupilles'!$B$13:$AI$68,26+P$1,FALSE),0) -> 0 | Q40: 47.0000009
A41: =IFERROR(IF(A40+1<='Saisie Pupilles'!$BF$12,A40+1,""),"") -> 28 | B41: =IFERROR(IF(A41<>"",VLOOKUP(A41,'Saisie Pupilles'!$BE$13:$BF$68,2,FALSE),""),"") -> 46880320572 | C41: =IFERROR(VLOOKUP($B41,'Saisie Pupilles'!$B$13:$AI$68,1+C$1,FALSE),0) -> GENTER | D41: =IFERROR(VLOOKUP($B41,'Saisie Pupilles'!$B$13:$AI$68,1+D$1,FALSE),0) -> Victoire | E41: =IFERROR(VLOOKUP($B41,'Saisie Pupilles'!$B$13:$AI$68,1+E$1,FALSE),0) -> D | F41: =IFERROR(VLOOKUP($B41,'Saisie Pupilles'!$B$13:$AI$68,1+F$1,FALSE),0) -> CYCLE GOLBEEN | G41: =IFERROR(VLOOKUP($B41,'Saisie Pupilles'!$B$13:$AI$68,1+G$1,FALSE),0) -> Pupille | H41: =IFERROR(VLOOKUP($B41,'Saisie Pupilles'!$B$13:$AI$68,1+H$1,FALSE),0) -> 2 | I41: =IFERROR(VLOOKUP($B41,'Saisie Pupilles'!$B$13:$AI$68,26+I$1,FALSE),0) -> 28.0000001 | J41: =IFERROR(VLOOKUP($B41,'Saisie Pupilles'!$B$13:$AI$68,26+J$1,FALSE),0) -> 0 | K41: =IFERROR(VLOOKUP($B41,'Saisie Pupilles'!$B$13:$AI$68,26+K$1,FALSE),0) -> 0 | L41: =IFERROR(VLOOKUP($B41,'Saisie Pupilles'!$B$13:$AI$68,26+L$1,FALSE),0) -> 0 | M41: =IFERROR(VLOOKUP($B41,'Saisie Pupilles'!$B$13:$AI$68,26+M$1,FALSE),0) -> 0 | N41: =IFERROR(VLOOKUP($B41,'Saisie Pupilles'!$B$13:$AI$68,26+N$1,FALSE),0) -> 0 | O41: =IFERROR(VLOOKUP($B41,'Saisie Pupilles'!$B$13:$AI$68,26+O$1,FALSE),0) -> 0 | P41: =IFERROR(VLOOKUP($B41,'Saisie Pupilles'!$B$13:$AI$68,26+P$1,FALSE),0) -> 19.0000008 | Q41: 47.0000009
A42: =IFERROR(IF(A41+1<='Saisie Pupilles'!$BF$12,A41+1,""),"") -> 29 | B42: =IFERROR(IF(A42<>"",VLOOKUP(A42,'Saisie Pupilles'!$BE$13:$BF$68,2,FALSE),""),"") -> 46670300401 | C42: =IFERROR(VLOOKUP($B42,'Saisie Pupilles'!$B$13:$AI$68,1+C$1,FALSE),0) -> ESCHENBRENNER | D42: =IFERROR(VLOOKUP($B42,'Saisie Pupilles'!$B$13:$AI$68,1+D$1,FALSE),0) -> Ruben | E42: =IFERROR(VLOOKUP($B42,'Saisie Pupilles'!$B$13:$AI$68,1+E$1,FALSE),0) -> H | F42: =IFERROR(VLOOKUP($B42,'Saisie Pupilles'!$B$13:$AI$68,1+F$1,FALSE),0) -> UC HAGUENAU | G42: =IFERROR(VLOOKUP($B42,'Saisie Pupilles'!$B$13:$AI$68,1+G$1,FALSE),0) -> Pupille | H42: =IFERROR(VLOOKUP($B42,'Saisie Pupilles'!$B$13:$AI$68,1+H$1,FALSE),0) -> 2 | I42: =IFERROR(VLOOKUP($B42,'Saisie Pupilles'!$B$13:$AI$68,26+I$1,FALSE),0) -> 0 | J42: =IFERROR(VLOOKUP($B42,'Saisie Pupilles'!$B$13:$AI$68,26+J$1,FALSE),0) -> 0 | K42: =IFERROR(VLOOKUP($B42,'Saisie Pupilles'!$B$13:$AI$68,26+K$1,FALSE),0) -> 0 | L42: =IFERROR(VLOOKUP($B42,'Saisie Pupilles'!$B$13:$AI$68,26+L$1,FALSE),0) -> 0 | M42: =IFERROR(VLOOKUP($B42,'Saisie Pupilles'!$B$13:$AI$68,26+M$1,FALSE),0) -> 0 | N42: =IFERROR(VLOOKUP($B42,'Saisie Pupilles'!$B$13:$AI$68,26+N$1,FALSE),0) -> 0 | O42: =IFERROR(VLOOKUP($B42,'Saisie Pupilles'!$B$13:$AI$68,26+O$1,FALSE),0) -> 0 | P42: =IFERROR(VLOOKUP($B42,'Saisie Pupilles'!$B$13:$AI$68,26+P$1,FALSE),0) -> 44.0000008 | Q42: 44.0000008
A43: =IFERROR(IF(A42+1<='Saisie Pupilles'!$BF$12,A42+1,""),"") -> 30 | B43: =IFERROR(IF(A43<>"",VLOOKUP(A43,'Saisie Pupilles'!$BE$13:$BF$68,2,FALSE),""),"") -> 42700680175 | C43: =IFERROR(VLOOKUP($B43,'Saisie Pupilles'!$B$13:$AI$68,1+C$1,FALSE),0) -> CREMEL | D43: =IFERROR(VLOOKUP($B43,'Saisie Pupilles'!$B$13:$AI$68,1+D$1,FALSE),0) -> Robin | E43: =IFERROR(VLOOKUP($B43,'Saisie Pupilles'!$B$13:$AI$68,1+E$1,FALSE),0) -> H | F43: =IFERROR(VLOOKUP($B43,'Saisie Pupilles'!$B$13:$AI$68,1+F$1,FALSE),0) -> E.C. LUXEUIL VOSGES SAONO | G43: =IFERROR(VLOOKUP($B43,'Saisie Pupilles'!$B$13:$AI$68,1+G$1,FALSE),0) -> Pupille | H43: =IFERROR(VLOOKUP($B43,'Saisie Pupilles'!$B$13:$AI$68,1+H$1,FALSE),0) -> 2 | I43: =IFERROR(VLOOKUP($B43,'Saisie Pupilles'!$B$13:$AI$68,26+I$1,FALSE),0) -> 22.0000001 | J43: =IFERROR(VLOOKUP($B43,'Saisie Pupilles'!$B$13:$AI$68,26+J$1,FALSE),0) -> 0 | K43: =IFERROR(VLOOKUP($B43,'Saisie Pupilles'!$B$13:$AI$68,26+K$1,FALSE),0) -> 22.0000003 | L43: =IFERROR(VLOOKUP($B43,'Saisie Pupilles'!$B$13:$AI$68,26+L$1,FALSE),0) -> 0 | M43: =IFERROR(VLOOKUP($B43,'Saisie Pupilles'!$B$13:$AI$68,26+M$1,FALSE),0) -> 0 | N43: =IFERROR(VLOOKUP($B43,'Saisie Pupilles'!$B$13:$AI$68,26+N$1,FALSE),0) -> 0 | O43: =IFERROR(VLOOKUP($B43,'Saisie Pupilles'!$B$13:$AI$68,26+O$1,FALSE),0) -> 0 | P43: =IFERROR(VLOOKUP($B43,'Saisie Pupilles'!$B$13:$AI$68,26+P$1,FALSE),0) -> 0 | Q43: 44.0000004
A44: =IFERROR(IF(A43+1<='Saisie Pupilles'!$BF$12,A43+1,""),"") -> 31 | B44: =IFERROR(IF(A44<>"",VLOOKUP(A44,'Saisie Pupilles'!$BE$13:$BF$68,2,FALSE),""),"") -> 42900480167 | C44: =IFERROR(VLOOKUP($B44,'Saisie Pupilles'!$B$13:$AI$68,1+C$1,FALSE),0) -> MORLAND | D44: =IFERROR(VLOOKUP($B44,'Saisie Pupilles'!$B$13:$AI$68,1+D$1,FALSE),0) -> LUC | E44: =IFERROR(VLOOKUP($B44,'Saisie Pupilles'!$B$13:$AI$68,1+E$1,FALSE),0) -> H | F44: =IFERROR(VLOOKUP($B44,'Saisie Pupilles'!$B$13:$AI$68,1+F$1,FALSE),0) -> CC BELFORT MIOTTE | G44: =IFERROR(VLOOKUP($B44,'Saisie Pupilles'!$B$13:$AI$68,1+G$1,FALSE),0) -> Pupille | H44: =IFERROR(VLOOKUP($B44,'Saisie Pupilles'!$B$13:$AI$68,1+H$1,FALSE),0) -> 1 | I44: =IFERROR(VLOOKUP($B44,'Saisie Pupilles'!$B$13:$AI$68,26+I$1,FALSE),0) -> 19.0000001 | J44: =IFERROR(VLOOKUP($B44,'Saisie Pupilles'!$B$13:$AI$68,26+J$1,FALSE),0) -> 0 | K44: =IFERROR(VLOOKUP($B44,'Saisie Pupilles'!$B$13:$AI$68,26+K$1,FALSE),0) -> 20.0000003 | L44: =IFERROR(VLOOKUP($B44,'Saisie Pupilles'!$B$13:$AI$68,26+L$1,FALSE),0) -> 0 | M44: =IFERROR(VLOOKUP($B44,'Saisie Pupilles'!$B$13:$AI$68,26+M$1,FALSE),0) -> 0 | N44: =IFERROR(VLOOKUP($B44,'Saisie Pupilles'!$B$13:$AI$68,26+N$1,FALSE),0) -> 0 | O44: =IFERROR(VLOOKUP($B44,'Saisie Pupilles'!$B$13:$AI$68,26+O$1,FALSE),0) -> 0 | P44: =IFERROR(VLOOKUP($B44,'Saisie Pupilles'!$B$13:$AI$68,26+P$1,FALSE),0) -> 0 | Q44: 39.0000004
A45: =IFERROR(IF(A44+1<='Saisie Pupilles'!$BF$12,A44+1,""),"") -> 32 | B45: =IFERROR(IF(A45<>"",VLOOKUP(A45,'Saisie Pupilles'!$BE$13:$BF$68,2,FALSE),""),"") -> 42250120308 | C45: =IFERROR(VLOOKUP($B45,'Saisie Pupilles'!$B$13:$AI$68,1+C$1,FALSE),0) -> PLANTEVIN BIRON | D45: =IFERROR(VLOOKUP($B45,'Saisie Pupilles'!$B$13:$AI$68,1+D$1,FALSE),0) -> Anselme | E45: =IFERROR(VLOOKUP($B45,'Saisie Pupilles'!$B$13:$AI$68,1+E$1,FALSE),0) -> H | F45: =IFERROR(VLOOKUP($B45,'Saisie Pupilles'!$B$13:$AI$68,1+F$1,FALSE),0) -> V.C.DE MONTBELIARD | G45: =IFERROR(VLOOKUP($B45,'Saisie Pupilles'!$B$13:$AI$68,1+G$1,FALSE),0) -> Pupille | H45: =IFERROR(VLOOKUP($B45,'Saisie Pupilles'!$B$13:$AI$68,1+H$1,FALSE),0) -> 2 | I45: =IFERROR(VLOOKUP($B45,'Saisie Pupilles'!$B$13:$AI$68,26+I$1,FALSE),0) -> 0 | J45: =IFERROR(VLOOKUP($B45,'Saisie Pupilles'!$B$13:$AI$68,26+J$1,FALSE),0) -> 0 | K45: =IFERROR(VLOOKUP($B45,'Saisie Pupilles'!$B$13:$AI$68,26+K$1,FALSE),0) -> 0 | L45: =IFERROR(VLOOKUP($B45,'Saisie Pupilles'!$B$13:$AI$68,26+L$1,FALSE),0) -> 0 | M45: =IFERROR(VLOOKUP($B45,'Saisie Pupilles'!$B$13:$AI$68,26+M$1,FALSE),0) -> 0 | N45: =IFERROR(VLOOKUP($B45,'Saisie Pupilles'!$B$13:$AI$68,26+N$1,FALSE),0) -> 0 | O45: =IFERROR(VLOOKUP($B45,'Saisie Pupilles'!$B$13:$AI$68,26+O$1,FALSE),0) -> 15.000001 | P45: =IFERROR(VLOOKUP($B45,'Saisie Pupilles'!$B$13:$AI$68,26+P$1,FALSE),0) -> 18.0000008 | Q45: 33.0000018
A46: =IFERROR(IF(A45+1<='Saisie Pupilles'!$BF$12,A45+1,""),"") -> 33 | B46: =IFERROR(IF(A46<>"",VLOOKUP(A46,'Saisie Pupilles'!$BE$13:$BF$68,2,FALSE),""),"") -> 42250181221 | C46: =IFERROR(VLOOKUP($B46,'Saisie Pupilles'!$B$13:$AI$68,1+C$1,FALSE),0) -> VIDBERG | D46: =IFERROR(VLOOKUP($B46,'Saisie Pupilles'!$B$13:$AI$68,1+D$1,FALSE),0) -> Léandre | E46: =IFERROR(VLOOKUP($B46,'Saisie Pupilles'!$B$13:$AI$68,1+E$1,FALSE),0) -> H | F46: =IFERROR(VLOOKUP($B46,'Saisie Pupilles'!$B$13:$AI$68,1+F$1,FALSE),0) -> VC MORTEAU MONTBENOIT | G46: =IFERROR(VLOOKUP($B46,'Saisie Pupilles'!$B$13:$AI$68,1+G$1,FALSE),0) -> Pupille | H46: =IFERROR(VLOOKUP($B46,'Saisie Pupilles'!$B$13:$AI$68,1+H$1,FALSE),0) -> 1 | I46: =IFERROR(VLOOKUP($B46,'Saisie Pupilles'!$B$13:$AI$68,26+I$1,FALSE),0) -> 0 | J46: =IFERROR(VLOOKUP($B46,'Saisie Pupilles'!$B$13:$AI$68,26+J$1,FALSE),0) -> 0 | K46: =IFERROR(VLOOKUP($B46,'Saisie Pupilles'!$B$13:$AI$68,26+K$1,FALSE),0) -> 0 | L46: =IFERROR(VLOOKUP($B46,'Saisie Pupilles'!$B$13:$AI$68,26+L$1,FALSE),0) -> 8.0000004 | M46: =IFERROR(VLOOKUP($B46,'Saisie Pupilles'!$B$13:$AI$68,26+M$1,FALSE),0) -> 17.0000005 | N46: =IFERROR(VLOOKUP($B46,'Saisie Pupilles'!$B$13:$AI$68,26+N$1,FALSE),0) -> 0 | O46: =IFERROR(VLOOKUP($B46,'Saisie Pupilles'!$B$13:$AI$68,26+O$1,FALSE),0) -> 8.000001 | P46: =IFERROR(VLOOKUP($B46,'Saisie Pupilles'!$B$13:$AI$68,26+P$1,FALSE),0) -> 0 | Q46: 33.0000019
A47: =IFERROR(IF(A46+1<='Saisie Pupilles'!$BF$12,A46+1,""),"") -> 34 | B47: =IFERROR(IF(A47<>"",VLOOKUP(A47,'Saisie Pupilles'!$BE$13:$BF$68,2,FALSE),""),"") -> 42250120359 | C47: =IFERROR(VLOOKUP($B47,'Saisie Pupilles'!$B$13:$AI$68,1+C$1,FALSE),0) -> BEY | D47: =IFERROR(VLOOKUP($B47,'Saisie Pupilles'!$B$13:$AI$68,1+D$1,FALSE),0) -> Giulian | E47: =IFERROR(VLOOKUP($B47,'Saisie Pupilles'!$B$13:$AI$68,1+E$1,FALSE),0) -> H | F47: =IFERROR(VLOOKUP($B47,'Saisie Pupilles'!$B$13:$AI$68,1+F$1,FALSE),0) -> V.C.DE MONTBELIARD | G47: =IFERROR(VLOOKUP($B47,'Saisie Pupilles'!$B$13:$AI$68,1+G$1,FALSE),0) -> Pupille | H47: =IFERROR(VLOOKUP($B47,'Saisie Pupilles'!$B$13:$AI$68,1+H$1,FALSE),0) -> 1 | I47: =IFERROR(VLOOKUP($B47,'Saisie Pupilles'!$B$13:$AI$68,26+I$1,FALSE),0) -> 0 | J47: =IFERROR(VLOOKUP($B47,'Saisie Pupilles'!$B$13:$AI$68,26+J$1,FALSE),0) -> 17.0000002 | K47: =IFERROR(VLOOKUP($B47,'Saisie Pupilles'!$B$13:$AI$68,26+K$1,FALSE),0) -> 0 | L47: =IFERROR(VLOOKUP($B47,'Saisie Pupilles'!$B$13:$AI$68,26+L$1,FALSE),0) -> 0 | M47: =IFERROR(VLOOKUP($B47,'Saisie Pupilles'!$B$13:$AI$68,26+M$1,FALSE),0) -> 0 | N47: =IFERROR(VLOOKUP($B47,'Saisie Pupilles'!$B$13:$AI$68,26+N$1,FALSE),0) -> 0 | O47: =IFERROR(VLOOKUP($B47,'Saisie Pupilles'!$B$13:$AI$68,26+O$1,FALSE),0) -> 14.000001 | P47: =IFERROR(VLOOKUP($B47,'Saisie Pupilles'!$B$13:$AI$68,26+P$1,FALSE),0) -> 0 | Q47: 31.0000012
